Workbook

Sheet Sheet6
B1: Assuming one lives to 80 while other continues 93, with SS based on this year and two years out
B4: expense # | C4: retirement age | D4: SS age | E4: SS income | F4: pre tax contributions | G4: savings amount /retiremenmt before tax | H4: after tax contributions | I4: savings amount /taxed | J4: pre equity % | K4: pre fixed % | L4: retirement equity % 1 | M4: retirement fixed % 1 | N4: retirement equity % 2 | O4: retirement fixed % 2 | Q4: mean | R4: percentage of runs resulting in =< | S4: 0 | U4: percentage of runs resulting in => | V4: 400000 | W4: mean
B5: 70000 | C5: 66 | D5: 66 | E5: =(3750+2475)*12 -> 74700 | F5: 0 | G5: 1000000 | H5: 0 | I5: 30000 | J5: 0.3 | K5: 0.7 | L5: 0.3 | M5: 0.7 | N5: 0.2 | O5: 0.8 | Q5: -1258102.389 | R5: standard with no SS | S5: 1 | U5: standard with no SS | V5: 0 | W5: 0
Q6: 0 | R6: standard with SS | S6: 0 | U6: standard with SS | V6: 1 | W6: 1142290.063
M7: [ | Q7: -1146257.746 | R7: advanced with no SS | S7: 1 | U7: advanced with no SS | V7: 0 | W7: 0
Q8: 0 | R8: advanced with SS | S8: 0 | U8: advanced with SS | V8: 1 | W8: 1688187.84
B10: 70000 | C10: 66 | D10: 68 | E10: =(4186+2885)*12 -> 84852 | F10: 0 | G10: 1000000 | H10: 0 | I10: 30000 | J10: 0.3 | K10: 0.7 | L10: 0.3 | M10: 0.7 | N10: 0.2 | O10: 0.8 | Q10: -1246281.188 | R10: standard with no SS | S10: 1 | U10: standard with no SS | V10: 0 | W10: 0
Q11: 0 | R11: standard with SS | S11: 0 | U11: standard with SS | V11: 1 | W11: 1232840.331
Q12: -1137644.751 | R12: advanced with no SS | S12: 1 | U12: advanced with no SS | V12: 0 | W12: 0
Q13: 0 | R13: advanced with SS | S13: 0 | U13: advanced with SS | V13: 1 | W13: 1700545.909
B15: 70000 | C15: 66 | D15: 66 | E15: =(3750+2475)*12 -> 74700 | F15: 0 | G15: 1000000 | H15: 0 | I15: 30000 | J15: 0.3 | K15: 0.7 | L15: 0.35 | M15: 0.65 | N15: 0.3 | O15: 0.7 | Q15: -1304046.084 | R15: standard with no SS | S15: 1 | U15: standard with no SS | V15: 0 | W15: 0
Q16: 0 | R16: standard with SS | S16: 0 | U16: standard with SS | V16: 0.9666666667 | W16: 1014219.045
Q17: -1160075.405 | R17: advanced with no SS | S17: 1 | U17: advanced with no SS | V17: 0 | W17: 0
Q18: 0 | R18: advanced with SS | S18: 0 | U18: advanced with SS | V18: 1 | W18: 1703682.921
B20: 70000 | C20: 66 | D20: 68 | E20: =E10 -> 84852 | F20: 0 | G20: 1000000 | H20: 0 | I20: 30000 | J20: 0.3 | K20: 0.7 | L20: 0.35 | M20: 0.65 | N20: 0.3 | O20: 0.7 | Q20: -1309270.026 | R20: standard with no SS | S20: 1 | U20: standard with no SS | V20: 0 | W20: 0
Q21: 0 | R21: standard with SS | S21: 0 | U21: standard with SS | V21: 1 | W21: 1053708.094
Q22: -1168988.095 | R22: advanced with no SS | S22: 1 | U22: advanced with no SS | V22: 0 | W22: 0
Q23: 0 | R23: advanced with SS | S23: 0 | U23: advanced with SS | V23: 1 | W23: 1691487.718
B25: 80000 | C25: 66 | D25: 66 | E25: =(3750+2475)*12 -> 74700 | F25: 0 | G25: 1000000 | H25: 0 | I25: 30000 | J25: 0.3 | K25: 0.7 | L25: 0.3 | M25: 0.7 | N25: 0.2 | O25: 0.8 | Q25: -1641516.439 | R25: standard with no SS | S25: 1 | U25: standard with no SS | V25: 0 | W25: 0
Q26: -116365.42 | R26: standard with SS | S26: 0.03333333333 | U26: standard with SS | V26: 0.7 | W26: 756564.3122
M27: [ | Q27: -1547392.676 | R27: advanced with no SS | S27: 1 | U27: advanced with no SS | V27: 0 | W27: 0
Q28: 0 | R28: advanced with SS | S28: 0 | U28: advanced with SS | V28: 1 | W28: 1058666.796
B30: 80000 | C30: 66 | D30: 68 | E30: =(4186+2885)*12 -> 84852 | F30: 0 | G30: 1000000 | H30: 0 | I30: 30000 | J30: 0.3 | K30: 0.7 | L30: 0.3 | M30: 0.7 | N30: 0.2 | O30: 0.8 | Q30: -1662949.242 | R30: standard with no SS | S30: 1 | U30: standard with no SS | V30: 0 | W30: 0
Q31: 0 | R31: standard with SS | S31: 0 | U31: standard with SS | V31: 0.6666666667 | W31: 644015.634
Q32: -1565181.328 | R32: advanced with no SS | S32: 1 | U32: advanced with no SS | V32: 0 | W32: 0
Q33: 0 | R33: advanced with SS | S33: 0 | U33: advanced with SS | V33: 1 | W33: 963597.2267
B35: 80000 | C35: 66 | D35: 66 | E35: =(3750+2475)*12 -> 74700 | F35: 0 | G35: 1000000 | H35: 0 | I35: 30000 | J35: 0.3 | K35: 0.7 | L35: 0.35 | M35: 0.65 | N35: 0.3 | O35: 0.7 | Q35: -1667148.829 | R35: standard with no SS | S35: 1 | U35: standard with no SS | V35: 0 | W35: 0
Q36: -45577.44955 | R36: standard with SS | S36: 0.06666666667 | U36: standard with SS | V36: 0.6333333333 | W36: 691951.7084
Q37: -1554060.491 | R37: advanced with no SS | S37: 1 | U37: advanced with no SS | V37: 0 | W37: 0
Q38: 0 | R38: advanced with SS | S38: 0 | U38: advanced with SS | V38: 1 | W38: 1068778.181
B40: 80000 | C40: 66 | D40: 68 | E40: =E30 -> 84852 | F40: 0 | G40: 1000000 | H40: 0 | I40: 30000 | J40: 0.3 | K40: 0.7 | L40: 0.35 | M40: 0.65 | N40: 0.3 | O40: 0.7 | Q40: -1644360.693 | R40: standard with no SS | S40: 1 | U40: standard with no SS | V40: 0 | W40: 0
Q41: 0 | R41: standard with SS | S41: 0 | U41: standard with SS | V41: 0.6 | W41: 682103.0595
Q42: -1543316.448 | R42: advanced with no SS | S42: 1 | U42: advanced with no SS | V42: 0 | W42: 0
Q43: 0 | R43: advanced with SS | S43: 0 | U43: advanced with SS | V43: 1 | W43: 1013953.288
B45: 90000 | C45: 66 | D45: 66 | E45: =(3750+2475)*12 -> 74700 | F45: 0 | G45: 1000000 | H45: 0 | I45: 30000 | J45: 0.3 | K45: 0.7 | L45: 0.3 | M45: 0.7 | N45: 0.2 | O45: 0.8 | Q45: -2026561.099 | R45: standard with no SS | S45: 1 | U45: standard with no SS | V45: 0 | W45: 0
Q46: -186447.475 | R46: standard with SS | S46: 0.7333333333 | U46: standard with SS | V46: 0 | W46: 0
M47: [ | Q47: -1935523.418 | R47: advanced with no SS | S47: 1 | U47: advanced with no SS | V47: 0 | W47: 0
Q48: 0 | R48: advanced with SS | S48: 0.06666666667 | U48: advanced with SS | V48: 0.2333333333 | W48: 553885.5455
B50: 90000 | C50: 66 | D50: 68 | E50: =(4186+2885)*12 -> 84852 | F50: 0 | G50: 1000000 | H50: 0 | I50: 30000 | J50: 0.3 | K50: 0.7 | L50: 0.3 | M50: 0.7 | N50: 0.2 | O50: 0.8 | Q50: -2037488.867 | R50: standard with no SS | S50: 1 | U50: standard with no SS | V50: 0 | W50: 0
Q51: -172090.9011 | R51: standard with SS | S51: 0.5666666667 | U51: standard with SS | V51: 0.03333333333 | W51: 442102.715
Q52: -1955005.65 | R52: advanced with no SS | S52: 1 | U52: advanced with no SS | V52: 0 | W52: 0
Q53: 0 | R53: advanced with SS | S53: 0.03333333333 | U53: advanced with SS | V53: 0.2333333333 | W53: 525796.8543
B55: 90000 | C55: 66 | D55: 66 | E55: =(3750+2475)*12 -> 74700 | F55: 0 | G55: 1000000 | H55: 0 | I55: 30000 | J55: 0.3 | K55: 0.7 | L55: 0.35 | M55: 0.65 | N55: 0.3 | O55: 0.7 | Q55: -2020283.515 | R55: standard with no SS | S55: 1 | U55: standard with no SS | V55: 0 | W55: 0
Q56: -173812.7315 | R56: standard with SS | S56: 0.6 | U56: standard with SS | V56: 0 | W56: 0
Q57: -1936734.399 | R57: advanced with no SS | S57: 1 | U57: advanced with no SS | V57: 0 | W57: 0
Q58: 0 | R58: advanced with SS | S58: 0.03333333333 | U58: advanced with SS | V58: 0.4333333333 | W58: 567574.2907
B60: 90000 | C60: 66 | D60: 68 | E60: =E50 -> 84852 | F60: 0 | G60: 1000000 | H60: 0 | I60: 30000 | J60: 0.3 | K60: 0.7 | L60: 0.35 | M60: 0.65 | N60: 0.3 | O60: 0.7 | Q60: -2045893.66 | R60: standard with no SS | S60: 1 | U60: standard with no SS | V60: 0 | W60: 0
Q61: -161686.1182 | R61: standard with SS | S61: 0.8 | U61: standard with SS | V61: 0 | W61: 0
Q62: -1945458.687 | R62: advanced with no SS | S62: 1 | U62: advanced with no SS | V62: 0 | W62: 0
Q63: 0 | R63: advanced with SS | S63: 0.03333333333 | U63: advanced with SS | V63: 0.3666666667 | W63: 504441.1384
B65: 100000 | C65: 66 | D65: 66 | E65: =(3750+2475)*12 -> 74700 | F65: 0 | G65: 1000000 | H65: 0 | I65: 30000 | J65: 0.3 | K65: 0.7 | L65: 0.3 | M65: 0.7 | N65: 0.2 | O65: 0.8 | Q65: -2356576.34 | R65: standard with no SS | S65: 1 | U65: standard with no SS | V65: 0 | W65: 0
Q66: -549645.7973 | R66: standard with SS | S66: 1 | U66: standard with SS | V66: 0 | W66: 0
M67: [ | Q67: -2287763.475 | R67: advanced with no SS | S67: 1 | U67: advanced with no SS | V67: 0 | W67: 0
Q68: 0 | R68: advanced with SS | S68: 0.9 | U68: advanced with SS | V68: 0 | W68: 0
B70: 100000 | C70: 66 | D70: 68 | E70: =(4186+2885)*12 -> 84852 | F70: 0 | G70: 1000000 | H70: 0 | I70: 30000 | J70: 0.3 | K70: 0.7 | L70: 0.3 | M70: 0.7 | N70: 0.2 | O70: 0.8 | Q70: -2369004.154 | R70: standard with no SS | S70: 1 | U70: standard with no SS | V70: 0 | W70: 0
Q71: -553057.1894 | R71: standard with SS | S71: 1 | U71: standard with SS | V71: 0 | W71: 0
Q72: -2303587.279 | R72: advanced with no SS | S72: 1 | U72: advanced with no SS | V72: 0 | W72: 0
Q73: 0 | R73: advanced with SS | S73: 1 | U73: advanced with SS | V73: 0 | W73: 0
B75: 100000 | C75: 66 | D75: 66 | E75: =(3750+2475)*12 -> 74700 | F75: 0 | G75: 1000000 | H75: 0 | I75: 30000 | J75: 0.3 | K75: 0.7 | L75: 0.35 | M75: 0.65 | N75: 0.3 | O75: 0.7 | Q75: -2366691.268 | R75: standard with no SS | S75: 1 | U75: standard with no SS | V75: 0 | W75: 0
Q76: -562183.8651 | R76: standard with SS | S76: 1 | U76: standard with SS | V76: 0 | W76: 0
Q77: -2290459.875 | R77: advanced with no SS | S77: 1 | U77: advanced with no SS | V77: 0 | W77: 0
Q78: 0 | R78: advanced with SS | S78: 0.9666666667 | U78: advanced with SS | V78: 0 | W78: 0
B80: 100000 | C80: 66 | D80: 68 | E80: =E70 -> 84852 | F80: 0 | G80: 1000000 | H80: 0 | I80: 30000 | J80: 0.3 | K80: 0.7 | L80: 0.35 | M80: 0.65 | N80: 0.3 | O80: 0.7 | Q80: -2333264.372 | R80: standard with no SS | S80: 1 | U80: standard with no SS | V80: 0 | W80: 0
Q81: -509133.5507 | R81: standard with SS | S81: 1 | U81: standard with SS | V81: 0 | W81: 0
Q82: -2261138.575 | R82: advanced with no SS | S82: 1 | U82: advanced with no SS | V82: 0 | W82: 0
Q83: 0 | R83: advanced with SS | S83: 0.8333333333 | U83: advanced with SS | V83: 0 | W83: 0

Sheet Sheet5
B1: Assuming one lives to 80 while other continues 93, with SS based on this year and next year
B4: expense # | C4: retirement age | D4: SS age | E4: SS income | F4: pre tax contributions | G4: savings amount /retiremenmt before tax | H4: after tax contributions | I4: savings amount /taxed | J4: pre equity % | K4: pre fixed % | L4: retirement equity % 1 | M4: retirement fixed % 1 | N4: retirement equity % 2 | O4: retirement fixed % 2 | Q4: mean | R4: percentage of runs resulting in =< | S4: 0 | U4: percentage of runs resulting in => | V4: 400000 | W4: mean
B5: 70000 | C5: 67 | D5: 67 | E5: =(3750+2475)*12 -> 74700 | F5: 0 | G5: 1000000 | H5: 0 | I5: 30000 | J5: 0.3 | K5: 0.7 | L5: 0.3 | M5: 0.7 | N5: 0.2 | O5: 0.8 | Q5: -1121850.842 | R5: standard with no SS | S5: 1 | U5: standard with no SS | V5: 0 | W5: 0
Q6: 0 | R6: standard with SS | S6: 0 | U6: standard with SS | V6: 1 | W6: 1309837.505
M7: [ | Q7: -1008829.274 | R7: advanced with no SS | S7: 1 | U7: advanced with no SS | V7: 0 | W7: 0
Q8: 0 | R8: advanced with SS | S8: 0 | U8: advanced with SS | V8: 1 | W8: 1830503.487
B10: 70000 | C10: 67 | D10: 68 | E10: =(3924+2664)*12 -> 79056 | F10: 0 | G10: 1000000 | H10: 0 | I10: 30000 | J10: 0.3 | K10: 0.7 | L10: 0.3 | M10: 0.7 | N10: 0.2 | O10: 0.8 | Q10: -1168620.721 | R10: standard with no SS | S10: 1 | U10: standard with no SS | V10: 0 | W10: 0
Q11: 0 | R11: standard with SS | S11: 0 | U11: standard with SS | V11: 1 | W11: 1194144.867
Q12: -1051011.975 | R12: advanced with no SS | S12: 1 | U12: advanced with no SS | V12: 0 | W12: 0
Q13: 0 | R13: advanced with SS | S13: 0 | U13: advanced with SS | V13: 1 | W13: 1679757.465
B15: 70000 | C15: 67 | D15: 67 | E15: =(3750+2475)*12 -> 74700 | F15: 0 | G15: 1000000 | H15: 0 | I15: 30000 | J15: 0.3 | K15: 0.7 | L15: 0.35 | M15: 0.65 | N15: 0.3 | O15: 0.7 | Q15: -1149136.364 | R15: standard with no SS | S15: 1 | U15: standard with no SS | V15: 0 | W15: 0
Q16: 0 | R16: standard with SS | S16: 0 | U16: standard with SS | V16: 1 | W16: 1155725.314
Q17: -1023061.989 | R17: advanced with no SS | S17: 1 | U17: advanced with no SS | V17: 0 | W17: 0
Q18: 0 | R18: advanced with SS | S18: 0 | U18: advanced with SS | V18: 1 | W18: 1762667.829
B20: 70000 | C20: 67 | D20: 68 | E20: =E10 -> 79056 | F20: 0 | G20: 1000000 | H20: 0 | I20: 30000 | J20: 0.3 | K20: 0.7 | L20: 0.35 | M20: 0.65 | N20: 0.3 | O20: 0.7 | Q20: -1148893.682 | R20: standard with no SS | S20: 1 | U20: standard with no SS | V20: 0 | W20: 0
Q21: 0 | R21: standard with SS | S21: 0 | U21: standard with SS | V21: 1 | W21: 1196493.873
Q22: -1017905.022 | R22: advanced with no SS | S22: 1 | U22: advanced with no SS | V22: 0 | W22: 0
Q23: 0 | R23: advanced with SS | S23: 0 | U23: advanced with SS | V23: 1 | W23: 1798905.047
B25: 80000 | C25: 67 | D25: 67 | E25: =(3750+2475)*12 -> 74700 | F25: 0 | G25: 1000000 | H25: 0 | I25: 30000 | J25: 0.3 | K25: 0.7 | L25: 0.3 | M25: 0.7 | N25: 0.2 | O25: 0.8 | Q25: -1503508.741 | R25: standard with no SS | S25: 1 | U25: standard with no SS | V25: 0 | W25: 0
Q26: 0 | R26: standard with SS | S26: 0 | U26: standard with SS | V26: 0.8666666667 | W26: 756655.5788
M27: [ | Q27: -1405015.815 | R27: advanced with no SS | S27: 1 | U27: advanced with no SS | V27: 0 | W27: 0
Q28: 0 | R28: advanced with SS | S28: 0 | U28: advanced with SS | V28: 1 | W28: 1128448.402
B30: 80000 | C30: 67 | D30: 68 | E30: =(3924+2664)*12 -> 79056 | F30: 0 | G30: 1000000 | H30: 0 | I30: 30000 | J30: 0.3 | K30: 0.7 | L30: 0.3 | M30: 0.7 | N30: 0.2 | O30: 0.8 | Q30: -1492137.922 | R30: standard with no SS | S30: 1 | U30: standard with no SS | V30: 0 | W30: 0
Q31: 0 | R31: standard with SS | S31: 0 | U31: standard with SS | V31: 0.8333333333 | W31: 752867.1535
Q32: -1406794.565 | R32: advanced with no SS | S32: 1 | U32: advanced with no SS | V32: 0 | W32: 0
Q33: 0 | R33: advanced with SS | S33: 0 | U33: advanced with SS | V33: 1 | W33: 1077583.331
B35: 80000 | C35: 67 | D35: 67 | E35: =(3750+2475)*12 -> 74700 | F35: 0 | G35: 1000000 | H35: 0 | I35: 30000 | J35: 0.3 | K35: 0.7 | L35: 0.35 | M35: 0.65 | N35: 0.3 | O35: 0.7 | Q35: -1487223.172 | R35: standard with no SS | S35: 1 | U35: standard with no SS | V35: 0 | W35: 0
Q36: 0 | R36: standard with SS | S36: 0 | U36: standard with SS | V36: 0.8 | W36: 787071.433
Q37: -1383190.014 | R37: advanced with no SS | S37: 1 | U37: advanced with no SS | V37: 0 | W37: 0
Q38: 0 | R38: advanced with SS | S38: 0 | U38: advanced with SS | V38: 1 | W38: 1210213.701
B40: 80000 | C40: 67 | D40: 68 | E40: =E30 -> 79056 | F40: 0 | G40: 1000000 | H40: 0 | I40: 30000 | J40: 0.3 | K40: 0.7 | L40: 0.35 | M40: 0.65 | N40: 0.3 | O40: 0.7 | Q40: -1506518.82 | R40: standard with no SS | S40: 1 | U40: standard with no SS | V40: 0 | W40: 0
Q41: 0 | R41: standard with SS | S41: 0 | U41: standard with SS | V41: 0.7333333333 | W41: 727029.0284
Q42: -1403902.054 | R42: advanced with no SS | S42: 1 | U42: advanced with no SS | V42: 0 | W42: 0
Q43: 0 | R43: advanced with SS | S43: 0 | U43: advanced with SS | V43: 1 | W43: 1159770.596
B45: 90000 | C45: 67 | D45: 67 | E45: =(3750+2475)*12 -> 74700 | F45: 0 | G45: 1000000 | H45: 0 | I45: 30000 | J45: 0.3 | K45: 0.7 | L45: 0.3 | M45: 0.7 | N45: 0.2 | O45: 0.8 | Q45: -1877711.431 | R45: standard with no SS | S45: 1 | U45: standard with no SS | V45: 0 | W45: 0
Q46: -193821.1064 | R46: standard with SS | S46: 0.4 | U46: standard with SS | V46: 0.1333333333 | W46: 535461.0023
M47: [ | Q47: -1787862.51 | R47: advanced with no SS | S47: 1 | U47: advanced with no SS | V47: 0 | W47: 0
Q48: 0 | R48: advanced with SS | S48: 0 | U48: advanced with SS | V48: 0.6 | W48: 625699.8307
B50: 90000 | C50: 67 | D50: 68 | E50: =(3924+2664)*12 -> 79056 | F50: 0 | G50: 1000000 | H50: 0 | I50: 30000 | J50: 0.3 | K50: 0.7 | L50: 0.3 | M50: 0.7 | N50: 0.2 | O50: 0.8 | Q50: -1826884.296 | R50: standard with no SS | S50: 1 | U50: standard with no SS | V50: 0 | W50: 0
Q51: -156308.4652 | R51: standard with SS | S51: 0.3 | U51: standard with SS | V51: 0.03333333333 | W51: 562861.4359
Q52: -1751956.225 | R52: advanced with no SS | S52: 1 | U52: advanced with no SS | V52: 0 | W52: 0
Q53: 0 | R53: advanced with SS | S53: 0 | U53: advanced with SS | V53: 0.6333333333 | W53: 587781.835
B55: 90000 | C55: 67 | D55: 67 | E55: =(3750+2475)*12 -> 74700 | F55: 0 | G55: 1000000 | H55: 0 | I55: 30000 | J55: 0.3 | K55: 0.7 | L55: 0.35 | M55: 0.65 | N55: 0.3 | O55: 0.7 | Q55: -1803536.129 | R55: standard with no SS | S55: 1 | U55: standard with no SS | V55: 0 | W55: 0
Q56: -204715.1635 | R56: standard with SS | S56: 0.2 | U56: standard with SS | V56: 0.1666666667 | W56: 586986.3405
Q57: -1719414.375 | R57: advanced with no SS | S57: 1 | U57: advanced with no SS | V57: 0 | W57: 0
Q58: 0 | R58: advanced with SS | S58: 0 | U58: advanced with SS | V58: 0.8333333333 | W58: 712518.9567
B60: 90000 | C60: 67 | D60: 68 | E60: =E50 -> 79056 | F60: 0 | G60: 1000000 | H60: 0 | I60: 30000 | J60: 0.3 | K60: 0.7 | L60: 0.35 | M60: 0.65 | N60: 0.3 | O60: 0.7 | Q60: -1843606.316 | R60: standard with no SS | S60: 1 | U60: standard with no SS | V60: 0 | W60: 0
Q61: -126422.2397 | R61: standard with SS | S61: 0.4333333333 | U61: standard with SS | V61: 0.06666666667 | W61: 483976.2486
Q62: -1753990.979 | R62: advanced with no SS | S62: 1 | U62: advanced with no SS | V62: 0 | W62: 0
Q63: 0 | R63: advanced with SS | S63: 0 | U63: advanced with SS | V63: 0.6666666667 | W63: 613362.4429
B65: 100000 | C65: 67 | D65: 67 | E65: =(3750+2475)*12 -> 74700 | F65: 0 | G65: 1000000 | H65: 0 | I65: 30000 | J65: 0.3 | K65: 0.7 | L65: 0.3 | M65: 0.7 | N65: 0.2 | O65: 0.8 | Q65: -2184092.459 | R65: standard with no SS | S65: 1 | U65: standard with no SS | V65: 0 | W65: 0
Q66: -362577.168 | R66: standard with SS | S66: 1 | U66: standard with SS | V66: 0 | W66: 0
M67: [ | Q67: -2113608.504 | R67: advanced with no SS | S67: 1 | U67: advanced with no SS | V67: 0 | W67: 0
Q68: 0 | R68: advanced with SS | S68: 0.7333333333 | U68: advanced with SS | V68: 0 | W68: 0
B70: 100000 | C70: 67 | D70: 68 | E70: =(3924+2664)*12 -> 79056 | F70: 0 | G70: 1000000 | H70: 0 | I70: 30000 | J70: 0.3 | K70: 0.7 | L70: 0.3 | M70: 0.7 | N70: 0.2 | O70: 0.8 | Q70: -2206481.323 | R70: standard with no SS | S70: 1 | U70: standard with no SS | V70: 0 | W70: 0
Q71: -439631.5496 | R71: standard with SS | S71: 1 | U71: standard with SS | V71: 0 | W71: 0
Q72: -2134664.663 | R72: advanced with no SS | S72: 1 | U72: advanced with no SS | V72: 0 | W72: 0
Q73: 0 | R73: advanced with SS | S73: 0.9333333333 | U73: advanced with SS | V73: 0 | W73: 0
B75: 100000 | C75: 67 | D75: 67 | E75: =(3750+2475)*12 -> 74700 | F75: 0 | G75: 1000000 | H75: 0 | I75: 30000 | J75: 0.3 | K75: 0.7 | L75: 0.35 | M75: 0.65 | N75: 0.3 | O75: 0.7 | Q75: -2178543.869 | R75: standard with no SS | S75: 1 | U75: standard with no SS | V75: 0 | W75: 0
Q76: -425656.9256 | R76: standard with SS | S76: 0.9 | U76: standard with SS | V76: 0 | W76: 0
Q77: -2107468.89 | R77: advanced with no SS | S77: 1 | U77: advanced with no SS | V77: 0 | W77: 0
Q78: 0 | R78: advanced with SS | S78: 0.7666666667 | U78: advanced with SS | V78: 0.06666666667 | W78: 491659.4672
B80: 100000 | C80: 67 | D80: 68 | E80: =E70 -> 79056 | F80: 0 | G80: 1000000 | H80: 0 | I80: 30000 | J80: 0.3 | K80: 0.7 | L80: 0.35 | M80: 0.65 | N80: 0.3 | O80: 0.7 | Q80: -2212330.177 | R80: standard with no SS | S80: 1 | U80: standard with no SS | V80: 0 | W80: 0
Q81: -448158.2377 | R81: standard with SS | S81: 1 | U81: standard with SS | V81: 0 | W81: 0
Q82: -2122638.439 | R82: advanced with no SS | S82: 1 | U82: advanced with no SS | V82: 0 | W82: 0
Q83: 0 | R83: advanced with SS | S83: 0.8333333333 | U83: advanced with SS | V83: 0 | W83: 0

Sheet Sheet4
B1: Both living to 95/93, with social securit based on today and next year
B4: expense # | C4: retirement age | D4: SS age | E4: SS income | F4: pre tax contributions | G4: savings amount /retiremenmt before tax | H4: after tax contributions | I4: savings amount /taxed | J4: pre equity % | K4: pre fixed % | L4: retirement equity % 1 | M4: retirement fixed % 1 | N4: retirement equity % 2 | O4: retirement fixed % 2 | Q4: mean | R4: percentage of runs resulting in =< | S4: 0 | U4: percentage of runs resulting in => | V4: 400000 | W4: mean
B5: 70000 | C5: 67 | D5: 67 | E5: =(3750+2475)*12 -> 74700 | F5: 0 | G5: 1000000 | H5: 0 | I5: 30000 | J5: 0.3 | K5: 0.7 | L5: 0.3 | M5: 0.7 | N5: 0.2 | O5: 0.8 | Q5: -1492458.098 | R5: standard with no SS | S5: 1 | U5: standard with no SS | V5: 0 | W5: 0
Q6: 0 | R6: standard with SS | S6: 0 | U6: standard with SS | V6: 1 | W6: 1391111.12
M7: [ | Q7: -1381714.679 | R7: advanced with no SS | S7: 1 | U7: advanced with no SS | V7: 0 | W7: 0
Q8: 0 | R8: advanced with SS | S8: 0 | U8: advanced with SS | V8: 1 | W8: 1911778.513
B10: 70000 | C10: 67 | D10: 68 | E10: =(3924+2664)*12 -> 79056 | F10: 0 | G10: 1000000 | H10: 0 | I10: 30000 | J10: 0.3 | K10: 0.7 | L10: 0.3 | M10: 0.7 | N10: 0.2 | O10: 0.8 | Q10: -1507342.929 | R10: standard with no SS | S10: 1 | U10: standard with no SS | V10: 0 | W10: 0
Q11: 0 | R11: standard with SS | S11: 0 | U11: standard with SS | V11: 1 | W11: 1373754.971
Q12: -1393107.446 | R12: advanced with no SS | S12: 1 | U12: advanced with no SS | V12: 0 | W12: 0
Q13: 0 | R13: advanced with SS | S13: 0 | U13: advanced with SS | V13: 1 | W13: 1888938.903
B15: 70000 | C15: 67 | D15: 67 | E15: =(3750+2475)*12 -> 74700 | F15: 0 | G15: 1000000 | H15: 0 | I15: 30000 | J15: 0.3 | K15: 0.7 | L15: 0.35 | M15: 0.65 | N15: 0.3 | O15: 0.7 | Q15: -1537427.606 | R15: standard with no SS | S15: 1 | U15: standard with no SS | V15: 0 | W15: 0
Q16: 0 | R16: standard with SS | S16: 0 | U16: standard with SS | V16: 0.99 | W16: 1240069.773
Q17: -1403072.961 | R17: advanced with no SS | S17: 1 | U17: advanced with no SS | V17: 0 | W17: 0
Q18: 0 | R18: advanced with SS | S18: 0 | U18: advanced with SS | V18: 1 | W18: 1908086.878
B20: 70000 | C20: 67 | D20: 68 | E20: =E10 -> 79056 | F20: 0 | G20: 1000000 | H20: 0 | I20: 30000 | J20: 0.3 | K20: 0.7 | L20: 0.35 | M20: 0.65 | N20: 0.3 | O20: 0.7 | Q20: -1526901.791 | R20: standard with no SS | S20: 1 | U20: standard with no SS | V20: 0 | W20: 0
Q21: 0 | R21: standard with SS | S21: 0 | U21: standard with SS | V21: 1 | W21: 1299501.693
Q22: -1392916.248 | R22: advanced with no SS | S22: 1 | U22: advanced with no SS | V22: 0 | W22: 0
Q23: 0 | R23: advanced with SS | S23: 0 | U23: advanced with SS | V23: 1 | W23: 1946014.91
B25: 80000 | C25: 67 | D25: 67 | E25: =(3750+2475)*12 -> 74700 | F25: 0 | G25: 1000000 | H25: 0 | I25: 30000 | J25: 0.3 | K25: 0.7 | L25: 0.3 | M25: 0.7 | N25: 0.2 | O25: 0.8 | Q25: -1923092.871 | R25: standard with no SS | S25: 1 | U25: standard with no SS | V25: 0 | W25: 0
Q26: 0 | R26: standard with SS | S26: 0 | U26: standard with SS | V26: 0.87 | W26: 725629.7215
M27: [ | Q27: -1834037.352 | R27: advanced with no SS | S27: 1 | U27: advanced with no SS | V27: 0 | W27: 0
Q28: 0 | R28: advanced with SS | S28: 0 | U28: advanced with SS | V28: 1 | W28: 1101284.397
B30: 80000 | C30: 67 | D30: 68 | E30: =(3924+2664)*12 -> 79056 | F30: 0 | G30: 1000000 | H30: 0 | I30: 30000 | J30: 0.3 | K30: 0.7 | L30: 0.3 | M30: 0.7 | N30: 0.2 | O30: 0.8 | Q30: -1914664.121 | R30: standard with no SS | S30: 1 | U30: standard with no SS | V30: 0 | W30: 0
Q31: 0 | R31: standard with SS | S31: 0 | U31: standard with SS | V31: 0.93 | W31: 709687.74
Q32: -1821565.046 | R32: advanced with no SS | S32: 1 | U32: advanced with no SS | V32: 0 | W32: 0
Q33: 0 | R33: advanced with SS | S33: 0 | U33: advanced with SS | V33: 1 | W33: 1131636.331
B35: 80000 | C35: 67 | D35: 67 | E35: =(3750+2475)*12 -> 74700 | F35: 0 | G35: 1000000 | H35: 0 | I35: 30000 | J35: 0.3 | K35: 0.7 | L35: 0.35 | M35: 0.65 | N35: 0.3 | O35: 0.7 | Q35: -1921822.426 | R35: standard with no SS | S35: 1 | U35: standard with no SS | V35: 0 | W35: 0
Q36: 0 | R36: standard with SS | S36: 0 | U36: standard with SS | V36: 0.83 | W36: 707858.3877
Q37: -1808184.283 | R37: advanced with no SS | S37: 1 | U37: advanced with no SS | V37: 0 | W37: 0
Q38: 0 | R38: advanced with SS | S38: 0 | U38: advanced with SS | V38: 1 | W38: 1203691.212
B40: 80000 | C40: 67 | D40: 68 | E40: =E30 -> 79056 | F40: 0 | G40: 1000000 | H40: 0 | I40: 30000 | J40: 0.3 | K40: 0.7 | L40: 0.35 | M40: 0.65 | N40: 0.3 | O40: 0.7 | Q40: -1916681.459 | R40: standard with no SS | S40: 1 | U40: standard with no SS | V40: 0 | W40: 0
Q41: -45839.5555 | R41: standard with SS | S41: 0.02 | U41: standard with SS | V41: 0.85 | W41: 721021.4313
Q42: -1807276.318 | R42: advanced with no SS | S42: 1 | U42: advanced with no SS | V42: 0 | W42: 0
Q43: 0 | R43: advanced with SS | S43: 0 | U43: advanced with SS | V43: 1 | W43: 1201984.553
B45: 90000 | C45: 67 | D45: 67 | E45: =(3750+2475)*12 -> 74700 | F45: 0 | G45: 1000000 | H45: 0 | I45: 30000 | J45: 0.3 | K45: 0.7 | L45: 0.3 | M45: 0.7 | N45: 0.2 | O45: 0.8 | Q45: -2309647.205 | R45: standard with no SS | S45: 1 | U45: standard with no SS | V45: 0 | W45: 0
Q46: -160562.8087 | R46: standard with SS | S46: 0.43 | U46: standard with SS | V46: 0.06 | W46: 524842.2647
M47: [ | Q47: -2232680.506 | R47: advanced with no SS | S47: 1 | U47: advanced with no SS | V47: 0 | W47: 0
Q48: 0 | R48: advanced with SS | S48: 0.02 | U48: advanced with SS | V48: 0.52 | W48: 527469.8221
B50: 90000 | C50: 67 | D50: 68 | E50: =(3924+2664)*12 -> 79056 | F50: 0 | G50: 1000000 | H50: 0 | I50: 30000 | J50: 0.3 | K50: 0.7 | L50: 0.3 | M50: 0.7 | N50: 0.2 | O50: 0.8 | Q50: -2305960.444 | R50: standard with no SS | S50: 1 | U50: standard with no SS | V50: 0 | W50: 0
Q51: -129843.5709 | R51: standard with SS | S51: 0.42 | U51: standard with SS | V51: 0.04 | W51: 526540.4021
Q52: -2235180.044 | R52: advanced with no SS | S52: 1 | U52: advanced with no SS | V52: 0 | W52: 0
Q53: 0 | R53: advanced with SS | S53: 0 | U53: advanced with SS | V53: 0.38 | W53: 544323.4611
B55: 90000 | C55: 67 | D55: 67 | E55: =(3750+2475)*12 -> 74700 | F55: 0 | G55: 1000000 | H55: 0 | I55: 30000 | J55: 0.3 | K55: 0.7 | L55: 0.35 | M55: 0.65 | N55: 0.3 | O55: 0.7 | Q55: -2334661.328 | R55: standard with no SS | S55: 1 | U55: standard with no SS | V55: 0 | W55: 0
Q56: -182781.9515 | R56: standard with SS | S56: 0.61 | U56: standard with SS | V56: 0.07 | W56: 539832.2811
Q57: -2239528.886 | R57: advanced with no SS | S57: 1 | U57: advanced with no SS | V57: 0 | W57: 0
Q58: 0 | R58: advanced with SS | S58: 0.02 | U58: advanced with SS | V58: 0.5 | W58: 582974.9246
B60: 90000 | C60: 67 | D60: 68 | E60: =E50 -> 79056 | F60: 0 | G60: 1000000 | H60: 0 | I60: 30000 | J60: 0.3 | K60: 0.7 | L60: 0.35 | M60: 0.65 | N60: 0.3 | O60: 0.7 | Q60: -2317135.145 | R60: standard with no SS | S60: 1 | U60: standard with no SS | V60: 0 | W60: 0
Q61: -187163.2465 | R61: standard with SS | S61: 0.49 | U61: standard with SS | V61: 0.03 | W61: 613402.742
Q62: -2218309.637 | R62: advanced with no SS | S62: 1 | U62: advanced with no SS | V62: 0 | W62: 0
Q63: 0 | R63: advanced with SS | S63: 0.03 | U63: advanced with SS | V63: 0.61 | W63: 593734.6472
B65: 100000 | C65: 67 | D65: 67 | E65: =(3750+2475)*12 -> 74700 | F65: 0 | G65: 1000000 | H65: 0 | I65: 30000 | J65: 0.3 | K65: 0.7 | L65: 0.3 | M65: 0.7 | N65: 0.2 | O65: 0.8 | Q65: -2702974.435 | R65: standard with no SS | S65: 1 | U65: standard with no SS | V65: 0 | W65: 0
Q66: -533834.3953 | R66: standard with SS | S66: 1 | U66: standard with SS | V66: 0 | W66: 0
M67: [ | Q67: -2636741.927 | R67: advanced with no SS | S67: 1 | U67: advanced with no SS | V67: 0 | W67: 0
Q68: 0 | R68: advanced with SS | S68: 0.97 | U68: advanced with SS | V68: 0 | W68: 0
B70: 100000 | C70: 67 | D70: 68 | E70: =(3924+2664)*12 -> 79056 | F70: 0 | G70: 1000000 | H70: 0 | I70: 30000 | J70: 0.3 | K70: 0.7 | L70: 0.3 | M70: 0.7 | N70: 0.2 | O70: 0.8 | Q70: -2698620.428 | R70: standard with no SS | S70: 1 | U70: standard with no SS | V70: 0 | W70: 0
Q71: -498665.3087 | R71: standard with SS | S71: 1 | U71: standard with SS | V71: 0 | W71: 0
Q72: -2632679.36 | R72: advanced with no SS | S72: 1 | U72: advanced with no SS | V72: 0 | W72: 0
Q73: 0 | R73: advanced with SS | S73: 0.97 | U73: advanced with SS | V73: 0 | W73: 0
B75: 100000 | C75: 67 | D75: 67 | E75: =(3750+2475)*12 -> 74700 | F75: 0 | G75: 1000000 | H75: 0 | I75: 30000 | J75: 0.3 | K75: 0.7 | L75: 0.35 | M75: 0.65 | N75: 0.3 | O75: 0.7 | Q75: -2724136.377 | R75: standard with no SS | S75: 1 | U75: standard with no SS | V75: 0 | W75: 0
Q76: -588975.5752 | R76: standard with SS | S76: 1 | U76: standard with SS | V76: 0 | W76: 0
Q77: -2635888.941 | R77: advanced with no SS | S77: 1 | U77: advanced with no SS | V77: 0 | W77: 0
Q78: 0 | R78: advanced with SS | S78: 0.97 | U78: advanced with SS | V78: 0 | W78: 0
B80: 100000 | C80: 67 | D80: 68 | E80: =E70 -> 79056 | F80: 0 | G80: 1000000 | H80: 0 | I80: 30000 | J80: 0.3 | K80: 0.7 | L80: 0.35 | M80: 0.65 | N80: 0.3 | O80: 0.7 | Q80: -2726287.084 | R80: standard with no SS | S80: 1 | U80: standard with no SS | V80: 0 | W80: 0
Q81: -570714.7341 | R81: standard with SS | S81: 1 | U81: standard with SS | V81: 0 | W81: 0
Q82: -2644260.35 | R82: advanced with no SS | S82: 1 | U82: advanced with no SS | V82: 0 | W82: 0
Q83: 0 | R83: advanced with SS | S83: 0.97 | U83: advanced with SS | V83: 0 | W83: 0

Sheet sensitivity
Z3: diff
B4: expense # | C4: retirement age | D4: SS age | E4: SS income | F4: pre tax contributions | G4: savings amount /retiremenmt before tax | H4: after tax contributions | I4: savings amount /taxed | J4: pre equity % | K4: pre fixed % | L4: retirement equity % 1 | M4: retirement fixed % 1 | N4: retirement equity % 2 | O4: retirement fixed % 2 | Q4: mean | R4: percentage of runs resulting in =< | S4: 0 | U4: percentage of runs resulting in => | V4: 400000 | W4: mean | Z4: 4-5 | AA4: 4-6 | AB4: 5-6
B5: 70000 | C5: 67 | D5: 67 | E5: =(3750+2475)*12 -> 74700 | F5: 0 | G5: 1000000 | H5: 0 | I5: 30000 | J5: 0.3 | K5: 0.7 | L5: 0.3 | M5: 0.7 | N5: 0.2 | O5: 0.8 | Q5: -1107878.765 | R5: standard with no SS | S5: 1 | U5: standard with no SS | V5: 0 | W5: 0 | Z5: =Sheet4!S5-Sheet5!S5 -> 0 | AA5: =Sheet4!S5-Sheet6!S5 -> 0 | AB5: =Sheet5!S5-Sheet6!S5 -> 0
Q6: 0 | R6: standard with SS | S6: 0 | U6: standard with SS | V6: 1 | W6: 1232418.903 | Z6: =Sheet4!S6-Sheet5!S6 -> 0 | AA6: =Sheet4!S6-Sheet6!S6 -> 0 | AB6: =Sheet5!S6-Sheet6!S6 -> 0
M7: [ | Q7: -955047.7654 | R7: advanced with no SS | S7: 1 | U7: advanced with no SS | V7: 0 | W7: 0 | Z7: =Sheet4!S7-Sheet5!S7 -> 0 | AA7: =Sheet4!S7-Sheet6!S7 -> 0 | AB7: =Sheet5!S7-Sheet6!S7 -> 0
Q8: 0 | R8: advanced with SS | S8: 0 | U8: advanced with SS | V8: 1 | W8: 1814443.76 | Z8: =Sheet4!S8-Sheet5!S8 -> 0 | AA8: =Sheet4!S8-Sheet6!S8 -> 0 | AB8: =Sheet5!S8-Sheet6!S8 -> 0
B10: 70000 | C10: 67 | D10: 68 | E10: =(3924+2664)*12 -> 79056 | F10: 0 | G10: 1000000 | H10: 0 | I10: 30000 | J10: 0.3 | K10: 0.7 | L10: 0.3 | M10: 0.7 | N10: 0.2 | O10: 0.8 | Q10: -1080414.787 | R10: standard with no SS | S10: 1 | U10: standard with no SS | V10: 0 | W10: 0 | Z10: =Sheet4!S10-Sheet5!S10 -> 0 | AA10: =Sheet4!S10-Sheet6!S10 -> 0 | AB10: =Sheet5!S10-Sheet6!S10 -> 0
Q11: 0 | R11: standard with SS | S11: 0 | U11: standard with SS | V11: 1 | W11: 1312485.964 | Z11: =Sheet4!S11-Sheet5!S11 -> 0 | AA11: =Sheet4!S11-Sheet6!S11 -> 0 | AB11: =Sheet5!S11-Sheet6!S11 -> 0
Q12: -918139.7909 | R12: advanced with no SS | S12: 1 | U12: advanced with no SS | V12: 0 | W12: 0 | Z12: =Sheet4!S12-Sheet5!S12 -> 0 | AA12: =Sheet4!S12-Sheet6!S12 -> 0 | AB12: =Sheet5!S12-Sheet6!S12 -> 0
Q13: 0 | R13: advanced with SS | S13: 0 | U13: advanced with SS | V13: 1 | W13: 1850957.199 | Z13: =Sheet4!S13-Sheet5!S13 -> 0 | AA13: =Sheet4!S13-Sheet6!S13 -> 0 | AB13: =Sheet5!S13-Sheet6!S13 -> 0
B15: 70000 | C15: 67 | D15: 67 | E15: =(3750+2475)*12 -> 74700 | F15: 0 | G15: 1000000 | H15: 0 | I15: 30000 | J15: 0.3 | K15: 0.7 | L15: 0.35 | M15: 0.65 | N15: 0.3 | O15: 0.7 | Q15: -1141332.396 | R15: standard with no SS | S15: 1 | U15: standard with no SS | V15: 0 | W15: 0 | Z15: =Sheet4!S15-Sheet5!S15 -> 0 | AA15: =Sheet4!S15-Sheet6!S15 -> 0 | AB15: =Sheet5!S15-Sheet6!S15 -> 0
Q16: 0 | R16: standard with SS | S16: 0 | U16: standard with SS | V16: 1 | W16: 1170254.19 | Z16: =Sheet4!S16-Sheet5!S16 -> 0 | AA16: =Sheet4!S16-Sheet6!S16 -> 0 | AB16: =Sheet5!S16-Sheet6!S16 -> 0
Q17: -929595.7277 | R17: advanced with no SS | S17: 1 | U17: advanced with no SS | V17: 0 | W17: 0 | Z17: =Sheet4!S17-Sheet5!S17 -> 0 | AA17: =Sheet4!S17-Sheet6!S17 -> 0 | AB17: =Sheet5!S17-Sheet6!S17 -> 0
Q18: 0 | R18: advanced with SS | S18: 0 | U18: advanced with SS | V18: 1 | W18: 1979557.444 | Z18: =Sheet4!S18-Sheet5!S18 -> 0 | AA18: =Sheet4!S18-Sheet6!S18 -> 0 | AB18: =Sheet5!S18-Sheet6!S18 -> 0
B20: 70000 | C20: 67 | D20: 68 | E20: =E10 -> 79056 | F20: 0 | G20: 1000000 | H20: 0 | I20: 30000 | J20: 0.3 | K20: 0.7 | L20: 0.35 | M20: 0.65 | N20: 0.3 | O20: 0.7 | Q20: -1074915.21 | R20: standard with no SS | S20: 1 | U20: standard with no SS | V20: 0 | W20: 0 | Z20: =Sheet4!S20-Sheet5!S20 -> 0 | AA20: =Sheet4!S20-Sheet6!S20 -> 0 | AB20: =Sheet5!S20-Sheet6!S20 -> 0
Q21: 0 | R21: standard with SS | S21: 0 | U21: standard with SS | V21: 0.9666666667 | W21: 1199558.795 | Z21: =Sheet4!S21-Sheet5!S21 -> 0 | AA21: =Sheet4!S21-Sheet6!S21 -> 0 | AB21: =Sheet5!S21-Sheet6!S21 -> 0
Q22: -878337.8661 | R22: advanced with no SS | S22: 1 | U22: advanced with no SS | V22: 0 | W22: 0 | Z22: =Sheet4!S22-Sheet5!S22 -> 0 | AA22: =Sheet4!S22-Sheet6!S22 -> 0 | AB22: =Sheet5!S22-Sheet6!S22 -> 0
Q23: 0 | R23: advanced with SS | S23: 0 | U23: advanced with SS | V23: 1 | W23: 1879828.913 | Z23: =Sheet4!S23-Sheet5!S23 -> 0 | AA23: =Sheet4!S23-Sheet6!S23 -> 0 | AB23: =Sheet5!S23-Sheet6!S23 -> 0
B25: 80000 | C25: 67 | D25: 67 | E25: =(3750+2475)*12 -> 74700 | F25: 0 | G25: 1000000 | H25: 0 | I25: 30000 | J25: 0.3 | K25: 0.7 | L25: 0.3 | M25: 0.7 | N25: 0.2 | O25: 0.8 | Q25: -1472143.242 | R25: standard with no SS | S25: 1 | U25: standard with no SS | V25: 0 | W25: 0 | Z25: =Sheet4!S25-Sheet5!S25 -> 0 | AA25: =Sheet4!S25-Sheet6!S25 -> 0 | AB25: =Sheet5!S25-Sheet6!S25 -> 0
Q26: 0 | R26: standard with SS | S26: 0 | U26: standard with SS | V26: 0.8666666667 | W26: 717658.873 | Z26: =Sheet4!S26-Sheet5!S26 -> 0 | AA26: =Sheet4!S26-Sheet6!S26 -> -0.03333333333 | AB26: =Sheet5!S26-Sheet6!S26 -> -0.03333333333
M27: [ | Q27: -1349915.623 | R27: advanced with no SS | S27: 1 | U27: advanced with no SS | V27: 0 | W27: 0 | Z27: =Sheet4!S27-Sheet5!S27 -> 0 | AA27: =Sheet4!S27-Sheet6!S27 -> 0 | AB27: =Sheet5!S27-Sheet6!S27 -> 0
Q28: 0 | R28: advanced with SS | S28: 0 | U28: advanced with SS | V28: 1 | W28: 1152460.154 | Z28: =Sheet4!S28-Sheet5!S28 -> 0 | AA28: =Sheet4!S28-Sheet6!S28 -> 0 | AB28: =Sheet5!S28-Sheet6!S28 -> 0
B30: 80000 | C30: 67 | D30: 68 | E30: =(3924+2664)*12 -> 79056 | F30: 0 | G30: 1000000 | H30: 0 | I30: 30000 | J30: 0.3 | K30: 0.7 | L30: 0.3 | M30: 0.7 | N30: 0.2 | O30: 0.8 | Q30: -1491619.757 | R30: standard with no SS | S30: 1 | U30: standard with no SS | V30: 0 | W30: 0 | Z30: =Sheet4!S30-Sheet5!S30 -> 0 | AA30: =Sheet4!S30-Sheet6!S30 -> 0 | AB30: =Sheet5!S30-Sheet6!S30 -> 0
Q31: 0 | R31: standard with SS | S31: 0 | U31: standard with SS | V31: 0.7333333333 | W31: 699161.0763 | Z31: =Sheet4!S31-Sheet5!S31 -> 0 | AA31: =Sheet4!S31-Sheet6!S31 -> 0 | AB31: =Sheet5!S31-Sheet6!S31 -> 0
Q32: -1341490.246 | R32: advanced with no SS | S32: 1 | U32: advanced with no SS | V32: 0 | W32: 0 | Z32: =Sheet4!S32-Sheet5!S32 -> 0 | AA32: =Sheet4!S32-Sheet6!S32 -> 0 | AB32: =Sheet5!S32-Sheet6!S32 -> 0
Q33: 0 | R33: advanced with SS | S33: 0 | U33: advanced with SS | V33: 1 | W33: 1123378.659 | Z33: =Sheet4!S33-Sheet5!S33 -> 0 | AA33: =Sheet4!S33-Sheet6!S33 -> 0 | AB33: =Sheet5!S33-Sheet6!S33 -> 0
B35: 80000 | C35: 67 | D35: 67 | E35: =(3750+2475)*12 -> 74700 | F35: 0 | G35: 1000000 | H35: 0 | I35: 30000 | J35: 0.3 | K35: 0.7 | L35: 0.35 | M35: 0.65 | N35: 0.3 | O35: 0.7 | Q35: -1464815.563 | R35: standard with no SS | S35: 1 | U35: standard with no SS | V35: 0 | W35: 0 | Z35: =Sheet4!S35-Sheet5!S35 -> 0 | AA35: =Sheet4!S35-Sheet6!S35 -> 0 | AB35: =Sheet5!S35-Sheet6!S35 -> 0
Q36: 0 | R36: standard with SS | S36: 0 | U36: standard with SS | V36: 0.9 | W36: 686100.0283 | Z36: =Sheet4!S36-Sheet5!S36 -> 0 | AA36: =Sheet4!S36-Sheet6!S36 -> -0.06666666667 | AB36: =Sheet5!S36-Sheet6!S36 -> -0.06666666667
Q37: -1318252.51 | R37: advanced with no SS | S37: 1 | U37: advanced with no SS | V37: 0 | W37: 0 | Z37: =Sheet4!S37-Sheet5!S37 -> 0 | AA37: =Sheet4!S37-Sheet6!S37 -> 0 | AB37: =Sheet5!S37-Sheet6!S37 -> 0
Q38: 0 | R38: advanced with SS | S38: 0 | U38: advanced with SS | V38: 1 | W38: 1277878.966 | Z38: =Sheet4!S38-Sheet5!S38 -> 0 | AA38: =Sheet4!S38-Sheet6!S38 -> 0 | AB38: =Sheet5!S38-Sheet6!S38 -> 0
B40: 80000 | C40: 67 | D40: 68 | E40: =E30 -> 79056 | F40: 0 | G40: 1000000 | H40: 0 | I40: 30000 | J40: 0.3 | K40: 0.7 | L40: 0.35 | M40: 0.65 | N40: 0.3 | O40: 0.7 | Q40: -1484718.226 | R40: standard with no SS | S40: 1 | U40: standard with no SS | V40: 0 | W40: 0 | Z40: =Sheet4!S40-Sheet5!S40 -> 0 | AA40: =Sheet4!S40-Sheet6!S40 -> 0 | AB40: =Sheet5!S40-Sheet6!S40 -> 0
Q41: 0 | R41: standard with SS | S41: 0 | U41: standard with SS | V41: 0.5333333333 | W41: 837837.9293 | Z41: =Sheet4!S41-Sheet5!S41 -> 0.02 | AA41: =Sheet4!S41-Sheet6!S41 -> 0.02 | AB41: =Sheet5!S41-Sheet6!S41 -> 0
Q42: -1336061.461 | R42: advanced with no SS | S42: 1 | U42: advanced with no SS | V42: 0 | W42: 0 | Z42: =Sheet4!S42-Sheet5!S42 -> 0 | AA42: =Sheet4!S42-Sheet6!S42 -> 0 | AB42: =Sheet5!S42-Sheet6!S42 -> 0
Q43: 0 | R43: advanced with SS | S43: 0 | U43: advanced with SS | V43: 1 | W43: 1151561.489 | Z43: =Sheet4!S43-Sheet5!S43 -> 0 | AA43: =Sheet4!S43-Sheet6!S43 -> 0 | AB43: =Sheet5!S43-Sheet6!S43 -> 0
B45: 90000 | C45: 67 | D45: 67 | E45: =(3750+2475)*12 -> 74700 | F45: 0 | G45: 1000000 | H45: 0 | I45: 30000 | J45: 0.3 | K45: 0.7 | L45: 0.3 | M45: 0.7 | N45: 0.2 | O45: 0.8 | Q45: -1784236.667 | R45: standard with no SS | S45: 1 | U45: standard with no SS | V45: 0 | W45: 0 | Z45: =Sheet4!S45-Sheet5!S45 -> 0 | AA45: =Sheet4!S45-Sheet6!S45 -> 0 | AB45: =Sheet5!S45-Sheet6!S45 -> 0
Q46: -120887.6533 | R46: standard with SS | S46: 0.1666666667 | U46: standard with SS | V46: 0.2333333333 | W46: 484588.9275 | Z46: =Sheet4!S46-Sheet5!S46 -> 0.03 | AA46: =Sheet4!S46-Sheet6!S46 -> -0.3033333333 | AB46: =Sheet5!S46-Sheet6!S46 -> -0.3333333333
M47: [ | Q47: -1686145.673 | R47: advanced with no SS | S47: 1 | U47: advanced with no SS | V47: 0 | W47: 0 | Z47: =Sheet4!S47-Sheet5!S47 -> 0 | AA47: =Sheet4!S47-Sheet6!S47 -> 0 | AB47: =Sheet5!S47-Sheet6!S47 -> 0
Q48: 0 | R48: advanced with SS | S48: 0 | U48: advanced with SS | V48: 0.9333333333 | W48: 667623.3502 | Z48: =Sheet4!S48-Sheet5!S48 -> 0.02 | AA48: =Sheet4!S48-Sheet6!S48 -> -0.04666666667 | AB48: =Sheet5!S48-Sheet6!S48 -> -0.06666666667
B50: 90000 | C50: 67 | D50: 68 | E50: =(3924+2664)*12 -> 79056 | F50: 0 | G50: 1000000 | H50: 0 | I50: 30000 | J50: 0.3 | K50: 0.7 | L50: 0.3 | M50: 0.7 | N50: 0.2 | O50: 0.8 | Q50: -1757839.677 | R50: standard with no SS | S50: 1 | U50: standard with no SS | V50: 0 | W50: 0 | Z50: =Sheet4!S50-Sheet5!S50 -> 0 | AA50: =Sheet4!S50-Sheet6!S50 -> 0 | AB50: =Sheet5!S50-Sheet6!S50 -> 0
Q51: -96730.78732 | R51: standard with SS | S51: 0.2 | U51: standard with SS | V51: 0.2333333333 | W51: 523571.8086 | Z51: =Sheet4!S51-Sheet5!S51 -> 0.12 | AA51: =Sheet4!S51-Sheet6!S51 -> -0.1466666667 | AB51: =Sheet5!S51-Sheet6!S51 -> -0.2666666667
Q52: -1651359.058 | R52: advanced with no SS | S52: 1 | U52: advanced with no SS | V52: 0 | W52: 0 | Z52: =Sheet4!S52-Sheet5!S52 -> 0 | AA52: =Sheet4!S52-Sheet6!S52 -> 0 | AB52: =Sheet5!S52-Sheet6!S52 -> 0
Q53: 0 | R53: advanced with SS | S53: 0 | U53: advanced with SS | V53: 0.8666666667 | W53: 643278.2379 | Z53: =Sheet4!S53-Sheet5!S53 -> 0 | AA53: =Sheet4!S53-Sheet6!S53 -> -0.03333333333 | AB53: =Sheet5!S53-Sheet6!S53 -> -0.03333333333
B55: 90000 | C55: 67 | D55: 67 | E55: =(3750+2475)*12 -> 74700 | F55: 0 | G55: 1000000 | H55: 0 | I55: 30000 | J55: 0.3 | K55: 0.7 | L55: 0.35 | M55: 0.65 | N55: 0.3 | O55: 0.7 | Q55: -1849339.801 | R55: standard with no SS | S55: 1 | U55: standard with no SS | V55: 0 | W55: 0 | Z55: =Sheet4!S55-Sheet5!S55 -> 0 | AA55: =Sheet4!S55-Sheet6!S55 -> 0 | AB55: =Sheet5!S55-Sheet6!S55 -> 0
Q56: -200460.1975 | R56: standard with SS | S56: 0.4333333333 | U56: standard with SS | V56: 0.1333333333 | W56: 520092.3082 | Z56: =Sheet4!S56-Sheet5!S56 -> 0.41 | AA56: =Sheet4!S56-Sheet6!S56 -> 0.01 | AB56: =Sheet5!S56-Sheet6!S56 -> -0.4
Q57: -1703655.379 | R57: advanced with no SS | S57: 1 | U57: advanced with no SS | V57: 0 | W57: 0 | Z57: =Sheet4!S57-Sheet5!S57 -> 0 | AA57: =Sheet4!S57-Sheet6!S57 -> 0 | AB57: =Sheet5!S57-Sheet6!S57 -> 0
Q58: 0 | R58: advanced with SS | S58: 0 | U58: advanced with SS | V58: 0.8666666667 | W58: 697673.4225 | Z58: =Sheet4!S58-Sheet5!S58 -> 0.02 | AA58: =Sheet4!S58-Sheet6!S58 -> -0.01333333333 | AB58: =Sheet5!S58-Sheet6!S58 -> -0.03333333333
B60: 90000 | C60: 67 | D60: 68 | E60: =E50 -> 79056 | F60: 0 | G60: 1000000 | H60: 0 | I60: 30000 | J60: 0.3 | K60: 0.7 | L60: 0.35 | M60: 0.65 | N60: 0.3 | O60: 0.7 | Q60: -1874659.476 | R60: standard with no SS | S60: 1 | U60: standard with no SS | V60: 0 | W60: 0 | Z60: =Sheet4!S60-Sheet5!S60 -> 0 | AA60: =Sheet4!S60-Sheet6!S60 -> 0 | AB60: =Sheet5!S60-Sheet6!S60 -> 0
Q61: -244145.2688 | R61: standard with SS | S61: 0.6 | U61: standard with SS | V61: 0.03333333333 | W61: 725833.7783 | Z61: =Sheet4!S61-Sheet5!S61 -> 0.05666666667 | AA61: =Sheet4!S61-Sheet6!S61 -> -0.31 | AB61: =Sheet5!S61-Sheet6!S61 -> -0.3666666667
Q62: -1721354.959 | R62: advanced with no SS | S62: 1 | U62: advanced with no SS | V62: 0 | W62: 0 | Z62: =Sheet4!S62-Sheet5!S62 -> 0 | AA62: =Sheet4!S62-Sheet6!S62 -> 0 | AB62: =Sheet5!S62-Sheet6!S62 -> 0
Q63: 0 | R63: advanced with SS | S63: 0 | U63: advanced with SS | V63: 0.6666666667 | W63: 643814.1762 | Z63: =Sheet4!S63-Sheet5!S63 -> 0.03 | AA63: =Sheet4!S63-Sheet6!S63 -> -0.003333333333 | AB63: =Sheet5!S63-Sheet6!S63 -> -0.03333333333
B65: 100000 | C65: 67 | D65: 67 | E65: =(3750+2475)*12 -> 74700 | F65: 0 | G65: 1000000 | H65: 0 | I65: 30000 | J65: 0.3 | K65: 0.7 | L65: 0.3 | M65: 0.7 | N65: 0.2 | O65: 0.8 | Q65: -2176697.832 | R65: standard with no SS | S65: 1 | U65: standard with no SS | V65: 0 | W65: 0 | Z65: =Sheet4!S65-Sheet5!S65 -> 0 | AA65: =Sheet4!S65-Sheet6!S65 -> 0 | AB65: =Sheet5!S65-Sheet6!S65 -> 0
Q66: -414840.1502 | R66: standard with SS | S66: 0.9333333333 | U66: standard with SS | V66: 0 | W66: 0 | Z66: =Sheet4!S66-Sheet5!S66 -> 0 | AA66: =Sheet4!S66-Sheet6!S66 -> 0 | AB66: =Sheet5!S66-Sheet6!S66 -> 0
M67: [ | Q67: -2066660.38 | R67: advanced with no SS | S67: 1 | U67: advanced with no SS | V67: 0 | W67: 0 | Z67: =Sheet4!S67-Sheet5!S67 -> 0 | AA67: =Sheet4!S67-Sheet6!S67 -> 0 | AB67: =Sheet5!S67-Sheet6!S67 -> 0
Q68: 0 | R68: advanced with SS | S68: 0.6 | U68: advanced with SS | V68: 0.03333333333 | W68: 442335.341 | Z68: =Sheet4!S68-Sheet5!S68 -> 0.2366666667 | AA68: =Sheet4!S68-Sheet6!S68 -> 0.07 | AB68: =Sheet5!S68-Sheet6!S68 -> -0.1666666667
B70: 100000 | C70: 67 | D70: 68 | E70: =(3924+2664)*12 -> 79056 | F70: 0 | G70: 1000000 | H70: 0 | I70: 30000 | J70: 0.3 | K70: 0.7 | L70: 0.3 | M70: 0.7 | N70: 0.2 | O70: 0.8 | Q70: -2171565.937 | R70: standard with no SS | S70: 1 | U70: standard with no SS | V70: 0 | W70: 0 | Z70: =Sheet4!S70-Sheet5!S70 -> 0 | AA70: =Sheet4!S70-Sheet6!S70 -> 0 | AB70: =Sheet5!S70-Sheet6!S70 -> 0
Q71: -407814.6606 | R71: standard with SS | S71: 0.9666666667 | U71: standard with SS | V71: 0 | W71: 0 | Z71: =Sheet4!S71-Sheet5!S71 -> 0 | AA71: =Sheet4!S71-Sheet6!S71 -> 0 | AB71: =Sheet5!S71-Sheet6!S71 -> 0
Q72: -2068701.603 | R72: advanced with no SS | S72: 1 | U72: advanced with no SS | V72: 0 | W72: 0 | Z72: =Sheet4!S72-Sheet5!S72 -> 0 | AA72: =Sheet4!S72-Sheet6!S72 -> 0 | AB72: =Sheet5!S72-Sheet6!S72 -> 0
Q73: 0 | R73: advanced with SS | S73: 0.6666666667 | U73: advanced with SS | V73: 0 | W73: 0 | Z73: =Sheet4!S73-Sheet5!S73 -> 0.03666666667 | AA73: =Sheet4!S73-Sheet6!S73 -> -0.03 | AB73: =Sheet5!S73-Sheet6!S73 -> -0.06666666667
B75: 100000 | C75: 67 | D75: 67 | E75: =(3750+2475)*12 -> 74700 | F75: 0 | G75: 1000000 | H75: 0 | I75: 30000 | J75: 0.3 | K75: 0.7 | L75: 0.35 | M75: 0.65 | N75: 0.3 | O75: 0.7 | Q75: -2174895.791 | R75: standard with no SS | S75: 1 | U75: standard with no SS | V75: 0 | W75: 0 | Z75: =Sheet4!S75-Sheet5!S75 -> 0 | AA75: =Sheet4!S75-Sheet6!S75 -> 0 | AB75: =Sheet5!S75-Sheet6!S75 -> 0
Q76: -418994.2862 | R76: standard with SS | S76: 0.9333333333 | U76: standard with SS | V76: 0 | W76: 0 | Z76: =Sheet4!S76-Sheet5!S76 -> 0.1 | AA76: =Sheet4!S76-Sheet6!S76 -> 0 | AB76: =Sheet5!S76-Sheet6!S76 -> -0.1
Q77: -2062830.512 | R77: advanced with no SS | S77: 1 | U77: advanced with no SS | V77: 0 | W77: 0 | Z77: =Sheet4!S77-Sheet5!S77 -> 0 | AA77: =Sheet4!S77-Sheet6!S77 -> 0 | AB77: =Sheet5!S77-Sheet6!S77 -> 0
Q78: 0 | R78: advanced with SS | S78: 0.5666666667 | U78: advanced with SS | V78: 0.1 | W78: 429087.0401 | Z78: =Sheet4!S78-Sheet5!S78 -> 0.2033333333 | AA78: =Sheet4!S78-Sheet6!S78 -> 0.003333333333 | AB78: =Sheet5!S78-Sheet6!S78 -> -0.2
B80: 100000 | C80: 67 | D80: 68 | E80: =E70 -> 79056 | F80: 0 | G80: 1000000 | H80: 0 | I80: 30000 | J80: 0.3 | K80: 0.7 | L80: 0.35 | M80: 0.65 | N80: 0.3 | O80: 0.7 | Q80: -2167780.784 | R80: standard with no SS | S80: 1 | U80: standard with no SS | V80: 0 | W80: 0 | Z80: =Sheet4!S80-Sheet5!S80 -> 0 | AA80: =Sheet4!S80-Sheet6!S80 -> 0 | AB80: =Sheet5!S80-Sheet6!S80 -> 0
Q81: -467841.1381 | R81: standard with SS | S81: 0.9666666667 | U81: standard with SS | V81: 0 | W81: 0 | Z81: =Sheet4!S81-Sheet5!S81 -> 0 | AA81: =Sheet4!S81-Sheet6!S81 -> 0 | AB81: =Sheet5!S81-Sheet6!S81 -> 0
Q82: -2063631.291 | R82: advanced with no SS | S82: 1 | U82: advanced with no SS | V82: 0 | W82: 0 | Z82: =Sheet4!S82-Sheet5!S82 -> 0 | AA82: =Sheet4!S82-Sheet6!S82 -> 0 | AB82: =Sheet5!S82-Sheet6!S82 -> 0
Q83: 0 | R83: advanced with SS | S83: 0.7666666667 | U83: advanced with SS | V83: 0.03333333333 | W83: 417466.8379 | Z83: =Sheet4!S83-Sheet5!S83 -> 0.1366666667 | AA83: =Sheet4!S83-Sheet6!S83 -> 0.1366666667 | AB83: =Sheet5!S83-Sheet6!S83 -> 0

Sheet Input
B1: the orange cells can be changed to your specific situation/needs
B2: the simulation will be run 100 times (but can be changed to 1000). The results and charts are below the input area. | G2: or, if you want it to change gradually from a starting point to and end state, place 2 on the adjacent cell, otherwise 1) | H2: 2
B3: current age (for a couple, use oldest) | C3: 66 | E3: Break down of investments after retirement:(the 1st column values are based on keeping it constant over the retirement horizon) | G3: starting | H3: ending
B4: expected retirement age (for a couple use oldest) | C4: 67 | E4: stocks | F4: 0.3 | G4: 0.35 | H4: 0.3
B5: At what age do you plan on taking social security (for a couple use the oldest, adjustments for the second person can be made on sheet 2, but requires some understanding of cell interactions) | C5: 68 | E5: fixed | F5: 0.7 | G5: 0.65 | H5: 0.7
B6: until what age do you want the analysis to run to (use oldest) | C6: 95 | E6: Break down of investments before retirement (across all savings, after tax and deferred):
E7: stocks | F7: 0.65
B8: Current savings, deferred taxes | C8: 1000000 | E8: fixed | F8: 0.35
B9: Current savings, taxed | C9: 30000 | E9: Long term returns on fixed income | F9: 0.04
B11: savings into deferred tax (such as 401k/457k or other qualified IRA - retirement accounts that are contributed through work or outside of work) - further adjustments can be made on sheet 2 | C11: 0 | E11: Stock returns
B12: delay in years to save or 0 = continue saving (deferred) - as an example , if you want to wait 5 years before saving, then enter 5 | C12: 0
B13: savings into taxed - further adjustments can be made on sheet 2 | C13: 0 | E13: 10-20% return | F13: 0.15
B14: delay in years to save or 0 = continue saving (taxed) - same as prior example on deferred | C14: 0 | E14: 0 -10% return | F14: 0.55 | K14: Tax rate table
B15: required retirement income (after taxes and excluding social security) | C15: 80000 | E15: 0 - 10% loss | F15: 0.2
B16: other income additions can be manually done on sheet 2 | E16: 10 - 25% loss | F16: 0.1 | K16: Tax rate | L16: Single taxpayer | N16: Married filing jointly | P16: Married filing separately | R16: Head of household
B17: planned social security (SS) income (oldest person or combined if the same age, or the take on SS coincides) - otherwise adjustments can be made on sheet 2 | C17: 79056 | K17: 0.1 | L17: 0 | M17: 11000 | N17: 0 | O17: 22000 | P17: 0 | Q17: 11000 | R17: 0 | S17: 15700
E18: tax rate at retirement | F18: 0.12 | K18: 0.12 | L18: 11000 | M18: 44725 | N18: 22000 | O18: 89450 | P18: 11000 | Q18: 44725 | R18: 15700 | S18: 59850
B19: do you want to use the budget retirement expenses to derive your income needs (y or n) | C19: y | E19: tax rate before retirement | F19: 0.24 | K19: 0.22 | L19: 44725 | M19: 95375 | N19: 89450 | O19: 190750 | P19: 44725 | Q19: 95375 | R19: 59850 | S19: 95350
E20: capital gains tax | F20: 0.15 | K20: 0.24 | L20: 95375 | M20: 182100 | N20: 190750 | O20: 364200 | P20: 95375 | Q20: 182100 | R20: 95350 | S20: 182100
E21: inflation rate | F21: 0.025 | K21: 0.32 | L21: 182100 | M21: 231250 | N21: 364200 | O21: 462500 | P21: 182100 | Q21: 231250 | R21: 182100 | S21: 231250
E22: retirement income increases | F22: 0.02 | H22: n | I22: must be "n" or "y" to incorporate retirement increases. But id budget sheet is being used, use "n" | K22: 0.35 | L22: 231250 | M22: 578125 | N22: 462500 | O22: 693750 | P22: 231250 | Q22: 346875 | R22: 231250 | S22: 578100
K23: 0.37 | L23: 578125 | M23: and up | N23: 693750 | O23: and up | P23: 346875 | Q23: and up | R23: 578100 | S23: and up
B26: Results
A27: mean | B27: percentage of runs resulting in =< | C27: 0 | E27: percentage of runs resulting in => | F27: 400000 | G27: mean | H27: Average of unexpected expenses - things that come up that were unexpected (health and maintenace) (low) | I27: Average of unexpected expenses- things that come up that were unexpected (health and maintenace) (high)
A28: =IF(ISERR(Sheet1!M1),,Sheet1!M1) -> -2146060.223 | B28: standard with no SS | C28: =Sheet1!A1/Sheet2!B3 -> 1 | E28: standard with no SS | F28: =Sheet1!D1/Sheet2!B3 -> 0 | G28: =IF(ISERR(Sheet1!I1),,Sheet1!I1) -> 0
A29: =IF(ISERR(Sheet1!N1),,Sheet1!N1) -> -434938.027 | B29: standard with SS | C29: =Sheet1!B1/Sheet2!B3 -> 0.9 | E29: standard with SS | F29: =Sheet1!E1/Sheet2!B3 -> 0 | G29: =IF(ISERR(Sheet1!J1),,Sheet1!J1) -> 0 | H29: =IF(ISERR(Sheet1!R1),,Sheet1!R1) -> 149396.8254 | I29: =IF(ISERR(Sheet1!Q1),,Sheet1!Q1) -> 0
A30: =IF(ISERR(Sheet1!O1),,Sheet1!O1) -> -2040127.317 | B30: advanced with no SS | C30: =Sheet1!C1/Sheet2!B3 -> 1 | E30: advanced with no SS | F30: =Sheet1!F1/Sheet2!B3 -> 0 | G30: =IF(ISERR(Sheet1!K1),,Sheet1!K1) -> 0
A31: =IF(ISERR(Sheet1!P1),,Sheet1!P1) -> 0 | B31: advanced with SS | C31: =Sheet1!G1/Sheet2!B3 -> 0.6666666667 | E31: advanced with SS | F31: =Sheet1!H1/Sheet2!B3 -> 0.06666666667 | G31: =IF(ISERR(Sheet1!L1),,Sheet1!L1) -> 520496.9741
B32: DISTRIBUTION CHARTS FOR THE DIFFERENT RESULTS

Sheet Budget
C1: the yellow cells can be changed to your specific situation and the orange as needed (but the orange does have formulas)
H2: years
H3: =Sheet2!C5 -> 1 | I3: =Sheet2!D5 -> 2 | J3: =Sheet2!E5 -> 3 | K3: =Sheet2!F5 -> 4 | L3: =Sheet2!G5 -> 5 | M3: =Sheet2!H5 -> 6 | N3: =Sheet2!I5 -> 7 | O3: =Sheet2!J5 -> 8 | P3: =Sheet2!K5 -> 9 | Q3: =Sheet2!L5 -> 10 | R3: =Sheet2!M5 -> 11 | S3: =Sheet2!N5 -> 12 | T3: =Sheet2!O5 -> 13 | U3: =Sheet2!P5 -> 14 | V3: =Sheet2!Q5 -> 15 | W3: =Sheet2!R5 -> 16 | X3: =Sheet2!S5 -> 17 | Y3: =Sheet2!T5 -> 18 | Z3: =Sheet2!U5 -> 19 | AA3: =Sheet2!V5 -> 20 | AB3: =Sheet2!W5 -> 21 | AC3: =Sheet2!X5 -> 22 | AD3: =Sheet2!Y5 -> 23 | AE3: =Sheet2!Z5 -> 24 | AF3: =Sheet2!AA5 -> 25 | AG3: =Sheet2!AB5 -> 26 | AH3: =Sheet2!AC5 -> 27 | AI3: =Sheet2!AD5 -> 28 | AJ3: =Sheet2!AE5 -> 29 | AK3: =Sheet2!AF5 -> 30 | AL3: =Sheet2!AG5 -> 31 | AM3: =Sheet2!AH5 -> 32 | AN3: =Sheet2!AI5 -> 33 | AO3: =Sheet2!AJ5 -> 34 | AP3: =Sheet2!AK5 -> 35 | AQ3: =Sheet2!AL5 -> 36 | AR3: =Sheet2!AM5 -> 37 | AS3: =Sheet2!AN5 -> 38 | AT3: =Sheet2!AO5 -> 39 | AU3: =Sheet2!AP5 -> 40 | AV3: =Sheet2!AQ5 -> 41 | AW3: =Sheet2!AR5 -> 42 | AX3: =Sheet2!AS5 -> 43 | AY3: =Sheet2!AT5 -> 44 | AZ3: =Sheet2!AU5 -> 45 | BA3: =Sheet2!AV5 -> 46 | BB3: =Sheet2!AW5 -> 47 | BC3: =Sheet2!AX5 -> 48 | BD3: =Sheet2!AY5 -> 49 | BE3: =Sheet2!AZ5 -> 50 | BF3: =Sheet2!BA5 -> 51 | BG3: =Sheet2!BB5 -> 52 | BH3: =Sheet2!BC5 -> 53 | BI3: =Sheet2!BD5 -> 54 | BJ3: =Sheet2!BE5 -> 55 | BK3: =Sheet2!BF5 -> 56 | BL3: =Sheet2!BG5 -> 57 | BM3: =Sheet2!BH5 -> 58 | BN3: =Sheet2!BI5 -> 59 | BO3: =Sheet2!BJ5 -> 60 | BP3: =Sheet2!BK5 -> 61 | BQ3: =Sheet2!BL5 -> 62 | BR3: =Sheet2!BM5 -> 63 | BS3: =Sheet2!BN5 -> 64 | BT3: =Sheet2!BO5 -> 65 | BU3: =Sheet2!BP5 -> 66 | BV3: =Sheet2!BQ5 -> 67 | BW3: =Sheet2!BR5 -> 68 | BX3: =Sheet2!BS5 -> 69 | BY3: =Sheet2!BT5 -> 70 | BZ3: =Sheet2!BU5 -> 71 | CA3: =Sheet2!BV5 -> 72 | CB3: =Sheet2!BW5 -> 73 | CC3: =Sheet2!BX5 -> 74 | CD3: =Sheet2!BY5 -> 75 | CE3: =Sheet2!BZ5 -> 76 | CF3: =Sheet2!CA5 -> 77 | CG3: =Sheet2!CB5 -> 78 | CH3: =Sheet2!CC5 -> 79 | CI3: =Sheet2!CD5 -> 80 | CJ3: =Sheet2!CE5 -> 81 | CK3: =Sheet2!CF5 -> 82 | CL3: =Sheet2!CG5 -> 83 | CM3: =Sheet2!CH5 -> 84 | CN3: =Sheet2!CI5 -> 85 | CO3: =Sheet2!CJ5 -> 86 | CP3: =Sheet2!CK5 -> 87 | CQ3: =Sheet2!CL5 -> 88 | CR3: =Sheet2!CM5 -> 89 | CS3: =Sheet2!CN5 -> 90
A4: notes | G4: 1 | H4: =Sheet2!C9 -> 1 | I4: =Sheet2!D9 -> 2 | J4: =Sheet2!E9 -> 2 | K4: =Sheet2!F9 -> 2 | L4: =Sheet2!G9 -> 2 | M4: =Sheet2!H9 -> 2 | N4: =Sheet2!I9 -> 2 | O4: =Sheet2!J9 -> 2 | P4: =Sheet2!K9 -> 2 | Q4: =Sheet2!L9 -> 2 | R4: =Sheet2!M9 -> 2 | S4: =Sheet2!N9 -> 2 | T4: =Sheet2!O9 -> 2 | U4: =Sheet2!P9 -> 2 | V4: =Sheet2!Q9 -> 2 | W4: =Sheet2!R9 -> 2 | X4: =Sheet2!S9 -> 2 | Y4: =Sheet2!T9 -> 2 | Z4: =Sheet2!U9 -> 2 | AA4: =Sheet2!V9 -> 2 | AB4: =Sheet2!W9 -> 2 | AC4: =Sheet2!X9 -> 2 | AD4: =Sheet2!Y9 -> 2 | AE4: =Sheet2!Z9 -> 2 | AF4: =Sheet2!AA9 -> 2 | AG4: =Sheet2!AB9 -> 2 | AH4: =Sheet2!AC9 -> 2 | AI4: =Sheet2!AD9 -> 2 | AJ4: =Sheet2!AE9 -> 2 | AK4: =Sheet2!AF9 -> 0 | AL4: =Sheet2!AG9 -> 0 | AM4: =Sheet2!AH9 -> 0 | AN4: =Sheet2!AI9 -> 0 | AO4: =Sheet2!AJ9 -> 0 | AP4: =Sheet2!AK9 -> 0 | AQ4: =Sheet2!AL9 -> 0 | AR4: =Sheet2!AM9 -> 0 | AS4: =Sheet2!AN9 -> 0 | AT4: =Sheet2!AO9 -> 0 | AU4: =Sheet2!AP9 -> 0 | AV4: =Sheet2!AQ9 -> 0 | AW4: =Sheet2!AR9 -> 0 | AX4: =Sheet2!AS9 -> 0 | AY4: =Sheet2!AT9 -> 0 | AZ4: =Sheet2!AU9 -> 0 | BA4: =Sheet2!AV9 -> 0 | BB4: =Sheet2!AW9 -> 0 | BC4: =Sheet2!AX9 -> 0 | BD4: =Sheet2!AY9 -> 0 | BE4: =Sheet2!AZ9 -> 0 | BF4: =Sheet2!BA9 -> 0 | BG4: =Sheet2!BB9 -> 0 | BH4: =Sheet2!BC9 -> 0 | BI4: =Sheet2!BD9 -> 0 | BJ4: =Sheet2!BE9 -> 0 | BK4: =Sheet2!BF9 -> 0 | BL4: =Sheet2!BG9 -> 0 | BM4: =Sheet2!BH9 -> 0 | BN4: =Sheet2!BI9 -> 0 | BO4: =Sheet2!BJ9 -> 0 | BP4: =Sheet2!BK9 -> 0 | BQ4: =Sheet2!BL9 -> 0 | BR4: =Sheet2!BM9 -> 0 | BS4: =Sheet2!BN9 -> 0 | BT4: =Sheet2!BO9 -> 0 | BU4: =Sheet2!BP9 -> 0 | BV4: =Sheet2!BQ9 -> 0 | BW4: =Sheet2!BR9 -> 0 | BX4: =Sheet2!BS9 -> 0 | BY4: =Sheet2!BT9 -> 0 | BZ4: =Sheet2!BU9 -> 0 | CA4: =Sheet2!BV9 -> 0 | CB4: =Sheet2!BW9 -> 0 | CC4: =Sheet2!BX9 -> 0 | CD4: =Sheet2!BY9 -> 0 | CE4: =Sheet2!BZ9 -> 0 | CF4: =Sheet2!CA9 -> 0 | CG4: =Sheet2!CB9 -> 0 | CH4: =Sheet2!CC9 -> 0 | CI4: =Sheet2!CD9 -> 0 | CJ4: =Sheet2!CE9 -> 0 | CK4: =Sheet2!CF9 -> 0 | CL4: =Sheet2!CG9 -> 0 | CM4: =Sheet2!CH9 -> 0 | CN4: =Sheet2!CI9 -> 0 | CO4: =Sheet2!CJ9 -> 0 | CP4: =Sheet2!CK9 -> 0 | CQ4: =Sheet2!CL9 -> 0 | CR4: =Sheet2!CM9 -> 0 | CS4: =Sheet2!CN9 -> 0
C5: =OR(D5="y",E5="y") -> TRUE | D5: y | E5: FALSE
B7: Expenses (yearly) | C7: before retirement (used to help out with initial retirement base) | D7: by month | E7: base at first year of retirement | F7: by month | G7: sequential increases of (+val%, -val%, 0%)… or adjust manually
B8: Mortgage | C8: 0 | D8: =C8/12 -> 0 | F8: =E8/12 -> 0 | H8: =IF(H$4=1,C8,IF(AND(H$4=2,G$4=1),$E8,IF(AND(H$4=2,G$4=2),G8*(1+$G8),0))) -> 0 | I8: =IF(I$4=1,H8,IF(AND(I$4=2,H$4=1),$E8,IF(AND(I$4=2,H$4=2),H8*(1+$G8),0))) -> 0 | J8: 0 | K8: 0 | L8: 0 | M8: 0 | N8: 0 | O8: 0 | P8: 0 | Q8: 0 | R8: 0 | S8: 0 | T8: 0 | U8: 0 | V8: 0 | W8: 0 | X8: 0 | Y8: 0 | Z8: 0 | AA8: 0 | AB8: 0 | AC8: 0 | AD8: 0 | AE8: 0 | AF8: 0 | AG8: 0 | AH8: 0 | AI8: 0 | AJ8: 0 | AK8: 0 | AL8: 0 | AM8: 0 | AN8: 0 | AO8: =IF(AO$4=1,AN8,IF(AND(AO$4=2,AN$4=1),$E8,IF(AND(AO$4=2,AN$4=2),AN8*(1+$G8),0))) -> 0 | AP8: 0 | AQ8: 0 | AR8: 0 | AS8: 0 | AT8: 0 | AU8: 0 | AV8: 0 | AW8: 0 | AX8: 0 | AY8: 0 | AZ8: 0 | BA8: 0 | BB8: 0 | BC8: 0 | BD8: 0 | BE8: 0 | BF8: 0 | BG8: 0 | BH8: 0 | BI8: 0 | BJ8: 0 | BK8: 0 | BL8: 0 | BM8: 0 | BN8: 0 | BO8: 0 | BP8: 0 | BQ8: 0 | BR8: 0 | BS8: 0 | BT8: 0 | BU8: =IF(BU$4=1,BT8,IF(AND(BU$4=2,BT$4=1),$E8,IF(AND(BU$4=2,BT$4=2),BT8*(1+$G8),0))) -> 0 | BV8: 0 | BW8: 0 | BX8: 0 | BY8: 0 | BZ8: 0 | CA8: 0 | CB8: 0 | CC8: 0 | CD8: 0 | CE8: 0 | CF8: 0 | CG8: 0 | CH8: 0 | CI8: 0 | CJ8: 0 | CK8: 0 | CL8: 0 | CM8: 0 | CN8: 0 | CO8: 0 | CP8: 0 | CQ8: 0 | CR8: 0 | CS8: 0
B9: Home insurance | C9: 6000 | D9: =C9/12 -> 500 | F9: =E9/12 -> 0 | G9: 0.02 | H9: =IF(H$4=1,C9,IF(AND(H$4=2,G$4=1),$E9,IF(AND(H$4=2,G$4=2),G9*(1+$G9),0))) -> 6000 | I9: =IF(I$4=1,H9,IF(AND(I$4=2,H$4=1),$E9,IF(AND(I$4=2,H$4=2),H9*(1+$G9),0))) -> 0 | J9: 0 | K9: 0 | L9: 0 | M9: 0 | N9: 0 | O9: 0 | P9: 0 | Q9: 0 | R9: 0 | S9: 0 | T9: 0 | U9: 0 | V9: 0 | W9: 0 | X9: 0 | Y9: 0 | Z9: 0 | AA9: 0 | AB9: 0 | AC9: 0 | AD9: 0 | AE9: 0 | AF9: 0 | AG9: 0 | AH9: 0 | AI9: 0 | AJ9: 0 | AK9: 0 | AL9: 0 | AM9: 0 | AN9: 0 | AO9: =IF(AO$4=1,AN9,IF(AND(AO$4=2,AN$4=1),$E9,IF(AND(AO$4=2,AN$4=2),AN9*(1+$G9),0))) -> 0 | AP9: 0 | AQ9: 0 | AR9: 0 | AS9: 0 | AT9: 0 | AU9: 0 | AV9: 0 | AW9: 0 | AX9: 0 | AY9: 0 | AZ9: 0 | BA9: 0 | BB9: 0 | BC9: 0 | BD9: 0 | BE9: 0 | BF9: 0 | BG9: 0 | BH9: 0 | BI9: 0 | BJ9: 0 | BK9: 0 | BL9: 0 | BM9: 0 | BN9: 0 | BO9: 0 | BP9: 0 | BQ9: 0 | BR9: 0 | BS9: 0 | BT9: 0 | BU9: =IF(BU$4=1,BT9,IF(AND(BU$4=2,BT$4=1),$E9,IF(AND(BU$4=2,BT$4=2),BT9*(1+$G9),0))) -> 0 | BV9: 0 | BW9: 0 | BX9: 0 | BY9: 0 | BZ9: 0 | CA9: 0 | CB9: 0 | CC9: 0 | CD9: 0 | CE9: 0 | CF9: 0 | CG9: 0 | CH9: 0 | CI9: 0 | CJ9: 0 | CK9: 0 | CL9: 0 | CM9: 0 | CN9: 0 | CO9: 0 | CP9: 0 | CQ9: 0 | CR9: 0 | CS9: 0
B10: House Taxes | C10: 11000 | D10: 916.6666667 | F10: 0 | G10: 0.025 | H10: 11000 | I10: =IF(I$4=1,H10,IF(AND(I$4=2,H$4=1),$E10,IF(AND(I$4=2,H$4=2),H10*(1+$G10),0))) -> 0 | J10: 0 | K10: 0 | L10: 0 | M10: 0 | N10: 0 | O10: 0 | P10: 0 | Q10: 0 | R10: 0 | S10: 0 | T10: 0 | U10: 0 | V10: 0 | W10: 0 | X10: 0 | Y10: 0 | Z10: 0 | AA10: 0 | AB10: 0 | AC10: 0 | AD10: 0 | AE10: 0 | AF10: 0 | AG10: 0 | AH10: 0 | AI10: 0 | AJ10: 0 | AK10: 0 | AL10: 0 | AM10: 0 | AN10: 0 | AO10: =IF(AO$4=1,AN10,IF(AND(AO$4=2,AN$4=1),$E10,IF(AND(AO$4=2,AN$4=2),AN10*(1+$G10),0))) -> 0 | AP10: 0 | AQ10: 0 | AR10: 0 | AS10: 0 | AT10: 0 | AU10: 0 | AV10: 0 | AW10: 0 | AX10: 0 | AY10: 0 | AZ10: 0 | BA10: 0 | BB10: 0 | BC10: 0 | BD10: 0 | BE10: 0 | BF10: 0 | BG10: 0 | BH10: 0 | BI10: 0 | BJ10: 0 | BK10: 0 | BL10: 0 | BM10: 0 | BN10: 0 | BO10: 0 | BP10: 0 | BQ10: 0 | BR10: 0 | BS10: 0 | BT10: 0 | BU10: =IF(BU$4=1,BT10,IF(AND(BU$4=2,BT$4=1),$E10,IF(AND(BU$4=2,BT$4=2),BT10*(1+$G10),0))) -> 0 | BV10: 0 | BW10: 0 | BX10: 0 | BY10: 0 | BZ10: 0 | CA10: 0 | CB10: 0 | CC10: 0 | CD10: 0 | CE10: 0 | CF10: 0 | CG10: 0 | CH10: 0 | CI10: 0 | CJ10: 0 | CK10: 0 | CL10: 0 | CM10: 0 | CN10: 0 | CO10: 0 | CP10: 0 | CQ10: 0 | CR10: 0 | CS10: 0
B11: Rent | C11: 0 | D11: 0 | F11: 0 | H11: 0 | I11: =IF(I$4=1,H11,IF(AND(I$4=2,H$4=1),$E11,IF(AND(I$4=2,H$4=2),H11*(1+$G11),0))) -> 0 | J11: 0 | K11: 0 | L11: 0 | M11: 0 | N11: 0 | O11: 0 | P11: 0 | Q11: 0 | R11: 0 | S11: 0 | T11: 0 | U11: 0 | V11: 0 | W11: 0 | X11: 0 | Y11: 0 | Z11: 0 | AA11: 0 | AB11: 0 | AC11: 0 | AD11: 0 | AE11: 0 | AF11: 0 | AG11: 0 | AH11: 0 | AI11: 0 | AJ11: 0 | AK11: 0 | AL11: 0 | AM11: 0 | AN11: 0 | AO11: =IF(AO$4=1,AN11,IF(AND(AO$4=2,AN$4=1),$E11,IF(AND(AO$4=2,AN$4=2),AN11*(1+$G11),0))) -> 0 | AP11: 0 | AQ11: 0 | AR11: 0 | AS11: 0 | AT11: 0 | AU11: 0 | AV11: 0 | AW11: 0 | AX11: 0 | AY11: 0 | AZ11: 0 | BA11: 0 | BB11: 0 | BC11: 0 | BD11: 0 | BE11: 0 | BF11: 0 | BG11: 0 | BH11: 0 | BI11: 0 | BJ11: 0 | BK11: 0 | BL11: 0 | BM11: 0 | BN11: 0 | BO11: 0 | BP11: 0 | BQ11: 0 | BR11: 0 | BS11: 0 | BT11: 0 | BU11: =IF(BU$4=1,BT11,IF(AND(BU$4=2,BT$4=1),$E11,IF(AND(BU$4=2,BT$4=2),BT11*(1+$G11),0))) -> 0 | BV11: 0 | BW11: 0 | BX11: 0 | BY11: 0 | BZ11: 0 | CA11: 0 | CB11: 0 | CC11: 0 | CD11: 0 | CE11: 0 | CF11: 0 | CG11: 0 | CH11: 0 | CI11: 0 | CJ11: 0 | CK11: 0 | CL11: 0 | CM11: 0 | CN11: 0 | CO11: 0 | CP11: 0 | CQ11: 0 | CR11: 0 | CS11: 0
B12: Utilities (gas, electric, water, other) | C12: 5000 | D12: 416.6666667 | F12: 0 | G12: 0.02 | H12: 5000 | I12: =IF(I$4=1,H12,IF(AND(I$4=2,H$4=1),$E12,IF(AND(I$4=2,H$4=2),H12*(1+$G12),0))) -> 0 | J12: 0 | K12: 0 | L12: 0 | M12: 0 | N12: 0 | O12: 0 | P12: 0 | Q12: 0 | R12: 0 | S12: 0 | T12: 0 | U12: 0 | V12: 0 | W12: 0 | X12: 0 | Y12: 0 | Z12: 0 | AA12: 0 | AB12: 0 | AC12: 0 | AD12: 0 | AE12: 0 | AF12: 0 | AG12: 0 | AH12: 0 | AI12: 0 | AJ12: 0 | AK12: 0 | AL12: 0 | AM12: 0 | AN12: 0 | AO12: =IF(AO$4=1,AN12,IF(AND(AO$4=2,AN$4=1),$E12,IF(AND(AO$4=2,AN$4=2),AN12*(1+$G12),0))) -> 0 | AP12: 0 | AQ12: 0 | AR12: 0 | AS12: 0 | AT12: 0 | AU12: 0 | AV12: 0 | AW12: 0 | AX12: 0 | AY12: 0 | AZ12: 0 | BA12: 0 | BB12: 0 | BC12: 0 | BD12: 0 | BE12: 0 | BF12: 0 | BG12: 0 | BH12: 0 | BI12: 0 | BJ12: 0 | BK12: 0 | BL12: 0 | BM12: 0 | BN12: 0 | BO12: 0 | BP12: 0 | BQ12: 0 | BR12: 0 | BS12: 0 | BT12: 0 | BU12: =IF(BU$4=1,BT12,IF(AND(BU$4=2,BT$4=1),$E12,IF(AND(BU$4=2,BT$4=2),BT12*(1+$G12),0))) -> 0 | BV12: 0 | BW12: 0 | BX12: 0 | BY12: 0 | BZ12: 0 | CA12: 0 | CB12: 0 | CC12: 0 | CD12: 0 | CE12: 0 | CF12: 0 | CG12: 0 | CH12: 0 | CI12: 0 | CJ12: 0 | CK12: 0 | CL12: 0 | CM12: 0 | CN12: 0 | CO12: 0 | CP12: 0 | CQ12: 0 | CR12: 0 | CS12: 0
B13: Residential fees | C13: 1000 | D13: 83.33333333 | F13: 0 | G13: 0.02 | H13: 1000 | I13: =IF(I$4=1,H13,IF(AND(I$4=2,H$4=1),$E13,IF(AND(I$4=2,H$4=2),H13*(1+$G13),0))) -> 0 | J13: 0 | K13: 0 | L13: 0 | M13: 0 | N13: 0 | O13: 0 | P13: 0 | Q13: 0 | R13: 0 | S13: 0 | T13: 0 | U13: 0 | V13: 0 | W13: 0 | X13: 0 | Y13: 0 | Z13: 0 | AA13: 0 | AB13: 0 | AC13: 0 | AD13: 0 | AE13: 0 | AF13: 0 | AG13: 0 | AH13: 0 | AI13: 0 | AJ13: 0 | AK13: 0 | AL13: 0 | AM13: 0 | AN13: 0 | AO13: =IF(AO$4=1,AN13,IF(AND(AO$4=2,AN$4=1),$E13,IF(AND(AO$4=2,AN$4=2),AN13*(1+$G13),0))) -> 0 | AP13: 0 | AQ13: 0 | AR13: 0 | AS13: 0 | AT13: 0 | AU13: 0 | AV13: 0 | AW13: 0 | AX13: 0 | AY13: 0 | AZ13: 0 | BA13: 0 | BB13: 0 | BC13: 0 | BD13: 0 | BE13: 0 | BF13: 0 | BG13: 0 | BH13: 0 | BI13: 0 | BJ13: 0 | BK13: 0 | BL13: 0 | BM13: 0 | BN13: 0 | BO13: 0 | BP13: 0 | BQ13: 0 | BR13: 0 | BS13: 0 | BT13: 0 | BU13: =IF(BU$4=1,BT13,IF(AND(BU$4=2,BT$4=1),$E13,IF(AND(BU$4=2,BT$4=2),BT13*(1+$G13),0))) -> 0 | BV13: 0 | BW13: 0 | BX13: 0 | BY13: 0 | BZ13: 0 | CA13: 0 | CB13: 0 | CC13: 0 | CD13: 0 | CE13: 0 | CF13: 0 | CG13: 0 | CH13: 0 | CI13: 0 | CJ13: 0 | CK13: 0 | CL13: 0 | CM13: 0 | CN13: 0 | CO13: 0 | CP13: 0 | CQ13: 0 | CR13: 0 | CS13: 0
B14: Auto payment | C14: 6000 | D14: 500 | F14: 0 | G14: 0.02 | H14: 6000 | I14: =IF(I$4=1,H14,IF(AND(I$4=2,H$4=1),$E14,IF(AND(I$4=2,H$4=2),H14*(1+$G14),0))) -> 0 | J14: 0 | K14: 0 | L14: 0 | M14: 0 | N14: 0 | O14: 0 | P14: 0 | Q14: 0 | R14: 0 | S14: 0 | T14: 0 | U14: 0 | V14: 0 | W14: 0 | X14: 0 | Y14: 0 | Z14: 0 | AA14: 0 | AB14: 0 | AC14: 0 | AD14: 0 | AE14: 0 | AF14: 0 | AG14: 0 | AH14: 0 | AI14: 0 | AJ14: 0 | AK14: 0 | AL14: 0 | AM14: 0 | AN14: 0 | AO14: =IF(AO$4=1,AN14,IF(AND(AO$4=2,AN$4=1),$E14,IF(AND(AO$4=2,AN$4=2),AN14*(1+$G14),0))) -> 0 | AP14: 0 | AQ14: 0 | AR14: 0 | AS14: 0 | AT14: 0 | AU14: 0 | AV14: 0 | AW14: 0 | AX14: 0 | AY14: 0 | AZ14: 0 | BA14: 0 | BB14: 0 | BC14: 0 | BD14: 0 | BE14: 0 | BF14: 0 | BG14: 0 | BH14: 0 | BI14: 0 | BJ14: 0 | BK14: 0 | BL14: 0 | BM14: 0 | BN14: 0 | BO14: 0 | BP14: 0 | BQ14: 0 | BR14: 0 | BS14: 0 | BT14: 0 | BU14: =IF(BU$4=1,BT14,IF(AND(BU$4=2,BT$4=1),$E14,IF(AND(BU$4=2,BT$4=2),BT14*(1+$G14),0))) -> 0 | BV14: 0 | BW14: 0 | BX14: 0 | BY14: 0 | BZ14: 0 | CA14: 0 | CB14: 0 | CC14: 0 | CD14: 0 | CE14: 0 | CF14: 0 | CG14: 0 | CH14: 0 | CI14: 0 | CJ14: 0 | CK14: 0 | CL14: 0 | CM14: 0 | CN14: 0 | CO14: 0 | CP14: 0 | CQ14: 0 | CR14: 0 | CS14: 0
B15: Car insurance | C15: 5500 | D15: 458.3333333 | F15: 0 | G15: 0.025 | H15: 5500 | I15: =IF(I$4=1,H15,IF(AND(I$4=2,H$4=1),$E15,IF(AND(I$4=2,H$4=2),H15*(1+$G15),0))) -> 0 | J15: 0 | K15: 0 | L15: 0 | M15: 0 | N15: 0 | O15: 0 | P15: 0 | Q15: 0 | R15: 0 | S15: 0 | T15: 0 | U15: 0 | V15: 0 | W15: 0 | X15: 0 | Y15: 0 | Z15: 0 | AA15: 0 | AB15: 0 | AC15: 0 | AD15: 0 | AE15: 0 | AF15: 0 | AG15: 0 | AH15: 0 | AI15: 0 | AJ15: 0 | AK15: 0 | AL15: 0 | AM15: 0 | AN15: 0 | AO15: =IF(AO$4=1,AN15,IF(AND(AO$4=2,AN$4=1),$E15,IF(AND(AO$4=2,AN$4=2),AN15*(1+$G15),0))) -> 0 | AP15: 0 | AQ15: 0 | AR15: 0 | AS15: 0 | AT15: 0 | AU15: 0 | AV15: 0 | AW15: 0 | AX15: 0 | AY15: 0 | AZ15: 0 | BA15: 0 | BB15: 0 | BC15: 0 | BD15: 0 | BE15: 0 | BF15: 0 | BG15: 0 | BH15: 0 | BI15: 0 | BJ15: 0 | BK15: 0 | BL15: 0 | BM15: 0 | BN15: 0 | BO15: 0 | BP15: 0 | BQ15: 0 | BR15: 0 | BS15: 0 | BT15: 0 | BU15: =IF(BU$4=1,BT15,IF(AND(BU$4=2,BT$4=1),$E15,IF(AND(BU$4=2,BT$4=2),BT15*(1+$G15),0))) -> 0 | BV15: 0 | BW15: 0 | BX15: 0 | BY15: 0 | BZ15: 0 | CA15: 0 | CB15: 0 | CC15: 0 | CD15: 0 | CE15: 0 | CF15: 0 | CG15: 0 | CH15: 0 | CI15: 0 | CJ15: 0 | CK15: 0 | CL15: 0 | CM15: 0 | CN15: 0 | CO15: 0 | CP15: 0 | CQ15: 0 | CR15: 0 | CS15: 0
B16: Food and other accessories | C16: 13500 | D16: 1125 | F16: 0 | G16: 0.02 | H16: 13500 | I16: =IF(I$4=1,H16,IF(AND(I$4=2,H$4=1),$E16,IF(AND(I$4=2,H$4=2),H16*(1+$G16),0))) -> 0 | J16: 0 | K16: 0 | L16: 0 | M16: 0 | N16: 0 | O16: 0 | P16: 0 | Q16: 0 | R16: 0 | S16: 0 | T16: 0 | U16: 0 | V16: 0 | W16: 0 | X16: 0 | Y16: 0 | Z16: 0 | AA16: 0 | AB16: 0 | AC16: 0 | AD16: 0 | AE16: 0 | AF16: 0 | AG16: 0 | AH16: 0 | AI16: 0 | AJ16: 0 | AK16: 0 | AL16: 0 | AM16: 0 | AN16: 0 | AO16: =IF(AO$4=1,AN16,IF(AND(AO$4=2,AN$4=1),$E16,IF(AND(AO$4=2,AN$4=2),AN16*(1+$G16),0))) -> 0 | AP16: 0 | AQ16: 0 | AR16: 0 | AS16: 0 | AT16: 0 | AU16: 0 | AV16: 0 | AW16: 0 | AX16: 0 | AY16: 0 | AZ16: 0 | BA16: 0 | BB16: 0 | BC16: 0 | BD16: 0 | BE16: 0 | BF16: 0 | BG16: 0 | BH16: 0 | BI16: 0 | BJ16: 0 | BK16: 0 | BL16: 0 | BM16: 0 | BN16: 0 | BO16: 0 | BP16: 0 | BQ16: 0 | BR16: 0 | BS16: 0 | BT16: 0 | BU16: =IF(BU$4=1,BT16,IF(AND(BU$4=2,BT$4=1),$E16,IF(AND(BU$4=2,BT$4=2),BT16*(1+$G16),0))) -> 0 | BV16: 0 | BW16: 0 | BX16: 0 | BY16: 0 | BZ16: 0 | CA16: 0 | CB16: 0 | CC16: 0 | CD16: 0 | CE16: 0 | CF16: 0 | CG16: 0 | CH16: 0 | CI16: 0 | CJ16: 0 | CK16: 0 | CL16: 0 | CM16: 0 | CN16: 0 | CO16: 0 | CP16: 0 | CQ16: 0 | CR16: 0 | CS16: 0
B17: Dinning out | C17: 5000 | D17: 416.6666667 | F17: 0 | G17: 0.02 | H17: 5000 | I17: =IF(I$4=1,H17,IF(AND(I$4=2,H$4=1),$E17,IF(AND(I$4=2,H$4=2),H17*(1+$G17),0))) -> 0 | J17: 0 | K17: 0 | L17: 0 | M17: 0 | N17: 0 | O17: 0 | P17: 0 | Q17: 0 | R17: 0 | S17: 0 | T17: 0 | U17: 0 | V17: 0 | W17: 0 | X17: 0 | Y17: 0 | Z17: 0 | AA17: 0 | AB17: 0 | AC17: 0 | AD17: 0 | AE17: 0 | AF17: 0 | AG17: 0 | AH17: 0 | AI17: 0 | AJ17: 0 | AK17: 0 | AL17: 0 | AM17: 0 | AN17: 0 | AO17: =IF(AO$4=1,AN17,IF(AND(AO$4=2,AN$4=1),$E17,IF(AND(AO$4=2,AN$4=2),AN17*(1+$G17),0))) -> 0 | AP17: 0 | AQ17: 0 | AR17: 0 | AS17: 0 | AT17: 0 | AU17: 0 | AV17: 0 | AW17: 0 | AX17: 0 | AY17: 0 | AZ17: 0 | BA17: 0 | BB17: 0 | BC17: 0 | BD17: 0 | BE17: 0 | BF17: 0 | BG17: 0 | BH17: 0 | BI17: 0 | BJ17: 0 | BK17: 0 | BL17: 0 | BM17: 0 | BN17: 0 | BO17: 0 | BP17: 0 | BQ17: 0 | BR17: 0 | BS17: 0 | BT17: 0 | BU17: =IF(BU$4=1,BT17,IF(AND(BU$4=2,BT$4=1),$E17,IF(AND(BU$4=2,BT$4=2),BT17*(1+$G17),0))) -> 0 | BV17: 0 | BW17: 0 | BX17: 0 | BY17: 0 | BZ17: 0 | CA17: 0 | CB17: 0 | CC17: 0 | CD17: 0 | CE17: 0 | CF17: 0 | CG17: 0 | CH17: 0 | CI17: 0 | CJ17: 0 | CK17: 0 | CL17: 0 | CM17: 0 | CN17: 0 | CO17: 0 | CP17: 0 | CQ17: 0 | CR17: 0 | CS17: 0
B18: Entertainment | C18: 2000 | D18: 166.6666667 | F18: 0 | G18: 0.02 | H18: 2000 | I18: =IF(I$4=1,H18,IF(AND(I$4=2,H$4=1),$E18,IF(AND(I$4=2,H$4=2),H18*(1+$G18),0))) -> 0 | J18: 0 | K18: 0 | L18: 0 | M18: 0 | N18: 0 | O18: 0 | P18: 0 | Q18: 0 | R18: 0 | S18: 0 | T18: 0 | U18: 0 | V18: 0 | W18: 0 | X18: 0 | Y18: 0 | Z18: 0 | AA18: 0 | AB18: 0 | AC18: 0 | AD18: 0 | AE18: 0 | AF18: 0 | AG18: 0 | AH18: 0 | AI18: 0 | AJ18: 0 | AK18: 0 | AL18: 0 | AM18: 0 | AN18: 0 | AO18: =IF(AO$4=1,AN18,IF(AND(AO$4=2,AN$4=1),$E18,IF(AND(AO$4=2,AN$4=2),AN18*(1+$G18),0))) -> 0 | AP18: 0 | AQ18: 0 | AR18: 0 | AS18: 0 | AT18: 0 | AU18: 0 | AV18: 0 | AW18: 0 | AX18: 0 | AY18: 0 | AZ18: 0 | BA18: 0 | BB18: 0 | BC18: 0 | BD18: 0 | BE18: 0 | BF18: 0 | BG18: 0 | BH18: 0 | BI18: 0 | BJ18: 0 | BK18: 0 | BL18: 0 | BM18: 0 | BN18: 0 | BO18: 0 | BP18: 0 | BQ18: 0 | BR18: 0 | BS18: 0 | BT18: 0 | BU18: =IF(BU$4=1,BT18,IF(AND(BU$4=2,BT$4=1),$E18,IF(AND(BU$4=2,BT$4=2),BT18*(1+$G18),0))) -> 0 | BV18: 0 | BW18: 0 | BX18: 0 | BY18: 0 | BZ18: 0 | CA18: 0 | CB18: 0 | CC18: 0 | CD18: 0 | CE18: 0 | CF18: 0 | CG18: 0 | CH18: 0 | CI18: 0 | CJ18: 0 | CK18: 0 | CL18: 0 | CM18: 0 | CN18: 0 | CO18: 0 | CP18: 0 | CQ18: 0 | CR18: 0 | CS18: 0
B19: Traveling | C19: 5000 | D19: 416.6666667 | F19: 0 | G19: 0.02 | H19: 5000 | I19: =IF(I$4=1,H19,IF(AND(I$4=2,H$4=1),$E19,IF(AND(I$4=2,H$4=2),H19*(1+$G19),0))) -> 0 | J19: 0 | K19: 0 | L19: 0 | M19: 0 | N19: 0 | O19: 0 | P19: 0 | Q19: 0 | R19: 0 | S19: 0 | T19: 0 | U19: 0 | V19: 0 | W19: 0 | X19: 0 | Y19: 0 | Z19: 0 | AA19: 0 | AB19: 0 | AC19: 0 | AD19: 0 | AE19: 0 | AF19: 0 | AG19: 0 | AH19: 0 | AI19: 0 | AJ19: 0 | AK19: 0 | AL19: 0 | AM19: 0 | AN19: 0 | AO19: =IF(AO$4=1,AN19,IF(AND(AO$4=2,AN$4=1),$E19,IF(AND(AO$4=2,AN$4=2),AN19*(1+$G19),0))) -> 0 | AP19: 0 | AQ19: 0 | AR19: 0 | AS19: 0 | AT19: 0 | AU19: 0 | AV19: 0 | AW19: 0 | AX19: 0 | AY19: 0 | AZ19: 0 | BA19: 0 | BB19: 0 | BC19: 0 | BD19: 0 | BE19: 0 | BF19: 0 | BG19: 0 | BH19: 0 | BI19: 0 | BJ19: 0 | BK19: 0 | BL19: 0 | BM19: 0 | BN19: 0 | BO19: 0 | BP19: 0 | BQ19: 0 | BR19: 0 | BS19: 0 | BT19: 0 | BU19: =IF(BU$4=1,BT19,IF(AND(BU$4=2,BT$4=1),$E19,IF(AND(BU$4=2,BT$4=2),BT19*(1+$G19),0))) -> 0 | BV19: 0 | BW19: 0 | BX19: 0 | BY19: 0 | BZ19: 0 | CA19: 0 | CB19: 0 | CC19: 0 | CD19: 0 | CE19: 0 | CF19: 0 | CG19: 0 | CH19: 0 | CI19: 0 | CJ19: 0 | CK19: 0 | CL19: 0 | CM19: 0 | CN19: 0 | CO19: 0 | CP19: 0 | CQ19: 0 | CR19: 0 | CS19: 0
B20: Mobile phones | C20: 2000 | D20: 166.6666667 | F20: 0 | G20: 0.02 | H20: 2000 | I20: =IF(I$4=1,H20,IF(AND(I$4=2,H$4=1),$E20,IF(AND(I$4=2,H$4=2),H20*(1+$G20),0))) -> 0 | J20: 0 | K20: 0 | L20: 0 | M20: 0 | N20: 0 | O20: 0 | P20: 0 | Q20: 0 | R20: 0 | S20: 0 | T20: 0 | U20: 0 | V20: 0 | W20: 0 | X20: 0 | Y20: 0 | Z20: 0 | AA20: 0 | AB20: 0 | AC20: 0 | AD20: 0 | AE20: 0 | AF20: 0 | AG20: 0 | AH20: 0 | AI20: 0 | AJ20: 0 | AK20: 0 | AL20: 0 | AM20: 0 | AN20: 0 | AO20: =IF(AO$4=1,AN20,IF(AND(AO$4=2,AN$4=1),$E20,IF(AND(AO$4=2,AN$4=2),AN20*(1+$G20),0))) -> 0 | AP20: 0 | AQ20: 0 | AR20: 0 | AS20: 0 | AT20: 0 | AU20: 0 | AV20: 0 | AW20: 0 | AX20: 0 | AY20: 0 | AZ20: 0 | BA20: 0 | BB20: 0 | BC20: 0 | BD20: 0 | BE20: 0 | BF20: 0 | BG20: 0 | BH20: 0 | BI20: 0 | BJ20: 0 | BK20: 0 | BL20: 0 | BM20: 0 | BN20: 0 | BO20: 0 | BP20: 0 | BQ20: 0 | BR20: 0 | BS20: 0 | BT20: 0 | BU20: =IF(BU$4=1,BT20,IF(AND(BU$4=2,BT$4=1),$E20,IF(AND(BU$4=2,BT$4=2),BT20*(1+$G20),0))) -> 0 | BV20: 0 | BW20: 0 | BX20: 0 | BY20: 0 | BZ20: 0 | CA20: 0 | CB20: 0 | CC20: 0 | CD20: 0 | CE20: 0 | CF20: 0 | CG20: 0 | CH20: 0 | CI20: 0 | CJ20: 0 | CK20: 0 | CL20: 0 | CM20: 0 | CN20: 0 | CO20: 0 | CP20: 0 | CQ20: 0 | CR20: 0 | CS20: 0
B21: Streaming services and internet connectivity | C21: 2000 | D21: 166.6666667 | F21: 0 | G21: 0.02 | H21: 2000 | I21: =IF(I$4=1,H21,IF(AND(I$4=2,H$4=1),$E21,IF(AND(I$4=2,H$4=2),H21*(1+$G21),0))) -> 0 | J21: 0 | K21: 0 | L21: 0 | M21: 0 | N21: 0 | O21: 0 | P21: 0 | Q21: 0 | R21: 0 | S21: 0 | T21: 0 | U21: 0 | V21: 0 | W21: 0 | X21: 0 | Y21: 0 | Z21: 0 | AA21: 0 | AB21: 0 | AC21: 0 | AD21: 0 | AE21: 0 | AF21: 0 | AG21: 0 | AH21: 0 | AI21: 0 | AJ21: 0 | AK21: 0 | AL21: 0 | AM21: 0 | AN21: 0 | AO21: =IF(AO$4=1,AN21,IF(AND(AO$4=2,AN$4=1),$E21,IF(AND(AO$4=2,AN$4=2),AN21*(1+$G21),0))) -> 0 | AP21: 0 | AQ21: 0 | AR21: 0 | AS21: 0 | AT21: 0 | AU21: 0 | AV21: 0 | AW21: 0 | AX21: 0 | AY21: 0 | AZ21: 0 | BA21: 0 | BB21: 0 | BC21: 0 | BD21: 0 | BE21: 0 | BF21: 0 | BG21: 0 | BH21: 0 | BI21: 0 | BJ21: 0 | BK21: 0 | BL21: 0 | BM21: 0 | BN21: 0 | BO21: 0 | BP21: 0 | BQ21: 0 | BR21: 0 | BS21: 0 | BT21: 0 | BU21: =IF(BU$4=1,BT21,IF(AND(BU$4=2,BT$4=1),$E21,IF(AND(BU$4=2,BT$4=2),BT21*(1+$G21),0))) -> 0 | BV21: 0 | BW21: 0 | BX21: 0 | BY21: 0 | BZ21: 0 | CA21: 0 | CB21: 0 | CC21: 0 | CD21: 0 | CE21: 0 | CF21: 0 | CG21: 0 | CH21: 0 | CI21: 0 | CJ21: 0 | CK21: 0 | CL21: 0 | CM21: 0 | CN21: 0 | CO21: 0 | CP21: 0 | CQ21: 0 | CR21: 0 | CS21: 0
B22: Gas for cars/tolls | C22: 4000 | D22: 333.3333333 | F22: 0 | G22: -0.02 | H22: 4000 | I22: =IF(I$4=1,H22,IF(AND(I$4=2,H$4=1),$E22,IF(AND(I$4=2,H$4=2),H22*(1+$G22),0))) -> 0 | J22: 0 | K22: 0 | L22: 0 | M22: 0 | N22: 0 | O22: 0 | P22: 0 | Q22: 0 | R22: 0 | S22: 0 | T22: 0 | U22: 0 | V22: 0 | W22: 0 | X22: 0 | Y22: 0 | Z22: 0 | AA22: 0 | AB22: 0 | AC22: 0 | AD22: 0 | AE22: 0 | AF22: 0 | AG22: 0 | AH22: 0 | AI22: 0 | AJ22: 0 | AK22: 0 | AL22: 0 | AM22: 0 | AN22: 0 | AO22: =IF(AO$4=1,AN22,IF(AND(AO$4=2,AN$4=1),$E22,IF(AND(AO$4=2,AN$4=2),AN22*(1+$G22),0))) -> 0 | AP22: 0 | AQ22: 0 | AR22: 0 | AS22: 0 | AT22: 0 | AU22: 0 | AV22: 0 | AW22: 0 | AX22: 0 | AY22: 0 | AZ22: 0 | BA22: 0 | BB22: 0 | BC22: 0 | BD22: 0 | BE22: 0 | BF22: 0 | BG22: 0 | BH22: 0 | BI22: 0 | BJ22: 0 | BK22: 0 | BL22: 0 | BM22: 0 | BN22: 0 | BO22: 0 | BP22: 0 | BQ22: 0 | BR22: 0 | BS22: 0 | BT22: 0 | BU22: =IF(BU$4=1,BT22,IF(AND(BU$4=2,BT$4=1),$E22,IF(AND(BU$4=2,BT$4=2),BT22*(1+$G22),0))) -> 0 | BV22: 0 | BW22: 0 | BX22: 0 | BY22: 0 | BZ22: 0 | CA22: 0 | CB22: 0 | CC22: 0 | CD22: 0 | CE22: 0 | CF22: 0 | CG22: 0 | CH22: 0 | CI22: 0 | CJ22: 0 | CK22: 0 | CL22: 0 | CM22: 0 | CN22: 0 | CO22: 0 | CP22: 0 | CQ22: 0 | CR22: 0 | CS22: 0
B23: health insurance | C23: 5000 | D23: 416.6666667 | F23: 0 | G23: 0.04 | H23: 5000 | I23: =IF(I$4=1,H23,IF(AND(I$4=2,H$4=1),$E23,IF(AND(I$4=2,H$4=2),H23*(1+$G23),0))) -> 0 | J23: 0 | K23: 0 | L23: 0 | M23: 0 | N23: 0 | O23: 0 | P23: 0 | Q23: 0 | R23: 0 | S23: 0 | T23: 0 | U23: 0 | V23: 0 | W23: 0 | X23: 0 | Y23: 0 | Z23: 0 | AA23: 0 | AB23: 0 | AC23: 0 | AD23: 0 | AE23: 0 | AF23: 0 | AG23: 0 | AH23: 0 | AI23: 0 | AJ23: 0 | AK23: 0 | AL23: 0 | AM23: 0 | AN23: 0 | AO23: =IF(AO$4=1,AN23,IF(AND(AO$4=2,AN$4=1),$E23,IF(AND(AO$4=2,AN$4=2),AN23*(1+$G23),0))) -> 0 | AP23: 0 | AQ23: 0 | AR23: 0 | AS23: 0 | AT23: 0 | AU23: 0 | AV23: 0 | AW23: 0 | AX23: 0 | AY23: 0 | AZ23: 0 | BA23: 0 | BB23: 0 | BC23: 0 | BD23: 0 | BE23: 0 | BF23: 0 | BG23: 0 | BH23: 0 | BI23: 0 | BJ23: 0 | BK23: 0 | BL23: 0 | BM23: 0 | BN23: 0 | BO23: 0 | BP23: 0 | BQ23: 0 | BR23: 0 | BS23: 0 | BT23: 0 | BU23: =IF(BU$4=1,BT23,IF(AND(BU$4=2,BT$4=1),$E23,IF(AND(BU$4=2,BT$4=2),BT23*(1+$G23),0))) -> 0 | BV23: =IF(BV$4=1,BU23,IF(AND(BV$4=2,BU$4=1),$E23,IF(AND(BV$4=2,BU$4=2),BU23*(1+$G23),0))) -> 0 | BW23: 0 | BX23: 0 | BY23: 0 | BZ23: 0 | CA23: 0 | CB23: 0 | CC23: 0 | CD23: 0 | CE23: 0 | CF23: 0 | CG23: 0 | CH23: 0 | CI23: 0 | CJ23: 0 | CK23: 0 | CL23: 0 | CM23: 0 | CN23: 0 | CO23: 0 | CP23: 0 | CQ23: 0 | CR23: 0 | CS23: 0
B24: House and car maintenance | C24: 3500 | D24: 291.6666667 | F24: 0 | G24: 0.02 | H24: 3500 | I24: =IF(I$4=1,H24,IF(AND(I$4=2,H$4=1),$E24,IF(AND(I$4=2,H$4=2),H24*(1+$G24),0))) -> 0 | J24: 0 | K24: 0 | L24: 0 | M24: 0 | N24: 0 | O24: 0 | P24: 0 | Q24: 0 | R24: 0 | S24: 0 | T24: 0 | U24: 0 | V24: 0 | W24: 0 | X24: 0 | Y24: 0 | Z24: 0 | AA24: 0 | AB24: 0 | AC24: 0 | AD24: 0 | AE24: 0 | AF24: 0 | AG24: 0 | AH24: 0 | AI24: 0 | AJ24: 0 | AK24: 0 | AL24: 0 | AM24: 0 | AN24: 0 | AO24: =IF(AO$4=1,AN24,IF(AND(AO$4=2,AN$4=1),$E24,IF(AND(AO$4=2,AN$4=2),AN24*(1+$G24),0))) -> 0 | AP24: 0 | AQ24: 0 | AR24: 0 | AS24: 0 | AT24: 0 | AU24: 0 | AV24: 0 | AW24: 0 | AX24: 0 | AY24: 0 | AZ24: 0 | BA24: 0 | BB24: 0 | BC24: 0 | BD24: 0 | BE24: 0 | BF24: 0 | BG24: 0 | BH24: 0 | BI24: 0 | BJ24: 0 | BK24: 0 | BL24: 0 | BM24: 0 | BN24: 0 | BO24: 0 | BP24: 0 | BQ24: 0 | BR24: 0 | BS24: 0 | BT24: 0 | BU24: =IF(BU$4=1,BT24,IF(AND(BU$4=2,BT$4=1),$E24,IF(AND(BU$4=2,BT$4=2),BT24*(1+$G24),0))) -> 0 | BV24: =IF(BV$4=1,BU24,IF(AND(BV$4=2,BU$4=1),$E24,IF(AND(BV$4=2,BU$4=2),BU24*(1+$G24),0))) -> 0 | BW24: 0 | BX24: 0 | BY24: 0 | BZ24: 0 | CA24: 0 | CB24: 0 | CC24: 0 | CD24: 0 | CE24: 0 | CF24: 0 | CG24: 0 | CH24: 0 | CI24: 0 | CJ24: 0 | CK24: 0 | CL24: 0 | CM24: 0 | CN24: 0 | CO24: 0 | CP24: 0 | CQ24: 0 | CR24: 0 | CS24: 0
B25: Other | C25: 0 | D25: 0 | E25: 100000 | F25: 8333.333333 | G25: 0.02 | H25: 0 | I25: =IF(I$4=1,H25,IF(AND(I$4=2,H$4=1),$E25,IF(AND(I$4=2,H$4=2),H25*(1+$G25),0))) -> 100000 | J25: 102000 | K25: 104040 | L25: 106120.8 | M25: 108243.216 | N25: 110408.0803 | O25: 112616.2419 | P25: 114868.5668 | Q25: 117165.9381 | R25: 119509.2569 | S25: 121899.442 | T25: 124337.4308 | U25: 126824.1795 | V25: 129360.663 | W25: 131947.8763 | X25: 134586.8338 | Y25: 137278.5705 | Z25: 140024.1419 | AA25: 142824.6248 | AB25: 145681.1173 | AC25: 148594.7396 | AD25: 151566.6344 | AE25: 154597.9671 | AF25: 157689.9264 | AG25: 160843.7249 | AH25: 164060.5994 | AI25: 167341.8114 | AJ25: 170688.6477 | AK25: 0 | AL25: 0 | AM25: 0 | AN25: 0 | AO25: =IF(AO$4=1,AN25,IF(AND(AO$4=2,AN$4=1),$E25,IF(AND(AO$4=2,AN$4=2),AN25*(1+$G25),0))) -> 0 | AP25: 0 | AQ25: 0 | AR25: 0 | AS25: 0 | AT25: 0 | AU25: 0 | AV25: 0 | AW25: 0 | AX25: 0 | AY25: 0 | AZ25: 0 | BA25: 0 | BB25: 0 | BC25: 0 | BD25: 0 | BE25: 0 | BF25: 0 | BG25: 0 | BH25: 0 | BI25: 0 | BJ25: 0 | BK25: 0 | BL25: 0 | BM25: 0 | BN25: 0 | BO25: 0 | BP25: 0 | BQ25: 0 | BR25: 0 | BS25: 0 | BT25: 0 | BU25: =IF(BU$4=1,BT25,IF(AND(BU$4=2,BT$4=1),$E25,IF(AND(BU$4=2,BT$4=2),BT25*(1+$G25),0))) -> 0 | BV25: =IF(BV$4=1,BU25,IF(AND(BV$4=2,BU$4=1),$E25,IF(AND(BV$4=2,BU$4=2),BU25*(1+$G25),0))) -> 0 | BW25: 0 | BX25: 0 | BY25: 0 | BZ25: 0 | CA25: 0 | CB25: 0 | CC25: 0 | CD25: 0 | CE25: 0 | CF25: 0 | CG25: 0 | CH25: 0 | CI25: 0 | CJ25: 0 | CK25: 0 | CL25: 0 | CM25: 0 | CN25: 0 | CO25: 0 | CP25: 0 | CQ25: 0 | CR25: 0 | CS25: 0
B26: Adjustment (manual additions or subtractions | D26: 0 | F26: 0 | U26: =U25*-0.23 -> -29169.56127 | V26: =V25*-0.23 -> -29752.9525 | W26: -30348.01155 | X26: -30954.97178 | Y26: -31574.07122 | Z26: -32205.55264 | AA26: -32849.66369 | AB26: -33506.65697 | AC26: -34176.79011 | AD26: -34860.32591 | AE26: -35557.53243 | AF26: -36268.68308 | AG26: -36994.05674 | AH26: -37733.93787 | AI26: -38488.61663
D27: 0 | F27: 0
D28: 0 | F28: 0
D29: 0 | F29: 0
D30: 0 | F30: 0
D31: 0 | F31: 0
D32: 0 | F32: 0
D33: 0 | F33: 0
D34: 0 | F34: 0
D35: 0 | F35: 0
D36: 0 | F36: 0
B38: Sum | C38: =SUM(C8:C26) -> 76500 | E38: =SUM(E8:E26) -> 100000 | H38: =SUM(H8:H36) -> 76500 | I38: =SUM(I8:I36) -> 100000 | J38: 102000 | K38: 104040 | L38: 106120.8 | M38: 108243.216 | N38: 110408.0803 | O38: 112616.2419 | P38: 114868.5668 | Q38: 117165.9381 | R38: 119509.2569 | S38: 121899.442 | T38: 124337.4308 | U38: 97654.61818 | V38: 99607.71054 | W38: 101599.8648 | X38: 103631.8621 | Y38: 105704.4993 | Z38: 107818.5893 | AA38: 109974.9611 | AB38: 112174.4603 | AC38: 114417.9495 | AD38: 116706.3085 | AE38: 119040.4346 | AF38: 121421.2433 | AG38: 123849.6682 | AH38: 126326.6616 | AI38: 128853.1948 | AJ38: 170688.6477 | AK38: 0 | AL38: 0 | AM38: 0 | AN38: 0 | AO38: 0 | AP38: 0 | AQ38: 0 | AR38: 0 | AS38: 0 | AT38: 0 | AU38: 0 | AV38: 0 | AW38: 0 | AX38: 0 | AY38: 0 | AZ38: 0 | BA38: 0 | BB38: 0 | BC38: 0 | BD38: 0 | BE38: 0 | BF38: 0 | BG38: 0 | BH38: 0 | BI38: 0 | BJ38: 0 | BK38: 0 | BL38: 0 | BM38: 0 | BN38: 0 | BO38: 0 | BP38: 0 | BQ38: 0 | BR38: 0 | BS38: 0 | BT38: 0 | BU38: =SUM(BU8:BU36) -> 0 | BV38: 0 | BW38: 0 | BX38: 0 | BY38: 0 | BZ38: 0 | CA38: 0 | CB38: 0 | CC38: 0 | CD38: 0 | CE38: 0 | CF38: 0 | CG38: 0 | CH38: 0 | CI38: 0 | CJ38: 0 | CK38: 0 | CL38: 0 | CM38: 0 | CN38: 0 | CO38: 0 | CP38: 0 | CQ38: 0 | CR38: 0 | CS38: 0
B40: retirement income goal | H40: =IF(H4=2, IF(Sheet2!C23>Sheet2!C24,Sheet2!C23,Sheet2!C24),0) -> 0 | I40: =IF(I4=2, IF(Sheet2!D23>Sheet2!D24,Sheet2!D23,Sheet2!D24),0) -> 80000 | J40: =IF(J4=2, IF(Sheet2!E23>Sheet2!E24,Sheet2!E23,Sheet2!E24),0) -> 80000 | K40: =IF(K4=2, IF(Sheet2!F23>Sheet2!F24,Sheet2!F23,Sheet2!F24),0) -> 80000 | L40: =IF(L4=2, IF(Sheet2!G23>Sheet2!G24,Sheet2!G23,Sheet2!G24),0) -> 80000 | M40: =IF(M4=2, IF(Sheet2!H23>Sheet2!H24,Sheet2!H23,Sheet2!H24),0) -> 80000 | N40: =IF(N4=2, IF(Sheet2!I23>Sheet2!I24,Sheet2!I23,Sheet2!I24),0) -> 80000 | O40: =IF(O4=2, IF(Sheet2!J23>Sheet2!J24,Sheet2!J23,Sheet2!J24),0) -> 80000 | P40: =IF(P4=2, IF(Sheet2!K23>Sheet2!K24,Sheet2!K23,Sheet2!K24),0) -> 80000 | Q40: =IF(Q4=2, IF(Sheet2!L23>Sheet2!L24,Sheet2!L23,Sheet2!L24),0) -> 80000 | R40: =IF(R4=2, IF(Sheet2!M23>Sheet2!M24,Sheet2!M23,Sheet2!M24),0) -> 80000 | S40: =IF(S4=2, IF(Sheet2!N23>Sheet2!N24,Sheet2!N23,Sheet2!N24),0) -> 80000 | T40: =IF(T4=2, IF(Sheet2!O23>Sheet2!O24,Sheet2!O23,Sheet2!O24),0) -> 80000 | U40: =IF(U4=2, IF(Sheet2!P23>Sheet2!P24,Sheet2!P23,Sheet2!P24),0) -> 80000 | V40: =IF(V4=2, IF(Sheet2!Q23>Sheet2!Q24,Sheet2!Q23,Sheet2!Q24),0) -> 80000 | W40: =IF(W4=2, IF(Sheet2!R23>Sheet2!R24,Sheet2!R23,Sheet2!R24),0) -> 80000 | X40: =IF(X4=2, IF(Sheet2!S23>Sheet2!S24,Sheet2!S23,Sheet2!S24),0) -> 80000 | Y40: =IF(Y4=2, IF(Sheet2!T23>Sheet2!T24,Sheet2!T23,Sheet2!T24),0) -> 80000 | Z40: =IF(Z4=2, IF(Sheet2!U23>Sheet2!U24,Sheet2!U23,Sheet2!U24),0) -> 80000 | AA40: =IF(AA4=2, IF(Sheet2!V23>Sheet2!V24,Sheet2!V23,Sheet2!V24),0) -> 80000 | AB40: =IF(AB4=2, IF(Sheet2!W23>Sheet2!W24,Sheet2!W23,Sheet2!W24),0) -> 80000 | AC40: =IF(AC4=2, IF(Sheet2!X23>Sheet2!X24,Sheet2!X23,Sheet2!X24),0) -> 80000 | AD40: =IF(AD4=2, IF(Sheet2!Y23>Sheet2!Y24,Sheet2!Y23,Sheet2!Y24),0) -> 80000 | AE40: =IF(AE4=2, IF(Sheet2!Z23>Sheet2!Z24,Sheet2!Z23,Sheet2!Z24),0) -> 80000 | AF40: =IF(AF4=2, IF(Sheet2!AA23>Sheet2!AA24,Sheet2!AA23,Sheet2!AA24),0) -> 80000 | AG40: =IF(AG4=2, IF(Sheet2!AB23>Sheet2!AB24,Sheet2!AB23,Sheet2!AB24),0) -> 80000 | AH40: =IF(AH4=2, IF(Sheet2!AC23>Sheet2!AC24,Sheet2!AC23,Sheet2!AC24),0) -> 80000 | AI40: =IF(AI4=2, IF(Sheet2!AD23>Sheet2!AD24,Sheet2!AD23,Sheet2!AD24),0) -> 80000 | AJ40: =IF(AJ4=2, IF(Sheet2!AE23>Sheet2!AE24,Sheet2!AE23,Sheet2!AE24),0) -> 80000 | AK40: =IF(AK4=2, IF(Sheet2!AF23>Sheet2!AF24,Sheet2!AF23,Sheet2!AF24),0) -> 0 | AL40: =IF(AL4=2, IF(Sheet2!AG23>Sheet2!AG24,Sheet2!AG23,Sheet2!AG24),0) -> 0 | AM40: =IF(AM4=2, IF(Sheet2!AH23>Sheet2!AH24,Sheet2!AH23,Sheet2!AH24),0) -> 0 | AN40: =IF(AN4=2, IF(Sheet2!AI23>Sheet2!AI24,Sheet2!AI23,Sheet2!AI24),0) -> 0 | AO40: =IF(AO4=2, IF(Sheet2!AJ23>Sheet2!AJ24,Sheet2!AJ23,Sheet2!AJ24),0) -> 0 | AP40: =IF(AP4=2, IF(Sheet2!AK23>Sheet2!AK24,Sheet2!AK23,Sheet2!AK24),0) -> 0 | AQ40: =IF(AQ4=2, IF(Sheet2!AL23>Sheet2!AL24,Sheet2!AL23,Sheet2!AL24),0) -> 0 | AR40: =IF(AR4=2, IF(Sheet2!AM23>Sheet2!AM24,Sheet2!AM23,Sheet2!AM24),0) -> 0 | AS40: =IF(AS4=2, IF(Sheet2!AN23>Sheet2!AN24,Sheet2!AN23,Sheet2!AN24),0) -> 0 | AT40: =IF(AT4=2, IF(Sheet2!AO23>Sheet2!AO24,Sheet2!AO23,Sheet2!AO24),0) -> 0 | AU40: =IF(AU4=2, IF(Sheet2!AP23>Sheet2!AP24,Sheet2!AP23,Sheet2!AP24),0) -> 0 | AV40: =IF(AV4=2, IF(Sheet2!AQ23>Sheet2!AQ24,Sheet2!AQ23,Sheet2!AQ24),0) -> 0 | AW40: =IF(AW4=2, IF(Sheet2!AR23>Sheet2!AR24,Sheet2!AR23,Sheet2!AR24),0) -> 0 | AX40: =IF(AX4=2, IF(Sheet2!AS23>Sheet2!AS24,Sheet2!AS23,Sheet2!AS24),0) -> 0 | AY40: =IF(AY4=2, IF(Sheet2!AT23>Sheet2!AT24,Sheet2!AT23,Sheet2!AT24),0) -> 0 | AZ40: =IF(AZ4=2, IF(Sheet2!AU23>Sheet2!AU24,Sheet2!AU23,Sheet2!AU24),0) -> 0 | BA40: =IF(BA4=2, IF(Sheet2!AV23>Sheet2!AV24,Sheet2!AV23,Sheet2!AV24),0) -> 0 | BB40: =IF(BB4=2, IF(Sheet2!AW23>Sheet2!AW24,Sheet2!AW23,Sheet2!AW24),0) -> 0 | BC40: =IF(BC4=2, IF(Sheet2!AX23>Sheet2!AX24,Sheet2!AX23,Sheet2!AX24),0) -> 0 | BD40: =IF(BD4=2, IF(Sheet2!AY23>Sheet2!AY24,Sheet2!AY23,Sheet2!AY24),0) -> 0 | BE40: =IF(BE4=2, IF(Sheet2!AZ23>Sheet2!AZ24,Sheet2!AZ23,Sheet2!AZ24),0) -> 0 | BF40: =IF(BF4=2, IF(Sheet2!BA23>Sheet2!BA24,Sheet2!BA23,Sheet2!BA24),0) -> 0 | BG40: =IF(BG4=2, IF(Sheet2!BB23>Sheet2!BB24,Sheet2!BB23,Sheet2!BB24),0) -> 0 | BH40: =IF(BH4=2, IF(Sheet2!BC23>Sheet2!BC24,Sheet2!BC23,Sheet2!BC24),0) -> 0 | BI40: =IF(BI4=2, IF(Sheet2!BD23>Sheet2!BD24,Sheet2!BD23,Sheet2!BD24),0) -> 0 | BJ40: =IF(BJ4=2, IF(Sheet2!BE23>Sheet2!BE24,Sheet2!BE23,Sheet2!BE24),0) -> 0 | BK40: =IF(BK4=2, IF(Sheet2!BF23>Sheet2!BF24,Sheet2!BF23,Sheet2!BF24),0) -> 0 | BL40: =IF(BL4=2, IF(Sheet2!BG23>Sheet2!BG24,Sheet2!BG23,Sheet2!BG24),0) -> 0 | BM40: =IF(BM4=2, IF(Sheet2!BH23>Sheet2!BH24,Sheet2!BH23,Sheet2!BH24),0) -> 0 | BN40: =IF(BN4=2, IF(Sheet2!BI23>Sheet2!BI24,Sheet2!BI23,Sheet2!BI24),0) -> 0 | BO40: =IF(BO4=2, IF(Sheet2!BJ23>Sheet2!BJ24,Sheet2!BJ23,Sheet2!BJ24),0) -> 0 | BP40: =IF(BP4=2, IF(Sheet2!BK23>Sheet2!BK24,Sheet2!BK23,Sheet2!BK24),0) -> 0 | BQ40: =IF(BQ4=2, IF(Sheet2!BL23>Sheet2!BL24,Sheet2!BL23,Sheet2!BL24),0) -> 0 | BR40: =IF(BR4=2, IF(Sheet2!BM23>Sheet2!BM24,Sheet2!BM23,Sheet2!BM24),0) -> 0 | BS40: =IF(BS4=2, IF(Sheet2!BN23>Sheet2!BN24,Sheet2!BN23,Sheet2!BN24),0) -> 0 | BT40: =IF(BT4=2, IF(Sheet2!BO23>Sheet2!BO24,Sheet2!BO23,Sheet2!BO24),0) -> 0 | BU40: =IF(BU4=2, IF(Sheet2!BP23>Sheet2!BP24,Sheet2!BP23,Sheet2!BP24),0) -> 0 | BV40: =IF(BV4=2, IF(Sheet2!BQ23>Sheet2!BQ24,Sheet2!BQ23,Sheet2!BQ24),0) -> 0 | BW40: =IF(BW4=2, IF(Sheet2!BR23>Sheet2!BR24,Sheet2!BR23,Sheet2!BR24),0) -> 0 | BX40: =IF(BX4=2, IF(Sheet2!BS23>Sheet2!BS24,Sheet2!BS23,Sheet2!BS24),0) -> 0 | BY40: =IF(BY4=2, IF(Sheet2!BT23>Sheet2!BT24,Sheet2!BT23,Sheet2!BT24),0) -> 0 | BZ40: =IF(BZ4=2, IF(Sheet2!BU23>Sheet2!BU24,Sheet2!BU23,Sheet2!BU24),0) -> 0 | CA40: =IF(CA4=2, IF(Sheet2!BV23>Sheet2!BV24,Sheet2!BV23,Sheet2!BV24),0) -> 0 | CB40: =IF(CB4=2, IF(Sheet2!BW23>Sheet2!BW24,Sheet2!BW23,Sheet2!BW24),0) -> 0 | CC40: =IF(CC4=2, IF(Sheet2!BX23>Sheet2!BX24,Sheet2!BX23,Sheet2!BX24),0) -> 0 | CD40: =IF(CD4=2, IF(Sheet2!BY23>Sheet2!BY24,Sheet2!BY23,Sheet2!BY24),0) -> 0 | CE40: =IF(CE4=2, IF(Sheet2!BZ23>Sheet2!BZ24,Sheet2!BZ23,Sheet2!BZ24),0) -> 0 | CF40: =IF(CF4=2, IF(Sheet2!CA23>Sheet2!CA24,Sheet2!CA23,Sheet2!CA24),0) -> 0 | CG40: =IF(CG4=2, IF(Sheet2!CB23>Sheet2!CB24,Sheet2!CB23,Sheet2!CB24),0) -> 0 | CH40: =IF(CH4=2, IF(Sheet2!CC23>Sheet2!CC24,Sheet2!CC23,Sheet2!CC24),0) -> 0 | CI40: =IF(CI4=2, IF(Sheet2!CD23>Sheet2!CD24,Sheet2!CD23,Sheet2!CD24),0) -> 0 | CJ40: =IF(CJ4=2, IF(Sheet2!CE23>Sheet2!CE24,Sheet2!CE23,Sheet2!CE24),0) -> 0 | CK40: =IF(CK4=2, IF(Sheet2!CF23>Sheet2!CF24,Sheet2!CF23,Sheet2!CF24),0) -> 0 | CL40: =IF(CL4=2, IF(Sheet2!CG23>Sheet2!CG24,Sheet2!CG23,Sheet2!CG24),0) -> 0 | CM40: =IF(CM4=2, IF(Sheet2!CH23>Sheet2!CH24,Sheet2!CH23,Sheet2!CH24),0) -> 0 | CN40: =IF(CN4=2, IF(Sheet2!CI23>Sheet2!CI24,Sheet2!CI23,Sheet2!CI24),0) -> 0 | CO40: =IF(CO4=2, IF(Sheet2!CJ23>Sheet2!CJ24,Sheet2!CJ23,Sheet2!CJ24),0) -> 0 | CP40: =IF(CP4=2, IF(Sheet2!CK23>Sheet2!CK24,Sheet2!CK23,Sheet2!CK24),0) -> 0 | CQ40: =IF(CQ4=2, IF(Sheet2!CL23>Sheet2!CL24,Sheet2!CL23,Sheet2!CL24),0) -> 0 | CR40: =IF(CR4=2, IF(Sheet2!CM23>Sheet2!CM24,Sheet2!CM23,Sheet2!CM24),0) -> 0 | CS40: =IF(CS4=2, IF(Sheet2!CN23>Sheet2!CN24,Sheet2!CN23,Sheet2!CN24),0) -> 0
B41: gap | H41: =IF(H4=2,H40-H38,0) -> 0 | I41: -20000 | J41: -22000 | K41: -24040 | L41: -26120.8 | M41: -28243.216 | N41: -30408.08032 | O41: -32616.24193 | P41: -34868.56676 | Q41: -37165.9381 | R41: -39509.25686 | S41: -41899.442 | T41: -44337.43084 | U41: -17654.61818 | V41: -19607.71054 | W41: -21599.86476 | X41: -23631.86205 | Y41: -25704.49929 | Z41: -27818.58928 | AA41: -29974.96106 | AB41: -32174.46028 | AC41: -34417.94949 | AD41: -36706.30848 | AE41: -39040.43465 | AF41: -41421.24334 | AG41: -43849.66821 | AH41: -46326.66157 | AI41: -48853.19481 | AJ41: -90688.64766 | AK41: 0 | AL41: 0 | AM41: 0 | AN41: =IF(AN4=2,AN40-AN38,0) -> 0 | AO41: 0 | AP41: 0 | AQ41: 0 | AR41: 0 | AS41: 0 | AT41: 0 | AU41: 0 | AV41: 0 | AW41: 0 | AX41: 0 | AY41: 0 | AZ41: 0 | BA41: 0 | BB41: 0 | BC41: 0 | BD41: 0 | BE41: 0 | BF41: 0 | BG41: 0 | BH41: 0 | BI41: 0 | BJ41: 0 | BK41: 0 | BL41: 0 | BM41: 0 | BN41: 0 | BO41: 0 | BP41: 0 | BQ41: 0 | BR41: 0 | BS41: 0 | BT41: =IF(BT4=2,BT40-BT38,0) -> 0 | BU41: 0 | BV41: 0 | BW41: 0 | BX41: 0 | BY41: 0 | BZ41: 0 | CA41: 0 | CB41: 0 | CC41: 0 | CD41: 0 | CE41: 0 | CF41: 0 | CG41: 0 | CH41: 0 | CI41: 0 | CJ41: 0 | CK41: 0 | CL41: 0 | CM41: 0 | CN41: 0 | CO41: 0 | CP41: 0 | CQ41: 0 | CR41: 0 | CS41: 0

Sheet Sheet2
B2: simulation runs | C2: to retirement | D2: years in retirement | E2: years to SS | F2: unexpected | G2: max hit on income from unexpected
A3: =B3+1 -> 31 | B3: 30 | C3: =Input!C4-Input!C3 -> 1 | D3: =Input!C6-Input!C4 -> 28 | E3: =IF(Input!C5>Input!C3, Input!C5-Input!C3, 0) -> 2 | F3: 0.3 | G3: 0.6
B5: year | C5: 1 | D5: 2 | E5: 3 | F5: 4 | G5: 5 | H5: 6 | I5: 7 | J5: 8 | K5: 9 | L5: 10 | M5: 11 | N5: 12 | O5: 13 | P5: 14 | Q5: 15 | R5: 16 | S5: 17 | T5: 18 | U5: 19 | V5: 20 | W5: 21 | X5: 22 | Y5: 23 | Z5: 24 | AA5: 25 | AB5: 26 | AC5: 27 | AD5: 28 | AE5: 29 | AF5: 30 | AG5: 31 | AH5: 32 | AI5: 33 | AJ5: 34 | AK5: 35 | AL5: 36 | AM5: 37 | AN5: 38 | AO5: 39 | AP5: 40 | AQ5: 41 | AR5: 42 | AS5: 43 | AT5: 44 | AU5: 45 | AV5: 46 | AW5: 47 | AX5: 48 | AY5: 49 | AZ5: 50 | BA5: 51 | BB5: 52 | BC5: 53 | BD5: 54 | BE5: 55 | BF5: 56 | BG5: 57 | BH5: 58 | BI5: 59 | BJ5: 60 | BK5: 61 | BL5: 62 | BM5: 63 | BN5: 64 | BO5: 65 | BP5: 66 | BQ5: 67 | BR5: 68 | BS5: 69 | BT5: 70 | BU5: 71 | BV5: 72 | BW5: 73 | BX5: 74 | BY5: 75 | BZ5: 76 | CA5: 77 | CB5: 78 | CC5: 79 | CD5: 80 | CE5: 81 | CF5: 82 | CG5: 83 | CH5: 84 | CI5: 85 | CJ5: 86 | CK5: 87 | CL5: 88 | CM5: 89 | CN5: 90
C6: =RAND() -> 0.4668998248 | D6: =RAND() -> 0.4968644218 | E6: 0.7122762007 | F6: 0.1251605324 | G6: 0.7538598073 | H6: 0.1041277286 | I6: 0.861834444 | J6: 0.09151874608 | K6: 0.5032743796 | L6: 0.1725208992 | M6: 0.5895796022 | N6: 0.2647962381 | O6: 0.7094834682 | P6: 0.5741324015 | Q6: 0.08746569038 | R6: 0.3216057766 | S6: 0.4140939969 | T6: 0.243577848 | U6: 0.6221422326 | V6: 0.2536458049 | W6: 0.2994323431 | X6: 0.7841146821 | Y6: 0.4514562968 | Z6: 0.1886055737 | AA6: 0.5893388141 | AB6: 0.6849498874 | AC6: 0.5084334196 | AD6: 0.967080415 | AE6: 0.9013680255 | AF6: 0.3237603856 | AG6: 0.3204274512 | AH6: 0.1059338619 | AI6: 0.8767304587 | AJ6: 0.6324209068 | AK6: 0.4650262995 | AL6: 0.8587684646 | AM6: 0.7117202507 | AN6: 0.8369446253 | AO6: 0.2759267659 | AP6: 0.9820616652 | AQ6: 0.324547401 | AR6: 0.6648056038 | AS6: 0.2386031685 | AT6: 0.7603293167 | AU6: 0.4777151084 | AV6: 0.9073258112 | AW6: 0.7324868456 | AX6: 0.3492734681 | AY6: 0.5283355051 | AZ6: 0.6701434136 | BA6: 0.8991989902 | BB6: 0.4043621786 | BC6: 0.3928385632 | BD6: 0.2954072293 | BE6: 0.1910496687 | BF6: 0.3612098835 | BG6: 0.9602733845 | BH6: 0.874918724 | BI6: 0.618312009 | BJ6: 0.3037838901 | BK6: 0.9302569773 | BL6: 0.9663352857 | BM6: 0.9635265529 | BN6: 0.5608701726 | BO6: 0.7579218153 | BP6: =RAND() -> 0.6115474959 | BQ6: 0.4806795561 | BR6: 0.02022983161 | BS6: 0.6593972283 | BT6: 0.490234961 | BU6: 0.9256305389 | BV6: 0.9955707272 | BW6: 0.4764280458 | BX6: 0.3957163439 | BY6: 0.7256229919 | BZ6: 0.8847105344 | CA6: 0.5475286989 | CB6: 0.4006555562 | CC6: 0.8463509763 | CD6: 0.4300021593 | CE6: 0.2177657075 | CF6: 0.5395066235 | CG6: 0.3946469895 | CH6: 0.2536824171 | CI6: 0.5693906353 | CJ6: 0.2809348936 | CK6: 0.3289362602 | CL6: 0.9461213574 | CM6: 0.4880435896 | CN6: 0.2164771464
C7: =RAND() -> 0.2371213243 | D7: 0.1800590276 | E7: 0.009492669297 | F7: 0.1526938932 | G7: 0.2593792881 | H7: 0.2525793343 | I7: 0.5397273012 | J7: 0.2364738706 | K7: 0.1671582806 | L7: 0.4814368216 | M7: 0.2245481612 | N7: 0.3460065198 | O7: 0.4957658611 | P7: 0.2085262271 | Q7: 0.5485302402 | R7: 0.3766297859 | S7: 0.5612835673 | T7: 0.01329518473 | U7: 0.5586585902 | V7: 0.2198522717 | W7: 0.75370378 | X7: 0.3927651226 | Y7: 0.3977085705 | Z7: 0.7189649516 | AA7: 0.8135162293 | AB7: 0.6003468554 | AC7: 0.7295678051 | AD7: 0.397660851 | AE7: 0.6881042989 | AF7: 0.1920829736 | AG7: 0.4365753238 | AH7: 0.4864908065 | AI7: 0.5800809927 | AJ7: 0.0459981882 | AK7: 0.9567453462 | AL7: 0.5314808554 | AM7: 0.2120980216 | AN7: 0.6962256246 | AO7: 0.9383634776 | AP7: 0.2285733742 | AQ7: 0.8481175359 | AR7: 0.6248893154 | AS7: 0.09368219395 | AT7: 0.1909563874 | AU7: 0.7255511553 | AV7: 0.7864973108 | AW7: 0.6505121195 | AX7: 0.1793319729 | AY7: 0.7897342795 | AZ7: 0.4609197857 | BA7: 0.2347286049 | BB7: 0.5886491464 | BC7: 0.2615480475 | BD7: 0.906463732 | BE7: 0.4427698038 | BF7: 0.7051552912 | BG7: 0.07627590419 | BH7: 0.2283545062 | BI7: 0.1916896011 | BJ7: 0.2824968983 | BK7: 0.2084280075 | BL7: 0.02079622281 | BM7: 0.3457971748 | BN7: 0.7190778484 | BO7: 0.005942160623 | BP7: 0.9907942429 | BQ7: 0.04691679475 | BR7: 0.473583462 | BS7: 0.3764834528 | BT7: 0.1706940941 | BU7: 0.5586653842 | BV7: 0.02578968472 | BW7: 0.8552140714 | BX7: 0.794016817 | BY7: 0.626982903 | BZ7: 0.5215743686 | CA7: 0.8059822532 | CB7: 0.7732492781 | CC7: 0.4505058279 | CD7: 0.9876392557 | CE7: 0.7614322444 | CF7: 0.5895946107 | CG7: 0.5349161107 | CH7: 0.08401709227 | CI7: 0.5145572297 | CJ7: 0.2581742817 | CK7: 0.4505506975 | CL7: 0.6847174491 | CM7: 0.5134355365 | CN7: 0.9659872947
C8: =RAND() -> 0.006773986863 | D8: 0.06450534807 | E8: 0.2618251037 | F8: 0.5936976066 | G8: 0.1433588386 | H8: 0.4047781796 | I8: 0.5385220022 | J8: 0.441056305 | K8: 0.3878954941 | L8: 0.8820076548 | M8: 0.3377777529 | N8: 0.948481451 | O8: 0.2911674495 | P8: 0.9679003219 | Q8: 0.7982629402 | R8: 0.3056025537 | S8: 0.9912180517 | T8: 0.8111249742 | U8: 0.4369763512 | V8: 0.920475862 | W8: 0.189668927 | X8: 0.1728453601 | Y8: 0.4855342366 | Z8: 0.5517931436 | AA8: 0.2736418607 | AB8: 0.03132460874 | AC8: 0.2189488038 | AD8: 0.4062766338 | AE8: 0.2728925712 | AF8: 0.2578010167 | AG8: 0.04250630841 | AH8: 0.02366930277 | AI8: 0.8100235279 | AJ8: 0.8873111414 | AK8: 0.3726725084 | AL8: 0.1177908123 | AM8: 0.007884193211 | AN8: 0.6000245613 | AO8: 0.3725678238 | AP8: 0.2836558945 | AQ8: 0.2716543462 | AR8: 0.9276128618 | AS8: 0.7786331828 | AT8: 0.9888973234 | AU8: 0.611053967 | AV8: 0.513333732 | AW8: 0.2111860429 | AX8: 0.8896422559 | AY8: 0.481973407 | AZ8: 0.9449126731 | BA8: 0.7384753295 | BB8: 0.2871860234 | BC8: 0.3365833419 | BD8: 0.1359346248 | BE8: 0.2916245274 | BF8: 0.7848362818 | BG8: 0.02954409829 | BH8: 0.3420876907 | BI8: 0.6404700486 | BJ8: 0.9036383197 | BK8: 0.1989862511 | BL8: 0.3428422029 | BM8: 0.4522373613 | BN8: 0.9118869229 | BO8: =RAND() -> 0.5566813371 | BP8: 0.5416787956 | BQ8: 0.6535301977 | BR8: 0.01981720226 | BS8: 0.5547785196 | BT8: 0.4945343702 | BU8: 0.2902782207 | BV8: 0.6130272073 | BW8: 0.6910199211 | BX8: 0.4628418977 | BY8: 0.1749387113 | BZ8: 0.9885635501 | CA8: 0.7663604285 | CB8: 0.5022212225 | CC8: 0.1751908479 | CD8: 0.06390516829 | CE8: 0.4184767105 | CF8: 0.869976809 | CG8: 0.556536205 | CH8: 0.7354451032 | CI8: 0.5703012725 | CJ8: 0.3561425203 | CK8: 0.3493859204 | CL8: 0.5943053847 | CM8: 0.873866714 | CN8: 0.1460876121
C9: =IF(OR(C5<$C$3, C5=$C$3), 1, IF(C5<=($D$3+$C$3),2, 0)) -> 1 | D9: =IF(OR(D5<$C$3, D5=$C$3), 1, IF(D5<=($D$3+$C$3),2, 0)) -> 2 | E9: 2 | F9: 2 | G9: 2 | H9: 2 | I9: 2 | J9: 2 | K9: 2 | L9: 2 | M9: 2 | N9: 2 | O9: 2 | P9: 2 | Q9: 2 | R9: 2 | S9: 2 | T9: 2 | U9: 2 | V9: 2 | W9: 2 | X9: 2 | Y9: 2 | Z9: 2 | AA9: 2 | AB9: 2 | AC9: 2 | AD9: 2 | AE9: 2 | AF9: 0 | AG9: 0 | AH9: 0 | AI9: 0 | AJ9: 0 | AK9: 0 | AL9: 0 | AM9: 0 | AN9: 0 | AO9: 0 | AP9: 0 | AQ9: 0 | AR9: 0 | AS9: 0 | AT9: 0 | AU9: 0 | AV9: 0 | AW9: 0 | AX9: 0 | AY9: 0 | AZ9: 0 | BA9: 0 | BB9: 0 | BC9: 0 | BD9: 0 | BE9: 0 | BF9: 0 | BG9: 0 | BH9: 0 | BI9: 0 | BJ9: 0 | BK9: 0 | BL9: 0 | BM9: 0 | BN9: 0 | BO9: 0 | BP9: =IF(OR(BP5<$C$3, BP5=$C$3), 1, IF(BP5<=($D$3+$C$3),2, 0)) -> 0 | BQ9: 0 | BR9: 0 | BS9: 0 | BT9: 0 | BU9: 0 | BV9: 0 | BW9: 0 | BX9: 0 | BY9: 0 | BZ9: 0 | CA9: 0 | CB9: 0 | CC9: 0 | CD9: 0 | CE9: 0 | CF9: 0 | CG9: 0 | CH9: 0 | CI9: 0 | CJ9: 0 | CK9: 0 | CL9: 0 | CM9: 0 | CN9: 0
C10: =IF((C$5<=$E$3), 0, IF(C$5<=($D$3+$C$3), 1, 0)) -> 0 | D10: 0 | E10: 1 | F10: =IF((F$5<=$E$3), 0, IF(F$5<=($D$3+$C$3), 1, 0)) -> 1 | G10: 1 | H10: 1 | I10: 1 | J10: 1 | K10: 1 | L10: 1 | M10: 1 | N10: 1 | O10: 1 | P10: 1 | Q10: 1 | R10: 1 | S10: 1 | T10: 1 | U10: 1 | V10: 1 | W10: 1 | X10: 1 | Y10: 1 | Z10: 1 | AA10: 1 | AB10: 1 | AC10: 1 | AD10: 1 | AE10: 1 | AF10: 0 | AG10: 0 | AH10: 0 | AI10: 0 | AJ10: 0 | AK10: 0 | AL10: 0 | AM10: 0 | AN10: 0 | AO10: 0 | AP10: 0 | AQ10: 0 | AR10: 0 | AS10: 0 | AT10: 0 | AU10: 0 | AV10: 0 | AW10: 0 | AX10: 0 | AY10: 0 | AZ10: 0 | BA10: 0 | BB10: 0 | BC10: 0 | BD10: 0 | BE10: 0 | BF10: 0 | BG10: 0 | BH10: 0 | BI10: 0 | BJ10: 0 | BK10: 0 | BL10: 0 | BM10: 0 | BN10: 0 | BO10: =IF((BO$5<=$E$3), 0, IF(BO$5<=($D$3+$C$3), 1, 0)) -> 0 | BP10: 0 | BQ10: 0 | BR10: 0 | BS10: 0 | BT10: 0 | BU10: 0 | BV10: 0 | BW10: 0 | BX10: 0 | BY10: 0 | BZ10: 0 | CA10: 0 | CB10: 0 | CC10: 0 | CD10: 0 | CE10: 0 | CF10: 0 | CG10: 0 | CH10: 0 | CI10: 0 | CJ10: 0 | CK10: 0 | CL10: 0 | CM10: 0 | CN10: 0
C11: =IF(C$9=2, ($F$3/($D$3))+B11, 0) -> 0 | D11: =IF(D$9=2, ($F$3/($D$3))+C11, 0) -> 0.01071428571 | E11: 0.02142857143 | F11: 0.03214285714 | G11: 0.04285714286 | H11: 0.05357142857 | I11: 0.06428571429 | J11: 0.075 | K11: 0.08571428571 | L11: 0.09642857143 | M11: 0.1071428571 | N11: 0.1178571429 | O11: 0.1285714286 | P11: 0.1392857143 | Q11: 0.15 | R11: 0.1607142857 | S11: 0.1714285714 | T11: 0.1821428571 | U11: 0.1928571429 | V11: 0.2035714286 | W11: 0.2142857143 | X11: 0.225 | Y11: 0.2357142857 | Z11: 0.2464285714 | AA11: 0.2571428571 | AB11: 0.2678571429 | AC11: 0.2785714286 | AD11: 0.2892857143 | AE11: 0.3 | AF11: 0 | AG11: 0 | AH11: 0 | AI11: 0 | AJ11: 0 | AK11: 0 | AL11: 0 | AM11: 0 | AN11: 0 | AO11: 0 | AP11: 0 | AQ11: 0 | AR11: 0 | AS11: 0 | AT11: 0 | AU11: 0 | AV11: 0 | AW11: 0 | AX11: 0 | AY11: 0 | AZ11: 0 | BA11: 0 | BB11: 0 | BC11: 0 | BD11: 0 | BE11: 0 | BF11: 0 | BG11: 0 | BH11: 0 | BI11: 0 | BJ11: 0 | BK11: 0 | BL11: 0 | BM11: 0 | BN11: 0 | BO11: 0 | BP11: =IF(BP$9=2, ($F$3/($D$3))+BO11, 0) -> 0 | BQ11: 0 | BR11: 0 | BS11: 0 | BT11: 0 | BU11: 0 | BV11: 0 | BW11: 0 | BX11: 0 | BY11: 0 | BZ11: 0 | CA11: 0 | CB11: 0 | CC11: 0 | CD11: 0 | CE11: 0 | CF11: 0 | CG11: 0 | CH11: 0 | CI11: 0 | CJ11: 0 | CK11: 0 | CL11: 0 | CM11: 0 | CN11: 0
C12: =IF(C$9=2, ($G$3/($D$3))+B12, 0) -> 0 | D12: =IF(D$9=2, ($G$3/($D$3))+C12, 0) -> 0.02142857143 | E12: 0.04285714286 | F12: 0.06428571429 | G12: 0.08571428571 | H12: 0.1071428571 | I12: 0.1285714286 | J12: 0.15 | K12: 0.1714285714 | L12: 0.1928571429 | M12: 0.2142857143 | N12: 0.2357142857 | O12: 0.2571428571 | P12: 0.2785714286 | Q12: 0.3 | R12: 0.3214285714 | S12: 0.3428571429 | T12: 0.3642857143 | U12: 0.3857142857 | V12: 0.4071428571 | W12: 0.4285714286 | X12: 0.45 | Y12: 0.4714285714 | Z12: 0.4928571429 | AA12: 0.5142857143 | AB12: 0.5357142857 | AC12: 0.5571428571 | AD12: 0.5785714286 | AE12: 0.6 | AF12: 0 | AG12: 0 | AH12: 0 | AI12: 0 | AJ12: 0 | AK12: 0 | AL12: 0 | AM12: 0 | AN12: 0 | AO12: 0 | AP12: 0 | AQ12: 0 | AR12: 0 | AS12: 0 | AT12: 0 | AU12: 0 | AV12: 0 | AW12: 0 | AX12: 0 | AY12: 0 | AZ12: 0 | BA12: 0 | BB12: 0 | BC12: 0 | BD12: 0 | BE12: 0 | BF12: 0 | BG12: 0 | BH12: 0 | BI12: 0 | BJ12: 0 | BK12: 0 | BL12: 0 | BM12: 0 | BN12: 0 | BO12: 0 | BP12: =IF(BP$9=2, ($G$3/($D$3))+BO12, 0) -> 0 | BQ12: 0 | BR12: 0 | BS12: 0 | BT12: 0 | BU12: 0 | BV12: 0 | BW12: 0 | BX12: 0 | BY12: 0 | BZ12: 0 | CA12: 0 | CB12: 0 | CC12: 0 | CD12: 0 | CE12: 0 | CF12: 0 | CG12: 0 | CH12: 0 | CI12: 0 | CJ12: 0 | CK12: 0 | CL12: 0 | CM12: 0 | CN12: 0
C13: =IF(C9<>0, IF(C6<=0.1, C7*(0.15)*-1+(-0.1), IF(C6<=0.3, C7*(0.1)*-1, IF(C6<=0.875, C7*(0.1), C7*0.1+0.1))), 0) -> 0.02371213243 | D13: =IF(D9<>0, IF(D6<=0.1, D7*(0.15)*-1+(-0.1), IF(D6<=0.3, D7*(0.1)*-1, IF(D6<=0.875, D7*(0.1), D7*0.1+0.1))), 0) -> 0.01800590276 | E13: 0.0009492669297 | F13: -0.01526938932 | G13: 0.02593792881 | H13: -0.02525793343 | I13: 0.05397273012 | J13: -0.1354710806 | K13: 0.01671582806 | L13: -0.04814368216 | M13: 0.02245481612 | N13: -0.03460065198 | O13: 0.04957658611 | P13: 0.02085262271 | Q13: -0.182279536 | R13: 0.03766297859 | S13: 0.05612835673 | T13: -0.001329518473 | U13: 0.05586585902 | V13: -0.02198522717 | W13: -0.075370378 | X13: 0.03927651226 | Y13: 0.03977085705 | Z13: -0.07189649516 | AA13: 0.08135162293 | AB13: 0.06003468554 | AC13: 0.07295678051 | AD13: 0.1397660851 | AE13: 0.1688104299 | AF13: 0 | AG13: 0 | AH13: 0 | AI13: 0 | AJ13: 0 | AK13: 0 | AL13: 0 | AM13: 0 | AN13: 0 | AO13: 0 | AP13: 0 | AQ13: 0 | AR13: 0 | AS13: 0 | AT13: 0 | AU13: 0 | AV13: 0 | AW13: 0 | AX13: 0 | AY13: 0 | AZ13: 0 | BA13: 0 | BB13: 0 | BC13: 0 | BD13: 0 | BE13: 0 | BF13: 0 | BG13: 0 | BH13: 0 | BI13: 0 | BJ13: 0 | BK13: 0 | BL13: 0 | BM13: 0 | BN13: 0 | BO13: 0 | BP13: =IF(BP9<>0, IF(BP6<=0.1, BP7*(0.15)*-1+(-0.1), IF(BP6<=0.3, BP7*(0.1)*-1, IF(BP6<=0.875, BP7*(0.1), BP7*0.1+0.1))), 0) -> 0 | BQ13: 0 | BR13: 0 | BS13: 0 | BT13: 0 | BU13: 0 | BV13: 0 | BW13: 0 | BX13: 0 | BY13: 0 | BZ13: 0 | CA13: 0 | CB13: 0 | CC13: 0 | CD13: 0 | CE13: 0 | CF13: 0 | CG13: 0 | CH13: 0 | CI13: 0 | CJ13: 0 | CK13: 0 | CL13: 0 | CM13: 0 | CN13: 0
C14: =IF(C10=1, IF(C8<C11, C12, 0), 0) -> 0 | D14: =IF(D10=1, IF(D8<D11, D12, 0), 0) -> 0 | E14: 0 | F14: 0 | G14: 0 | H14: 0 | I14: 0 | J14: 0 | K14: 0 | L14: 0 | M14: 0 | N14: 0 | O14: 0 | P14: 0 | Q14: 0 | R14: 0 | S14: 0 | T14: 0 | U14: 0 | V14: =IF(V10=1, IF(V8<V11, V12, 0), 0) -> 0 | W14: 0.4285714286 | X14: 0.45 | Y14: 0 | Z14: 0 | AA14: 0 | AB14: 0.5357142857 | AC14: 0.5571428571 | AD14: 0 | AE14: =IF(AE10=1, IF(AE8<AE11, AE12, 0), 0) -> 0.6 | AF14: 0 | AG14: 0 | AH14: 0 | AI14: 0 | AJ14: 0 | AK14: 0 | AL14: 0 | AM14: 0 | AN14: 0 | AO14: 0 | AP14: 0 | AQ14: 0 | AR14: 0 | AS14: 0 | AT14: 0 | AU14: 0 | AV14: 0 | AW14: =IF(AW10=1, IF(AW8<AW11, AW12, 0), 0) -> 0 | AX14: 0 | AY14: 0 | AZ14: 0 | BA14: =IF(BA10=1, IF(BA8<BA11, BA12, 0), 0) -> 0 | BB14: 0 | BC14: 0 | BD14: 0 | BE14: 0 | BF14: 0 | BG14: 0 | BH14: 0 | BI14: 0 | BJ14: 0 | BK14: 0 | BL14: 0 | BM14: 0 | BN14: 0 | BO14: 0 | BP14: =IF(BP10=1, IF(BP8<BP11, BP12, 0), 0) -> 0 | BQ14: 0 | BR14: 0 | BS14: 0 | BT14: =IF(BT10=1, IF(BT8<BT11, BT12, 0), 0) -> 0 | BU14: 0 | BV14: 0 | BW14: 0 | BX14: 0 | BY14: 0 | BZ14: 0 | CA14: 0 | CB14: 0 | CC14: =IF(CC10=1, IF(CC8<CC11, CC12, 0), 0) -> 0 | CD14: 0 | CE14: 0 | CF14: 0 | CG14: 0 | CH14: 0 | CI14: 0 | CJ14: 0 | CK14: 0 | CL14: 0 | CM14: 0 | CN14: 0
A16: if deferred savings | C16: =IF(AND(Input!$C$8>0, C9<>0), 1,0) -> 1 | D16: =IF(AND(Input!$C$8>0, D9<>0), 1,0) -> 1 | E16: =IF(AND(Input!$C$8>0, E9<>0), 1,0) -> 1 | F16: =IF(AND(Input!$C$8>0, F9<>0), 1,0) -> 1 | G16: =IF(AND(Input!$C$8>0, G9<>0), 1,0) -> 1 | H16: =IF(AND(Input!$C$8>0, H9<>0), 1,0) -> 1 | I16: =IF(AND(Input!$C$8>0, I9<>0), 1,0) -> 1 | J16: =IF(AND(Input!$C$8>0, J9<>0), 1,0) -> 1 | K16: =IF(AND(Input!$C$8>0, K9<>0), 1,0) -> 1 | L16: =IF(AND(Input!$C$8>0, L9<>0), 1,0) -> 1 | M16: =IF(AND(Input!$C$8>0, M9<>0), 1,0) -> 1 | N16: =IF(AND(Input!$C$8>0, N9<>0), 1,0) -> 1 | O16: =IF(AND(Input!$C$8>0, O9<>0), 1,0) -> 1 | P16: =IF(AND(Input!$C$8>0, P9<>0), 1,0) -> 1 | Q16: =IF(AND(Input!$C$8>0, Q9<>0), 1,0) -> 1 | R16: =IF(AND(Input!$C$8>0, R9<>0), 1,0) -> 1 | S16: =IF(AND(Input!$C$8>0, S9<>0), 1,0) -> 1 | T16: =IF(AND(Input!$C$8>0, T9<>0), 1,0) -> 1 | U16: =IF(AND(Input!$C$8>0, U9<>0), 1,0) -> 1 | V16: =IF(AND(Input!$C$8>0, V9<>0), 1,0) -> 1 | W16: =IF(AND(Input!$C$8>0, W9<>0), 1,0) -> 1 | X16: =IF(AND(Input!$C$8>0, X9<>0), 1,0) -> 1 | Y16: =IF(AND(Input!$C$8>0, Y9<>0), 1,0) -> 1 | Z16: =IF(AND(Input!$C$8>0, Z9<>0), 1,0) -> 1 | AA16: =IF(AND(Input!$C$8>0, AA9<>0), 1,0) -> 1 | AB16: =IF(AND(Input!$C$8>0, AB9<>0), 1,0) -> 1 | AC16: =IF(AND(Input!$C$8>0, AC9<>0), 1,0) -> 1 | AD16: =IF(AND(Input!$C$8>0, AD9<>0), 1,0) -> 1 | AE16: =IF(AND(Input!$C$8>0, AE9<>0), 1,0) -> 1 | AF16: =IF(AND(Input!$C$8>0, AF9<>0), 1,0) -> 0 | AG16: =IF(AND(Input!$C$8>0, AG9<>0), 1,0) -> 0 | AH16: =IF(AND(Input!$C$8>0, AH9<>0), 1,0) -> 0 | AI16: =IF(AND(Input!$C$8>0, AI9<>0), 1,0) -> 0 | AJ16: =IF(AND(Input!$C$8>0, AJ9<>0), 1,0) -> 0 | AK16: =IF(AND(Input!$C$8>0, AK9<>0), 1,0) -> 0 | AL16: =IF(AND(Input!$C$8>0, AL9<>0), 1,0) -> 0 | AM16: =IF(AND(Input!$C$8>0, AM9<>0), 1,0) -> 0 | AN16: =IF(AND(Input!$C$8>0, AN9<>0), 1,0) -> 0 | AO16: =IF(AND(Input!$C$8>0, AO9<>0), 1,0) -> 0 | AP16: =IF(AND(Input!$C$8>0, AP9<>0), 1,0) -> 0 | AQ16: =IF(AND(Input!$C$8>0, AQ9<>0), 1,0) -> 0 | AR16: =IF(AND(Input!$C$8>0, AR9<>0), 1,0) -> 0 | AS16: =IF(AND(Input!$C$8>0, AS9<>0), 1,0) -> 0 | AT16: =IF(AND(Input!$C$8>0, AT9<>0), 1,0) -> 0 | AU16: =IF(AND(Input!$C$8>0, AU9<>0), 1,0) -> 0 | AV16: =IF(AND(Input!$C$8>0, AV9<>0), 1,0) -> 0 | AW16: =IF(AND(Input!$C$8>0, AW9<>0), 1,0) -> 0 | AX16: =IF(AND(Input!$C$8>0, AX9<>0), 1,0) -> 0 | AY16: =IF(AND(Input!$C$8>0, AY9<>0), 1,0) -> 0 | AZ16: =IF(AND(Input!$C$8>0, AZ9<>0), 1,0) -> 0 | BA16: =IF(AND(Input!$C$8>0, BA9<>0), 1,0) -> 0 | BB16: =IF(AND(Input!$C$8>0, BB9<>0), 1,0) -> 0 | BC16: =IF(AND(Input!$C$8>0, BC9<>0), 1,0) -> 0 | BD16: =IF(AND(Input!$C$8>0, BD9<>0), 1,0) -> 0 | BE16: =IF(AND(Input!$C$8>0, BE9<>0), 1,0) -> 0 | BF16: =IF(AND(Input!$C$8>0, BF9<>0), 1,0) -> 0 | BG16: =IF(AND(Input!$C$8>0, BG9<>0), 1,0) -> 0 | BH16: =IF(AND(Input!$C$8>0, BH9<>0), 1,0) -> 0 | BI16: =IF(AND(Input!$C$8>0, BI9<>0), 1,0) -> 0 | BJ16: =IF(AND(Input!$C$8>0, BJ9<>0), 1,0) -> 0 | BK16: =IF(AND(Input!$C$8>0, BK9<>0), 1,0) -> 0 | BL16: =IF(AND(Input!$C$8>0, BL9<>0), 1,0) -> 0 | BM16: =IF(AND(Input!$C$8>0, BM9<>0), 1,0) -> 0 | BN16: =IF(AND(Input!$C$8>0, BN9<>0), 1,0) -> 0 | BO16: =IF(AND(Input!$C$8>0, BO9<>0), 1,0) -> 0 | BP16: =IF(AND(Input!$C$8>0, BP9<>0), 1,0) -> 0 | BQ16: =IF(AND(Input!$C$8>0, BQ9<>0), 1,0) -> 0 | BR16: =IF(AND(Input!$C$8>0, BR9<>0), 1,0) -> 0 | BS16: =IF(AND(Input!$C$8>0, BS9<>0), 1,0) -> 0 | BT16: =IF(AND(Input!$C$8>0, BT9<>0), 1,0) -> 0 | BU16: =IF(AND(Input!$C$8>0, BU9<>0), 1,0) -> 0 | BV16: =IF(AND(Input!$C$8>0, BV9<>0), 1,0) -> 0 | BW16: =IF(AND(Input!$C$8>0, BW9<>0), 1,0) -> 0 | BX16: =IF(AND(Input!$C$8>0, BX9<>0), 1,0) -> 0 | BY16: =IF(AND(Input!$C$8>0, BY9<>0), 1,0) -> 0 | BZ16: =IF(AND(Input!$C$8>0, BZ9<>0), 1,0) -> 0 | CA16: =IF(AND(Input!$C$8>0, CA9<>0), 1,0) -> 0 | CB16: =IF(AND(Input!$C$8>0, CB9<>0), 1,0) -> 0 | CC16: =IF(AND(Input!$C$8>0, CC9<>0), 1,0) -> 0 | CD16: =IF(AND(Input!$C$8>0, CD9<>0), 1,0) -> 0 | CE16: =IF(AND(Input!$C$8>0, CE9<>0), 1,0) -> 0 | CF16: =IF(AND(Input!$C$8>0, CF9<>0), 1,0) -> 0 | CG16: =IF(AND(Input!$C$8>0, CG9<>0), 1,0) -> 0 | CH16: =IF(AND(Input!$C$8>0, CH9<>0), 1,0) -> 0 | CI16: =IF(AND(Input!$C$8>0, CI9<>0), 1,0) -> 0 | CJ16: =IF(AND(Input!$C$8>0, CJ9<>0), 1,0) -> 0 | CK16: =IF(AND(Input!$C$8>0, CK9<>0), 1,0) -> 0 | CL16: =IF(AND(Input!$C$8>0, CL9<>0), 1,0) -> 0 | CM16: =IF(AND(Input!$C$8>0, CM9<>0), 1,0) -> 0 | CN16: =IF(AND(Input!$C$8>0, CN9<>0), 1,0) -> 0
A17: if taxable savings | C17: =IF(AND(Input!$C$9>0, C9<>0), 1,0) -> 1 | D17: =IF(AND(Input!$C$9>0, D9<>0), 1,0) -> 1 | E17: =IF(AND(Input!$C$9>0, E9<>0), 1,0) -> 1 | F17: =IF(AND(Input!$C$9>0, F9<>0), 1,0) -> 1 | G17: =IF(AND(Input!$C$9>0, G9<>0), 1,0) -> 1 | H17: =IF(AND(Input!$C$9>0, H9<>0), 1,0) -> 1 | I17: =IF(AND(Input!$C$9>0, I9<>0), 1,0) -> 1 | J17: =IF(AND(Input!$C$9>0, J9<>0), 1,0) -> 1 | K17: =IF(AND(Input!$C$9>0, K9<>0), 1,0) -> 1 | L17: =IF(AND(Input!$C$9>0, L9<>0), 1,0) -> 1 | M17: =IF(AND(Input!$C$9>0, M9<>0), 1,0) -> 1 | N17: =IF(AND(Input!$C$9>0, N9<>0), 1,0) -> 1 | O17: =IF(AND(Input!$C$9>0, O9<>0), 1,0) -> 1 | P17: =IF(AND(Input!$C$9>0, P9<>0), 1,0) -> 1 | Q17: =IF(AND(Input!$C$9>0, Q9<>0), 1,0) -> 1 | R17: =IF(AND(Input!$C$9>0, R9<>0), 1,0) -> 1 | S17: =IF(AND(Input!$C$9>0, S9<>0), 1,0) -> 1 | T17: =IF(AND(Input!$C$9>0, T9<>0), 1,0) -> 1 | U17: =IF(AND(Input!$C$9>0, U9<>0), 1,0) -> 1 | V17: =IF(AND(Input!$C$9>0, V9<>0), 1,0) -> 1 | W17: =IF(AND(Input!$C$9>0, W9<>0), 1,0) -> 1 | X17: =IF(AND(Input!$C$9>0, X9<>0), 1,0) -> 1 | Y17: =IF(AND(Input!$C$9>0, Y9<>0), 1,0) -> 1 | Z17: =IF(AND(Input!$C$9>0, Z9<>0), 1,0) -> 1 | AA17: =IF(AND(Input!$C$9>0, AA9<>0), 1,0) -> 1 | AB17: =IF(AND(Input!$C$9>0, AB9<>0), 1,0) -> 1 | AC17: =IF(AND(Input!$C$9>0, AC9<>0), 1,0) -> 1 | AD17: =IF(AND(Input!$C$9>0, AD9<>0), 1,0) -> 1 | AE17: =IF(AND(Input!$C$9>0, AE9<>0), 1,0) -> 1 | AF17: =IF(AND(Input!$C$9>0, AF9<>0), 1,0) -> 0 | AG17: =IF(AND(Input!$C$9>0, AG9<>0), 1,0) -> 0 | AH17: =IF(AND(Input!$C$9>0, AH9<>0), 1,0) -> 0 | AI17: =IF(AND(Input!$C$9>0, AI9<>0), 1,0) -> 0 | AJ17: =IF(AND(Input!$C$9>0, AJ9<>0), 1,0) -> 0 | AK17: =IF(AND(Input!$C$9>0, AK9<>0), 1,0) -> 0 | AL17: =IF(AND(Input!$C$9>0, AL9<>0), 1,0) -> 0 | AM17: =IF(AND(Input!$C$9>0, AM9<>0), 1,0) -> 0 | AN17: =IF(AND(Input!$C$9>0, AN9<>0), 1,0) -> 0 | AO17: =IF(AND(Input!$C$9>0, AO9<>0), 1,0) -> 0 | AP17: =IF(AND(Input!$C$9>0, AP9<>0), 1,0) -> 0 | AQ17: =IF(AND(Input!$C$9>0, AQ9<>0), 1,0) -> 0 | AR17: =IF(AND(Input!$C$9>0, AR9<>0), 1,0) -> 0 | AS17: =IF(AND(Input!$C$9>0, AS9<>0), 1,0) -> 0 | AT17: =IF(AND(Input!$C$9>0, AT9<>0), 1,0) -> 0 | AU17: =IF(AND(Input!$C$9>0, AU9<>0), 1,0) -> 0 | AV17: =IF(AND(Input!$C$9>0, AV9<>0), 1,0) -> 0 | AW17: =IF(AND(Input!$C$9>0, AW9<>0), 1,0) -> 0 | AX17: =IF(AND(Input!$C$9>0, AX9<>0), 1,0) -> 0 | AY17: =IF(AND(Input!$C$9>0, AY9<>0), 1,0) -> 0 | AZ17: =IF(AND(Input!$C$9>0, AZ9<>0), 1,0) -> 0 | BA17: =IF(AND(Input!$C$9>0, BA9<>0), 1,0) -> 0 | BB17: =IF(AND(Input!$C$9>0, BB9<>0), 1,0) -> 0 | BC17: =IF(AND(Input!$C$9>0, BC9<>0), 1,0) -> 0 | BD17: =IF(AND(Input!$C$9>0, BD9<>0), 1,0) -> 0 | BE17: =IF(AND(Input!$C$9>0, BE9<>0), 1,0) -> 0 | BF17: =IF(AND(Input!$C$9>0, BF9<>0), 1,0) -> 0 | BG17: =IF(AND(Input!$C$9>0, BG9<>0), 1,0) -> 0 | BH17: =IF(AND(Input!$C$9>0, BH9<>0), 1,0) -> 0 | BI17: =IF(AND(Input!$C$9>0, BI9<>0), 1,0) -> 0 | BJ17: =IF(AND(Input!$C$9>0, BJ9<>0), 1,0) -> 0 | BK17: =IF(AND(Input!$C$9>0, BK9<>0), 1,0) -> 0 | BL17: =IF(AND(Input!$C$9>0, BL9<>0), 1,0) -> 0 | BM17: =IF(AND(Input!$C$9>0, BM9<>0), 1,0) -> 0 | BN17: =IF(AND(Input!$C$9>0, BN9<>0), 1,0) -> 0 | BO17: =IF(AND(Input!$C$9>0, BO9<>0), 1,0) -> 0 | BP17: =IF(AND(Input!$C$9>0, BP9<>0), 1,0) -> 0 | BQ17: =IF(AND(Input!$C$9>0, BQ9<>0), 1,0) -> 0 | BR17: =IF(AND(Input!$C$9>0, BR9<>0), 1,0) -> 0 | BS17: =IF(AND(Input!$C$9>0, BS9<>0), 1,0) -> 0 | BT17: =IF(AND(Input!$C$9>0, BT9<>0), 1,0) -> 0 | BU17: =IF(AND(Input!$C$9>0, BU9<>0), 1,0) -> 0 | BV17: =IF(AND(Input!$C$9>0, BV9<>0), 1,0) -> 0 | BW17: =IF(AND(Input!$C$9>0, BW9<>0), 1,0) -> 0 | BX17: =IF(AND(Input!$C$9>0, BX9<>0), 1,0) -> 0 | BY17: =IF(AND(Input!$C$9>0, BY9<>0), 1,0) -> 0 | BZ17: =IF(AND(Input!$C$9>0, BZ9<>0), 1,0) -> 0 | CA17: =IF(AND(Input!$C$9>0, CA9<>0), 1,0) -> 0 | CB17: =IF(AND(Input!$C$9>0, CB9<>0), 1,0) -> 0 | CC17: =IF(AND(Input!$C$9>0, CC9<>0), 1,0) -> 0 | CD17: =IF(AND(Input!$C$9>0, CD9<>0), 1,0) -> 0 | CE17: =IF(AND(Input!$C$9>0, CE9<>0), 1,0) -> 0 | CF17: =IF(AND(Input!$C$9>0, CF9<>0), 1,0) -> 0 | CG17: =IF(AND(Input!$C$9>0, CG9<>0), 1,0) -> 0 | CH17: =IF(AND(Input!$C$9>0, CH9<>0), 1,0) -> 0 | CI17: =IF(AND(Input!$C$9>0, CI9<>0), 1,0) -> 0 | CJ17: =IF(AND(Input!$C$9>0, CJ9<>0), 1,0) -> 0 | CK17: =IF(AND(Input!$C$9>0, CK9<>0), 1,0) -> 0 | CL17: =IF(AND(Input!$C$9>0, CL9<>0), 1,0) -> 0 | CM17: =IF(AND(Input!$C$9>0, CM9<>0), 1,0) -> 0 | CN17: =IF(AND(Input!$C$9>0, CN9<>0), 1,0) -> 0
A18: deferred contributions | C18: =IF(AND(C9=1,C5>Input!$C$12),Input!$C$11+C21,0) -> 0 | D18: =IF(AND(D9=1,D5>Input!$C$12),Input!$C$11+D21,0) -> 0 | E18: =IF(AND(E9=1,E5>Input!$C$12),Input!$C$11+E21,0) -> 0 | F18: =IF(AND(F9=1,F5>Input!$C$12),Input!$C$11+F21,0) -> 0 | G18: =IF(AND(G9=1,G5>Input!$C$12),Input!$C$11+G21,0) -> 0 | H18: =IF(AND(H9=1,H5>Input!$C$12),Input!$C$11+H21,0) -> 0 | I18: =IF(AND(I9=1,I5>Input!$C$12),Input!$C$11+I21,0) -> 0 | J18: =IF(AND(J9=1,J5>Input!$C$12),Input!$C$11+J21,0) -> 0 | K18: =IF(AND(K9=1,K5>Input!$C$12),Input!$C$11+K21,0) -> 0 | L18: =IF(AND(L9=1,L5>Input!$C$12),Input!$C$11+L21,0) -> 0 | M18: =IF(AND(M9=1,M5>Input!$C$12),Input!$C$11+M21,0) -> 0 | N18: =IF(AND(N9=1,N5>Input!$C$12),Input!$C$11+N21,0) -> 0 | O18: =IF(AND(O9=1,O5>Input!$C$12),Input!$C$11+O21,0) -> 0 | P18: =IF(AND(P9=1,P5>Input!$C$12),Input!$C$11+P21,0) -> 0 | Q18: =IF(AND(Q9=1,Q5>Input!$C$12),Input!$C$11+Q21,0) -> 0 | R18: =IF(AND(R9=1,R5>Input!$C$12),Input!$C$11+R21,0) -> 0 | S18: =IF(AND(S9=1,S5>Input!$C$12),Input!$C$11+S21,0) -> 0 | T18: =IF(AND(T9=1,T5>Input!$C$12),Input!$C$11+T21,0) -> 0 | U18: =IF(AND(U9=1,U5>Input!$C$12),Input!$C$11+U21,0) -> 0 | V18: =IF(AND(V9=1,V5>Input!$C$12),Input!$C$11+V21,0) -> 0 | W18: =IF(AND(W9=1,W5>Input!$C$12),Input!$C$11+W21,0) -> 0 | X18: =IF(AND(X9=1,X5>Input!$C$12),Input!$C$11+X21,0) -> 0 | Y18: =IF(AND(Y9=1,Y5>Input!$C$12),Input!$C$11+Y21,0) -> 0 | Z18: =IF(AND(Z9=1,Z5>Input!$C$12),Input!$C$11+Z21,0) -> 0 | AA18: =IF(AND(AA9=1,AA5>Input!$C$12),Input!$C$11+AA21,0) -> 0 | AB18: =IF(AND(AB9=1,AB5>Input!$C$12),Input!$C$11+AB21,0) -> 0 | AC18: =IF(AND(AC9=1,AC5>Input!$C$12),Input!$C$11+AC21,0) -> 0 | AD18: =IF(AND(AD9=1,AD5>Input!$C$12),Input!$C$11+AD21,0) -> 0 | AE18: =IF(AND(AE9=1,AE5>Input!$C$12),Input!$C$11+AE21,0) -> 0 | AF18: =IF(AND(AF9=1,AF5>Input!$C$12),Input!$C$11+AF21,0) -> 0 | AG18: =IF(AND(AG9=1,AG5>Input!$C$12),Input!$C$11+AG21,0) -> 0 | AH18: =IF(AND(AH9=1,AH5>Input!$C$12),Input!$C$11+AH21,0) -> 0 | AI18: =IF(AND(AI9=1,AI5>Input!$C$12),Input!$C$11+AI21,0) -> 0 | AJ18: =IF(AND(AJ9=1,AJ5>Input!$C$12),Input!$C$11+AJ21,0) -> 0 | AK18: =IF(AND(AK9=1,AK5>Input!$C$12),Input!$C$11+AK21,0) -> 0 | AL18: =IF(AND(AL9=1,AL5>Input!$C$12),Input!$C$11+AL21,0) -> 0 | AM18: =IF(AND(AM9=1,AM5>Input!$C$12),Input!$C$11+AM21,0) -> 0 | AN18: =IF(AND(AN9=1,AN5>Input!$C$12),Input!$C$11+AN21,0) -> 0 | AO18: =IF(AND(AO9=1,AO5>Input!$C$12),Input!$C$11+AO21,0) -> 0 | AP18: =IF(AND(AP9=1,AP5>Input!$C$12),Input!$C$11+AP21,0) -> 0 | AQ18: =IF(AND(AQ9=1,AQ5>Input!$C$12),Input!$C$11+AQ21,0) -> 0 | AR18: =IF(AND(AR9=1,AR5>Input!$C$12),Input!$C$11+AR21,0) -> 0 | AS18: =IF(AND(AS9=1,AS5>Input!$C$12),Input!$C$11+AS21,0) -> 0 | AT18: =IF(AND(AT9=1,AT5>Input!$C$12),Input!$C$11+AT21,0) -> 0 | AU18: =IF(AND(AU9=1,AU5>Input!$C$12),Input!$C$11+AU21,0) -> 0 | AV18: =IF(AND(AV9=1,AV5>Input!$C$12),Input!$C$11+AV21,0) -> 0 | AW18: =IF(AND(AW9=1,AW5>Input!$C$12),Input!$C$11+AW21,0) -> 0 | AX18: =IF(AND(AX9=1,AX5>Input!$C$12),Input!$C$11+AX21,0) -> 0 | AY18: =IF(AND(AY9=1,AY5>Input!$C$12),Input!$C$11+AY21,0) -> 0 | AZ18: =IF(AND(AZ9=1,AZ5>Input!$C$12),Input!$C$11+AZ21,0) -> 0 | BA18: =IF(AND(BA9=1,BA5>Input!$C$12),Input!$C$11+BA21,0) -> 0 | BB18: =IF(AND(BB9=1,BB5>Input!$C$12),Input!$C$11+BB21,0) -> 0 | BC18: =IF(AND(BC9=1,BC5>Input!$C$12),Input!$C$11+BC21,0) -> 0 | BD18: =IF(AND(BD9=1,BD5>Input!$C$12),Input!$C$11+BD21,0) -> 0 | BE18: =IF(AND(BE9=1,BE5>Input!$C$12),Input!$C$11+BE21,0) -> 0 | BF18: =IF(AND(BF9=1,BF5>Input!$C$12),Input!$C$11+BF21,0) -> 0 | BG18: =IF(AND(BG9=1,BG5>Input!$C$12),Input!$C$11+BG21,0) -> 0 | BH18: =IF(AND(BH9=1,BH5>Input!$C$12),Input!$C$11+BH21,0) -> 0 | BI18: =IF(AND(BI9=1,BI5>Input!$C$12),Input!$C$11+BI21,0) -> 0 | BJ18: =IF(AND(BJ9=1,BJ5>Input!$C$12),Input!$C$11+BJ21,0) -> 0 | BK18: =IF(AND(BK9=1,BK5>Input!$C$12),Input!$C$11+BK21,0) -> 0 | BL18: =IF(AND(BL9=1,BL5>Input!$C$12),Input!$C$11+BL21,0) -> 0 | BM18: =IF(AND(BM9=1,BM5>Input!$C$12),Input!$C$11+BM21,0) -> 0 | BN18: =IF(AND(BN9=1,BN5>Input!$C$12),Input!$C$11+BN21,0) -> 0 | BO18: =IF(AND(BO9=1,BO5>Input!$C$12),Input!$C$11+BO21,0) -> 0 | BP18: =IF(AND(BP9=1,BP5>Input!$C$12),Input!$C$11+BP21,0) -> 0 | BQ18: =IF(AND(BQ9=1,BQ5>Input!$C$12),Input!$C$11+BQ21,0) -> 0 | BR18: =IF(AND(BR9=1,BR5>Input!$C$12),Input!$C$11+BR21,0) -> 0 | BS18: =IF(AND(BS9=1,BS5>Input!$C$12),Input!$C$11+BS21,0) -> 0 | BT18: =IF(AND(BT9=1,BT5>Input!$C$12),Input!$C$11+BT21,0) -> 0 | BU18: =IF(AND(BU9=1,BU5>Input!$C$12),Input!$C$11+BU21,0) -> 0 | BV18: =IF(AND(BV9=1,BV5>Input!$C$12),Input!$C$11+BV21,0) -> 0 | BW18: =IF(AND(BW9=1,BW5>Input!$C$12),Input!$C$11+BW21,0) -> 0 | BX18: =IF(AND(BX9=1,BX5>Input!$C$12),Input!$C$11+BX21,0) -> 0 | BY18: =IF(AND(BY9=1,BY5>Input!$C$12),Input!$C$11+BY21,0) -> 0 | BZ18: =IF(AND(BZ9=1,BZ5>Input!$C$12),Input!$C$11+BZ21,0) -> 0 | CA18: =IF(AND(CA9=1,CA5>Input!$C$12),Input!$C$11+CA21,0) -> 0 | CB18: =IF(AND(CB9=1,CB5>Input!$C$12),Input!$C$11+CB21,0) -> 0 | CC18: =IF(AND(CC9=1,CC5>Input!$C$12),Input!$C$11+CC21,0) -> 0 | CD18: =IF(AND(CD9=1,CD5>Input!$C$12),Input!$C$11+CD21,0) -> 0 | CE18: =IF(AND(CE9=1,CE5>Input!$C$12),Input!$C$11+CE21,0) -> 0 | CF18: =IF(AND(CF9=1,CF5>Input!$C$12),Input!$C$11+CF21,0) -> 0 | CG18: =IF(AND(CG9=1,CG5>Input!$C$12),Input!$C$11+CG21,0) -> 0 | CH18: =IF(AND(CH9=1,CH5>Input!$C$12),Input!$C$11+CH21,0) -> 0 | CI18: =IF(AND(CI9=1,CI5>Input!$C$12),Input!$C$11+CI21,0) -> 0 | CJ18: =IF(AND(CJ9=1,CJ5>Input!$C$12),Input!$C$11+CJ21,0) -> 0 | CK18: =IF(AND(CK9=1,CK5>Input!$C$12),Input!$C$11+CK21,0) -> 0 | CL18: =IF(AND(CL9=1,CL5>Input!$C$12),Input!$C$11+CL21,0) -> 0 | CM18: =IF(AND(CM9=1,CM5>Input!$C$12),Input!$C$11+CM21,0) -> 0 | CN18: =IF(AND(CN9=1,CN5>Input!$C$12),Input!$C$11+CN21,0) -> 0
A19: manual adjustment to after tax contributions | C19: 20000
A20: after tax contributions | C20: =IF(AND(C9=1,C5>Input!$C$14),Input!$C$13+C19,0+C19) -> 20000 | D20: =IF(AND(D9=1,D5>Input!$C$14),Input!$C$13+D19,0+D19) -> 0 | E20: =IF(AND(E9=1,E5>Input!$C$14),Input!$C$13+E19,0+E19) -> 0 | F20: =IF(AND(F9=1,F5>Input!$C$14),Input!$C$13+F19,0+F19) -> 0 | G20: =IF(AND(G9=1,G5>Input!$C$14),Input!$C$13+G19,0+G19) -> 0 | H20: =IF(AND(H9=1,H5>Input!$C$14),Input!$C$13+H19,0+H19) -> 0 | I20: =IF(AND(I9=1,I5>Input!$C$14),Input!$C$13+I19,0+I19) -> 0 | J20: =IF(AND(J9=1,J5>Input!$C$14),Input!$C$13+J19,0+J19) -> 0 | K20: =IF(AND(K9=1,K5>Input!$C$14),Input!$C$13+K19,0+K19) -> 0 | L20: =IF(AND(L9=1,L5>Input!$C$14),Input!$C$13+L19,0+L19) -> 0 | M20: =IF(AND(M9=1,M5>Input!$C$14),Input!$C$13+M19,0+M19) -> 0 | N20: =IF(AND(N9=1,N5>Input!$C$14),Input!$C$13+N19,0+N19) -> 0 | O20: =IF(AND(O9=1,O5>Input!$C$14),Input!$C$13+O19,0+O19) -> 0 | P20: =IF(AND(P9=1,P5>Input!$C$14),Input!$C$13+P19,0+P19) -> 0 | Q20: =IF(AND(Q9=1,Q5>Input!$C$14),Input!$C$13+Q19,0+Q19) -> 0 | R20: =IF(AND(R9=1,R5>Input!$C$14),Input!$C$13+R19,0+R19) -> 0 | S20: =IF(AND(S9=1,S5>Input!$C$14),Input!$C$13+S19,0+S19) -> 0 | T20: =IF(AND(T9=1,T5>Input!$C$14),Input!$C$13+T19,0+T19) -> 0 | U20: =IF(AND(U9=1,U5>Input!$C$14),Input!$C$13+U19,0+U19) -> 0 | V20: =IF(AND(V9=1,V5>Input!$C$14),Input!$C$13+V19,0+V19) -> 0 | W20: =IF(AND(W9=1,W5>Input!$C$14),Input!$C$13+W19,0+W19) -> 0 | X20: =IF(AND(X9=1,X5>Input!$C$14),Input!$C$13+X19,0+X19) -> 0 | Y20: =IF(AND(Y9=1,Y5>Input!$C$14),Input!$C$13+Y19,0+Y19) -> 0 | Z20: =IF(AND(Z9=1,Z5>Input!$C$14),Input!$C$13+Z19,0+Z19) -> 0 | AA20: =IF(AND(AA9=1,AA5>Input!$C$14),Input!$C$13+AA19,0+AA19) -> 0 | AB20: =IF(AND(AB9=1,AB5>Input!$C$14),Input!$C$13+AB19,0+AB19) -> 0 | AC20: =IF(AND(AC9=1,AC5>Input!$C$14),Input!$C$13+AC19,0+AC19) -> 0 | AD20: =IF(AND(AD9=1,AD5>Input!$C$14),Input!$C$13+AD19,0+AD19) -> 0 | AE20: =IF(AND(AE9=1,AE5>Input!$C$14),Input!$C$13+AE19,0+AE19) -> 0 | AF20: =IF(AND(AF9=1,AF5>Input!$C$14),Input!$C$13+AF19,0+AF19) -> 0 | AG20: =IF(AND(AG9=1,AG5>Input!$C$14),Input!$C$13+AG19,0+AG19) -> 0 | AH20: =IF(AND(AH9=1,AH5>Input!$C$14),Input!$C$13+AH19,0+AH19) -> 0 | AI20: =IF(AND(AI9=1,AI5>Input!$C$14),Input!$C$13+AI19,0+AI19) -> 0 | AJ20: =IF(AND(AJ9=1,AJ5>Input!$C$14),Input!$C$13+AJ19,0+AJ19) -> 0 | AK20: =IF(AND(AK9=1,AK5>Input!$C$14),Input!$C$13+AK19,0+AK19) -> 0 | AL20: =IF(AND(AL9=1,AL5>Input!$C$14),Input!$C$13+AL19,0+AL19) -> 0 | AM20: =IF(AND(AM9=1,AM5>Input!$C$14),Input!$C$13+AM19,0+AM19) -> 0 | AN20: =IF(AND(AN9=1,AN5>Input!$C$14),Input!$C$13+AN19,0+AN19) -> 0 | AO20: =IF(AND(AO9=1,AO5>Input!$C$14),Input!$C$13+AO19,0+AO19) -> 0 | AP20: =IF(AND(AP9=1,AP5>Input!$C$14),Input!$C$13+AP19,0+AP19) -> 0 | AQ20: =IF(AND(AQ9=1,AQ5>Input!$C$14),Input!$C$13+AQ19,0+AQ19) -> 0 | AR20: =IF(AND(AR9=1,AR5>Input!$C$14),Input!$C$13+AR19,0+AR19) -> 0 | AS20: =IF(AND(AS9=1,AS5>Input!$C$14),Input!$C$13+AS19,0+AS19) -> 0 | AT20: =IF(AND(AT9=1,AT5>Input!$C$14),Input!$C$13+AT19,0+AT19) -> 0 | AU20: =IF(AND(AU9=1,AU5>Input!$C$14),Input!$C$13+AU19,0+AU19) -> 0 | AV20: =IF(AND(AV9=1,AV5>Input!$C$14),Input!$C$13+AV19,0+AV19) -> 0 | AW20: =IF(AND(AW9=1,AW5>Input!$C$14),Input!$C$13+AW19,0+AW19) -> 0 | AX20: =IF(AND(AX9=1,AX5>Input!$C$14),Input!$C$13+AX19,0+AX19) -> 0 | AY20: =IF(AND(AY9=1,AY5>Input!$C$14),Input!$C$13+AY19,0+AY19) -> 0 | AZ20: =IF(AND(AZ9=1,AZ5>Input!$C$14),Input!$C$13+AZ19,0+AZ19) -> 0 | BA20: =IF(AND(BA9=1,BA5>Input!$C$14),Input!$C$13+BA19,0+BA19) -> 0 | BB20: =IF(AND(BB9=1,BB5>Input!$C$14),Input!$C$13+BB19,0+BB19) -> 0 | BC20: =IF(AND(BC9=1,BC5>Input!$C$14),Input!$C$13+BC19,0+BC19) -> 0 | BD20: =IF(AND(BD9=1,BD5>Input!$C$14),Input!$C$13+BD19,0+BD19) -> 0 | BE20: =IF(AND(BE9=1,BE5>Input!$C$14),Input!$C$13+BE19,0+BE19) -> 0 | BF20: =IF(AND(BF9=1,BF5>Input!$C$14),Input!$C$13+BF19,0+BF19) -> 0 | BG20: =IF(AND(BG9=1,BG5>Input!$C$14),Input!$C$13+BG19,0+BG19) -> 0 | BH20: =IF(AND(BH9=1,BH5>Input!$C$14),Input!$C$13+BH19,0+BH19) -> 0 | BI20: =IF(AND(BI9=1,BI5>Input!$C$14),Input!$C$13+BI19,0+BI19) -> 0 | BJ20: =IF(AND(BJ9=1,BJ5>Input!$C$14),Input!$C$13+BJ19,0+BJ19) -> 0 | BK20: =IF(AND(BK9=1,BK5>Input!$C$14),Input!$C$13+BK19,0+BK19) -> 0 | BL20: =IF(AND(BL9=1,BL5>Input!$C$14),Input!$C$13+BL19,0+BL19) -> 0 | BM20: =IF(AND(BM9=1,BM5>Input!$C$14),Input!$C$13+BM19,0+BM19) -> 0 | BN20: =IF(AND(BN9=1,BN5>Input!$C$14),Input!$C$13+BN19,0+BN19) -> 0 | BO20: =IF(AND(BO9=1,BO5>Input!$C$14),Input!$C$13+BO19,0+BO19) -> 0 | BP20: =IF(AND(BP9=1,BP5>Input!$C$14),Input!$C$13+BP19,0+BP19) -> 0 | BQ20: =IF(AND(BQ9=1,BQ5>Input!$C$14),Input!$C$13+BQ19,0+BQ19) -> 0 | BR20: =IF(AND(BR9=1,BR5>Input!$C$14),Input!$C$13+BR19,0+BR19) -> 0 | BS20: =IF(AND(BS9=1,BS5>Input!$C$14),Input!$C$13+BS19,0+BS19) -> 0 | BT20: =IF(AND(BT9=1,BT5>Input!$C$14),Input!$C$13+BT19,0+BT19) -> 0 | BU20: =IF(AND(BU9=1,BU5>Input!$C$14),Input!$C$13+BU19,0+BU19) -> 0 | BV20: =IF(AND(BV9=1,BV5>Input!$C$14),Input!$C$13+BV19,0+BV19) -> 0 | BW20: =IF(AND(BW9=1,BW5>Input!$C$14),Input!$C$13+BW19,0+BW19) -> 0 | BX20: =IF(AND(BX9=1,BX5>Input!$C$14),Input!$C$13+BX19,0+BX19) -> 0 | BY20: =IF(AND(BY9=1,BY5>Input!$C$14),Input!$C$13+BY19,0+BY19) -> 0 | BZ20: =IF(AND(BZ9=1,BZ5>Input!$C$14),Input!$C$13+BZ19,0+BZ19) -> 0 | CA20: =IF(AND(CA9=1,CA5>Input!$C$14),Input!$C$13+CA19,0+CA19) -> 0 | CB20: =IF(AND(CB9=1,CB5>Input!$C$14),Input!$C$13+CB19,0+CB19) -> 0 | CC20: =IF(AND(CC9=1,CC5>Input!$C$14),Input!$C$13+CC19,0+CC19) -> 0 | CD20: =IF(AND(CD9=1,CD5>Input!$C$14),Input!$C$13+CD19,0+CD19) -> 0 | CE20: =IF(AND(CE9=1,CE5>Input!$C$14),Input!$C$13+CE19,0+CE19) -> 0 | CF20: =IF(AND(CF9=1,CF5>Input!$C$14),Input!$C$13+CF19,0+CF19) -> 0 | CG20: =IF(AND(CG9=1,CG5>Input!$C$14),Input!$C$13+CG19,0+CG19) -> 0 | CH20: =IF(AND(CH9=1,CH5>Input!$C$14),Input!$C$13+CH19,0+CH19) -> 0 | CI20: =IF(AND(CI9=1,CI5>Input!$C$14),Input!$C$13+CI19,0+CI19) -> 0 | CJ20: =IF(AND(CJ9=1,CJ5>Input!$C$14),Input!$C$13+CJ19,0+CJ19) -> 0 | CK20: =IF(AND(CK9=1,CK5>Input!$C$14),Input!$C$13+CK19,0+CK19) -> 0 | CL20: =IF(AND(CL9=1,CL5>Input!$C$14),Input!$C$13+CL19,0+CL19) -> 0 | CM20: =IF(AND(CM9=1,CM5>Input!$C$14),Input!$C$13+CM19,0+CM19) -> 0 | CN20: =IF(AND(CN9=1,CN5>Input!$C$14),Input!$C$13+CN19,0+CN19) -> 0
A21: manual adjustment to deferred contributions | C21: 0 | D21: 0 | E21: 0 | F21: 0 | G21: 0 | H21: 0 | I21: 0 | J21: 0 | K21: 0 | L21: 0 | M21: 0 | N21: 0 | O21: 0 | P21: 0 | Q21: 0 | R21: 0 | S21: 0 | T21: 0 | U21: 0 | V21: 0 | W21: 0 | X21: 0 | Y21: 0 | Z21: 0 | AA21: 0 | AB21: 0 | AC21: 0 | AD21: 0 | AE21: 0 | AF21: 0 | AG21: 0 | AH21: 0 | AI21: 0 | AJ21: 0 | AK21: 0 | AL21: 0 | AM21: 0 | AN21: 0 | AO21: 0 | AP21: 0 | AQ21: 0 | AR21: 0 | AS21: 0 | AT21: 0 | AU21: 0 | AV21: 0 | AW21: 0 | AX21: 0 | AY21: 0 | AZ21: 0 | BA21: 0 | BB21: 0 | BC21: 0 | BD21: 0 | BE21: 0 | BF21: 0 | BG21: 0 | BH21: 0 | BI21: 0 | BJ21: 0 | BK21: 0 | BL21: 0 | BM21: 0 | BN21: 0 | BO21: 0 | BP21: 0 | BQ21: 0 | BR21: 0 | BS21: 0 | BT21: 0 | BU21: 0 | BV21: 0 | BW21: 0 | BX21: 0 | BY21: 0 | BZ21: 0 | CA21: 0 | CB21: 0 | CC21: 0 | CD21: 0 | CE21: 0 | CF21: 0 | CG21: 0 | CH21: 0 | CI21: 0 | CJ21: 0 | CK21: 0 | CL21: 0 | CM21: 0 | CN21: 0
A22: manual adjustments income needs | C22: 0 | D22: 0 | E22: 0 | F22: 0 | G22: 0 | H22: 0 | I22: 0 | J22: 0 | K22: 0 | L22: 0 | M22: 0 | N22: 0 | O22: 0 | P22: 0 | Q22: 0 | R22: 0 | S22: 0 | T22: 0 | U22: 0 | V22: 0 | W22: 0 | X22: 0 | Y22: 0 | Z22: 0 | AA22: 0 | AB22: 0 | AC22: 0 | AD22: 0 | AE22: 0 | AF22: 0 | AG22: 0 | AH22: 0 | AI22: 0 | AJ22: 0 | AK22: 0 | AL22: 0 | AM22: 0 | AN22: 0 | AO22: 0 | AP22: 0 | AQ22: 0 | AR22: 0 | AS22: 0 | AT22: 0 | AU22: 0 | AV22: 0 | AW22: 0 | AX22: 0 | AY22: 0 | AZ22: 0 | BA22: 0 | BB22: 0 | BC22: 0 | BD22: 0 | BE22: 0 | BF22: 0 | BG22: 0 | BH22: 0 | BI22: 0 | BJ22: 0 | BK22: 0 | BL22: 0 | BM22: 0 | BN22: 0 | BO22: 0 | BP22: 0 | BQ22: 0 | BR22: 0 | BS22: 0 | BT22: 0 | BU22: 0 | BV22: 0 | BW22: 0 | BX22: 0 | BY22: 0 | BZ22: 0 | CA22: 0 | CB22: 0 | CC22: 0 | CD22: 0 | CE22: 0 | CF22: 0 | CG22: 0 | CH22: 0 | CI22: 0 | CJ22: 0 | CK22: 0 | CL22: 0 | CM22: 0 | CN22: 0
A23: income at retirement | C23: =IF(C9=2,Input!$C$15+C22, 0) -> 0 | D23: =IF(D9=2,Input!$C$15+D22, 0) -> 80000 | E23: =IF(E9=2,Input!$C$15+E22, 0) -> 80000 | F23: =IF(F9=2,Input!$C$15+F22, 0) -> 80000 | G23: =IF(G9=2,Input!$C$15+G22, 0) -> 80000 | H23: =IF(H9=2,Input!$C$15+H22, 0) -> 80000 | I23: =IF(I9=2,Input!$C$15+I22, 0) -> 80000 | J23: =IF(J9=2,Input!$C$15+J22, 0) -> 80000 | K23: =IF(K9=2,Input!$C$15+K22, 0) -> 80000 | L23: =IF(L9=2,Input!$C$15+L22, 0) -> 80000 | M23: =IF(M9=2,Input!$C$15+M22, 0) -> 80000 | N23: =IF(N9=2,Input!$C$15+N22, 0) -> 80000 | O23: =IF(O9=2,Input!$C$15+O22, 0) -> 80000 | P23: =IF(P9=2,Input!$C$15+P22, 0) -> 80000 | Q23: =IF(Q9=2,Input!$C$15+Q22, 0) -> 80000 | R23: =IF(R9=2,Input!$C$15+R22, 0) -> 80000 | S23: =IF(S9=2,Input!$C$15+S22, 0) -> 80000 | T23: =IF(T9=2,Input!$C$15+T22, 0) -> 80000 | U23: =IF(U9=2,Input!$C$15+U22, 0) -> 80000 | V23: =IF(V9=2,Input!$C$15+V22, 0) -> 80000 | W23: =IF(W9=2,Input!$C$15+W22, 0) -> 80000 | X23: =IF(X9=2,Input!$C$15+X22, 0) -> 80000 | Y23: =IF(Y9=2,Input!$C$15+Y22, 0) -> 80000 | Z23: =IF(Z9=2,Input!$C$15+Z22, 0) -> 80000 | AA23: =IF(AA9=2,Input!$C$15+AA22, 0) -> 80000 | AB23: =IF(AB9=2,Input!$C$15+AB22, 0) -> 80000 | AC23: =IF(AC9=2,Input!$C$15+AC22, 0) -> 80000 | AD23: =IF(AD9=2,Input!$C$15+AD22, 0) -> 80000 | AE23: =IF(AE9=2,Input!$C$15+AE22, 0) -> 80000 | AF23: =IF(AF9=2,Input!$C$15+AF22, 0) -> 0 | AG23: =IF(AG9=2,Input!$C$15+AG22, 0) -> 0 | AH23: =IF(AH9=2,Input!$C$15+AH22, 0) -> 0 | AI23: =IF(AI9=2,Input!$C$15+AI22, 0) -> 0 | AJ23: =IF(AJ9=2,Input!$C$15+AJ22, 0) -> 0 | AK23: =IF(AK9=2,Input!$C$15+AK22, 0) -> 0 | AL23: =IF(AL9=2,Input!$C$15+AL22, 0) -> 0 | AM23: =IF(AM9=2,Input!$C$15+AM22, 0) -> 0 | AN23: =IF(AN9=2,Input!$C$15+AN22, 0) -> 0 | AO23: =IF(AO9=2,Input!$C$15+AO22, 0) -> 0 | AP23: =IF(AP9=2,Input!$C$15+AP22, 0) -> 0 | AQ23: =IF(AQ9=2,Input!$C$15+AQ22, 0) -> 0 | AR23: =IF(AR9=2,Input!$C$15+AR22, 0) -> 0 | AS23: =IF(AS9=2,Input!$C$15+AS22, 0) -> 0 | AT23: =IF(AT9=2,Input!$C$15+AT22, 0) -> 0 | AU23: =IF(AU9=2,Input!$C$15+AU22, 0) -> 0 | AV23: =IF(AV9=2,Input!$C$15+AV22, 0) -> 0 | AW23: =IF(AW9=2,Input!$C$15+AW22, 0) -> 0 | AX23: =IF(AX9=2,Input!$C$15+AX22, 0) -> 0 | AY23: =IF(AY9=2,Input!$C$15+AY22, 0) -> 0 | AZ23: =IF(AZ9=2,Input!$C$15+AZ22, 0) -> 0 | BA23: =IF(BA9=2,Input!$C$15+BA22, 0) -> 0 | BB23: =IF(BB9=2,Input!$C$15+BB22, 0) -> 0 | BC23: =IF(BC9=2,Input!$C$15+BC22, 0) -> 0 | BD23: =IF(BD9=2,Input!$C$15+BD22, 0) -> 0 | BE23: =IF(BE9=2,Input!$C$15+BE22, 0) -> 0 | BF23: =IF(BF9=2,Input!$C$15+BF22, 0) -> 0 | BG23: =IF(BG9=2,Input!$C$15+BG22, 0) -> 0 | BH23: =IF(BH9=2,Input!$C$15+BH22, 0) -> 0 | BI23: =IF(BI9=2,Input!$C$15+BI22, 0) -> 0 | BJ23: =IF(BJ9=2,Input!$C$15+BJ22, 0) -> 0 | BK23: =IF(BK9=2,Input!$C$15+BK22, 0) -> 0 | BL23: =IF(BL9=2,Input!$C$15+BL22, 0) -> 0 | BM23: =IF(BM9=2,Input!$C$15+BM22, 0) -> 0 | BN23: =IF(BN9=2,Input!$C$15+BN22, 0) -> 0 | BO23: =IF(BO9=2,Input!$C$15+BO22, 0) -> 0 | BP23: =IF(BP9=2,Input!$C$15+BP22, 0) -> 0 | BQ23: =IF(BQ9=2,Input!$C$15+BQ22, 0) -> 0 | BR23: =IF(BR9=2,Input!$C$15+BR22, 0) -> 0 | BS23: =IF(BS9=2,Input!$C$15+BS22, 0) -> 0 | BT23: =IF(BT9=2,Input!$C$15+BT22, 0) -> 0 | BU23: =IF(BU9=2,Input!$C$15+BU22, 0) -> 0 | BV23: =IF(BV9=2,Input!$C$15+BV22, 0) -> 0 | BW23: =IF(BW9=2,Input!$C$15+BW22, 0) -> 0 | BX23: =IF(BX9=2,Input!$C$15+BX22, 0) -> 0 | BY23: =IF(BY9=2,Input!$C$15+BY22, 0) -> 0 | BZ23: =IF(BZ9=2,Input!$C$15+BZ22, 0) -> 0 | CA23: =IF(CA9=2,Input!$C$15+CA22, 0) -> 0 | CB23: =IF(CB9=2,Input!$C$15+CB22, 0) -> 0 | CC23: =IF(CC9=2,Input!$C$15+CC22, 0) -> 0 | CD23: =IF(CD9=2,Input!$C$15+CD22, 0) -> 0 | CE23: =IF(CE9=2,Input!$C$15+CE22, 0) -> 0 | CF23: =IF(CF9=2,Input!$C$15+CF22, 0) -> 0 | CG23: =IF(CG9=2,Input!$C$15+CG22, 0) -> 0 | CH23: =IF(CH9=2,Input!$C$15+CH22, 0) -> 0 | CI23: =IF(CI9=2,Input!$C$15+CI22, 0) -> 0 | CJ23: =IF(CJ9=2,Input!$C$15+CJ22, 0) -> 0 | CK23: =IF(CK9=2,Input!$C$15+CK22, 0) -> 0 | CL23: =IF(CL9=2,Input!$C$15+CL22, 0) -> 0 | CM23: =IF(CM9=2,Input!$C$15+CM22, 0) -> 0 | CN23: =IF(CN9=2,Input!$C$15+CN22, 0) -> 0
A24: adjusted retirement income (annual increase) | C24: =IF(AND(Input!$H$22="y",C9<>0), IF(C5=($E$3+1), C23, B24*(1+Input!$F$22)), 0) -> 0 | D24: =IF(AND(Input!$H$22="y",D9<>0), IF(D5=($E$3+1), D23, C24*(1+Input!$F$22)), 0) -> 0 | E24: =IF(AND(Input!$H$22="y",E9<>0), IF(E5=($E$3+1), E23, D24*(1+Input!$F$22)), 0) -> 0 | F24: =IF(AND(Input!$H$22="y",F9<>0), IF(F5=($E$3+1), F23, E24*(1+Input!$F$22)), 0) -> 0 | G24: =IF(AND(Input!$H$22="y",G9<>0), IF(G5=($E$3+1), G23, F24*(1+Input!$F$22)), 0) -> 0 | H24: =IF(AND(Input!$H$22="y",H9<>0), IF(H5=($E$3+1), H23, G24*(1+Input!$F$22)), 0) -> 0 | I24: =IF(AND(Input!$H$22="y",I9<>0), IF(I5=($E$3+1), I23, H24*(1+Input!$F$22)), 0) -> 0 | J24: =IF(AND(Input!$H$22="y",J9<>0), IF(J5=($E$3+1), J23, I24*(1+Input!$F$22)), 0) -> 0 | K24: =IF(AND(Input!$H$22="y",K9<>0), IF(K5=($E$3+1), K23, J24*(1+Input!$F$22)), 0) -> 0 | L24: =IF(AND(Input!$H$22="y",L9<>0), IF(L5=($E$3+1), L23, K24*(1+Input!$F$22)), 0) -> 0 | M24: =IF(AND(Input!$H$22="y",M9<>0), IF(M5=($E$3+1), M23, L24*(1+Input!$F$22)), 0) -> 0 | N24: =IF(AND(Input!$H$22="y",N9<>0), IF(N5=($E$3+1), N23, M24*(1+Input!$F$22)), 0) -> 0 | O24: =IF(AND(Input!$H$22="y",O9<>0), IF(O5=($E$3+1), O23, N24*(1+Input!$F$22)), 0) -> 0 | P24: =IF(AND(Input!$H$22="y",P9<>0), IF(P5=($E$3+1), P23, O24*(1+Input!$F$22)), 0) -> 0 | Q24: =IF(AND(Input!$H$22="y",Q9<>0), IF(Q5=($E$3+1), Q23, P24*(1+Input!$F$22)), 0) -> 0 | R24: =IF(AND(Input!$H$22="y",R9<>0), IF(R5=($E$3+1), R23, Q24*(1+Input!$F$22)), 0) -> 0 | S24: =IF(AND(Input!$H$22="y",S9<>0), IF(S5=($E$3+1), S23, R24*(1+Input!$F$22)), 0) -> 0 | T24: =IF(AND(Input!$H$22="y",T9<>0), IF(T5=($E$3+1), T23, S24*(1+Input!$F$22)), 0) -> 0 | U24: =IF(AND(Input!$H$22="y",U9<>0), IF(U5=($E$3+1), U23, T24*(1+Input!$F$22)), 0) -> 0 | V24: =IF(AND(Input!$H$22="y",V9<>0), IF(V5=($E$3+1), V23, U24*(1+Input!$F$22)), 0) -> 0 | W24: =IF(AND(Input!$H$22="y",W9<>0), IF(W5=($E$3+1), W23, V24*(1+Input!$F$22)), 0) -> 0 | X24: =IF(AND(Input!$H$22="y",X9<>0), IF(X5=($E$3+1), X23, W24*(1+Input!$F$22)), 0) -> 0 | Y24: =IF(AND(Input!$H$22="y",Y9<>0), IF(Y5=($E$3+1), Y23, X24*(1+Input!$F$22)), 0) -> 0 | Z24: =IF(AND(Input!$H$22="y",Z9<>0), IF(Z5=($E$3+1), Z23, Y24*(1+Input!$F$22)), 0) -> 0 | AA24: =IF(AND(Input!$H$22="y",AA9<>0), IF(AA5=($E$3+1), AA23, Z24*(1+Input!$F$22)), 0) -> 0 | AB24: =IF(AND(Input!$H$22="y",AB9<>0), IF(AB5=($E$3+1), AB23, AA24*(1+Input!$F$22)), 0) -> 0 | AC24: =IF(AND(Input!$H$22="y",AC9<>0), IF(AC5=($E$3+1), AC23, AB24*(1+Input!$F$22)), 0) -> 0 | AD24: =IF(AND(Input!$H$22="y",AD9<>0), IF(AD5=($E$3+1), AD23, AC24*(1+Input!$F$22)), 0) -> 0 | AE24: =IF(AND(Input!$H$22="y",AE9<>0), IF(AE5=($E$3+1), AE23, AD24*(1+Input!$F$22)), 0) -> 0 | AF24: =IF(AND(Input!$H$22="y",AF9<>0), IF(AF5=($E$3+1), AF23, AE24*(1+Input!$F$22)), 0) -> 0 | AG24: =IF(AND(Input!$H$22="y",AG9<>0), IF(AG5=($E$3+1), AG23, AF24*(1+Input!$F$22)), 0) -> 0 | AH24: =IF(AND(Input!$H$22="y",AH9<>0), IF(AH5=($E$3+1), AH23, AG24*(1+Input!$F$22)), 0) -> 0 | AI24: =IF(AND(Input!$H$22="y",AI9<>0), IF(AI5=($E$3+1), AI23, AH24*(1+Input!$F$22)), 0) -> 0 | AJ24: =IF(AND(Input!$H$22="y",AJ9<>0), IF(AJ5=($E$3+1), AJ23, AI24*(1+Input!$F$22)), 0) -> 0 | AK24: =IF(AND(Input!$H$22="y",AK9<>0), IF(AK5=($E$3+1), AK23, AJ24*(1+Input!$F$22)), 0) -> 0 | AL24: =IF(AND(Input!$H$22="y",AL9<>0), IF(AL5=($E$3+1), AL23, AK24*(1+Input!$F$22)), 0) -> 0 | AM24: =IF(AND(Input!$H$22="y",AM9<>0), IF(AM5=($E$3+1), AM23, AL24*(1+Input!$F$22)), 0) -> 0 | AN24: =IF(AND(Input!$H$22="y",AN9<>0), IF(AN5=($E$3+1), AN23, AM24*(1+Input!$F$22)), 0) -> 0 | AO24: =IF(AND(Input!$H$22="y",AO9<>0), IF(AO5=($E$3+1), AO23, AN24*(1+Input!$F$22)), 0) -> 0 | AP24: =IF(AND(Input!$H$22="y",AP9<>0), IF(AP5=($E$3+1), AP23, AO24*(1+Input!$F$22)), 0) -> 0 | AQ24: =IF(AND(Input!$H$22="y",AQ9<>0), IF(AQ5=($E$3+1), AQ23, AP24*(1+Input!$F$22)), 0) -> 0 | AR24: =IF(AND(Input!$H$22="y",AR9<>0), IF(AR5=($E$3+1), AR23, AQ24*(1+Input!$F$22)), 0) -> 0 | AS24: =IF(AND(Input!$H$22="y",AS9<>0), IF(AS5=($E$3+1), AS23, AR24*(1+Input!$F$22)), 0) -> 0 | AT24: =IF(AND(Input!$H$22="y",AT9<>0), IF(AT5=($E$3+1), AT23, AS24*(1+Input!$F$22)), 0) -> 0 | AU24: =IF(AND(Input!$H$22="y",AU9<>0), IF(AU5=($E$3+1), AU23, AT24*(1+Input!$F$22)), 0) -> 0 | AV24: =IF(AND(Input!$H$22="y",AV9<>0), IF(AV5=($E$3+1), AV23, AU24*(1+Input!$F$22)), 0) -> 0 | AW24: =IF(AND(Input!$H$22="y",AW9<>0), IF(AW5=($E$3+1), AW23, AV24*(1+Input!$F$22)), 0) -> 0 | AX24: =IF(AND(Input!$H$22="y",AX9<>0), IF(AX5=($E$3+1), AX23, AW24*(1+Input!$F$22)), 0) -> 0 | AY24: =IF(AND(Input!$H$22="y",AY9<>0), IF(AY5=($E$3+1), AY23, AX24*(1+Input!$F$22)), 0) -> 0 | AZ24: =IF(AND(Input!$H$22="y",AZ9<>0), IF(AZ5=($E$3+1), AZ23, AY24*(1+Input!$F$22)), 0) -> 0 | BA24: =IF(AND(Input!$H$22="y",BA9<>0), IF(BA5=($E$3+1), BA23, AZ24*(1+Input!$F$22)), 0) -> 0 | BB24: =IF(AND(Input!$H$22="y",BB9<>0), IF(BB5=($E$3+1), BB23, BA24*(1+Input!$F$22)), 0) -> 0 | BC24: =IF(AND(Input!$H$22="y",BC9<>0), IF(BC5=($E$3+1), BC23, BB24*(1+Input!$F$22)), 0) -> 0 | BD24: =IF(AND(Input!$H$22="y",BD9<>0), IF(BD5=($E$3+1), BD23, BC24*(1+Input!$F$22)), 0) -> 0 | BE24: =IF(AND(Input!$H$22="y",BE9<>0), IF(BE5=($E$3+1), BE23, BD24*(1+Input!$F$22)), 0) -> 0 | BF24: =IF(AND(Input!$H$22="y",BF9<>0), IF(BF5=($E$3+1), BF23, BE24*(1+Input!$F$22)), 0) -> 0 | BG24: =IF(AND(Input!$H$22="y",BG9<>0), IF(BG5=($E$3+1), BG23, BF24*(1+Input!$F$22)), 0) -> 0 | BH24: =IF(AND(Input!$H$22="y",BH9<>0), IF(BH5=($E$3+1), BH23, BG24*(1+Input!$F$22)), 0) -> 0 | BI24: =IF(AND(Input!$H$22="y",BI9<>0), IF(BI5=($E$3+1), BI23, BH24*(1+Input!$F$22)), 0) -> 0 | BJ24: =IF(AND(Input!$H$22="y",BJ9<>0), IF(BJ5=($E$3+1), BJ23, BI24*(1+Input!$F$22)), 0) -> 0 | BK24: =IF(AND(Input!$H$22="y",BK9<>0), IF(BK5=($E$3+1), BK23, BJ24*(1+Input!$F$22)), 0) -> 0 | BL24: =IF(AND(Input!$H$22="y",BL9<>0), IF(BL5=($E$3+1), BL23, BK24*(1+Input!$F$22)), 0) -> 0 | BM24: =IF(AND(Input!$H$22="y",BM9<>0), IF(BM5=($E$3+1), BM23, BL24*(1+Input!$F$22)), 0) -> 0 | BN24: =IF(AND(Input!$H$22="y",BN9<>0), IF(BN5=($E$3+1), BN23, BM24*(1+Input!$F$22)), 0) -> 0 | BO24: =IF(AND(Input!$H$22="y",BO9<>0), IF(BO5=($E$3+1), BO23, BN24*(1+Input!$F$22)), 0) -> 0 | BP24: =IF(AND(Input!$H$22="y",BP9<>0), IF(BP5=($E$3+1), BP23, BO24*(1+Input!$F$22)), 0) -> 0 | BQ24: =IF(AND(Input!$H$22="y",BQ9<>0), IF(BQ5=($E$3+1), BQ23, BP24*(1+Input!$F$22)), 0) -> 0 | BR24: =IF(AND(Input!$H$22="y",BR9<>0), IF(BR5=($E$3+1), BR23, BQ24*(1+Input!$F$22)), 0) -> 0 | BS24: =IF(AND(Input!$H$22="y",BS9<>0), IF(BS5=($E$3+1), BS23, BR24*(1+Input!$F$22)), 0) -> 0 | BT24: =IF(AND(Input!$H$22="y",BT9<>0), IF(BT5=($E$3+1), BT23, BS24*(1+Input!$F$22)), 0) -> 0 | BU24: =IF(AND(Input!$H$22="y",BU9<>0), IF(BU5=($E$3+1), BU23, BT24*(1+Input!$F$22)), 0) -> 0 | BV24: =IF(AND(Input!$H$22="y",BV9<>0), IF(BV5=($E$3+1), BV23, BU24*(1+Input!$F$22)), 0) -> 0 | BW24: =IF(AND(Input!$H$22="y",BW9<>0), IF(BW5=($E$3+1), BW23, BV24*(1+Input!$F$22)), 0) -> 0 | BX24: =IF(AND(Input!$H$22="y",BX9<>0), IF(BX5=($E$3+1), BX23, BW24*(1+Input!$F$22)), 0) -> 0 | BY24: =IF(AND(Input!$H$22="y",BY9<>0), IF(BY5=($E$3+1), BY23, BX24*(1+Input!$F$22)), 0) -> 0 | BZ24: =IF(AND(Input!$H$22="y",BZ9<>0), IF(BZ5=($E$3+1), BZ23, BY24*(1+Input!$F$22)), 0) -> 0 | CA24: =IF(AND(Input!$H$22="y",CA9<>0), IF(CA5=($E$3+1), CA23, BZ24*(1+Input!$F$22)), 0) -> 0 | CB24: =IF(AND(Input!$H$22="y",CB9<>0), IF(CB5=($E$3+1), CB23, CA24*(1+Input!$F$22)), 0) -> 0 | CC24: =IF(AND(Input!$H$22="y",CC9<>0), IF(CC5=($E$3+1), CC23, CB24*(1+Input!$F$22)), 0) -> 0 | CD24: =IF(AND(Input!$H$22="y",CD9<>0), IF(CD5=($E$3+1), CD23, CC24*(1+Input!$F$22)), 0) -> 0 | CE24: =IF(AND(Input!$H$22="y",CE9<>0), IF(CE5=($E$3+1), CE23, CD24*(1+Input!$F$22)), 0) -> 0 | CF24: =IF(AND(Input!$H$22="y",CF9<>0), IF(CF5=($E$3+1), CF23, CE24*(1+Input!$F$22)), 0) -> 0 | CG24: =IF(AND(Input!$H$22="y",CG9<>0), IF(CG5=($E$3+1), CG23, CF24*(1+Input!$F$22)), 0) -> 0 | CH24: =IF(AND(Input!$H$22="y",CH9<>0), IF(CH5=($E$3+1), CH23, CG24*(1+Input!$F$22)), 0) -> 0 | CI24: =IF(AND(Input!$H$22="y",CI9<>0), IF(CI5=($E$3+1), CI23, CH24*(1+Input!$F$22)), 0) -> 0 | CJ24: =IF(AND(Input!$H$22="y",CJ9<>0), IF(CJ5=($E$3+1), CJ23, CI24*(1+Input!$F$22)), 0) -> 0 | CK24: =IF(AND(Input!$H$22="y",CK9<>0), IF(CK5=($E$3+1), CK23, CJ24*(1+Input!$F$22)), 0) -> 0 | CL24: =IF(AND(Input!$H$22="y",CL9<>0), IF(CL5=($E$3+1), CL23, CK24*(1+Input!$F$22)), 0) -> 0 | CM24: =IF(AND(Input!$H$22="y",CM9<>0), IF(CM5=($E$3+1), CM23, CL24*(1+Input!$F$22)), 0) -> 0 | CN24: =IF(AND(Input!$H$22="y",CN9<>0), IF(CN5=($E$3+1), CN23, CM24*(1+Input!$F$22)), 0) -> 0
A25: unexpected expenses | C25: =C23*C14 -> 0 | D25: =D23*D14 -> 0 | E25: 0 | F25: 0 | G25: 0 | H25: 0 | I25: 0 | J25: 0 | K25: 0 | L25: 0 | M25: 0 | N25: 0 | O25: 0 | P25: 0 | Q25: 0 | R25: 0 | S25: 0 | T25: 0 | U25: 0 | V25: 0 | W25: 34285.71429 | X25: 36000 | Y25: 0 | Z25: 0 | AA25: 0 | AB25: 42857.14286 | AC25: 44571.42857 | AD25: 0 | AE25: 48000 | AF25: 0 | AG25: 0 | AH25: 0 | AI25: 0 | AJ25: 0 | AK25: 0 | AL25: 0 | AM25: 0 | AN25: 0 | AO25: 0 | AP25: 0 | AQ25: 0 | AR25: 0 | AS25: 0 | AT25: 0 | AU25: 0 | AV25: 0 | AW25: 0 | AX25: 0 | AY25: 0 | AZ25: 0 | BA25: 0 | BB25: 0 | BC25: 0 | BD25: 0 | BE25: 0 | BF25: 0 | BG25: 0 | BH25: 0 | BI25: 0 | BJ25: 0 | BK25: 0 | BL25: 0 | BM25: 0 | BN25: 0 | BO25: 0 | BP25: =BP23*BP14 -> 0 | BQ25: 0 | BR25: 0 | BS25: 0 | BT25: 0 | BU25: 0 | BV25: 0 | BW25: 0 | BX25: 0 | BY25: 0 | BZ25: 0 | CA25: 0 | CB25: 0 | CC25: 0 | CD25: 0 | CE25: 0 | CF25: 0 | CG25: 0 | CH25: 0 | CI25: 0 | CJ25: 0 | CK25: 0 | CL25: 0 | CM25: 0 | CN25: 0 | CP25: =SUM(C25:CN25) -> 205714.2857
A26: total | C26: =IF(Input!$C$19="n", IF(C24=0,C23+C25,C24+C25), IF(C24=0,C23+C25+(-1*Budget!H41),C24+C25+(-1*Budget!H41))) -> 0 | D26: =IF(Input!$C$19="n", IF(D24=0,D23+D25,D24+D25), IF(D24=0,D23+D25+(-1*Budget!I41),D24+D25+(-1*Budget!I41))) -> 100000 | E26: =IF(Input!$C$19="n", IF(E24=0,E23+E25,E24+E25), IF(E24=0,E23+E25+(-1*Budget!J41),E24+E25+(-1*Budget!J41))) -> 102000 | F26: =IF(Input!$C$19="n", IF(F24=0,F23+F25,F24+F25), IF(F24=0,F23+F25+(-1*Budget!K41),F24+F25+(-1*Budget!K41))) -> 104040 | G26: =IF(Input!$C$19="n", IF(G24=0,G23+G25,G24+G25), IF(G24=0,G23+G25+(-1*Budget!L41),G24+G25+(-1*Budget!L41))) -> 106120.8 | H26: =IF(Input!$C$19="n", IF(H24=0,H23+H25,H24+H25), IF(H24=0,H23+H25+(-1*Budget!M41),H24+H25+(-1*Budget!M41))) -> 108243.216 | I26: =IF(Input!$C$19="n", IF(I24=0,I23+I25,I24+I25), IF(I24=0,I23+I25+(-1*Budget!N41),I24+I25+(-1*Budget!N41))) -> 110408.0803 | J26: =IF(Input!$C$19="n", IF(J24=0,J23+J25,J24+J25), IF(J24=0,J23+J25+(-1*Budget!O41),J24+J25+(-1*Budget!O41))) -> 112616.2419 | K26: =IF(Input!$C$19="n", IF(K24=0,K23+K25,K24+K25), IF(K24=0,K23+K25+(-1*Budget!P41),K24+K25+(-1*Budget!P41))) -> 114868.5668 | L26: =IF(Input!$C$19="n", IF(L24=0,L23+L25,L24+L25), IF(L24=0,L23+L25+(-1*Budget!Q41),L24+L25+(-1*Budget!Q41))) -> 117165.9381 | M26: =IF(Input!$C$19="n", IF(M24=0,M23+M25,M24+M25), IF(M24=0,M23+M25+(-1*Budget!R41),M24+M25+(-1*Budget!R41))) -> 119509.2569 | N26: =IF(Input!$C$19="n", IF(N24=0,N23+N25,N24+N25), IF(N24=0,N23+N25+(-1*Budget!S41),N24+N25+(-1*Budget!S41))) -> 121899.442 | O26: =IF(Input!$C$19="n", IF(O24=0,O23+O25,O24+O25), IF(O24=0,O23+O25+(-1*Budget!T41),O24+O25+(-1*Budget!T41))) -> 124337.4308 | P26: =IF(Input!$C$19="n", IF(P24=0,P23+P25,P24+P25), IF(P24=0,P23+P25+(-1*Budget!U41),P24+P25+(-1*Budget!U41))) -> 97654.61818 | Q26: =IF(Input!$C$19="n", IF(Q24=0,Q23+Q25,Q24+Q25), IF(Q24=0,Q23+Q25+(-1*Budget!V41),Q24+Q25+(-1*Budget!V41))) -> 99607.71054 | R26: =IF(Input!$C$19="n", IF(R24=0,R23+R25,R24+R25), IF(R24=0,R23+R25+(-1*Budget!W41),R24+R25+(-1*Budget!W41))) -> 101599.8648 | S26: =IF(Input!$C$19="n", IF(S24=0,S23+S25,S24+S25), IF(S24=0,S23+S25+(-1*Budget!X41),S24+S25+(-1*Budget!X41))) -> 103631.8621 | T26: =IF(Input!$C$19="n", IF(T24=0,T23+T25,T24+T25), IF(T24=0,T23+T25+(-1*Budget!Y41),T24+T25+(-1*Budget!Y41))) -> 105704.4993 | U26: =IF(Input!$C$19="n", IF(U24=0,U23+U25,U24+U25), IF(U24=0,U23+U25+(-1*Budget!Z41),U24+U25+(-1*Budget!Z41))) -> 107818.5893 | V26: =IF(Input!$C$19="n", IF(V24=0,V23+V25,V24+V25), IF(V24=0,V23+V25+(-1*Budget!AA41),V24+V25+(-1*Budget!AA41))) -> 109974.9611 | W26: =IF(Input!$C$19="n", IF(W24=0,W23+W25,W24+W25), IF(W24=0,W23+W25+(-1*Budget!AB41),W24+W25+(-1*Budget!AB41))) -> 146460.1746 | X26: =IF(Input!$C$19="n", IF(X24=0,X23+X25,X24+X25), IF(X24=0,X23+X25+(-1*Budget!AC41),X24+X25+(-1*Budget!AC41))) -> 150417.9495 | Y26: =IF(Input!$C$19="n", IF(Y24=0,Y23+Y25,Y24+Y25), IF(Y24=0,Y23+Y25+(-1*Budget!AD41),Y24+Y25+(-1*Budget!AD41))) -> 116706.3085 | Z26: =IF(Input!$C$19="n", IF(Z24=0,Z23+Z25,Z24+Z25), IF(Z24=0,Z23+Z25+(-1*Budget!AE41),Z24+Z25+(-1*Budget!AE41))) -> 119040.4346 | AA26: =IF(Input!$C$19="n", IF(AA24=0,AA23+AA25,AA24+AA25), IF(AA24=0,AA23+AA25+(-1*Budget!AF41),AA24+AA25+(-1*Budget!AF41))) -> 121421.2433 | AB26: =IF(Input!$C$19="n", IF(AB24=0,AB23+AB25,AB24+AB25), IF(AB24=0,AB23+AB25+(-1*Budget!AG41),AB24+AB25+(-1*Budget!AG41))) -> 166706.8111 | AC26: =IF(Input!$C$19="n", IF(AC24=0,AC23+AC25,AC24+AC25), IF(AC24=0,AC23+AC25+(-1*Budget!AH41),AC24+AC25+(-1*Budget!AH41))) -> 170898.0901 | AD26: =IF(Input!$C$19="n", IF(AD24=0,AD23+AD25,AD24+AD25), IF(AD24=0,AD23+AD25+(-1*Budget!AI41),AD24+AD25+(-1*Budget!AI41))) -> 128853.1948 | AE26: =IF(Input!$C$19="n", IF(AE24=0,AE23+AE25,AE24+AE25), IF(AE24=0,AE23+AE25+(-1*Budget!AJ41),AE24+AE25+(-1*Budget!AJ41))) -> 218688.6477 | AF26: =IF(Input!$C$19="n", IF(AF24=0,AF23+AF25,AF24+AF25), IF(AF24=0,AF23+AF25+(-1*Budget!AK41),AF24+AF25+(-1*Budget!AK41))) -> 0 | AG26: =IF(Input!$C$19="n", IF(AG24=0,AG23+AG25,AG24+AG25), IF(AG24=0,AG23+AG25+(-1*Budget!AL41),AG24+AG25+(-1*Budget!AL41))) -> 0 | AH26: =IF(Input!$C$19="n", IF(AH24=0,AH23+AH25,AH24+AH25), IF(AH24=0,AH23+AH25+(-1*Budget!AM41),AH24+AH25+(-1*Budget!AM41))) -> 0 | AI26: =IF(Input!$C$19="n", IF(AI24=0,AI23+AI25,AI24+AI25), IF(AI24=0,AI23+AI25+(-1*Budget!AN41),AI24+AI25+(-1*Budget!AN41))) -> 0 | AJ26: =IF(Input!$C$19="n", IF(AJ24=0,AJ23+AJ25,AJ24+AJ25), IF(AJ24=0,AJ23+AJ25+(-1*Budget!AO41),AJ24+AJ25+(-1*Budget!AO41))) -> 0 | AK26: =IF(Input!$C$19="n", IF(AK24=0,AK23+AK25,AK24+AK25), IF(AK24=0,AK23+AK25+(-1*Budget!AP41),AK24+AK25+(-1*Budget!AP41))) -> 0 | AL26: =IF(Input!$C$19="n", IF(AL24=0,AL23+AL25,AL24+AL25), IF(AL24=0,AL23+AL25+(-1*Budget!AQ41),AL24+AL25+(-1*Budget!AQ41))) -> 0 | AM26: =IF(Input!$C$19="n", IF(AM24=0,AM23+AM25,AM24+AM25), IF(AM24=0,AM23+AM25+(-1*Budget!AR41),AM24+AM25+(-1*Budget!AR41))) -> 0 | AN26: =IF(Input!$C$19="n", IF(AN24=0,AN23+AN25,AN24+AN25), IF(AN24=0,AN23+AN25+(-1*Budget!AS41),AN24+AN25+(-1*Budget!AS41))) -> 0 | AO26: =IF(Input!$C$19="n", IF(AO24=0,AO23+AO25,AO24+AO25), IF(AO24=0,AO23+AO25+(-1*Budget!AT41),AO24+AO25+(-1*Budget!AT41))) -> 0 | AP26: =IF(Input!$C$19="n", IF(AP24=0,AP23+AP25,AP24+AP25), IF(AP24=0,AP23+AP25+(-1*Budget!AU41),AP24+AP25+(-1*Budget!AU41))) -> 0 | AQ26: =IF(Input!$C$19="n", IF(AQ24=0,AQ23+AQ25,AQ24+AQ25), IF(AQ24=0,AQ23+AQ25+(-1*Budget!AV41),AQ24+AQ25+(-1*Budget!AV41))) -> 0 | AR26: =IF(Input!$C$19="n", IF(AR24=0,AR23+AR25,AR24+AR25), IF(AR24=0,AR23+AR25+(-1*Budget!AW41),AR24+AR25+(-1*Budget!AW41))) -> 0 | AS26: =IF(Input!$C$19="n", IF(AS24=0,AS23+AS25,AS24+AS25), IF(AS24=0,AS23+AS25+(-1*Budget!AX41),AS24+AS25+(-1*Budget!AX41))) -> 0 | AT26: =IF(Input!$C$19="n", IF(AT24=0,AT23+AT25,AT24+AT25), IF(AT24=0,AT23+AT25+(-1*Budget!AY41),AT24+AT25+(-1*Budget!AY41))) -> 0 | AU26: =IF(Input!$C$19="n", IF(AU24=0,AU23+AU25,AU24+AU25), IF(AU24=0,AU23+AU25+(-1*Budget!AZ41),AU24+AU25+(-1*Budget!AZ41))) -> 0 | AV26: =IF(Input!$C$19="n", IF(AV24=0,AV23+AV25,AV24+AV25), IF(AV24=0,AV23+AV25+(-1*Budget!BA41),AV24+AV25+(-1*Budget!BA41))) -> 0 | AW26: =IF(Input!$C$19="n", IF(AW24=0,AW23+AW25,AW24+AW25), IF(AW24=0,AW23+AW25+(-1*Budget!BB41),AW24+AW25+(-1*Budget!BB41))) -> 0 | AX26: =IF(Input!$C$19="n", IF(AX24=0,AX23+AX25,AX24+AX25), IF(AX24=0,AX23+AX25+(-1*Budget!BC41),AX24+AX25+(-1*Budget!BC41))) -> 0 | AY26: =IF(Input!$C$19="n", IF(AY24=0,AY23+AY25,AY24+AY25), IF(AY24=0,AY23+AY25+(-1*Budget!BD41),AY24+AY25+(-1*Budget!BD41))) -> 0 | AZ26: =IF(Input!$C$19="n", IF(AZ24=0,AZ23+AZ25,AZ24+AZ25), IF(AZ24=0,AZ23+AZ25+(-1*Budget!BE41),AZ24+AZ25+(-1*Budget!BE41))) -> 0 | BA26: =IF(Input!$C$19="n", IF(BA24=0,BA23+BA25,BA24+BA25), IF(BA24=0,BA23+BA25+(-1*Budget!BF41),BA24+BA25+(-1*Budget!BF41))) -> 0 | BB26: =IF(Input!$C$19="n", IF(BB24=0,BB23+BB25,BB24+BB25), IF(BB24=0,BB23+BB25+(-1*Budget!BG41),BB24+BB25+(-1*Budget!BG41))) -> 0 | BC26: =IF(Input!$C$19="n", IF(BC24=0,BC23+BC25,BC24+BC25), IF(BC24=0,BC23+BC25+(-1*Budget!BH41),BC24+BC25+(-1*Budget!BH41))) -> 0 | BD26: =IF(Input!$C$19="n", IF(BD24=0,BD23+BD25,BD24+BD25), IF(BD24=0,BD23+BD25+(-1*Budget!BI41),BD24+BD25+(-1*Budget!BI41))) -> 0 | BE26: =IF(Input!$C$19="n", IF(BE24=0,BE23+BE25,BE24+BE25), IF(BE24=0,BE23+BE25+(-1*Budget!BJ41),BE24+BE25+(-1*Budget!BJ41))) -> 0 | BF26: =IF(Input!$C$19="n", IF(BF24=0,BF23+BF25,BF24+BF25), IF(BF24=0,BF23+BF25+(-1*Budget!BK41),BF24+BF25+(-1*Budget!BK41))) -> 0 | BG26: =IF(Input!$C$19="n", IF(BG24=0,BG23+BG25,BG24+BG25), IF(BG24=0,BG23+BG25+(-1*Budget!BL41),BG24+BG25+(-1*Budget!BL41))) -> 0 | BH26: =IF(Input!$C$19="n", IF(BH24=0,BH23+BH25,BH24+BH25), IF(BH24=0,BH23+BH25+(-1*Budget!BM41),BH24+BH25+(-1*Budget!BM41))) -> 0 | BI26: =IF(Input!$C$19="n", IF(BI24=0,BI23+BI25,BI24+BI25), IF(BI24=0,BI23+BI25+(-1*Budget!BN41),BI24+BI25+(-1*Budget!BN41))) -> 0 | BJ26: =IF(Input!$C$19="n", IF(BJ24=0,BJ23+BJ25,BJ24+BJ25), IF(BJ24=0,BJ23+BJ25+(-1*Budget!BO41),BJ24+BJ25+(-1*Budget!BO41))) -> 0 | BK26: =IF(Input!$C$19="n", IF(BK24=0,BK23+BK25,BK24+BK25), IF(BK24=0,BK23+BK25+(-1*Budget!BP41),BK24+BK25+(-1*Budget!BP41))) -> 0 | BL26: =IF(Input!$C$19="n", IF(BL24=0,BL23+BL25,BL24+BL25), IF(BL24=0,BL23+BL25+(-1*Budget!BQ41),BL24+BL25+(-1*Budget!BQ41))) -> 0 | BM26: =IF(Input!$C$19="n", IF(BM24=0,BM23+BM25,BM24+BM25), IF(BM24=0,BM23+BM25+(-1*Budget!BR41),BM24+BM25+(-1*Budget!BR41))) -> 0 | BN26: =IF(Input!$C$19="n", IF(BN24=0,BN23+BN25,BN24+BN25), IF(BN24=0,BN23+BN25+(-1*Budget!BS41),BN24+BN25+(-1*Budget!BS41))) -> 0 | BO26: =IF(Input!$C$19="n", IF(BO24=0,BO23+BO25,BO24+BO25), IF(BO24=0,BO23+BO25+(-1*Budget!BT41),BO24+BO25+(-1*Budget!BT41))) -> 0 | BP26: =IF(Input!$C$19="n", IF(BP24=0,BP23+BP25,BP24+BP25), IF(BP24=0,BP23+BP25+(-1*Budget!BU41),BP24+BP25+(-1*Budget!BU41))) -> 0 | BQ26: =IF(Input!$C$19="n", IF(BQ24=0,BQ23+BQ25,BQ24+BQ25), IF(BQ24=0,BQ23+BQ25+(-1*Budget!BV41),BQ24+BQ25+(-1*Budget!BV41))) -> 0 | BR26: =IF(Input!$C$19="n", IF(BR24=0,BR23+BR25,BR24+BR25), IF(BR24=0,BR23+BR25+(-1*Budget!BW41),BR24+BR25+(-1*Budget!BW41))) -> 0 | BS26: =IF(Input!$C$19="n", IF(BS24=0,BS23+BS25,BS24+BS25), IF(BS24=0,BS23+BS25+(-1*Budget!BX41),BS24+BS25+(-1*Budget!BX41))) -> 0 | BT26: =IF(Input!$C$19="n", IF(BT24=0,BT23+BT25,BT24+BT25), IF(BT24=0,BT23+BT25+(-1*Budget!BY41),BT24+BT25+(-1*Budget!BY41))) -> 0 | BU26: =IF(Input!$C$19="n", IF(BU24=0,BU23+BU25,BU24+BU25), IF(BU24=0,BU23+BU25+(-1*Budget!BZ41),BU24+BU25+(-1*Budget!BZ41))) -> 0 | BV26: =IF(Input!$C$19="n", IF(BV24=0,BV23+BV25,BV24+BV25), IF(BV24=0,BV23+BV25+(-1*Budget!CA41),BV24+BV25+(-1*Budget!CA41))) -> 0 | BW26: =IF(Input!$C$19="n", IF(BW24=0,BW23+BW25,BW24+BW25), IF(BW24=0,BW23+BW25+(-1*Budget!CB41),BW24+BW25+(-1*Budget!CB41))) -> 0 | BX26: =IF(Input!$C$19="n", IF(BX24=0,BX23+BX25,BX24+BX25), IF(BX24=0,BX23+BX25+(-1*Budget!CC41),BX24+BX25+(-1*Budget!CC41))) -> 0 | BY26: =IF(Input!$C$19="n", IF(BY24=0,BY23+BY25,BY24+BY25), IF(BY24=0,BY23+BY25+(-1*Budget!CD41),BY24+BY25+(-1*Budget!CD41))) -> 0 | BZ26: =IF(Input!$C$19="n", IF(BZ24=0,BZ23+BZ25,BZ24+BZ25), IF(BZ24=0,BZ23+BZ25+(-1*Budget!CE41),BZ24+BZ25+(-1*Budget!CE41))) -> 0 | CA26: =IF(Input!$C$19="n", IF(CA24=0,CA23+CA25,CA24+CA25), IF(CA24=0,CA23+CA25+(-1*Budget!CF41),CA24+CA25+(-1*Budget!CF41))) -> 0 | CB26: =IF(Input!$C$19="n", IF(CB24=0,CB23+CB25,CB24+CB25), IF(CB24=0,CB23+CB25+(-1*Budget!CG41),CB24+CB25+(-1*Budget!CG41))) -> 0 | CC26: =IF(Input!$C$19="n", IF(CC24=0,CC23+CC25,CC24+CC25), IF(CC24=0,CC23+CC25+(-1*Budget!CH41),CC24+CC25+(-1*Budget!CH41))) -> 0 | CD26: =IF(Input!$C$19="n", IF(CD24=0,CD23+CD25,CD24+CD25), IF(CD24=0,CD23+CD25+(-1*Budget!CI41),CD24+CD25+(-1*Budget!CI41))) -> 0 | CE26: =IF(Input!$C$19="n", IF(CE24=0,CE23+CE25,CE24+CE25), IF(CE24=0,CE23+CE25+(-1*Budget!CJ41),CE24+CE25+(-1*Budget!CJ41))) -> 0 | CF26: =IF(Input!$C$19="n", IF(CF24=0,CF23+CF25,CF24+CF25), IF(CF24=0,CF23+CF25+(-1*Budget!CK41),CF24+CF25+(-1*Budget!CK41))) -> 0 | CG26: =IF(Input!$C$19="n", IF(CG24=0,CG23+CG25,CG24+CG25), IF(CG24=0,CG23+CG25+(-1*Budget!CL41),CG24+CG25+(-1*Budget!CL41))) -> 0 | CH26: =IF(Input!$C$19="n", IF(CH24=0,CH23+CH25,CH24+CH25), IF(CH24=0,CH23+CH25+(-1*Budget!CM41),CH24+CH25+(-1*Budget!CM41))) -> 0 | CI26: =IF(Input!$C$19="n", IF(CI24=0,CI23+CI25,CI24+CI25), IF(CI24=0,CI23+CI25+(-1*Budget!CN41),CI24+CI25+(-1*Budget!CN41))) -> 0 | CJ26: =IF(Input!$C$19="n", IF(CJ24=0,CJ23+CJ25,CJ24+CJ25), IF(CJ24=0,CJ23+CJ25+(-1*Budget!CO41),CJ24+CJ25+(-1*Budget!CO41))) -> 0 | CK26: =IF(Input!$C$19="n", IF(CK24=0,CK23+CK25,CK24+CK25), IF(CK24=0,CK23+CK25+(-1*Budget!CP41),CK24+CK25+(-1*Budget!CP41))) -> 0 | CL26: =IF(Input!$C$19="n", IF(CL24=0,CL23+CL25,CL24+CL25), IF(CL24=0,CL23+CL25+(-1*Budget!CQ41),CL24+CL25+(-1*Budget!CQ41))) -> 0 | CM26: =IF(Input!$C$19="n", IF(CM24=0,CM23+CM25,CM24+CM25), IF(CM24=0,CM23+CM25+(-1*Budget!CR41),CM24+CM25+(-1*Budget!CR41))) -> 0 | CN26: =IF(Input!$C$19="n", IF(CN24=0,CN23+CN25,CN24+CN25), IF(CN24=0,CN23+CN25+(-1*Budget!CS41),CN24+CN25+(-1*Budget!CS41))) -> 0
A28: tax rate (income) | C28: =IF(C9=1, Input!$F$19, IF(Sheet2!C9=2, C66, 0)) -> 0.24 | D28: =IF(D9=1, Input!$F$19, IF(Sheet2!D9=2, D66, 0)) -> 0.0854556 | E28: =IF(E9=1, Input!$F$19, IF(Sheet2!E9=2, E66, 0)) -> 0.08753825452 | F28: =IF(F9=1, Input!$F$19, IF(Sheet2!F9=2, F66, 0)) -> 0.08960164229 | G28: =IF(G9=1, Input!$F$19, IF(Sheet2!G9=2, G66, 0)) -> 0.09164530351 | H28: =IF(H9=1, Input!$F$19, IF(Sheet2!H9=2, H66, 0)) -> 0.09366881994 | I28: =IF(I9=1, Input!$F$19, IF(Sheet2!I9=2, I66, 0)) -> 0.09567181278 | J28: =IF(J9=1, Input!$F$19, IF(Sheet2!J9=2, J66, 0)) -> 0.0976539407 | K28: =IF(K9=1, Input!$F$19, IF(Sheet2!K9=2, K66, 0)) -> 0.09961489797 | L28: =IF(L9=1, Input!$F$19, IF(Sheet2!L9=2, L66, 0)) -> 0.1015544126 | M28: =IF(M9=1, Input!$F$19, IF(Sheet2!M9=2, M66, 0)) -> 0.1034722446 | N28: =IF(N9=1, Input!$F$19, IF(Sheet2!N9=2, N66, 0)) -> 0.1053681843 | O28: =IF(O9=1, Input!$F$19, IF(Sheet2!O9=2, O66, 0)) -> 0.1072420509 | P28: =IF(P9=1, Input!$F$19, IF(Sheet2!P9=2, P66, 0)) -> 0.08293488864 | Q28: =IF(Q9=1, Input!$F$19, IF(Sheet2!Q9=2, Q66, 0)) -> 0.08503996684 | R28: =IF(R9=1, Input!$F$19, IF(Sheet2!R9=2, R66, 0)) -> 0.08712638714 | S28: =IF(S9=1, Input!$F$19, IF(Sheet2!S9=2, S66, 0)) -> 0.08919363709 | T28: =IF(T9=1, Input!$F$19, IF(Sheet2!T9=2, T66, 0)) -> 0.09124124838 | U28: =IF(U9=1, Input!$F$19, IF(Sheet2!U9=2, U66, 0)) -> 0.09326879469 | V28: =IF(V9=1, Input!$F$19, IF(Sheet2!V9=2, V66, 0)) -> 0.09527588955 | W28: =IF(W9=1, Input!$F$19, IF(Sheet2!W9=2, W66, 0)) -> 0.1218773001 | X28: =IF(X9=1, Input!$F$19, IF(Sheet2!X9=2, X66, 0)) -> 0.124113975 | Y28: =IF(Y9=1, Input!$F$19, IF(Sheet2!Y9=2, Y66, 0)) -> 0.1011711573 | Z28: =IF(Z9=1, Input!$F$19, IF(Sheet2!Z9=2, Z66, 0)) -> 0.1030933107 | AA28: =IF(AA9=1, Input!$F$19, IF(Sheet2!AA9=2, AA66, 0)) -> 0.1049936111 | AB28: =IF(AB9=1, Input!$F$19, IF(Sheet2!AB9=2, AB66, 0)) -> 0.1323570213 | AC28: =IF(AC9=1, Input!$F$19, IF(Sheet2!AC9=2, AC66, 0)) -> 0.1342577243 | AD28: =IF(AD9=1, Input!$F$19, IF(Sheet2!AD9=2, AD66, 0)) -> 0.1105616661 | AE28: =IF(AE9=1, Input!$F$19, IF(Sheet2!AE9=2, AE66, 0)) -> 0.15270877 | AF28: =IF(AF9=1, Input!$F$19, IF(Sheet2!AF9=2, AF66, 0)) -> 0 | AG28: =IF(AG9=1, Input!$F$19, IF(Sheet2!AG9=2, AG66, 0)) -> 0 | AH28: =IF(AH9=1, Input!$F$19, IF(Sheet2!AH9=2, AH66, 0)) -> 0 | AI28: =IF(AI9=1, Input!$F$19, IF(Sheet2!AI9=2, AI66, 0)) -> 0 | AJ28: =IF(AJ9=1, Input!$F$19, IF(Sheet2!AJ9=2, AJ66, 0)) -> 0 | AK28: =IF(AK9=1, Input!$F$19, IF(Sheet2!AK9=2, AK66, 0)) -> 0 | AL28: =IF(AL9=1, Input!$F$19, IF(Sheet2!AL9=2, AL66, 0)) -> 0 | AM28: =IF(AM9=1, Input!$F$19, IF(Sheet2!AM9=2, AM66, 0)) -> 0 | AN28: =IF(AN9=1, Input!$F$19, IF(Sheet2!AN9=2, AN66, 0)) -> 0 | AO28: =IF(AO9=1, Input!$F$19, IF(Sheet2!AO9=2, AO66, 0)) -> 0 | AP28: =IF(AP9=1, Input!$F$19, IF(Sheet2!AP9=2, AP66, 0)) -> 0 | AQ28: =IF(AQ9=1, Input!$F$19, IF(Sheet2!AQ9=2, AQ66, 0)) -> 0 | AR28: =IF(AR9=1, Input!$F$19, IF(Sheet2!AR9=2, AR66, 0)) -> 0 | AS28: =IF(AS9=1, Input!$F$19, IF(Sheet2!AS9=2, AS66, 0)) -> 0 | AT28: =IF(AT9=1, Input!$F$19, IF(Sheet2!AT9=2, AT66, 0)) -> 0 | AU28: =IF(AU9=1, Input!$F$19, IF(Sheet2!AU9=2, AU66, 0)) -> 0 | AV28: =IF(AV9=1, Input!$F$19, IF(Sheet2!AV9=2, AV66, 0)) -> 0 | AW28: =IF(AW9=1, Input!$F$19, IF(Sheet2!AW9=2, AW66, 0)) -> 0 | AX28: =IF(AX9=1, Input!$F$19, IF(Sheet2!AX9=2, AX66, 0)) -> 0 | AY28: =IF(AY9=1, Input!$F$19, IF(Sheet2!AY9=2, AY66, 0)) -> 0 | AZ28: =IF(AZ9=1, Input!$F$19, IF(Sheet2!AZ9=2, AZ66, 0)) -> 0 | BA28: =IF(BA9=1, Input!$F$19, IF(Sheet2!BA9=2, BA66, 0)) -> 0 | BB28: =IF(BB9=1, Input!$F$19, IF(Sheet2!BB9=2, BB66, 0)) -> 0 | BC28: =IF(BC9=1, Input!$F$19, IF(Sheet2!BC9=2, BC66, 0)) -> 0 | BD28: =IF(BD9=1, Input!$F$19, IF(Sheet2!BD9=2, BD66, 0)) -> 0 | BE28: =IF(BE9=1, Input!$F$19, IF(Sheet2!BE9=2, BE66, 0)) -> 0 | BF28: =IF(BF9=1, Input!$F$19, IF(Sheet2!BF9=2, BF66, 0)) -> 0 | BG28: =IF(BG9=1, Input!$F$19, IF(Sheet2!BG9=2, BG66, 0)) -> 0 | BH28: =IF(BH9=1, Input!$F$19, IF(Sheet2!BH9=2, BH66, 0)) -> 0 | BI28: =IF(BI9=1, Input!$F$19, IF(Sheet2!BI9=2, BI66, 0)) -> 0 | BJ28: =IF(BJ9=1, Input!$F$19, IF(Sheet2!BJ9=2, BJ66, 0)) -> 0 | BK28: =IF(BK9=1, Input!$F$19, IF(Sheet2!BK9=2, BK66, 0)) -> 0 | BL28: =IF(BL9=1, Input!$F$19, IF(Sheet2!BL9=2, BL66, 0)) -> 0 | BM28: =IF(BM9=1, Input!$F$19, IF(Sheet2!BM9=2, BM66, 0)) -> 0 | BN28: =IF(BN9=1, Input!$F$19, IF(Sheet2!BN9=2, BN66, 0)) -> 0 | BO28: =IF(BO9=1, Input!$F$19, IF(Sheet2!BO9=2, BO66, 0)) -> 0 | BP28: =IF(BP9=1, Input!$F$19, IF(Sheet2!BP9=2, BP66, 0)) -> 0 | BQ28: =IF(BQ9=1, Input!$F$19, IF(Sheet2!BQ9=2, BQ66, 0)) -> 0 | BR28: =IF(BR9=1, Input!$F$19, IF(Sheet2!BR9=2, BR66, 0)) -> 0 | BS28: =IF(BS9=1, Input!$F$19, IF(Sheet2!BS9=2, BS66, 0)) -> 0 | BT28: =IF(BT9=1, Input!$F$19, IF(Sheet2!BT9=2, BT66, 0)) -> 0 | BU28: =IF(BU9=1, Input!$F$19, IF(Sheet2!BU9=2, BU66, 0)) -> 0 | BV28: =IF(BV9=1, Input!$F$19, IF(Sheet2!BV9=2, BV66, 0)) -> 0 | BW28: =IF(BW9=1, Input!$F$19, IF(Sheet2!BW9=2, BW66, 0)) -> 0 | BX28: =IF(BX9=1, Input!$F$19, IF(Sheet2!BX9=2, BX66, 0)) -> 0 | BY28: =IF(BY9=1, Input!$F$19, IF(Sheet2!BY9=2, BY66, 0)) -> 0 | BZ28: =IF(BZ9=1, Input!$F$19, IF(Sheet2!BZ9=2, BZ66, 0)) -> 0 | CA28: =IF(CA9=1, Input!$F$19, IF(Sheet2!CA9=2, CA66, 0)) -> 0 | CB28: =IF(CB9=1, Input!$F$19, IF(Sheet2!CB9=2, CB66, 0)) -> 0 | CC28: =IF(CC9=1, Input!$F$19, IF(Sheet2!CC9=2, CC66, 0)) -> 0 | CD28: =IF(CD9=1, Input!$F$19, IF(Sheet2!CD9=2, CD66, 0)) -> 0 | CE28: =IF(CE9=1, Input!$F$19, IF(Sheet2!CE9=2, CE66, 0)) -> 0 | CF28: =IF(CF9=1, Input!$F$19, IF(Sheet2!CF9=2, CF66, 0)) -> 0 | CG28: =IF(CG9=1, Input!$F$19, IF(Sheet2!CG9=2, CG66, 0)) -> 0 | CH28: =IF(CH9=1, Input!$F$19, IF(Sheet2!CH9=2, CH66, 0)) -> 0 | CI28: =IF(CI9=1, Input!$F$19, IF(Sheet2!CI9=2, CI66, 0)) -> 0 | CJ28: =IF(CJ9=1, Input!$F$19, IF(Sheet2!CJ9=2, CJ66, 0)) -> 0 | CK28: =IF(CK9=1, Input!$F$19, IF(Sheet2!CK9=2, CK66, 0)) -> 0 | CL28: =IF(CL9=1, Input!$F$19, IF(Sheet2!CL9=2, CL66, 0)) -> 0 | CM28: =IF(CM9=1, Input!$F$19, IF(Sheet2!CM9=2, CM66, 0)) -> 0 | CN28: =IF(CN9=1, Input!$F$19, IF(Sheet2!CN9=2, CN66, 0)) -> 0
A29: blended tax rate (capital + income) | C29: =IF(C9=1,Input!$F$8*C28+Input!$F$7*Input!$F$20*C17, IF(C9=2, C28*(Input!$C$8/(Input!$C$8+Input!$C$9))+Sheet2!C67*(Input!$C$9/(Input!$C$8+Input!$C$9)),0)) -> 0.1815 | D29: =IF(D9=1,Input!$F$8*D28+Input!$F$7*Input!$F$20*D17, IF(D9=2, D28*(Input!$C$8/(Input!$C$8+Input!$C$9))+Sheet2!D67*(Input!$C$9/(Input!$C$8+Input!$C$9)),0)) -> 0.08733553398 | E29: =IF(E9=1,Input!$F$8*E28+Input!$F$7*Input!$F$20*E17, IF(E9=2, E28*(Input!$C$8/(Input!$C$8+Input!$C$9))+Sheet2!E67*(Input!$C$9/(Input!$C$8+Input!$C$9)),0)) -> 0.08935752866 | F29: =IF(F9=1,Input!$F$8*F28+Input!$F$7*Input!$F$20*F17, IF(F9=2, F28*(Input!$C$8/(Input!$C$8+Input!$C$9))+Sheet2!F67*(Input!$C$9/(Input!$C$8+Input!$C$9)),0)) -> 0.09136081775 | G29: =IF(G9=1,Input!$F$8*G28+Input!$F$7*Input!$F$20*G17, IF(G9=2, G28*(Input!$C$8/(Input!$C$8+Input!$C$9))+Sheet2!G67*(Input!$C$9/(Input!$C$8+Input!$C$9)),0)) -> 0.09334495487 | H29: =IF(H9=1,Input!$F$8*H28+Input!$F$7*Input!$F$20*H17, IF(H9=2, H28*(Input!$C$8/(Input!$C$8+Input!$C$9))+Sheet2!H67*(Input!$C$9/(Input!$C$8+Input!$C$9)),0)) -> 0.09530953392 | I29: =IF(I9=1,Input!$F$8*I28+Input!$F$7*Input!$F$20*I17, IF(I9=2, I28*(Input!$C$8/(Input!$C$8+Input!$C$9))+Sheet2!I67*(Input!$C$9/(Input!$C$8+Input!$C$9)),0)) -> 0.09725418716 | J29: =IF(J9=1,Input!$F$8*J28+Input!$F$7*Input!$F$20*J17, IF(J9=2, J28*(Input!$C$8/(Input!$C$8+Input!$C$9))+Sheet2!J67*(Input!$C$9/(Input!$C$8+Input!$C$9)),0)) -> 0.0991785832 | K29: =IF(K9=1,Input!$F$8*K28+Input!$F$7*Input!$F$20*K17, IF(K9=2, K28*(Input!$C$8/(Input!$C$8+Input!$C$9))+Sheet2!K67*(Input!$C$9/(Input!$C$8+Input!$C$9)),0)) -> 0.1010824252 | L29: =IF(L9=1,Input!$F$8*L28+Input!$F$7*Input!$F$20*L17, IF(L9=2, L28*(Input!$C$8/(Input!$C$8+Input!$C$9))+Sheet2!L67*(Input!$C$9/(Input!$C$8+Input!$C$9)),0)) -> 0.1029654491 | M29: =IF(M9=1,Input!$F$8*M28+Input!$F$7*Input!$F$20*M17, IF(M9=2, M28*(Input!$C$8/(Input!$C$8+Input!$C$9))+Sheet2!M67*(Input!$C$9/(Input!$C$8+Input!$C$9)),0)) -> 0.1048274219 | N29: =IF(N9=1,Input!$F$8*N28+Input!$F$7*Input!$F$20*N17, IF(N9=2, N28*(Input!$C$8/(Input!$C$8+Input!$C$9))+Sheet2!N67*(Input!$C$9/(Input!$C$8+Input!$C$9)),0)) -> 0.1066681401 | O29: =IF(O9=1,Input!$F$8*O28+Input!$F$7*Input!$F$20*O17, IF(O9=2, O28*(Input!$C$8/(Input!$C$8+Input!$C$9))+Sheet2!O67*(Input!$C$9/(Input!$C$8+Input!$C$9)),0)) -> 0.1084874281 | P29: =IF(P9=1,Input!$F$8*P28+Input!$F$7*Input!$F$20*P17, IF(P9=2, P28*(Input!$C$8/(Input!$C$8+Input!$C$9))+Sheet2!P67*(Input!$C$9/(Input!$C$8+Input!$C$9)),0)) -> 0.08488824139 | Q29: =IF(Q9=1,Input!$F$8*Q28+Input!$F$7*Input!$F$20*Q17, IF(Q9=2, Q28*(Input!$C$8/(Input!$C$8+Input!$C$9))+Sheet2!Q67*(Input!$C$9/(Input!$C$8+Input!$C$9)),0)) -> 0.08693200664 | R29: =IF(R9=1,Input!$F$8*R28+Input!$F$7*Input!$F$20*R17, IF(R9=2, R28*(Input!$C$8/(Input!$C$8+Input!$C$9))+Sheet2!R67*(Input!$C$9/(Input!$C$8+Input!$C$9)),0)) -> 0.08895765742 | S29: =IF(S9=1,Input!$F$8*S28+Input!$F$7*Input!$F$20*S17, IF(S9=2, S28*(Input!$C$8/(Input!$C$8+Input!$C$9))+Sheet2!S67*(Input!$C$9/(Input!$C$8+Input!$C$9)),0)) -> 0.0909646962 | T29: =IF(T9=1,Input!$F$8*T28+Input!$F$7*Input!$F$20*T17, IF(T9=2, T28*(Input!$C$8/(Input!$C$8+Input!$C$9))+Sheet2!T67*(Input!$C$9/(Input!$C$8+Input!$C$9)),0)) -> 0.09295266833 | U29: =IF(U9=1,Input!$F$8*U28+Input!$F$7*Input!$F$20*U17, IF(U9=2, U28*(Input!$C$8/(Input!$C$8+Input!$C$9))+Sheet2!U67*(Input!$C$9/(Input!$C$8+Input!$C$9)),0)) -> 0.09492115989 | V29: =IF(V9=1,Input!$F$8*V28+Input!$F$7*Input!$F$20*V17, IF(V9=2, V28*(Input!$C$8/(Input!$C$8+Input!$C$9))+Sheet2!V67*(Input!$C$9/(Input!$C$8+Input!$C$9)),0)) -> 0.09686979568 | W29: =IF(W9=1,Input!$F$8*W28+Input!$F$7*Input!$F$20*W17, IF(W9=2, W28*(Input!$C$8/(Input!$C$8+Input!$C$9))+Sheet2!W67*(Input!$C$9/(Input!$C$8+Input!$C$9)),0)) -> 0.1226964078 | X29: =IF(X9=1,Input!$F$8*X28+Input!$F$7*Input!$F$20*X17, IF(X9=2, X28*(Input!$C$8/(Input!$C$8+Input!$C$9))+Sheet2!X67*(Input!$C$9/(Input!$C$8+Input!$C$9)),0)) -> 0.1248679369 | Y29: =IF(Y9=1,Input!$F$8*Y28+Input!$F$7*Input!$F$20*Y17, IF(Y9=2, Y28*(Input!$C$8/(Input!$C$8+Input!$C$9))+Sheet2!Y67*(Input!$C$9/(Input!$C$8+Input!$C$9)),0)) -> 0.1025933566 | Z29: =IF(Z9=1,Input!$F$8*Z28+Input!$F$7*Input!$F$20*Z17, IF(Z9=2, Z28*(Input!$C$8/(Input!$C$8+Input!$C$9))+Sheet2!Z67*(Input!$C$9/(Input!$C$8+Input!$C$9)),0)) -> 0.1044595249 | AA29: =IF(AA9=1,Input!$F$8*AA28+Input!$F$7*Input!$F$20*AA17, IF(AA9=2, AA28*(Input!$C$8/(Input!$C$8+Input!$C$9))+Sheet2!AA67*(Input!$C$9/(Input!$C$8+Input!$C$9)),0)) -> 0.1063044768 | AB29: =IF(AB9=1,Input!$F$8*AB28+Input!$F$7*Input!$F$20*AB17, IF(AB9=2, AB28*(Input!$C$8/(Input!$C$8+Input!$C$9))+Sheet2!AB67*(Input!$C$9/(Input!$C$8+Input!$C$9)),0)) -> 0.1328708944 | AC29: =IF(AC9=1,Input!$F$8*AC28+Input!$F$7*Input!$F$20*AC17, IF(AC9=2, AC28*(Input!$C$8/(Input!$C$8+Input!$C$9))+Sheet2!AC67*(Input!$C$9/(Input!$C$8+Input!$C$9)),0)) -> 0.1347162371 | AD29: =IF(AD9=1,Input!$F$8*AD28+Input!$F$7*Input!$F$20*AD17, IF(AD9=2, AD28*(Input!$C$8/(Input!$C$8+Input!$C$9))+Sheet2!AD67*(Input!$C$9/(Input!$C$8+Input!$C$9)),0)) -> 0.1117103554 | AE29: =IF(AE9=1,Input!$F$8*AE28+Input!$F$7*Input!$F$20*AE17, IF(AE9=2, AE28*(Input!$C$8/(Input!$C$8+Input!$C$9))+Sheet2!AE67*(Input!$C$9/(Input!$C$8+Input!$C$9)),0)) -> 0.1526298738 | AF29: =IF(AF9=1,Input!$F$8*AF28+Input!$F$7*Input!$F$20*AF17, IF(AF9=2, AF28*(Input!$C$8/(Input!$C$8+Input!$C$9))+Sheet2!AF67*(Input!$C$9/(Input!$C$8+Input!$C$9)),0)) -> 0 | AG29: =IF(AG9=1,Input!$F$8*AG28+Input!$F$7*Input!$F$20*AG17, IF(AG9=2, AG28*(Input!$C$8/(Input!$C$8+Input!$C$9))+Sheet2!AG67*(Input!$C$9/(Input!$C$8+Input!$C$9)),0)) -> 0 | AH29: =IF(AH9=1,Input!$F$8*AH28+Input!$F$7*Input!$F$20*AH17, IF(AH9=2, AH28*(Input!$C$8/(Input!$C$8+Input!$C$9))+Sheet2!AH67*(Input!$C$9/(Input!$C$8+Input!$C$9)),0)) -> 0 | AI29: =IF(AI9=1,Input!$F$8*AI28+Input!$F$7*Input!$F$20*AI17, IF(AI9=2, AI28*(Input!$C$8/(Input!$C$8+Input!$C$9))+Sheet2!AI67*(Input!$C$9/(Input!$C$8+Input!$C$9)),0)) -> 0 | AJ29: =IF(AJ9=1,Input!$F$8*AJ28+Input!$F$7*Input!$F$20*AJ17, IF(AJ9=2, AJ28*(Input!$C$8/(Input!$C$8+Input!$C$9))+Sheet2!AJ67*(Input!$C$9/(Input!$C$8+Input!$C$9)),0)) -> 0 | AK29: =IF(AK9=1,Input!$F$8*AK28+Input!$F$7*Input!$F$20*AK17, IF(AK9=2, AK28*(Input!$C$8/(Input!$C$8+Input!$C$9))+Sheet2!AK67*(Input!$C$9/(Input!$C$8+Input!$C$9)),0)) -> 0 | AL29: =IF(AL9=1,Input!$F$8*AL28+Input!$F$7*Input!$F$20*AL17, IF(AL9=2, AL28*(Input!$C$8/(Input!$C$8+Input!$C$9))+Sheet2!AL67*(Input!$C$9/(Input!$C$8+Input!$C$9)),0)) -> 0 | AM29: =IF(AM9=1,Input!$F$8*AM28+Input!$F$7*Input!$F$20*AM17, IF(AM9=2, AM28*(Input!$C$8/(Input!$C$8+Input!$C$9))+Sheet2!AM67*(Input!$C$9/(Input!$C$8+Input!$C$9)),0)) -> 0 | AN29: =IF(AN9=1,Input!$F$8*AN28+Input!$F$7*Input!$F$20*AN17, IF(AN9=2, AN28*(Input!$C$8/(Input!$C$8+Input!$C$9))+Sheet2!AN67*(Input!$C$9/(Input!$C$8+Input!$C$9)),0)) -> 0 | AO29: =IF(AO9=1,Input!$F$8*AO28+Input!$F$7*Input!$F$20*AO17, IF(AO9=2, AO28*(Input!$C$8/(Input!$C$8+Input!$C$9))+Sheet2!AO67*(Input!$C$9/(Input!$C$8+Input!$C$9)),0)) -> 0 | AP29: =IF(AP9=1,Input!$F$8*AP28+Input!$F$7*Input!$F$20*AP17, IF(AP9=2, AP28*(Input!$C$8/(Input!$C$8+Input!$C$9))+Sheet2!AP67*(Input!$C$9/(Input!$C$8+Input!$C$9)),0)) -> 0 | AQ29: =IF(AQ9=1,Input!$F$8*AQ28+Input!$F$7*Input!$F$20*AQ17, IF(AQ9=2, AQ28*(Input!$C$8/(Input!$C$8+Input!$C$9))+Sheet2!AQ67*(Input!$C$9/(Input!$C$8+Input!$C$9)),0)) -> 0 | AR29: =IF(AR9=1,Input!$F$8*AR28+Input!$F$7*Input!$F$20*AR17, IF(AR9=2, AR28*(Input!$C$8/(Input!$C$8+Input!$C$9))+Sheet2!AR67*(Input!$C$9/(Input!$C$8+Input!$C$9)),0)) -> 0 | AS29: =IF(AS9=1,Input!$F$8*AS28+Input!$F$7*Input!$F$20*AS17, IF(AS9=2, AS28*(Input!$C$8/(Input!$C$8+Input!$C$9))+Sheet2!AS67*(Input!$C$9/(Input!$C$8+Input!$C$9)),0)) -> 0 | AT29: =IF(AT9=1,Input!$F$8*AT28+Input!$F$7*Input!$F$20*AT17, IF(AT9=2, AT28*(Input!$C$8/(Input!$C$8+Input!$C$9))+Sheet2!AT67*(Input!$C$9/(Input!$C$8+Input!$C$9)),0)) -> 0 | AU29: =IF(AU9=1,Input!$F$8*AU28+Input!$F$7*Input!$F$20*AU17, IF(AU9=2, AU28*(Input!$C$8/(Input!$C$8+Input!$C$9))+Sheet2!AU67*(Input!$C$9/(Input!$C$8+Input!$C$9)),0)) -> 0 | AV29: =IF(AV9=1,Input!$F$8*AV28+Input!$F$7*Input!$F$20*AV17, IF(AV9=2, AV28*(Input!$C$8/(Input!$C$8+Input!$C$9))+Sheet2!AV67*(Input!$C$9/(Input!$C$8+Input!$C$9)),0)) -> 0 | AW29: =IF(AW9=1,Input!$F$8*AW28+Input!$F$7*Input!$F$20*AW17, IF(AW9=2, AW28*(Input!$C$8/(Input!$C$8+Input!$C$9))+Sheet2!AW67*(Input!$C$9/(Input!$C$8+Input!$C$9)),0)) -> 0 | AX29: =IF(AX9=1,Input!$F$8*AX28+Input!$F$7*Input!$F$20*AX17, IF(AX9=2, AX28*(Input!$C$8/(Input!$C$8+Input!$C$9))+Sheet2!AX67*(Input!$C$9/(Input!$C$8+Input!$C$9)),0)) -> 0 | AY29: =IF(AY9=1,Input!$F$8*AY28+Input!$F$7*Input!$F$20*AY17, IF(AY9=2, AY28*(Input!$C$8/(Input!$C$8+Input!$C$9))+Sheet2!AY67*(Input!$C$9/(Input!$C$8+Input!$C$9)),0)) -> 0 | AZ29: =IF(AZ9=1,Input!$F$8*AZ28+Input!$F$7*Input!$F$20*AZ17, IF(AZ9=2, AZ28*(Input!$C$8/(Input!$C$8+Input!$C$9))+Sheet2!AZ67*(Input!$C$9/(Input!$C$8+Input!$C$9)),0)) -> 0 | BA29: =IF(BA9=1,Input!$F$8*BA28+Input!$F$7*Input!$F$20*BA17, IF(BA9=2, BA28*(Input!$C$8/(Input!$C$8+Input!$C$9))+Sheet2!BA67*(Input!$C$9/(Input!$C$8+Input!$C$9)),0)) -> 0 | BB29: =IF(BB9=1,Input!$F$8*BB28+Input!$F$7*Input!$F$20*BB17, IF(BB9=2, BB28*(Input!$C$8/(Input!$C$8+Input!$C$9))+Sheet2!BB67*(Input!$C$9/(Input!$C$8+Input!$C$9)),0)) -> 0 | BC29: =IF(BC9=1,Input!$F$8*BC28+Input!$F$7*Input!$F$20*BC17, IF(BC9=2, BC28*(Input!$C$8/(Input!$C$8+Input!$C$9))+Sheet2!BC67*(Input!$C$9/(Input!$C$8+Input!$C$9)),0)) -> 0 | BD29: =IF(BD9=1,Input!$F$8*BD28+Input!$F$7*Input!$F$20*BD17, IF(BD9=2, BD28*(Input!$C$8/(Input!$C$8+Input!$C$9))+Sheet2!BD67*(Input!$C$9/(Input!$C$8+Input!$C$9)),0)) -> 0 | BE29: =IF(BE9=1,Input!$F$8*BE28+Input!$F$7*Input!$F$20*BE17, IF(BE9=2, BE28*(Input!$C$8/(Input!$C$8+Input!$C$9))+Sheet2!BE67*(Input!$C$9/(Input!$C$8+Input!$C$9)),0)) -> 0 | BF29: =IF(BF9=1,Input!$F$8*BF28+Input!$F$7*Input!$F$20*BF17, IF(BF9=2, BF28*(Input!$C$8/(Input!$C$8+Input!$C$9))+Sheet2!BF67*(Input!$C$9/(Input!$C$8+Input!$C$9)),0)) -> 0 | BG29: =IF(BG9=1,Input!$F$8*BG28+Input!$F$7*Input!$F$20*BG17, IF(BG9=2, BG28*(Input!$C$8/(Input!$C$8+Input!$C$9))+Sheet2!BG67*(Input!$C$9/(Input!$C$8+Input!$C$9)),0)) -> 0 | BH29: =IF(BH9=1,Input!$F$8*BH28+Input!$F$7*Input!$F$20*BH17, IF(BH9=2, BH28*(Input!$C$8/(Input!$C$8+Input!$C$9))+Sheet2!BH67*(Input!$C$9/(Input!$C$8+Input!$C$9)),0)) -> 0 | BI29: =IF(BI9=1,Input!$F$8*BI28+Input!$F$7*Input!$F$20*BI17, IF(BI9=2, BI28*(Input!$C$8/(Input!$C$8+Input!$C$9))+Sheet2!BI67*(Input!$C$9/(Input!$C$8+Input!$C$9)),0)) -> 0 | BJ29: =IF(BJ9=1,Input!$F$8*BJ28+Input!$F$7*Input!$F$20*BJ17, IF(BJ9=2, BJ28*(Input!$C$8/(Input!$C$8+Input!$C$9))+Sheet2!BJ67*(Input!$C$9/(Input!$C$8+Input!$C$9)),0)) -> 0 | BK29: =IF(BK9=1,Input!$F$8*BK28+Input!$F$7*Input!$F$20*BK17, IF(BK9=2, BK28*(Input!$C$8/(Input!$C$8+Input!$C$9))+Sheet2!BK67*(Input!$C$9/(Input!$C$8+Input!$C$9)),0)) -> 0 | BL29: =IF(BL9=1,Input!$F$8*BL28+Input!$F$7*Input!$F$20*BL17, IF(BL9=2, BL28*(Input!$C$8/(Input!$C$8+Input!$C$9))+Sheet2!BL67*(Input!$C$9/(Input!$C$8+Input!$C$9)),0)) -> 0 | BM29: =IF(BM9=1,Input!$F$8*BM28+Input!$F$7*Input!$F$20*BM17, IF(BM9=2, BM28*(Input!$C$8/(Input!$C$8+Input!$C$9))+Sheet2!BM67*(Input!$C$9/(Input!$C$8+Input!$C$9)),0)) -> 0 | BN29: =IF(BN9=1,Input!$F$8*BN28+Input!$F$7*Input!$F$20*BN17, IF(BN9=2, BN28*(Input!$C$8/(Input!$C$8+Input!$C$9))+Sheet2!BN67*(Input!$C$9/(Input!$C$8+Input!$C$9)),0)) -> 0 | BO29: =IF(BO9=1,Input!$F$8*BO28+Input!$F$7*Input!$F$20*BO17, IF(BO9=2, BO28*(Input!$C$8/(Input!$C$8+Input!$C$9))+Sheet2!BO67*(Input!$C$9/(Input!$C$8+Input!$C$9)),0)) -> 0 | BP29: =IF(BP9=1,Input!$F$8*BP28+Input!$F$7*Input!$F$20*BP17, IF(BP9=2, BP28*(Input!$C$8/(Input!$C$8+Input!$C$9))+Sheet2!BP67*(Input!$C$9/(Input!$C$8+Input!$C$9)),0)) -> 0 | BQ29: =IF(BQ9=1,Input!$F$8*BQ28+Input!$F$7*Input!$F$20*BQ17, IF(BQ9=2, BQ28*(Input!$C$8/(Input!$C$8+Input!$C$9))+Sheet2!BQ67*(Input!$C$9/(Input!$C$8+Input!$C$9)),0)) -> 0 | BR29: =IF(BR9=1,Input!$F$8*BR28+Input!$F$7*Input!$F$20*BR17, IF(BR9=2, BR28*(Input!$C$8/(Input!$C$8+Input!$C$9))+Sheet2!BR67*(Input!$C$9/(Input!$C$8+Input!$C$9)),0)) -> 0 | BS29: =IF(BS9=1,Input!$F$8*BS28+Input!$F$7*Input!$F$20*BS17, IF(BS9=2, BS28*(Input!$C$8/(Input!$C$8+Input!$C$9))+Sheet2!BS67*(Input!$C$9/(Input!$C$8+Input!$C$9)),0)) -> 0 | BT29: =IF(BT9=1,Input!$F$8*BT28+Input!$F$7*Input!$F$20*BT17, IF(BT9=2, BT28*(Input!$C$8/(Input!$C$8+Input!$C$9))+Sheet2!BT67*(Input!$C$9/(Input!$C$8+Input!$C$9)),0)) -> 0 | BU29: =IF(BU9=1,Input!$F$8*BU28+Input!$F$7*Input!$F$20*BU17, IF(BU9=2, BU28*(Input!$C$8/(Input!$C$8+Input!$C$9))+Sheet2!BU67*(Input!$C$9/(Input!$C$8+Input!$C$9)),0)) -> 0 | BV29: =IF(BV9=1,Input!$F$8*BV28+Input!$F$7*Input!$F$20*BV17, IF(BV9=2, BV28*(Input!$C$8/(Input!$C$8+Input!$C$9))+Sheet2!BV67*(Input!$C$9/(Input!$C$8+Input!$C$9)),0)) -> 0 | BW29: =IF(BW9=1,Input!$F$8*BW28+Input!$F$7*Input!$F$20*BW17, IF(BW9=2, BW28*(Input!$C$8/(Input!$C$8+Input!$C$9))+Sheet2!BW67*(Input!$C$9/(Input!$C$8+Input!$C$9)),0)) -> 0 | BX29: =IF(BX9=1,Input!$F$8*BX28+Input!$F$7*Input!$F$20*BX17, IF(BX9=2, BX28*(Input!$C$8/(Input!$C$8+Input!$C$9))+Sheet2!BX67*(Input!$C$9/(Input!$C$8+Input!$C$9)),0)) -> 0 | BY29: =IF(BY9=1,Input!$F$8*BY28+Input!$F$7*Input!$F$20*BY17, IF(BY9=2, BY28*(Input!$C$8/(Input!$C$8+Input!$C$9))+Sheet2!BY67*(Input!$C$9/(Input!$C$8+Input!$C$9)),0)) -> 0 | BZ29: =IF(BZ9=1,Input!$F$8*BZ28+Input!$F$7*Input!$F$20*BZ17, IF(BZ9=2, BZ28*(Input!$C$8/(Input!$C$8+Input!$C$9))+Sheet2!BZ67*(Input!$C$9/(Input!$C$8+Input!$C$9)),0)) -> 0 | CA29: =IF(CA9=1,Input!$F$8*CA28+Input!$F$7*Input!$F$20*CA17, IF(CA9=2, CA28*(Input!$C$8/(Input!$C$8+Input!$C$9))+Sheet2!CA67*(Input!$C$9/(Input!$C$8+Input!$C$9)),0)) -> 0 | CB29: =IF(CB9=1,Input!$F$8*CB28+Input!$F$7*Input!$F$20*CB17, IF(CB9=2, CB28*(Input!$C$8/(Input!$C$8+Input!$C$9))+Sheet2!CB67*(Input!$C$9/(Input!$C$8+Input!$C$9)),0)) -> 0 | CC29: =IF(CC9=1,Input!$F$8*CC28+Input!$F$7*Input!$F$20*CC17, IF(CC9=2, CC28*(Input!$C$8/(Input!$C$8+Input!$C$9))+Sheet2!CC67*(Input!$C$9/(Input!$C$8+Input!$C$9)),0)) -> 0 | CD29: =IF(CD9=1,Input!$F$8*CD28+Input!$F$7*Input!$F$20*CD17, IF(CD9=2, CD28*(Input!$C$8/(Input!$C$8+Input!$C$9))+Sheet2!CD67*(Input!$C$9/(Input!$C$8+Input!$C$9)),0)) -> 0 | CE29: =IF(CE9=1,Input!$F$8*CE28+Input!$F$7*Input!$F$20*CE17, IF(CE9=2, CE28*(Input!$C$8/(Input!$C$8+Input!$C$9))+Sheet2!CE67*(Input!$C$9/(Input!$C$8+Input!$C$9)),0)) -> 0 | CF29: =IF(CF9=1,Input!$F$8*CF28+Input!$F$7*Input!$F$20*CF17, IF(CF9=2, CF28*(Input!$C$8/(Input!$C$8+Input!$C$9))+Sheet2!CF67*(Input!$C$9/(Input!$C$8+Input!$C$9)),0)) -> 0 | CG29: =IF(CG9=1,Input!$F$8*CG28+Input!$F$7*Input!$F$20*CG17, IF(CG9=2, CG28*(Input!$C$8/(Input!$C$8+Input!$C$9))+Sheet2!CG67*(Input!$C$9/(Input!$C$8+Input!$C$9)),0)) -> 0 | CH29: =IF(CH9=1,Input!$F$8*CH28+Input!$F$7*Input!$F$20*CH17, IF(CH9=2, CH28*(Input!$C$8/(Input!$C$8+Input!$C$9))+Sheet2!CH67*(Input!$C$9/(Input!$C$8+Input!$C$9)),0)) -> 0 | CI29: =IF(CI9=1,Input!$F$8*CI28+Input!$F$7*Input!$F$20*CI17, IF(CI9=2, CI28*(Input!$C$8/(Input!$C$8+Input!$C$9))+Sheet2!CI67*(Input!$C$9/(Input!$C$8+Input!$C$9)),0)) -> 0 | CJ29: =IF(CJ9=1,Input!$F$8*CJ28+Input!$F$7*Input!$F$20*CJ17, IF(CJ9=2, CJ28*(Input!$C$8/(Input!$C$8+Input!$C$9))+Sheet2!CJ67*(Input!$C$9/(Input!$C$8+Input!$C$9)),0)) -> 0 | CK29: =IF(CK9=1,Input!$F$8*CK28+Input!$F$7*Input!$F$20*CK17, IF(CK9=2, CK28*(Input!$C$8/(Input!$C$8+Input!$C$9))+Sheet2!CK67*(Input!$C$9/(Input!$C$8+Input!$C$9)),0)) -> 0 | CL29: =IF(CL9=1,Input!$F$8*CL28+Input!$F$7*Input!$F$20*CL17, IF(CL9=2, CL28*(Input!$C$8/(Input!$C$8+Input!$C$9))+Sheet2!CL67*(Input!$C$9/(Input!$C$8+Input!$C$9)),0)) -> 0 | CM29: =IF(CM9=1,Input!$F$8*CM28+Input!$F$7*Input!$F$20*CM17, IF(CM9=2, CM28*(Input!$C$8/(Input!$C$8+Input!$C$9))+Sheet2!CM67*(Input!$C$9/(Input!$C$8+Input!$C$9)),0)) -> 0 | CN29: =IF(CN9=1,Input!$F$8*CN28+Input!$F$7*Input!$F$20*CN17, IF(CN9=2, CN28*(Input!$C$8/(Input!$C$8+Input!$C$9))+Sheet2!CN67*(Input!$C$9/(Input!$C$8+Input!$C$9)),0)) -> 0
C30: =IF(AND(C9=2,Input!$H$2=2), 1+B30, 0) -> 0 | D30: =IF(AND(D9=2,Input!$H$2=2), 1+C30, 0) -> 1 | E30: =IF(AND(E9=2,Input!$H$2=2), 1+D30, 0) -> 2 | F30: =IF(AND(F9=2,Input!$H$2=2), 1+E30, 0) -> 3 | G30: =IF(AND(G9=2,Input!$H$2=2), 1+F30, 0) -> 4 | H30: =IF(AND(H9=2,Input!$H$2=2), 1+G30, 0) -> 5 | I30: =IF(AND(I9=2,Input!$H$2=2), 1+H30, 0) -> 6 | J30: =IF(AND(J9=2,Input!$H$2=2), 1+I30, 0) -> 7 | K30: =IF(AND(K9=2,Input!$H$2=2), 1+J30, 0) -> 8 | L30: =IF(AND(L9=2,Input!$H$2=2), 1+K30, 0) -> 9 | M30: =IF(AND(M9=2,Input!$H$2=2), 1+L30, 0) -> 10 | N30: =IF(AND(N9=2,Input!$H$2=2), 1+M30, 0) -> 11 | O30: =IF(AND(O9=2,Input!$H$2=2), 1+N30, 0) -> 12 | P30: =IF(AND(P9=2,Input!$H$2=2), 1+O30, 0) -> 13 | Q30: =IF(AND(Q9=2,Input!$H$2=2), 1+P30, 0) -> 14 | R30: =IF(AND(R9=2,Input!$H$2=2), 1+Q30, 0) -> 15 | S30: =IF(AND(S9=2,Input!$H$2=2), 1+R30, 0) -> 16 | T30: =IF(AND(T9=2,Input!$H$2=2), 1+S30, 0) -> 17 | U30: =IF(AND(U9=2,Input!$H$2=2), 1+T30, 0) -> 18 | V30: =IF(AND(V9=2,Input!$H$2=2), 1+U30, 0) -> 19 | W30: =IF(AND(W9=2,Input!$H$2=2), 1+V30, 0) -> 20 | X30: =IF(AND(X9=2,Input!$H$2=2), 1+W30, 0) -> 21 | Y30: =IF(AND(Y9=2,Input!$H$2=2), 1+X30, 0) -> 22 | Z30: =IF(AND(Z9=2,Input!$H$2=2), 1+Y30, 0) -> 23 | AA30: =IF(AND(AA9=2,Input!$H$2=2), 1+Z30, 0) -> 24 | AB30: =IF(AND(AB9=2,Input!$H$2=2), 1+AA30, 0) -> 25 | AC30: =IF(AND(AC9=2,Input!$H$2=2), 1+AB30, 0) -> 26 | AD30: =IF(AND(AD9=2,Input!$H$2=2), 1+AC30, 0) -> 27 | AE30: =IF(AND(AE9=2,Input!$H$2=2), 1+AD30, 0) -> 28 | AF30: =IF(AND(AF9=2,Input!$H$2=2), 1+AE30, 0) -> 0 | AG30: =IF(AND(AG9=2,Input!$H$2=2), 1+AF30, 0) -> 0 | AH30: =IF(AND(AH9=2,Input!$H$2=2), 1+AG30, 0) -> 0 | AI30: =IF(AND(AI9=2,Input!$H$2=2), 1+AH30, 0) -> 0 | AJ30: =IF(AND(AJ9=2,Input!$H$2=2), 1+AI30, 0) -> 0 | AK30: =IF(AND(AK9=2,Input!$H$2=2), 1+AJ30, 0) -> 0 | AL30: =IF(AND(AL9=2,Input!$H$2=2), 1+AK30, 0) -> 0 | AM30: =IF(AND(AM9=2,Input!$H$2=2), 1+AL30, 0) -> 0 | AN30: =IF(AND(AN9=2,Input!$H$2=2), 1+AM30, 0) -> 0 | AO30: =IF(AND(AO9=2,Input!$H$2=2), 1+AN30, 0) -> 0 | AP30: =IF(AND(AP9=2,Input!$H$2=2), 1+AO30, 0) -> 0 | AQ30: =IF(AND(AQ9=2,Input!$H$2=2), 1+AP30, 0) -> 0 | AR30: =IF(AND(AR9=2,Input!$H$2=2), 1+AQ30, 0) -> 0 | AS30: =IF(AND(AS9=2,Input!$H$2=2), 1+AR30, 0) -> 0 | AT30: =IF(AND(AT9=2,Input!$H$2=2), 1+AS30, 0) -> 0 | AU30: =IF(AND(AU9=2,Input!$H$2=2), 1+AT30, 0) -> 0 | AV30: =IF(AND(AV9=2,Input!$H$2=2), 1+AU30, 0) -> 0 | AW30: =IF(AND(AW9=2,Input!$H$2=2), 1+AV30, 0) -> 0 | AX30: =IF(AND(AX9=2,Input!$H$2=2), 1+AW30, 0) -> 0 | AY30: =IF(AND(AY9=2,Input!$H$2=2), 1+AX30, 0) -> 0 | AZ30: =IF(AND(AZ9=2,Input!$H$2=2), 1+AY30, 0) -> 0 | BA30: =IF(AND(BA9=2,Input!$H$2=2), 1+AZ30, 0) -> 0 | BB30: =IF(AND(BB9=2,Input!$H$2=2), 1+BA30, 0) -> 0 | BC30: =IF(AND(BC9=2,Input!$H$2=2), 1+BB30, 0) -> 0 | BD30: =IF(AND(BD9=2,Input!$H$2=2), 1+BC30, 0) -> 0 | BE30: =IF(AND(BE9=2,Input!$H$2=2), 1+BD30, 0) -> 0 | BF30: =IF(AND(BF9=2,Input!$H$2=2), 1+BE30, 0) -> 0 | BG30: =IF(AND(BG9=2,Input!$H$2=2), 1+BF30, 0) -> 0 | BH30: =IF(AND(BH9=2,Input!$H$2=2), 1+BG30, 0) -> 0 | BI30: =IF(AND(BI9=2,Input!$H$2=2), 1+BH30, 0) -> 0 | BJ30: =IF(AND(BJ9=2,Input!$H$2=2), 1+BI30, 0) -> 0 | BK30: =IF(AND(BK9=2,Input!$H$2=2), 1+BJ30, 0) -> 0 | BL30: =IF(AND(BL9=2,Input!$H$2=2), 1+BK30, 0) -> 0 | BM30: =IF(AND(BM9=2,Input!$H$2=2), 1+BL30, 0) -> 0 | BN30: =IF(AND(BN9=2,Input!$H$2=2), 1+BM30, 0) -> 0 | BO30: =IF(AND(BO9=2,Input!$H$2=2), 1+BN30, 0) -> 0 | BP30: =IF(AND(BP9=2,Input!$H$2=2), 1+BO30, 0) -> 0 | BQ30: =IF(AND(BQ9=2,Input!$H$2=2), 1+BP30, 0) -> 0 | BR30: =IF(AND(BR9=2,Input!$H$2=2), 1+BQ30, 0) -> 0 | BS30: =IF(AND(BS9=2,Input!$H$2=2), 1+BR30, 0) -> 0 | BT30: =IF(AND(BT9=2,Input!$H$2=2), 1+BS30, 0) -> 0 | BU30: =IF(AND(BU9=2,Input!$H$2=2), 1+BT30, 0) -> 0 | BV30: =IF(AND(BV9=2,Input!$H$2=2), 1+BU30, 0) -> 0 | BW30: =IF(AND(BW9=2,Input!$H$2=2), 1+BV30, 0) -> 0 | BX30: =IF(AND(BX9=2,Input!$H$2=2), 1+BW30, 0) -> 0 | BY30: =IF(AND(BY9=2,Input!$H$2=2), 1+BX30, 0) -> 0 | BZ30: =IF(AND(BZ9=2,Input!$H$2=2), 1+BY30, 0) -> 0 | CA30: =IF(AND(CA9=2,Input!$H$2=2), 1+BZ30, 0) -> 0 | CB30: =IF(AND(CB9=2,Input!$H$2=2), 1+CA30, 0) -> 0 | CC30: =IF(AND(CC9=2,Input!$H$2=2), 1+CB30, 0) -> 0 | CD30: =IF(AND(CD9=2,Input!$H$2=2), 1+CC30, 0) -> 0 | CE30: =IF(AND(CE9=2,Input!$H$2=2), 1+CD30, 0) -> 0 | CF30: =IF(AND(CF9=2,Input!$H$2=2), 1+CE30, 0) -> 0 | CG30: =IF(AND(CG9=2,Input!$H$2=2), 1+CF30, 0) -> 0 | CH30: =IF(AND(CH9=2,Input!$H$2=2), 1+CG30, 0) -> 0 | CI30: =IF(AND(CI9=2,Input!$H$2=2), 1+CH30, 0) -> 0 | CJ30: =IF(AND(CJ9=2,Input!$H$2=2), 1+CI30, 0) -> 0 | CK30: =IF(AND(CK9=2,Input!$H$2=2), 1+CJ30, 0) -> 0 | CL30: =IF(AND(CL9=2,Input!$H$2=2), 1+CK30, 0) -> 0 | CM30: =IF(AND(CM9=2,Input!$H$2=2), 1+CL30, 0) -> 0 | CN30: =IF(AND(CN9=2,Input!$H$2=2), 1+CM30, 0) -> 0
C31: =C30/$D$3 -> 0 | D31: =D30/$D$3 -> 0.03571428571 | E31: 0.07142857143 | F31: 0.1071428571 | G31: 0.1428571429 | H31: 0.1785714286 | I31: 0.2142857143 | J31: 0.25 | K31: 0.2857142857 | L31: 0.3214285714 | M31: 0.3571428571 | N31: 0.3928571429 | O31: 0.4285714286 | P31: 0.4642857143 | Q31: 0.5 | R31: 0.5357142857 | S31: 0.5714285714 | T31: 0.6071428571 | U31: 0.6428571429 | V31: 0.6785714286 | W31: 0.7142857143 | X31: 0.75 | Y31: 0.7857142857 | Z31: 0.8214285714 | AA31: 0.8571428571 | AB31: 0.8928571429 | AC31: 0.9285714286 | AD31: 0.9642857143 | AE31: 1 | AF31: 0 | AG31: 0 | AH31: 0 | AI31: 0 | AJ31: 0 | AK31: 0 | AL31: 0 | AM31: 0 | AN31: 0 | AO31: 0 | AP31: 0 | AQ31: 0 | AR31: 0 | AS31: 0 | AT31: 0 | AU31: 0 | AV31: 0 | AW31: 0 | AX31: 0 | AY31: 0 | AZ31: 0 | BA31: 0 | BB31: 0 | BC31: 0 | BD31: 0 | BE31: 0 | BF31: 0 | BG31: 0 | BH31: 0 | BI31: 0 | BJ31: 0 | BK31: 0 | BL31: 0 | BM31: 0 | BN31: 0 | BO31: 0 | BP31: =BP30/$D$3 -> 0 | BQ31: 0 | BR31: 0 | BS31: 0 | BT31: 0 | BU31: 0 | BV31: 0 | BW31: 0 | BX31: 0 | BY31: 0 | BZ31: 0 | CA31: 0 | CB31: 0 | CC31: 0 | CD31: 0 | CE31: 0 | CF31: 0 | CG31: 0 | CH31: 0 | CI31: 0 | CJ31: 0 | CK31: 0 | CL31: 0 | CM31: 0 | CN31: 0
C32: =IF(AND(Input!$H$2=1,Sheet2!C9=2), Input!$F$4, IF(C30>0,((Input!$H$4-Input!$G$4)*Sheet2!C31+Input!$G$4),0)) -> 0 | D32: =IF(AND(Input!$H$2=1,Sheet2!D9=2), Input!$F$4, IF(D30>0,((Input!$H$4-Input!$G$4)*Sheet2!D31+Input!$G$4),0)) -> 0.3482142857 | E32: =IF(AND(Input!$H$2=1,Sheet2!E9=2), Input!$F$4, IF(E30>0,((Input!$H$4-Input!$G$4)*Sheet2!E31+Input!$G$4),0)) -> 0.3464285714 | F32: =IF(AND(Input!$H$2=1,Sheet2!F9=2), Input!$F$4, IF(F30>0,((Input!$H$4-Input!$G$4)*Sheet2!F31+Input!$G$4),0)) -> 0.3446428571 | G32: =IF(AND(Input!$H$2=1,Sheet2!G9=2), Input!$F$4, IF(G30>0,((Input!$H$4-Input!$G$4)*Sheet2!G31+Input!$G$4),0)) -> 0.3428571429 | H32: =IF(AND(Input!$H$2=1,Sheet2!H9=2), Input!$F$4, IF(H30>0,((Input!$H$4-Input!$G$4)*Sheet2!H31+Input!$G$4),0)) -> 0.3410714286 | I32: =IF(AND(Input!$H$2=1,Sheet2!I9=2), Input!$F$4, IF(I30>0,((Input!$H$4-Input!$G$4)*Sheet2!I31+Input!$G$4),0)) -> 0.3392857143 | J32: =IF(AND(Input!$H$2=1,Sheet2!J9=2), Input!$F$4, IF(J30>0,((Input!$H$4-Input!$G$4)*Sheet2!J31+Input!$G$4),0)) -> 0.3375 | K32: =IF(AND(Input!$H$2=1,Sheet2!K9=2), Input!$F$4, IF(K30>0,((Input!$H$4-Input!$G$4)*Sheet2!K31+Input!$G$4),0)) -> 0.3357142857 | L32: =IF(AND(Input!$H$2=1,Sheet2!L9=2), Input!$F$4, IF(L30>0,((Input!$H$4-Input!$G$4)*Sheet2!L31+Input!$G$4),0)) -> 0.3339285714 | M32: =IF(AND(Input!$H$2=1,Sheet2!M9=2), Input!$F$4, IF(M30>0,((Input!$H$4-Input!$G$4)*Sheet2!M31+Input!$G$4),0)) -> 0.3321428571 | N32: =IF(AND(Input!$H$2=1,Sheet2!N9=2), Input!$F$4, IF(N30>0,((Input!$H$4-Input!$G$4)*Sheet2!N31+Input!$G$4),0)) -> 0.3303571429 | O32: =IF(AND(Input!$H$2=1,Sheet2!O9=2), Input!$F$4, IF(O30>0,((Input!$H$4-Input!$G$4)*Sheet2!O31+Input!$G$4),0)) -> 0.3285714286 | P32: =IF(AND(Input!$H$2=1,Sheet2!P9=2), Input!$F$4, IF(P30>0,((Input!$H$4-Input!$G$4)*Sheet2!P31+Input!$G$4),0)) -> 0.3267857143 | Q32: =IF(AND(Input!$H$2=1,Sheet2!Q9=2), Input!$F$4, IF(Q30>0,((Input!$H$4-Input!$G$4)*Sheet2!Q31+Input!$G$4),0)) -> 0.325 | R32: =IF(AND(Input!$H$2=1,Sheet2!R9=2), Input!$F$4, IF(R30>0,((Input!$H$4-Input!$G$4)*Sheet2!R31+Input!$G$4),0)) -> 0.3232142857 | S32: =IF(AND(Input!$H$2=1,Sheet2!S9=2), Input!$F$4, IF(S30>0,((Input!$H$4-Input!$G$4)*Sheet2!S31+Input!$G$4),0)) -> 0.3214285714 | T32: =IF(AND(Input!$H$2=1,Sheet2!T9=2), Input!$F$4, IF(T30>0,((Input!$H$4-Input!$G$4)*Sheet2!T31+Input!$G$4),0)) -> 0.3196428571 | U32: =IF(AND(Input!$H$2=1,Sheet2!U9=2), Input!$F$4, IF(U30>0,((Input!$H$4-Input!$G$4)*Sheet2!U31+Input!$G$4),0)) -> 0.3178571429 | V32: =IF(AND(Input!$H$2=1,Sheet2!V9=2), Input!$F$4, IF(V30>0,((Input!$H$4-Input!$G$4)*Sheet2!V31+Input!$G$4),0)) -> 0.3160714286 | W32: =IF(AND(Input!$H$2=1,Sheet2!W9=2), Input!$F$4, IF(W30>0,((Input!$H$4-Input!$G$4)*Sheet2!W31+Input!$G$4),0)) -> 0.3142857143 | X32: =IF(AND(Input!$H$2=1,Sheet2!X9=2), Input!$F$4, IF(X30>0,((Input!$H$4-Input!$G$4)*Sheet2!X31+Input!$G$4),0)) -> 0.3125 | Y32: =IF(AND(Input!$H$2=1,Sheet2!Y9=2), Input!$F$4, IF(Y30>0,((Input!$H$4-Input!$G$4)*Sheet2!Y31+Input!$G$4),0)) -> 0.3107142857 | Z32: =IF(AND(Input!$H$2=1,Sheet2!Z9=2), Input!$F$4, IF(Z30>0,((Input!$H$4-Input!$G$4)*Sheet2!Z31+Input!$G$4),0)) -> 0.3089285714 | AA32: =IF(AND(Input!$H$2=1,Sheet2!AA9=2), Input!$F$4, IF(AA30>0,((Input!$H$4-Input!$G$4)*Sheet2!AA31+Input!$G$4),0)) -> 0.3071428571 | AB32: =IF(AND(Input!$H$2=1,Sheet2!AB9=2), Input!$F$4, IF(AB30>0,((Input!$H$4-Input!$G$4)*Sheet2!AB31+Input!$G$4),0)) -> 0.3053571429 | AC32: =IF(AND(Input!$H$2=1,Sheet2!AC9=2), Input!$F$4, IF(AC30>0,((Input!$H$4-Input!$G$4)*Sheet2!AC31+Input!$G$4),0)) -> 0.3035714286 | AD32: =IF(AND(Input!$H$2=1,Sheet2!AD9=2), Input!$F$4, IF(AD30>0,((Input!$H$4-Input!$G$4)*Sheet2!AD31+Input!$G$4),0)) -> 0.3017857143 | AE32: =IF(AND(Input!$H$2=1,Sheet2!AE9=2), Input!$F$4, IF(AE30>0,((Input!$H$4-Input!$G$4)*Sheet2!AE31+Input!$G$4),0)) -> 0.3 | AF32: =IF(AND(Input!$H$2=1,Sheet2!AF9=2), Input!$F$4, IF(AF30>0,((Input!$H$4-Input!$G$4)*Sheet2!AF31+Input!$G$4),0)) -> 0 | AG32: =IF(AND(Input!$H$2=1,Sheet2!AG9=2), Input!$F$4, IF(AG30>0,((Input!$H$4-Input!$G$4)*Sheet2!AG31+Input!$G$4),0)) -> 0 | AH32: =IF(AND(Input!$H$2=1,Sheet2!AH9=2), Input!$F$4, IF(AH30>0,((Input!$H$4-Input!$G$4)*Sheet2!AH31+Input!$G$4),0)) -> 0 | AI32: =IF(AND(Input!$H$2=1,Sheet2!AI9=2), Input!$F$4, IF(AI30>0,((Input!$H$4-Input!$G$4)*Sheet2!AI31+Input!$G$4),0)) -> 0 | AJ32: =IF(AND(Input!$H$2=1,Sheet2!AJ9=2), Input!$F$4, IF(AJ30>0,((Input!$H$4-Input!$G$4)*Sheet2!AJ31+Input!$G$4),0)) -> 0 | AK32: =IF(AND(Input!$H$2=1,Sheet2!AK9=2), Input!$F$4, IF(AK30>0,((Input!$H$4-Input!$G$4)*Sheet2!AK31+Input!$G$4),0)) -> 0 | AL32: =IF(AND(Input!$H$2=1,Sheet2!AL9=2), Input!$F$4, IF(AL30>0,((Input!$H$4-Input!$G$4)*Sheet2!AL31+Input!$G$4),0)) -> 0 | AM32: =IF(AND(Input!$H$2=1,Sheet2!AM9=2), Input!$F$4, IF(AM30>0,((Input!$H$4-Input!$G$4)*Sheet2!AM31+Input!$G$4),0)) -> 0 | AN32: =IF(AND(Input!$H$2=1,Sheet2!AN9=2), Input!$F$4, IF(AN30>0,((Input!$H$4-Input!$G$4)*Sheet2!AN31+Input!$G$4),0)) -> 0 | AO32: =IF(AND(Input!$H$2=1,Sheet2!AO9=2), Input!$F$4, IF(AO30>0,((Input!$H$4-Input!$G$4)*Sheet2!AO31+Input!$G$4),0)) -> 0 | AP32: =IF(AND(Input!$H$2=1,Sheet2!AP9=2), Input!$F$4, IF(AP30>0,((Input!$H$4-Input!$G$4)*Sheet2!AP31+Input!$G$4),0)) -> 0 | AQ32: =IF(AND(Input!$H$2=1,Sheet2!AQ9=2), Input!$F$4, IF(AQ30>0,((Input!$H$4-Input!$G$4)*Sheet2!AQ31+Input!$G$4),0)) -> 0 | AR32: =IF(AND(Input!$H$2=1,Sheet2!AR9=2), Input!$F$4, IF(AR30>0,((Input!$H$4-Input!$G$4)*Sheet2!AR31+Input!$G$4),0)) -> 0 | AS32: =IF(AND(Input!$H$2=1,Sheet2!AS9=2), Input!$F$4, IF(AS30>0,((Input!$H$4-Input!$G$4)*Sheet2!AS31+Input!$G$4),0)) -> 0 | AT32: =IF(AND(Input!$H$2=1,Sheet2!AT9=2), Input!$F$4, IF(AT30>0,((Input!$H$4-Input!$G$4)*Sheet2!AT31+Input!$G$4),0)) -> 0 | AU32: =IF(AND(Input!$H$2=1,Sheet2!AU9=2), Input!$F$4, IF(AU30>0,((Input!$H$4-Input!$G$4)*Sheet2!AU31+Input!$G$4),0)) -> 0 | AV32: =IF(AND(Input!$H$2=1,Sheet2!AV9=2), Input!$F$4, IF(AV30>0,((Input!$H$4-Input!$G$4)*Sheet2!AV31+Input!$G$4),0)) -> 0 | AW32: =IF(AND(Input!$H$2=1,Sheet2!AW9=2), Input!$F$4, IF(AW30>0,((Input!$H$4-Input!$G$4)*Sheet2!AW31+Input!$G$4),0)) -> 0 | AX32: =IF(AND(Input!$H$2=1,Sheet2!AX9=2), Input!$F$4, IF(AX30>0,((Input!$H$4-Input!$G$4)*Sheet2!AX31+Input!$G$4),0)) -> 0 | AY32: =IF(AND(Input!$H$2=1,Sheet2!AY9=2), Input!$F$4, IF(AY30>0,((Input!$H$4-Input!$G$4)*Sheet2!AY31+Input!$G$4),0)) -> 0 | AZ32: =IF(AND(Input!$H$2=1,Sheet2!AZ9=2), Input!$F$4, IF(AZ30>0,((Input!$H$4-Input!$G$4)*Sheet2!AZ31+Input!$G$4),0)) -> 0 | BA32: =IF(AND(Input!$H$2=1,Sheet2!BA9=2), Input!$F$4, IF(BA30>0,((Input!$H$4-Input!$G$4)*Sheet2!BA31+Input!$G$4),0)) -> 0 | BB32: =IF(AND(Input!$H$2=1,Sheet2!BB9=2), Input!$F$4, IF(BB30>0,((Input!$H$4-Input!$G$4)*Sheet2!BB31+Input!$G$4),0)) -> 0 | BC32: =IF(AND(Input!$H$2=1,Sheet2!BC9=2), Input!$F$4, IF(BC30>0,((Input!$H$4-Input!$G$4)*Sheet2!BC31+Input!$G$4),0)) -> 0 | BD32: =IF(AND(Input!$H$2=1,Sheet2!BD9=2), Input!$F$4, IF(BD30>0,((Input!$H$4-Input!$G$4)*Sheet2!BD31+Input!$G$4),0)) -> 0 | BE32: =IF(AND(Input!$H$2=1,Sheet2!BE9=2), Input!$F$4, IF(BE30>0,((Input!$H$4-Input!$G$4)*Sheet2!BE31+Input!$G$4),0)) -> 0 | BF32: =IF(AND(Input!$H$2=1,Sheet2!BF9=2), Input!$F$4, IF(BF30>0,((Input!$H$4-Input!$G$4)*Sheet2!BF31+Input!$G$4),0)) -> 0 | BG32: =IF(AND(Input!$H$2=1,Sheet2!BG9=2), Input!$F$4, IF(BG30>0,((Input!$H$4-Input!$G$4)*Sheet2!BG31+Input!$G$4),0)) -> 0 | BH32: =IF(AND(Input!$H$2=1,Sheet2!BH9=2), Input!$F$4, IF(BH30>0,((Input!$H$4-Input!$G$4)*Sheet2!BH31+Input!$G$4),0)) -> 0 | BI32: =IF(AND(Input!$H$2=1,Sheet2!BI9=2), Input!$F$4, IF(BI30>0,((Input!$H$4-Input!$G$4)*Sheet2!BI31+Input!$G$4),0)) -> 0 | BJ32: =IF(AND(Input!$H$2=1,Sheet2!BJ9=2), Input!$F$4, IF(BJ30>0,((Input!$H$4-Input!$G$4)*Sheet2!BJ31+Input!$G$4),0)) -> 0 | BK32: =IF(AND(Input!$H$2=1,Sheet2!BK9=2), Input!$F$4, IF(BK30>0,((Input!$H$4-Input!$G$4)*Sheet2!BK31+Input!$G$4),0)) -> 0 | BL32: =IF(AND(Input!$H$2=1,Sheet2!BL9=2), Input!$F$4, IF(BL30>0,((Input!$H$4-Input!$G$4)*Sheet2!BL31+Input!$G$4),0)) -> 0 | BM32: =IF(AND(Input!$H$2=1,Sheet2!BM9=2), Input!$F$4, IF(BM30>0,((Input!$H$4-Input!$G$4)*Sheet2!BM31+Input!$G$4),0)) -> 0 | BN32: =IF(AND(Input!$H$2=1,Sheet2!BN9=2), Input!$F$4, IF(BN30>0,((Input!$H$4-Input!$G$4)*Sheet2!BN31+Input!$G$4),0)) -> 0 | BO32: =IF(AND(Input!$H$2=1,Sheet2!BO9=2), Input!$F$4, IF(BO30>0,((Input!$H$4-Input!$G$4)*Sheet2!BO31+Input!$G$4),0)) -> 0 | BP32: =IF(AND(Input!$H$2=1,Sheet2!BP9=2), Input!$F$4, IF(BP30>0,((Input!$H$4-Input!$G$4)*Sheet2!BP31+Input!$G$4),0)) -> 0 | BQ32: =IF(AND(Input!$H$2=1,Sheet2!BQ9=2), Input!$F$4, IF(BQ30>0,((Input!$H$4-Input!$G$4)*Sheet2!BQ31+Input!$G$4),0)) -> 0 | BR32: =IF(AND(Input!$H$2=1,Sheet2!BR9=2), Input!$F$4, IF(BR30>0,((Input!$H$4-Input!$G$4)*Sheet2!BR31+Input!$G$4),0)) -> 0 | BS32: =IF(AND(Input!$H$2=1,Sheet2!BS9=2), Input!$F$4, IF(BS30>0,((Input!$H$4-Input!$G$4)*Sheet2!BS31+Input!$G$4),0)) -> 0 | BT32: =IF(AND(Input!$H$2=1,Sheet2!BT9=2), Input!$F$4, IF(BT30>0,((Input!$H$4-Input!$G$4)*Sheet2!BT31+Input!$G$4),0)) -> 0 | BU32: =IF(AND(Input!$H$2=1,Sheet2!BU9=2), Input!$F$4, IF(BU30>0,((Input!$H$4-Input!$G$4)*Sheet2!BU31+Input!$G$4),0)) -> 0 | BV32: =IF(AND(Input!$H$2=1,Sheet2!BV9=2), Input!$F$4, IF(BV30>0,((Input!$H$4-Input!$G$4)*Sheet2!BV31+Input!$G$4),0)) -> 0 | BW32: =IF(AND(Input!$H$2=1,Sheet2!BW9=2), Input!$F$4, IF(BW30>0,((Input!$H$4-Input!$G$4)*Sheet2!BW31+Input!$G$4),0)) -> 0 | BX32: =IF(AND(Input!$H$2=1,Sheet2!BX9=2), Input!$F$4, IF(BX30>0,((Input!$H$4-Input!$G$4)*Sheet2!BX31+Input!$G$4),0)) -> 0 | BY32: =IF(AND(Input!$H$2=1,Sheet2!BY9=2), Input!$F$4, IF(BY30>0,((Input!$H$4-Input!$G$4)*Sheet2!BY31+Input!$G$4),0)) -> 0 | BZ32: =IF(AND(Input!$H$2=1,Sheet2!BZ9=2), Input!$F$4, IF(BZ30>0,((Input!$H$4-Input!$G$4)*Sheet2!BZ31+Input!$G$4),0)) -> 0 | CA32: =IF(AND(Input!$H$2=1,Sheet2!CA9=2), Input!$F$4, IF(CA30>0,((Input!$H$4-Input!$G$4)*Sheet2!CA31+Input!$G$4),0)) -> 0 | CB32: =IF(AND(Input!$H$2=1,Sheet2!CB9=2), Input!$F$4, IF(CB30>0,((Input!$H$4-Input!$G$4)*Sheet2!CB31+Input!$G$4),0)) -> 0 | CC32: =IF(AND(Input!$H$2=1,Sheet2!CC9=2), Input!$F$4, IF(CC30>0,((Input!$H$4-Input!$G$4)*Sheet2!CC31+Input!$G$4),0)) -> 0 | CD32: =IF(AND(Input!$H$2=1,Sheet2!CD9=2), Input!$F$4, IF(CD30>0,((Input!$H$4-Input!$G$4)*Sheet2!CD31+Input!$G$4),0)) -> 0 | CE32: =IF(AND(Input!$H$2=1,Sheet2!CE9=2), Input!$F$4, IF(CE30>0,((Input!$H$4-Input!$G$4)*Sheet2!CE31+Input!$G$4),0)) -> 0 | CF32: =IF(AND(Input!$H$2=1,Sheet2!CF9=2), Input!$F$4, IF(CF30>0,((Input!$H$4-Input!$G$4)*Sheet2!CF31+Input!$G$4),0)) -> 0 | CG32: =IF(AND(Input!$H$2=1,Sheet2!CG9=2), Input!$F$4, IF(CG30>0,((Input!$H$4-Input!$G$4)*Sheet2!CG31+Input!$G$4),0)) -> 0 | CH32: =IF(AND(Input!$H$2=1,Sheet2!CH9=2), Input!$F$4, IF(CH30>0,((Input!$H$4-Input!$G$4)*Sheet2!CH31+Input!$G$4),0)) -> 0 | CI32: =IF(AND(Input!$H$2=1,Sheet2!CI9=2), Input!$F$4, IF(CI30>0,((Input!$H$4-Input!$G$4)*Sheet2!CI31+Input!$G$4),0)) -> 0 | CJ32: =IF(AND(Input!$H$2=1,Sheet2!CJ9=2), Input!$F$4, IF(CJ30>0,((Input!$H$4-Input!$G$4)*Sheet2!CJ31+Input!$G$4),0)) -> 0 | CK32: =IF(AND(Input!$H$2=1,Sheet2!CK9=2), Input!$F$4, IF(CK30>0,((Input!$H$4-Input!$G$4)*Sheet2!CK31+Input!$G$4),0)) -> 0 | CL32: =IF(AND(Input!$H$2=1,Sheet2!CL9=2), Input!$F$4, IF(CL30>0,((Input!$H$4-Input!$G$4)*Sheet2!CL31+Input!$G$4),0)) -> 0 | CM32: =IF(AND(Input!$H$2=1,Sheet2!CM9=2), Input!$F$4, IF(CM30>0,((Input!$H$4-Input!$G$4)*Sheet2!CM31+Input!$G$4),0)) -> 0 | CN32: =IF(AND(Input!$H$2=1,Sheet2!CN9=2), Input!$F$4, IF(CN30>0,((Input!$H$4-Input!$G$4)*Sheet2!CN31+Input!$G$4),0)) -> 0
C33: =IF(AND(Input!$H$2=1,Sheet2!C9=2), Input!$F$5, IF(C30>0,((Input!$H$5-Input!$G$5)*Sheet2!C31+Input!$G$5),0)) -> 0 | D33: =IF(AND(Input!$H$2=1,Sheet2!D9=2), Input!$F$5, IF(D30>0,((Input!$H$5-Input!$G$5)*Sheet2!D31+Input!$G$5),0)) -> 0.6517857143 | E33: =IF(AND(Input!$H$2=1,Sheet2!E9=2), Input!$F$5, IF(E30>0,((Input!$H$5-Input!$G$5)*Sheet2!E31+Input!$G$5),0)) -> 0.6535714286 | F33: =IF(AND(Input!$H$2=1,Sheet2!F9=2), Input!$F$5, IF(F30>0,((Input!$H$5-Input!$G$5)*Sheet2!F31+Input!$G$5),0)) -> 0.6553571429 | G33: =IF(AND(Input!$H$2=1,Sheet2!G9=2), Input!$F$5, IF(G30>0,((Input!$H$5-Input!$G$5)*Sheet2!G31+Input!$G$5),0)) -> 0.6571428571 | H33: =IF(AND(Input!$H$2=1,Sheet2!H9=2), Input!$F$5, IF(H30>0,((Input!$H$5-Input!$G$5)*Sheet2!H31+Input!$G$5),0)) -> 0.6589285714 | I33: =IF(AND(Input!$H$2=1,Sheet2!I9=2), Input!$F$5, IF(I30>0,((Input!$H$5-Input!$G$5)*Sheet2!I31+Input!$G$5),0)) -> 0.6607142857 | J33: =IF(AND(Input!$H$2=1,Sheet2!J9=2), Input!$F$5, IF(J30>0,((Input!$H$5-Input!$G$5)*Sheet2!J31+Input!$G$5),0)) -> 0.6625 | K33: =IF(AND(Input!$H$2=1,Sheet2!K9=2), Input!$F$5, IF(K30>0,((Input!$H$5-Input!$G$5)*Sheet2!K31+Input!$G$5),0)) -> 0.6642857143 | L33: =IF(AND(Input!$H$2=1,Sheet2!L9=2), Input!$F$5, IF(L30>0,((Input!$H$5-Input!$G$5)*Sheet2!L31+Input!$G$5),0)) -> 0.6660714286 | M33: =IF(AND(Input!$H$2=1,Sheet2!M9=2), Input!$F$5, IF(M30>0,((Input!$H$5-Input!$G$5)*Sheet2!M31+Input!$G$5),0)) -> 0.6678571429 | N33: =IF(AND(Input!$H$2=1,Sheet2!N9=2), Input!$F$5, IF(N30>0,((Input!$H$5-Input!$G$5)*Sheet2!N31+Input!$G$5),0)) -> 0.6696428571 | O33: =IF(AND(Input!$H$2=1,Sheet2!O9=2), Input!$F$5, IF(O30>0,((Input!$H$5-Input!$G$5)*Sheet2!O31+Input!$G$5),0)) -> 0.6714285714 | P33: =IF(AND(Input!$H$2=1,Sheet2!P9=2), Input!$F$5, IF(P30>0,((Input!$H$5-Input!$G$5)*Sheet2!P31+Input!$G$5),0)) -> 0.6732142857 | Q33: =IF(AND(Input!$H$2=1,Sheet2!Q9=2), Input!$F$5, IF(Q30>0,((Input!$H$5-Input!$G$5)*Sheet2!Q31+Input!$G$5),0)) -> 0.675 | R33: =IF(AND(Input!$H$2=1,Sheet2!R9=2), Input!$F$5, IF(R30>0,((Input!$H$5-Input!$G$5)*Sheet2!R31+Input!$G$5),0)) -> 0.6767857143 | S33: =IF(AND(Input!$H$2=1,Sheet2!S9=2), Input!$F$5, IF(S30>0,((Input!$H$5-Input!$G$5)*Sheet2!S31+Input!$G$5),0)) -> 0.6785714286 | T33: =IF(AND(Input!$H$2=1,Sheet2!T9=2), Input!$F$5, IF(T30>0,((Input!$H$5-Input!$G$5)*Sheet2!T31+Input!$G$5),0)) -> 0.6803571429 | U33: =IF(AND(Input!$H$2=1,Sheet2!U9=2), Input!$F$5, IF(U30>0,((Input!$H$5-Input!$G$5)*Sheet2!U31+Input!$G$5),0)) -> 0.6821428571 | V33: =IF(AND(Input!$H$2=1,Sheet2!V9=2), Input!$F$5, IF(V30>0,((Input!$H$5-Input!$G$5)*Sheet2!V31+Input!$G$5),0)) -> 0.6839285714 | W33: =IF(AND(Input!$H$2=1,Sheet2!W9=2), Input!$F$5, IF(W30>0,((Input!$H$5-Input!$G$5)*Sheet2!W31+Input!$G$5),0)) -> 0.6857142857 | X33: =IF(AND(Input!$H$2=1,Sheet2!X9=2), Input!$F$5, IF(X30>0,((Input!$H$5-Input!$G$5)*Sheet2!X31+Input!$G$5),0)) -> 0.6875 | Y33: =IF(AND(Input!$H$2=1,Sheet2!Y9=2), Input!$F$5, IF(Y30>0,((Input!$H$5-Input!$G$5)*Sheet2!Y31+Input!$G$5),0)) -> 0.6892857143 | Z33: =IF(AND(Input!$H$2=1,Sheet2!Z9=2), Input!$F$5, IF(Z30>0,((Input!$H$5-Input!$G$5)*Sheet2!Z31+Input!$G$5),0)) -> 0.6910714286 | AA33: =IF(AND(Input!$H$2=1,Sheet2!AA9=2), Input!$F$5, IF(AA30>0,((Input!$H$5-Input!$G$5)*Sheet2!AA31+Input!$G$5),0)) -> 0.6928571429 | AB33: =IF(AND(Input!$H$2=1,Sheet2!AB9=2), Input!$F$5, IF(AB30>0,((Input!$H$5-Input!$G$5)*Sheet2!AB31+Input!$G$5),0)) -> 0.6946428571 | AC33: =IF(AND(Input!$H$2=1,Sheet2!AC9=2), Input!$F$5, IF(AC30>0,((Input!$H$5-Input!$G$5)*Sheet2!AC31+Input!$G$5),0)) -> 0.6964285714 | AD33: =IF(AND(Input!$H$2=1,Sheet2!AD9=2), Input!$F$5, IF(AD30>0,((Input!$H$5-Input!$G$5)*Sheet2!AD31+Input!$G$5),0)) -> 0.6982142857 | AE33: =IF(AND(Input!$H$2=1,Sheet2!AE9=2), Input!$F$5, IF(AE30>0,((Input!$H$5-Input!$G$5)*Sheet2!AE31+Input!$G$5),0)) -> 0.7 | AF33: =IF(AND(Input!$H$2=1,Sheet2!AF9=2), Input!$F$5, IF(AF30>0,((Input!$H$5-Input!$G$5)*Sheet2!AF31+Input!$G$5),0)) -> 0 | AG33: =IF(AND(Input!$H$2=1,Sheet2!AG9=2), Input!$F$5, IF(AG30>0,((Input!$H$5-Input!$G$5)*Sheet2!AG31+Input!$G$5),0)) -> 0 | AH33: =IF(AND(Input!$H$2=1,Sheet2!AH9=2), Input!$F$5, IF(AH30>0,((Input!$H$5-Input!$G$5)*Sheet2!AH31+Input!$G$5),0)) -> 0 | AI33: =IF(AND(Input!$H$2=1,Sheet2!AI9=2), Input!$F$5, IF(AI30>0,((Input!$H$5-Input!$G$5)*Sheet2!AI31+Input!$G$5),0)) -> 0 | AJ33: =IF(AND(Input!$H$2=1,Sheet2!AJ9=2), Input!$F$5, IF(AJ30>0,((Input!$H$5-Input!$G$5)*Sheet2!AJ31+Input!$G$5),0)) -> 0 | AK33: =IF(AND(Input!$H$2=1,Sheet2!AK9=2), Input!$F$5, IF(AK30>0,((Input!$H$5-Input!$G$5)*Sheet2!AK31+Input!$G$5),0)) -> 0 | AL33: =IF(AND(Input!$H$2=1,Sheet2!AL9=2), Input!$F$5, IF(AL30>0,((Input!$H$5-Input!$G$5)*Sheet2!AL31+Input!$G$5),0)) -> 0 | AM33: =IF(AND(Input!$H$2=1,Sheet2!AM9=2), Input!$F$5, IF(AM30>0,((Input!$H$5-Input!$G$5)*Sheet2!AM31+Input!$G$5),0)) -> 0 | AN33: =IF(AND(Input!$H$2=1,Sheet2!AN9=2), Input!$F$5, IF(AN30>0,((Input!$H$5-Input!$G$5)*Sheet2!AN31+Input!$G$5),0)) -> 0 | AO33: =IF(AND(Input!$H$2=1,Sheet2!AO9=2), Input!$F$5, IF(AO30>0,((Input!$H$5-Input!$G$5)*Sheet2!AO31+Input!$G$5),0)) -> 0 | AP33: =IF(AND(Input!$H$2=1,Sheet2!AP9=2), Input!$F$5, IF(AP30>0,((Input!$H$5-Input!$G$5)*Sheet2!AP31+Input!$G$5),0)) -> 0 | AQ33: =IF(AND(Input!$H$2=1,Sheet2!AQ9=2), Input!$F$5, IF(AQ30>0,((Input!$H$5-Input!$G$5)*Sheet2!AQ31+Input!$G$5),0)) -> 0 | AR33: =IF(AND(Input!$H$2=1,Sheet2!AR9=2), Input!$F$5, IF(AR30>0,((Input!$H$5-Input!$G$5)*Sheet2!AR31+Input!$G$5),0)) -> 0 | AS33: =IF(AND(Input!$H$2=1,Sheet2!AS9=2), Input!$F$5, IF(AS30>0,((Input!$H$5-Input!$G$5)*Sheet2!AS31+Input!$G$5),0)) -> 0 | AT33: =IF(AND(Input!$H$2=1,Sheet2!AT9=2), Input!$F$5, IF(AT30>0,((Input!$H$5-Input!$G$5)*Sheet2!AT31+Input!$G$5),0)) -> 0 | AU33: =IF(AND(Input!$H$2=1,Sheet2!AU9=2), Input!$F$5, IF(AU30>0,((Input!$H$5-Input!$G$5)*Sheet2!AU31+Input!$G$5),0)) -> 0 | AV33: =IF(AND(Input!$H$2=1,Sheet2!AV9=2), Input!$F$5, IF(AV30>0,((Input!$H$5-Input!$G$5)*Sheet2!AV31+Input!$G$5),0)) -> 0 | AW33: =IF(AND(Input!$H$2=1,Sheet2!AW9=2), Input!$F$5, IF(AW30>0,((Input!$H$5-Input!$G$5)*Sheet2!AW31+Input!$G$5),0)) -> 0 | AX33: =IF(AND(Input!$H$2=1,Sheet2!AX9=2), Input!$F$5, IF(AX30>0,((Input!$H$5-Input!$G$5)*Sheet2!AX31+Input!$G$5),0)) -> 0 | AY33: =IF(AND(Input!$H$2=1,Sheet2!AY9=2), Input!$F$5, IF(AY30>0,((Input!$H$5-Input!$G$5)*Sheet2!AY31+Input!$G$5),0)) -> 0 | AZ33: =IF(AND(Input!$H$2=1,Sheet2!AZ9=2), Input!$F$5, IF(AZ30>0,((Input!$H$5-Input!$G$5)*Sheet2!AZ31+Input!$G$5),0)) -> 0 | BA33: =IF(AND(Input!$H$2=1,Sheet2!BA9=2), Input!$F$5, IF(BA30>0,((Input!$H$5-Input!$G$5)*Sheet2!BA31+Input!$G$5),0)) -> 0 | BB33: =IF(AND(Input!$H$2=1,Sheet2!BB9=2), Input!$F$5, IF(BB30>0,((Input!$H$5-Input!$G$5)*Sheet2!BB31+Input!$G$5),0)) -> 0 | BC33: =IF(AND(Input!$H$2=1,Sheet2!BC9=2), Input!$F$5, IF(BC30>0,((Input!$H$5-Input!$G$5)*Sheet2!BC31+Input!$G$5),0)) -> 0 | BD33: =IF(AND(Input!$H$2=1,Sheet2!BD9=2), Input!$F$5, IF(BD30>0,((Input!$H$5-Input!$G$5)*Sheet2!BD31+Input!$G$5),0)) -> 0 | BE33: =IF(AND(Input!$H$2=1,Sheet2!BE9=2), Input!$F$5, IF(BE30>0,((Input!$H$5-Input!$G$5)*Sheet2!BE31+Input!$G$5),0)) -> 0 | BF33: =IF(AND(Input!$H$2=1,Sheet2!BF9=2), Input!$F$5, IF(BF30>0,((Input!$H$5-Input!$G$5)*Sheet2!BF31+Input!$G$5),0)) -> 0 | BG33: =IF(AND(Input!$H$2=1,Sheet2!BG9=2), Input!$F$5, IF(BG30>0,((Input!$H$5-Input!$G$5)*Sheet2!BG31+Input!$G$5),0)) -> 0 | BH33: =IF(AND(Input!$H$2=1,Sheet2!BH9=2), Input!$F$5, IF(BH30>0,((Input!$H$5-Input!$G$5)*Sheet2!BH31+Input!$G$5),0)) -> 0 | BI33: =IF(AND(Input!$H$2=1,Sheet2!BI9=2), Input!$F$5, IF(BI30>0,((Input!$H$5-Input!$G$5)*Sheet2!BI31+Input!$G$5),0)) -> 0 | BJ33: =IF(AND(Input!$H$2=1,Sheet2!BJ9=2), Input!$F$5, IF(BJ30>0,((Input!$H$5-Input!$G$5)*Sheet2!BJ31+Input!$G$5),0)) -> 0 | BK33: =IF(AND(Input!$H$2=1,Sheet2!BK9=2), Input!$F$5, IF(BK30>0,((Input!$H$5-Input!$G$5)*Sheet2!BK31+Input!$G$5),0)) -> 0 | BL33: =IF(AND(Input!$H$2=1,Sheet2!BL9=2), Input!$F$5, IF(BL30>0,((Input!$H$5-Input!$G$5)*Sheet2!BL31+Input!$G$5),0)) -> 0 | BM33: =IF(AND(Input!$H$2=1,Sheet2!BM9=2), Input!$F$5, IF(BM30>0,((Input!$H$5-Input!$G$5)*Sheet2!BM31+Input!$G$5),0)) -> 0 | BN33: =IF(AND(Input!$H$2=1,Sheet2!BN9=2), Input!$F$5, IF(BN30>0,((Input!$H$5-Input!$G$5)*Sheet2!BN31+Input!$G$5),0)) -> 0 | BO33: =IF(AND(Input!$H$2=1,Sheet2!BO9=2), Input!$F$5, IF(BO30>0,((Input!$H$5-Input!$G$5)*Sheet2!BO31+Input!$G$5),0)) -> 0 | BP33: =IF(AND(Input!$H$2=1,Sheet2!BP9=2), Input!$F$5, IF(BP30>0,((Input!$H$5-Input!$G$5)*Sheet2!BP31+Input!$G$5),0)) -> 0 | BQ33: =IF(AND(Input!$H$2=1,Sheet2!BQ9=2), Input!$F$5, IF(BQ30>0,((Input!$H$5-Input!$G$5)*Sheet2!BQ31+Input!$G$5),0)) -> 0 | BR33: =IF(AND(Input!$H$2=1,Sheet2!BR9=2), Input!$F$5, IF(BR30>0,((Input!$H$5-Input!$G$5)*Sheet2!BR31+Input!$G$5),0)) -> 0 | BS33: =IF(AND(Input!$H$2=1,Sheet2!BS9=2), Input!$F$5, IF(BS30>0,((Input!$H$5-Input!$G$5)*Sheet2!BS31+Input!$G$5),0)) -> 0 | BT33: =IF(AND(Input!$H$2=1,Sheet2!BT9=2), Input!$F$5, IF(BT30>0,((Input!$H$5-Input!$G$5)*Sheet2!BT31+Input!$G$5),0)) -> 0 | BU33: =IF(AND(Input!$H$2=1,Sheet2!BU9=2), Input!$F$5, IF(BU30>0,((Input!$H$5-Input!$G$5)*Sheet2!BU31+Input!$G$5),0)) -> 0 | BV33: =IF(AND(Input!$H$2=1,Sheet2!BV9=2), Input!$F$5, IF(BV30>0,((Input!$H$5-Input!$G$5)*Sheet2!BV31+Input!$G$5),0)) -> 0 | BW33: =IF(AND(Input!$H$2=1,Sheet2!BW9=2), Input!$F$5, IF(BW30>0,((Input!$H$5-Input!$G$5)*Sheet2!BW31+Input!$G$5),0)) -> 0 | BX33: =IF(AND(Input!$H$2=1,Sheet2!BX9=2), Input!$F$5, IF(BX30>0,((Input!$H$5-Input!$G$5)*Sheet2!BX31+Input!$G$5),0)) -> 0 | BY33: =IF(AND(Input!$H$2=1,Sheet2!BY9=2), Input!$F$5, IF(BY30>0,((Input!$H$5-Input!$G$5)*Sheet2!BY31+Input!$G$5),0)) -> 0 | BZ33: =IF(AND(Input!$H$2=1,Sheet2!BZ9=2), Input!$F$5, IF(BZ30>0,((Input!$H$5-Input!$G$5)*Sheet2!BZ31+Input!$G$5),0)) -> 0 | CA33: =IF(AND(Input!$H$2=1,Sheet2!CA9=2), Input!$F$5, IF(CA30>0,((Input!$H$5-Input!$G$5)*Sheet2!CA31+Input!$G$5),0)) -> 0 | CB33: =IF(AND(Input!$H$2=1,Sheet2!CB9=2), Input!$F$5, IF(CB30>0,((Input!$H$5-Input!$G$5)*Sheet2!CB31+Input!$G$5),0)) -> 0 | CC33: =IF(AND(Input!$H$2=1,Sheet2!CC9=2), Input!$F$5, IF(CC30>0,((Input!$H$5-Input!$G$5)*Sheet2!CC31+Input!$G$5),0)) -> 0 | CD33: =IF(AND(Input!$H$2=1,Sheet2!CD9=2), Input!$F$5, IF(CD30>0,((Input!$H$5-Input!$G$5)*Sheet2!CD31+Input!$G$5),0)) -> 0 | CE33: =IF(AND(Input!$H$2=1,Sheet2!CE9=2), Input!$F$5, IF(CE30>0,((Input!$H$5-Input!$G$5)*Sheet2!CE31+Input!$G$5),0)) -> 0 | CF33: =IF(AND(Input!$H$2=1,Sheet2!CF9=2), Input!$F$5, IF(CF30>0,((Input!$H$5-Input!$G$5)*Sheet2!CF31+Input!$G$5),0)) -> 0 | CG33: =IF(AND(Input!$H$2=1,Sheet2!CG9=2), Input!$F$5, IF(CG30>0,((Input!$H$5-Input!$G$5)*Sheet2!CG31+Input!$G$5),0)) -> 0 | CH33: =IF(AND(Input!$H$2=1,Sheet2!CH9=2), Input!$F$5, IF(CH30>0,((Input!$H$5-Input!$G$5)*Sheet2!CH31+Input!$G$5),0)) -> 0 | CI33: =IF(AND(Input!$H$2=1,Sheet2!CI9=2), Input!$F$5, IF(CI30>0,((Input!$H$5-Input!$G$5)*Sheet2!CI31+Input!$G$5),0)) -> 0 | CJ33: =IF(AND(Input!$H$2=1,Sheet2!CJ9=2), Input!$F$5, IF(CJ30>0,((Input!$H$5-Input!$G$5)*Sheet2!CJ31+Input!$G$5),0)) -> 0 | CK33: =IF(AND(Input!$H$2=1,Sheet2!CK9=2), Input!$F$5, IF(CK30>0,((Input!$H$5-Input!$G$5)*Sheet2!CK31+Input!$G$5),0)) -> 0 | CL33: =IF(AND(Input!$H$2=1,Sheet2!CL9=2), Input!$F$5, IF(CL30>0,((Input!$H$5-Input!$G$5)*Sheet2!CL31+Input!$G$5),0)) -> 0 | CM33: =IF(AND(Input!$H$2=1,Sheet2!CM9=2), Input!$F$5, IF(CM30>0,((Input!$H$5-Input!$G$5)*Sheet2!CM31+Input!$G$5),0)) -> 0 | CN33: =IF(AND(Input!$H$2=1,Sheet2!CN9=2), Input!$F$5, IF(CN30>0,((Input!$H$5-Input!$G$5)*Sheet2!CN31+Input!$G$5),0)) -> 0
A34: Standard model (no SS support) | C34: =C$26-C37 -> 0 | D34: =D26-D37 -> 100000 | E34: 102000 | F34: 104040 | G34: 106120.8 | H34: 108243.216 | I34: 109191.1619 | J34: 103009.9897 | K34: 105060.7793 | L34: 106855.2747 | M34: 109093.7505 | N34: 111051.1101 | O34: 113392.4802 | P34: 97654.61818 | Q34: 99607.71054 | R34: 101599.8648 | S34: 103631.8621 | T34: 105704.4993 | U34: 107818.5893 | V34: 109974.9611 | W34: 146460.1746 | X34: 150417.9495 | Y34: 116706.3085 | Z34: 119040.4346 | AA34: 121421.2433 | AB34: 166706.8111 | AC34: 170898.0901 | AD34: 0 | AE34: 218688.6477 | AF34: 0 | AG34: 0 | AH34: 0 | AI34: 0 | AJ34: 0 | AK34: 0 | AL34: 0 | AM34: 0 | AN34: 0 | AO34: 0 | AP34: 0 | AQ34: 0 | AR34: 0 | AS34: 0 | AT34: 0 | AU34: 0 | AV34: 0 | AW34: 0 | AX34: 0 | AY34: 0 | AZ34: 0 | BA34: 0 | BB34: 0 | BC34: 0 | BD34: 0 | BE34: 0 | BF34: 0 | BG34: 0 | BH34: 0 | BI34: 0 | BJ34: 0 | BK34: 0 | BL34: 0 | BM34: 0 | BN34: 0 | BO34: 0 | BP34: =BP26-BP37 -> 0 | BQ34: 0 | BR34: 0 | BS34: 0 | BT34: 0 | BU34: 0 | BV34: 0 | BW34: 0 | BX34: 0 | BY34: 0 | BZ34: 0 | CA34: 0 | CB34: 0 | CC34: 0 | CD34: 0 | CE34: 0 | CF34: 0 | CG34: 0 | CH34: 0 | CI34: 0 | CJ34: 0 | CK34: 0 | CL34: 0 | CM34: 0 | CN34: 0
A35: deferred savings balance | B35: =Input!$C$8 -> 1000000 | C35: =IF(AND(B35<0,C$9=2), B35-C34+C21,IF(C$9=1,IF(AND(C$16=1,C$17=1),(B35+C18+C21)*(1+(Input!$F$8*Input!$F$9+Sheet2!C$13*Input!$F$7))-(C$34)/(1-C$28), IF(AND(C$16=1,C$17=0),(B35+C18+C21)*(1+(Input!$F$8*Input!$F$9+Sheet2!C$13*Input!$F$7))-(C$34)/(1-C$28))), IF(AND(C$16=1,C$17=1),IF(B35<0, B35-C$34,(B35+C18+C21)*(1+(C33*Input!$F$9+Sheet2!C$13*C32))-(C$34)/(1-C$28)), IF(AND(C$16=1,C$17=0),IF(B35<0,B35-C$34, (B35+C18+C21)*(1+(C33*Input!$F$9+Sheet2!C$13*C32))-(C$34)/(1-C$28)))))) -> 1029412.886 | D35: =IF(AND(C35<0,D$9=2), C35-D34+D21,IF(D$9=1,IF(AND(D$16=1,D$17=1),(C35+D18+D21)*(1+(Input!$F$8*Input!$F$9+Sheet2!D$13*Input!$F$7))-(D$34)/(1-D$28), IF(AND(D$16=1,D$17=0),(C35+D18+D21)*(1+(Input!$F$8*Input!$F$9+Sheet2!D$13*Input!$F$7))-(D$34)/(1-D$28))), IF(AND(D$16=1,D$17=1),IF(C35<0, C35-D$34,(C35+D18+D21)*(1+(D33*Input!$F$9+Sheet2!D$13*D32))-(D$34)/(1-D$28)), IF(AND(D$16=1,D$17=0),IF(C35<0,C35-D$34, (C35+D18+D21)*(1+(D33*Input!$F$9+Sheet2!D$13*D32))-(D$34)/(1-D$28)))))) -> 953361.4169 | E35: =IF(AND(D35<0,E$9=2), D35-E34+E21,IF(E$9=1,IF(AND(E$16=1,E$17=1),(D35+E18+E21)*(1+(Input!$F$8*Input!$F$9+Sheet2!E$13*Input!$F$7))-(E$34)/(1-E$28), IF(AND(E$16=1,E$17=0),(D35+E18+E21)*(1+(Input!$F$8*Input!$F$9+Sheet2!E$13*Input!$F$7))-(E$34)/(1-E$28))), IF(AND(E$16=1,E$17=1),IF(D35<0, D35-E$34,(D35+E18+E21)*(1+(E33*Input!$F$9+Sheet2!E$13*E32))-(E$34)/(1-E$28)), IF(AND(E$16=1,E$17=0),IF(D35<0,D35-E$34, (D35+E18+E21)*(1+(E33*Input!$F$9+Sheet2!E$13*E32))-(E$34)/(1-E$28)))))) -> 866813.0159 | F35: =IF(AND(E35<0,F$9=2), E35-F34+F21,IF(F$9=1,IF(AND(F$16=1,F$17=1),(E35+F18+F21)*(1+(Input!$F$8*Input!$F$9+Sheet2!F$13*Input!$F$7))-(F$34)/(1-F$28), IF(AND(F$16=1,F$17=0),(E35+F18+F21)*(1+(Input!$F$8*Input!$F$9+Sheet2!F$13*Input!$F$7))-(F$34)/(1-F$28))), IF(AND(F$16=1,F$17=1),IF(E35<0, E35-F$34,(E35+F18+F21)*(1+(F33*Input!$F$9+Sheet2!F$13*F32))-(F$34)/(1-F$28)), IF(AND(F$16=1,F$17=0),IF(E35<0,E35-F$34, (E35+F18+F21)*(1+(F33*Input!$F$9+Sheet2!F$13*F32))-(F$34)/(1-F$28)))))) -> 770694.6649 | G35: =IF(AND(F35<0,G$9=2), F35-G34+G21,IF(G$9=1,IF(AND(G$16=1,G$17=1),(F35+G18+G21)*(1+(Input!$F$8*Input!$F$9+Sheet2!G$13*Input!$F$7))-(G$34)/(1-G$28), IF(AND(G$16=1,G$17=0),(F35+G18+G21)*(1+(Input!$F$8*Input!$F$9+Sheet2!G$13*Input!$F$7))-(G$34)/(1-G$28))), IF(AND(G$16=1,G$17=1),IF(F35<0, F35-G$34,(F35+G18+G21)*(1+(G33*Input!$F$9+Sheet2!G$13*G32))-(G$34)/(1-G$28)), IF(AND(G$16=1,G$17=0),IF(F35<0,F35-G$34, (F35+G18+G21)*(1+(G33*Input!$F$9+Sheet2!G$13*G32))-(G$34)/(1-G$28)))))) -> 680979.2247 | H35: =IF(AND(G35<0,H$9=2), G35-H34+H21,IF(H$9=1,IF(AND(H$16=1,H$17=1),(G35+H18+H21)*(1+(Input!$F$8*Input!$F$9+Sheet2!H$13*Input!$F$7))-(H$34)/(1-H$28), IF(AND(H$16=1,H$17=0),(G35+H18+H21)*(1+(Input!$F$8*Input!$F$9+Sheet2!H$13*Input!$F$7))-(H$34)/(1-H$28))), IF(AND(H$16=1,H$17=1),IF(G35<0, G35-H$34,(G35+H18+H21)*(1+(H33*Input!$F$9+Sheet2!H$13*H32))-(H$34)/(1-H$28)), IF(AND(H$16=1,H$17=0),IF(G35<0,G35-H$34, (G35+H18+H21)*(1+(H33*Input!$F$9+Sheet2!H$13*H32))-(H$34)/(1-H$28)))))) -> 573631.3274 | I35: =IF(AND(H35<0,I$9=2), H35-I34+I21,IF(I$9=1,IF(AND(I$16=1,I$17=1),(H35+I18+I21)*(1+(Input!$F$8*Input!$F$9+Sheet2!I$13*Input!$F$7))-(I$34)/(1-I$28), IF(AND(I$16=1,I$17=0),(H35+I18+I21)*(1+(Input!$F$8*Input!$F$9+Sheet2!I$13*Input!$F$7))-(I$34)/(1-I$28))), IF(AND(I$16=1,I$17=1),IF(H35<0, H35-I$34,(H35+I18+I21)*(1+(I33*Input!$F$9+Sheet2!I$13*I32))-(I$34)/(1-I$28)), IF(AND(I$16=1,I$17=0),IF(H35<0,H35-I$34, (H35+I18+I21)*(1+(I33*Input!$F$9+Sheet2!I$13*I32))-(I$34)/(1-I$28)))))) -> 478553.1727 | J35: =IF(AND(I35<0,J$9=2), I35-J34+J21,IF(J$9=1,IF(AND(J$16=1,J$17=1),(I35+J18+J21)*(1+(Input!$F$8*Input!$F$9+Sheet2!J$13*Input!$F$7))-(J$34)/(1-J$28), IF(AND(J$16=1,J$17=0),(I35+J18+J21)*(1+(Input!$F$8*Input!$F$9+Sheet2!J$13*Input!$F$7))-(J$34)/(1-J$28))), IF(AND(J$16=1,J$17=1),IF(I35<0, I35-J$34,(I35+J18+J21)*(1+(J33*Input!$F$9+Sheet2!J$13*J32))-(J$34)/(1-J$28)), IF(AND(J$16=1,J$17=0),IF(I35<0,I35-J$34, (I35+J18+J21)*(1+(J33*Input!$F$9+Sheet2!J$13*J32))-(J$34)/(1-J$28)))))) -> 355196.703 | K35: =IF(AND(J35<0,K$9=2), J35-K34+K21,IF(K$9=1,IF(AND(K$16=1,K$17=1),(J35+K18+K21)*(1+(Input!$F$8*Input!$F$9+Sheet2!K$13*Input!$F$7))-(K$34)/(1-K$28), IF(AND(K$16=1,K$17=0),(J35+K18+K21)*(1+(Input!$F$8*Input!$F$9+Sheet2!K$13*Input!$F$7))-(K$34)/(1-K$28))), IF(AND(K$16=1,K$17=1),IF(J35<0, J35-K$34,(J35+K18+K21)*(1+(K33*Input!$F$9+Sheet2!K$13*K32))-(K$34)/(1-K$28)), IF(AND(K$16=1,K$17=0),IF(J35<0,J35-K$34, (J35+K18+K21)*(1+(K33*Input!$F$9+Sheet2!K$13*K32))-(K$34)/(1-K$28)))))) -> 249943.7881 | L35: =IF(AND(K35<0,L$9=2), K35-L34+L21,IF(L$9=1,IF(AND(L$16=1,L$17=1),(K35+L18+L21)*(1+(Input!$F$8*Input!$F$9+Sheet2!L$13*Input!$F$7))-(L$34)/(1-L$28), IF(AND(L$16=1,L$17=0),(K35+L18+L21)*(1+(Input!$F$8*Input!$F$9+Sheet2!L$13*Input!$F$7))-(L$34)/(1-L$28))), IF(AND(L$16=1,L$17=1),IF(K35<0, K35-L$34,(K35+L18+L21)*(1+(L33*Input!$F$9+Sheet2!L$13*L32))-(L$34)/(1-L$28)), IF(AND(L$16=1,L$17=0),IF(K35<0,K35-L$34, (K35+L18+L21)*(1+(L33*Input!$F$9+Sheet2!L$13*L32))-(L$34)/(1-L$28)))))) -> 133651.2747 | M35: =IF(AND(L35<0,M$9=2), L35-M34+M21,IF(M$9=1,IF(AND(M$16=1,M$17=1),(L35+M18+M21)*(1+(Input!$F$8*Input!$F$9+Sheet2!M$13*Input!$F$7))-(M$34)/(1-M$28), IF(AND(M$16=1,M$17=0),(L35+M18+M21)*(1+(Input!$F$8*Input!$F$9+Sheet2!M$13*Input!$F$7))-(M$34)/(1-M$28))), IF(AND(M$16=1,M$17=1),IF(L35<0, L35-M$34,(L35+M18+M21)*(1+(M33*Input!$F$9+Sheet2!M$13*M32))-(M$34)/(1-M$28)), IF(AND(M$16=1,M$17=0),IF(L35<0,L35-M$34, (L35+M18+M21)*(1+(M33*Input!$F$9+Sheet2!M$13*M32))-(M$34)/(1-M$28)))))) -> 16533.72774 | N35: =IF(AND(M35<0,N$9=2), M35-N34+N21,IF(N$9=1,IF(AND(N$16=1,N$17=1),(M35+N18+N21)*(1+(Input!$F$8*Input!$F$9+Sheet2!N$13*Input!$F$7))-(N$34)/(1-N$28), IF(AND(N$16=1,N$17=0),(M35+N18+N21)*(1+(Input!$F$8*Input!$F$9+Sheet2!N$13*Input!$F$7))-(N$34)/(1-N$28))), IF(AND(N$16=1,N$17=1),IF(M35<0, M35-N$34,(M35+N18+N21)*(1+(N33*Input!$F$9+Sheet2!N$13*N32))-(N$34)/(1-N$28)), IF(AND(N$16=1,N$17=0),IF(M35<0,M35-N$34, (M35+N18+N21)*(1+(N33*Input!$F$9+Sheet2!N$13*N32))-(N$34)/(1-N$28)))))) -> -107342.9119 | O35: =IF(AND(N35<0,O$9=2), N35-O34+O21,IF(O$9=1,IF(AND(O$16=1,O$17=1),(N35+O18+O21)*(1+(Input!$F$8*Input!$F$9+Sheet2!O$13*Input!$F$7))-(O$34)/(1-O$28), IF(AND(O$16=1,O$17=0),(N35+O18+O21)*(1+(Input!$F$8*Input!$F$9+Sheet2!O$13*Input!$F$7))-(O$34)/(1-O$28))), IF(AND(O$16=1,O$17=1),IF(N35<0, N35-O$34,(N35+O18+O21)*(1+(O33*Input!$F$9+Sheet2!O$13*O32))-(O$34)/(1-O$28)), IF(AND(O$16=1,O$17=0),IF(N35<0,N35-O$34, (N35+O18+O21)*(1+(O33*Input!$F$9+Sheet2!O$13*O32))-(O$34)/(1-O$28)))))) -> -220735.3921 | P35: =IF(AND(O35<0,P$9=2), O35-P34+P21,IF(P$9=1,IF(AND(P$16=1,P$17=1),(O35+P18+P21)*(1+(Input!$F$8*Input!$F$9+Sheet2!P$13*Input!$F$7))-(P$34)/(1-P$28), IF(AND(P$16=1,P$17=0),(O35+P18+P21)*(1+(Input!$F$8*Input!$F$9+Sheet2!P$13*Input!$F$7))-(P$34)/(1-P$28))), IF(AND(P$16=1,P$17=1),IF(O35<0, O35-P$34,(O35+P18+P21)*(1+(P33*Input!$F$9+Sheet2!P$13*P32))-(P$34)/(1-P$28)), IF(AND(P$16=1,P$17=0),IF(O35<0,O35-P$34, (O35+P18+P21)*(1+(P33*Input!$F$9+Sheet2!P$13*P32))-(P$34)/(1-P$28)))))) -> -318390.0103 | Q35: =IF(AND(P35<0,Q$9=2), P35-Q34+Q21,IF(Q$9=1,IF(AND(Q$16=1,Q$17=1),(P35+Q18+Q21)*(1+(Input!$F$8*Input!$F$9+Sheet2!Q$13*Input!$F$7))-(Q$34)/(1-Q$28), IF(AND(Q$16=1,Q$17=0),(P35+Q18+Q21)*(1+(Input!$F$8*Input!$F$9+Sheet2!Q$13*Input!$F$7))-(Q$34)/(1-Q$28))), IF(AND(Q$16=1,Q$17=1),IF(P35<0, P35-Q$34,(P35+Q18+Q21)*(1+(Q33*Input!$F$9+Sheet2!Q$13*Q32))-(Q$34)/(1-Q$28)), IF(AND(Q$16=1,Q$17=0),IF(P35<0,P35-Q$34, (P35+Q18+Q21)*(1+(Q33*Input!$F$9+Sheet2!Q$13*Q32))-(Q$34)/(1-Q$28)))))) -> -417997.7208 | R35: =IF(AND(Q35<0,R$9=2), Q35-R34+R21,IF(R$9=1,IF(AND(R$16=1,R$17=1),(Q35+R18+R21)*(1+(Input!$F$8*Input!$F$9+Sheet2!R$13*Input!$F$7))-(R$34)/(1-R$28), IF(AND(R$16=1,R$17=0),(Q35+R18+R21)*(1+(Input!$F$8*Input!$F$9+Sheet2!R$13*Input!$F$7))-(R$34)/(1-R$28))), IF(AND(R$16=1,R$17=1),IF(Q35<0, Q35-R$34,(Q35+R18+R21)*(1+(R33*Input!$F$9+Sheet2!R$13*R32))-(R$34)/(1-R$28)), IF(AND(R$16=1,R$17=0),IF(Q35<0,Q35-R$34, (Q35+R18+R21)*(1+(R33*Input!$F$9+Sheet2!R$13*R32))-(R$34)/(1-R$28)))))) -> -519597.5856 | S35: =IF(AND(R35<0,S$9=2), R35-S34+S21,IF(S$9=1,IF(AND(S$16=1,S$17=1),(R35+S18+S21)*(1+(Input!$F$8*Input!$F$9+Sheet2!S$13*Input!$F$7))-(S$34)/(1-S$28), IF(AND(S$16=1,S$17=0),(R35+S18+S21)*(1+(Input!$F$8*Input!$F$9+Sheet2!S$13*Input!$F$7))-(S$34)/(1-S$28))), IF(AND(S$16=1,S$17=1),IF(R35<0, R35-S$34,(R35+S18+S21)*(1+(S33*Input!$F$9+Sheet2!S$13*S32))-(S$34)/(1-S$28)), IF(AND(S$16=1,S$17=0),IF(R35<0,R35-S$34, (R35+S18+S21)*(1+(S33*Input!$F$9+Sheet2!S$13*S32))-(S$34)/(1-S$28)))))) -> -623229.4476 | T35: =IF(AND(S35<0,T$9=2), S35-T34+T21,IF(T$9=1,IF(AND(T$16=1,T$17=1),(S35+T18+T21)*(1+(Input!$F$8*Input!$F$9+Sheet2!T$13*Input!$F$7))-(T$34)/(1-T$28), IF(AND(T$16=1,T$17=0),(S35+T18+T21)*(1+(Input!$F$8*Input!$F$9+Sheet2!T$13*Input!$F$7))-(T$34)/(1-T$28))), IF(AND(T$16=1,T$17=1),IF(S35<0, S35-T$34,(S35+T18+T21)*(1+(T33*Input!$F$9+Sheet2!T$13*T32))-(T$34)/(1-T$28)), IF(AND(T$16=1,T$17=0),IF(S35<0,S35-T$34, (S35+T18+T21)*(1+(T33*Input!$F$9+Sheet2!T$13*T32))-(T$34)/(1-T$28)))))) -> -728933.9469 | U35: =IF(AND(T35<0,U$9=2), T35-U34+U21,IF(U$9=1,IF(AND(U$16=1,U$17=1),(T35+U18+U21)*(1+(Input!$F$8*Input!$F$9+Sheet2!U$13*Input!$F$7))-(U$34)/(1-U$28), IF(AND(U$16=1,U$17=0),(T35+U18+U21)*(1+(Input!$F$8*Input!$F$9+Sheet2!U$13*Input!$F$7))-(U$34)/(1-U$28))), IF(AND(U$16=1,U$17=1),IF(T35<0, T35-U$34,(T35+U18+U21)*(1+(U33*Input!$F$9+Sheet2!U$13*U32))-(U$34)/(1-U$28)), IF(AND(U$16=1,U$17=0),IF(T35<0,T35-U$34, (T35+U18+U21)*(1+(U33*Input!$F$9+Sheet2!U$13*U32))-(U$34)/(1-U$28)))))) -> -836752.5362 | V35: =IF(AND(U35<0,V$9=2), U35-V34+V21,IF(V$9=1,IF(AND(V$16=1,V$17=1),(U35+V18+V21)*(1+(Input!$F$8*Input!$F$9+Sheet2!V$13*Input!$F$7))-(V$34)/(1-V$28), IF(AND(V$16=1,V$17=0),(U35+V18+V21)*(1+(Input!$F$8*Input!$F$9+Sheet2!V$13*Input!$F$7))-(V$34)/(1-V$28))), IF(AND(V$16=1,V$17=1),IF(U35<0, U35-V$34,(U35+V18+V21)*(1+(V33*Input!$F$9+Sheet2!V$13*V32))-(V$34)/(1-V$28)), IF(AND(V$16=1,V$17=0),IF(U35<0,U35-V$34, (U35+V18+V21)*(1+(V33*Input!$F$9+Sheet2!V$13*V32))-(V$34)/(1-V$28)))))) -> -946727.4973 | W35: =IF(AND(V35<0,W$9=2), V35-W34+W21,IF(W$9=1,IF(AND(W$16=1,W$17=1),(V35+W18+W21)*(1+(Input!$F$8*Input!$F$9+Sheet2!W$13*Input!$F$7))-(W$34)/(1-W$28), IF(AND(W$16=1,W$17=0),(V35+W18+W21)*(1+(Input!$F$8*Input!$F$9+Sheet2!W$13*Input!$F$7))-(W$34)/(1-W$28))), IF(AND(W$16=1,W$17=1),IF(V35<0, V35-W$34,(V35+W18+W21)*(1+(W33*Input!$F$9+Sheet2!W$13*W32))-(W$34)/(1-W$28)), IF(AND(W$16=1,W$17=0),IF(V35<0,V35-W$34, (V35+W18+W21)*(1+(W33*Input!$F$9+Sheet2!W$13*W32))-(W$34)/(1-W$28)))))) -> -1093187.672 | X35: =IF(AND(W35<0,X$9=2), W35-X34+X21,IF(X$9=1,IF(AND(X$16=1,X$17=1),(W35+X18+X21)*(1+(Input!$F$8*Input!$F$9+Sheet2!X$13*Input!$F$7))-(X$34)/(1-X$28), IF(AND(X$16=1,X$17=0),(W35+X18+X21)*(1+(Input!$F$8*Input!$F$9+Sheet2!X$13*Input!$F$7))-(X$34)/(1-X$28))), IF(AND(X$16=1,X$17=1),IF(W35<0, W35-X$34,(W35+X18+X21)*(1+(X33*Input!$F$9+Sheet2!X$13*X32))-(X$34)/(1-X$28)), IF(AND(X$16=1,X$17=0),IF(W35<0,W35-X$34, (W35+X18+X21)*(1+(X33*Input!$F$9+Sheet2!X$13*X32))-(X$34)/(1-X$28)))))) -> -1243605.621 | Y35: =IF(AND(X35<0,Y$9=2), X35-Y34+Y21,IF(Y$9=1,IF(AND(Y$16=1,Y$17=1),(X35+Y18+Y21)*(1+(Input!$F$8*Input!$F$9+Sheet2!Y$13*Input!$F$7))-(Y$34)/(1-Y$28), IF(AND(Y$16=1,Y$17=0),(X35+Y18+Y21)*(1+(Input!$F$8*Input!$F$9+Sheet2!Y$13*Input!$F$7))-(Y$34)/(1-Y$28))), IF(AND(Y$16=1,Y$17=1),IF(X35<0, X35-Y$34,(X35+Y18+Y21)*(1+(Y33*Input!$F$9+Sheet2!Y$13*Y32))-(Y$34)/(1-Y$28)), IF(AND(Y$16=1,Y$17=0),IF(X35<0,X35-Y$34, (X35+Y18+Y21)*(1+(Y33*Input!$F$9+Sheet2!Y$13*Y32))-(Y$34)/(1-Y$28)))))) -> -1360311.93 | Z35: =IF(AND(Y35<0,Z$9=2), Y35-Z34+Z21,IF(Z$9=1,IF(AND(Z$16=1,Z$17=1),(Y35+Z18+Z21)*(1+(Input!$F$8*Input!$F$9+Sheet2!Z$13*Input!$F$7))-(Z$34)/(1-Z$28), IF(AND(Z$16=1,Z$17=0),(Y35+Z18+Z21)*(1+(Input!$F$8*Input!$F$9+Sheet2!Z$13*Input!$F$7))-(Z$34)/(1-Z$28))), IF(AND(Z$16=1,Z$17=1),IF(Y35<0, Y35-Z$34,(Y35+Z18+Z21)*(1+(Z33*Input!$F$9+Sheet2!Z$13*Z32))-(Z$34)/(1-Z$28)), IF(AND(Z$16=1,Z$17=0),IF(Y35<0,Y35-Z$34, (Y35+Z18+Z21)*(1+(Z33*Input!$F$9+Sheet2!Z$13*Z32))-(Z$34)/(1-Z$28)))))) -> -1479352.364 | AA35: =IF(AND(Z35<0,AA$9=2), Z35-AA34+AA21,IF(AA$9=1,IF(AND(AA$16=1,AA$17=1),(Z35+AA18+AA21)*(1+(Input!$F$8*Input!$F$9+Sheet2!AA$13*Input!$F$7))-(AA$34)/(1-AA$28), IF(AND(AA$16=1,AA$17=0),(Z35+AA18+AA21)*(1+(Input!$F$8*Input!$F$9+Sheet2!AA$13*Input!$F$7))-(AA$34)/(1-AA$28))), IF(AND(AA$16=1,AA$17=1),IF(Z35<0, Z35-AA$34,(Z35+AA18+AA21)*(1+(AA33*Input!$F$9+Sheet2!AA$13*AA32))-(AA$34)/(1-AA$28)), IF(AND(AA$16=1,AA$17=0),IF(Z35<0,Z35-AA$34, (Z35+AA18+AA21)*(1+(AA33*Input!$F$9+Sheet2!AA$13*AA32))-(AA$34)/(1-AA$28)))))) -> -1600773.608 | AB35: =IF(AND(AA35<0,AB$9=2), AA35-AB34+AB21,IF(AB$9=1,IF(AND(AB$16=1,AB$17=1),(AA35+AB18+AB21)*(1+(Input!$F$8*Input!$F$9+Sheet2!AB$13*Input!$F$7))-(AB$34)/(1-AB$28), IF(AND(AB$16=1,AB$17=0),(AA35+AB18+AB21)*(1+(Input!$F$8*Input!$F$9+Sheet2!AB$13*Input!$F$7))-(AB$34)/(1-AB$28))), IF(AND(AB$16=1,AB$17=1),IF(AA35<0, AA35-AB$34,(AA35+AB18+AB21)*(1+(AB33*Input!$F$9+Sheet2!AB$13*AB32))-(AB$34)/(1-AB$28)), IF(AND(AB$16=1,AB$17=0),IF(AA35<0,AA35-AB$34, (AA35+AB18+AB21)*(1+(AB33*Input!$F$9+Sheet2!AB$13*AB32))-(AB$34)/(1-AB$28)))))) -> -1767480.419 | AC35: =IF(AND(AB35<0,AC$9=2), AB35-AC34+AC21,IF(AC$9=1,IF(AND(AC$16=1,AC$17=1),(AB35+AC18+AC21)*(1+(Input!$F$8*Input!$F$9+Sheet2!AC$13*Input!$F$7))-(AC$34)/(1-AC$28), IF(AND(AC$16=1,AC$17=0),(AB35+AC18+AC21)*(1+(Input!$F$8*Input!$F$9+Sheet2!AC$13*Input!$F$7))-(AC$34)/(1-AC$28))), IF(AND(AC$16=1,AC$17=1),IF(AB35<0, AB35-AC$34,(AB35+AC18+AC21)*(1+(AC33*Input!$F$9+Sheet2!AC$13*AC32))-(AC$34)/(1-AC$28)), IF(AND(AC$16=1,AC$17=0),IF(AB35<0,AB35-AC$34, (AB35+AC18+AC21)*(1+(AC33*Input!$F$9+Sheet2!AC$13*AC32))-(AC$34)/(1-AC$28)))))) -> -1938378.509 | AD35: =IF(AND(AC35<0,AD$9=2), AC35-AD34+AD21,IF(AD$9=1,IF(AND(AD$16=1,AD$17=1),(AC35+AD18+AD21)*(1+(Input!$F$8*Input!$F$9+Sheet2!AD$13*Input!$F$7))-(AD$34)/(1-AD$28), IF(AND(AD$16=1,AD$17=0),(AC35+AD18+AD21)*(1+(Input!$F$8*Input!$F$9+Sheet2!AD$13*Input!$F$7))-(AD$34)/(1-AD$28))), IF(AND(AD$16=1,AD$17=1),IF(AC35<0, AC35-AD$34,(AC35+AD18+AD21)*(1+(AD33*Input!$F$9+Sheet2!AD$13*AD32))-(AD$34)/(1-AD$28)), IF(AND(AD$16=1,AD$17=0),IF(AC35<0,AC35-AD$34, (AC35+AD18+AD21)*(1+(AD33*Input!$F$9+Sheet2!AD$13*AD32))-(AD$34)/(1-AD$28)))))) -> -1938378.509 | AE35: =IF(AND(AD35<0,AE$9=2), AD35-AE34+AE21,IF(AE$9=1,IF(AND(AE$16=1,AE$17=1),(AD35+AE18+AE21)*(1+(Input!$F$8*Input!$F$9+Sheet2!AE$13*Input!$F$7))-(AE$34)/(1-AE$28), IF(AND(AE$16=1,AE$17=0),(AD35+AE18+AE21)*(1+(Input!$F$8*Input!$F$9+Sheet2!AE$13*Input!$F$7))-(AE$34)/(1-AE$28))), IF(AND(AE$16=1,AE$17=1),IF(AD35<0, AD35-AE$34,(AD35+AE18+AE21)*(1+(AE33*Input!$F$9+Sheet2!AE$13*AE32))-(AE$34)/(1-AE$28)), IF(AND(AE$16=1,AE$17=0),IF(AD35<0,AD35-AE$34, (AD35+AE18+AE21)*(1+(AE33*Input!$F$9+Sheet2!AE$13*AE32))-(AE$34)/(1-AE$28)))))) -> -2157067.157 | AF35: =IF(AND(AE35<0,AF$9=2), AE35-AF34+AF21,IF(AF$9=1,IF(AND(AF$16=1,AF$17=1),(AE35+AF18+AF21)*(1+(Input!$F$8*Input!$F$9+Sheet2!AF$13*Input!$F$7))-(AF$34)/(1-AF$28), IF(AND(AF$16=1,AF$17=0),(AE35+AF18+AF21)*(1+(Input!$F$8*Input!$F$9+Sheet2!AF$13*Input!$F$7))-(AF$34)/(1-AF$28))), IF(AND(AF$16=1,AF$17=1),IF(AE35<0, AE35-AF$34,(AE35+AF18+AF21)*(1+(AF33*Input!$F$9+Sheet2!AF$13*AF32))-(AF$34)/(1-AF$28)), IF(AND(AF$16=1,AF$17=0),IF(AE35<0,AE35-AF$34, (AE35+AF18+AF21)*(1+(AF33*Input!$F$9+Sheet2!AF$13*AF32))-(AF$34)/(1-AF$28)))))) -> FALSE | AG35: =IF(AND(AF35<0,AG$9=2), AF35-AG34+AG21,IF(AG$9=1,IF(AND(AG$16=1,AG$17=1),(AF35+AG18+AG21)*(1+(Input!$F$8*Input!$F$9+Sheet2!AG$13*Input!$F$7))-(AG$34)/(1-AG$28), IF(AND(AG$16=1,AG$17=0),(AF35+AG18+AG21)*(1+(Input!$F$8*Input!$F$9+Sheet2!AG$13*Input!$F$7))-(AG$34)/(1-AG$28))), IF(AND(AG$16=1,AG$17=1),IF(AF35<0, AF35-AG$34,(AF35+AG18+AG21)*(1+(AG33*Input!$F$9+Sheet2!AG$13*AG32))-(AG$34)/(1-AG$28)), IF(AND(AG$16=1,AG$17=0),IF(AF35<0,AF35-AG$34, (AF35+AG18+AG21)*(1+(AG33*Input!$F$9+Sheet2!AG$13*AG32))-(AG$34)/(1-AG$28)))))) -> FALSE | AH35: =IF(AND(AG35<0,AH$9=2), AG35-AH34+AH21,IF(AH$9=1,IF(AND(AH$16=1,AH$17=1),(AG35+AH18+AH21)*(1+(Input!$F$8*Input!$F$9+Sheet2!AH$13*Input!$F$7))-(AH$34)/(1-AH$28), IF(AND(AH$16=1,AH$17=0),(AG35+AH18+AH21)*(1+(Input!$F$8*Input!$F$9+Sheet2!AH$13*Input!$F$7))-(AH$34)/(1-AH$28))), IF(AND(AH$16=1,AH$17=1),IF(AG35<0, AG35-AH$34,(AG35+AH18+AH21)*(1+(AH33*Input!$F$9+Sheet2!AH$13*AH32))-(AH$34)/(1-AH$28)), IF(AND(AH$16=1,AH$17=0),IF(AG35<0,AG35-AH$34, (AG35+AH18+AH21)*(1+(AH33*Input!$F$9+Sheet2!AH$13*AH32))-(AH$34)/(1-AH$28)))))) -> FALSE | AI35: =IF(AND(AH35<0,AI$9=2), AH35-AI34+AI21,IF(AI$9=1,IF(AND(AI$16=1,AI$17=1),(AH35+AI18+AI21)*(1+(Input!$F$8*Input!$F$9+Sheet2!AI$13*Input!$F$7))-(AI$34)/(1-AI$28), IF(AND(AI$16=1,AI$17=0),(AH35+AI18+AI21)*(1+(Input!$F$8*Input!$F$9+Sheet2!AI$13*Input!$F$7))-(AI$34)/(1-AI$28))), IF(AND(AI$16=1,AI$17=1),IF(AH35<0, AH35-AI$34,(AH35+AI18+AI21)*(1+(AI33*Input!$F$9+Sheet2!AI$13*AI32))-(AI$34)/(1-AI$28)), IF(AND(AI$16=1,AI$17=0),IF(AH35<0,AH35-AI$34, (AH35+AI18+AI21)*(1+(AI33*Input!$F$9+Sheet2!AI$13*AI32))-(AI$34)/(1-AI$28)))))) -> FALSE | AJ35: =IF(AND(AI35<0,AJ$9=2), AI35-AJ34+AJ21,IF(AJ$9=1,IF(AND(AJ$16=1,AJ$17=1),(AI35+AJ18+AJ21)*(1+(Input!$F$8*Input!$F$9+Sheet2!AJ$13*Input!$F$7))-(AJ$34)/(1-AJ$28), IF(AND(AJ$16=1,AJ$17=0),(AI35+AJ18+AJ21)*(1+(Input!$F$8*Input!$F$9+Sheet2!AJ$13*Input!$F$7))-(AJ$34)/(1-AJ$28))), IF(AND(AJ$16=1,AJ$17=1),IF(AI35<0, AI35-AJ$34,(AI35+AJ18+AJ21)*(1+(AJ33*Input!$F$9+Sheet2!AJ$13*AJ32))-(AJ$34)/(1-AJ$28)), IF(AND(AJ$16=1,AJ$17=0),IF(AI35<0,AI35-AJ$34, (AI35+AJ18+AJ21)*(1+(AJ33*Input!$F$9+Sheet2!AJ$13*AJ32))-(AJ$34)/(1-AJ$28)))))) -> FALSE | AK35: =IF(AND(AJ35<0,AK$9=2), AJ35-AK34+AK21,IF(AK$9=1,IF(AND(AK$16=1,AK$17=1),(AJ35+AK18+AK21)*(1+(Input!$F$8*Input!$F$9+Sheet2!AK$13*Input!$F$7))-(AK$34)/(1-AK$28), IF(AND(AK$16=1,AK$17=0),(AJ35+AK18+AK21)*(1+(Input!$F$8*Input!$F$9+Sheet2!AK$13*Input!$F$7))-(AK$34)/(1-AK$28))), IF(AND(AK$16=1,AK$17=1),IF(AJ35<0, AJ35-AK$34,(AJ35+AK18+AK21)*(1+(AK33*Input!$F$9+Sheet2!AK$13*AK32))-(AK$34)/(1-AK$28)), IF(AND(AK$16=1,AK$17=0),IF(AJ35<0,AJ35-AK$34, (AJ35+AK18+AK21)*(1+(AK33*Input!$F$9+Sheet2!AK$13*AK32))-(AK$34)/(1-AK$28)))))) -> FALSE | AL35: =IF(AND(AK35<0,AL$9=2), AK35-AL34+AL21,IF(AL$9=1,IF(AND(AL$16=1,AL$17=1),(AK35+AL18+AL21)*(1+(Input!$F$8*Input!$F$9+Sheet2!AL$13*Input!$F$7))-(AL$34)/(1-AL$28), IF(AND(AL$16=1,AL$17=0),(AK35+AL18+AL21)*(1+(Input!$F$8*Input!$F$9+Sheet2!AL$13*Input!$F$7))-(AL$34)/(1-AL$28))), IF(AND(AL$16=1,AL$17=1),IF(AK35<0, AK35-AL$34,(AK35+AL18+AL21)*(1+(AL33*Input!$F$9+Sheet2!AL$13*AL32))-(AL$34)/(1-AL$28)), IF(AND(AL$16=1,AL$17=0),IF(AK35<0,AK35-AL$34, (AK35+AL18+AL21)*(1+(AL33*Input!$F$9+Sheet2!AL$13*AL32))-(AL$34)/(1-AL$28)))))) -> FALSE | AM35: =IF(AND(AL35<0,AM$9=2), AL35-AM34+AM21,IF(AM$9=1,IF(AND(AM$16=1,AM$17=1),(AL35+AM18+AM21)*(1+(Input!$F$8*Input!$F$9+Sheet2!AM$13*Input!$F$7))-(AM$34)/(1-AM$28), IF(AND(AM$16=1,AM$17=0),(AL35+AM18+AM21)*(1+(Input!$F$8*Input!$F$9+Sheet2!AM$13*Input!$F$7))-(AM$34)/(1-AM$28))), IF(AND(AM$16=1,AM$17=1),IF(AL35<0, AL35-AM$34,(AL35+AM18+AM21)*(1+(AM33*Input!$F$9+Sheet2!AM$13*AM32))-(AM$34)/(1-AM$28)), IF(AND(AM$16=1,AM$17=0),IF(AL35<0,AL35-AM$34, (AL35+AM18+AM21)*(1+(AM33*Input!$F$9+Sheet2!AM$13*AM32))-(AM$34)/(1-AM$28)))))) -> FALSE | AN35: =IF(AND(AM35<0,AN$9=2), AM35-AN34+AN21,IF(AN$9=1,IF(AND(AN$16=1,AN$17=1),(AM35+AN18+AN21)*(1+(Input!$F$8*Input!$F$9+Sheet2!AN$13*Input!$F$7))-(AN$34)/(1-AN$28), IF(AND(AN$16=1,AN$17=0),(AM35+AN18+AN21)*(1+(Input!$F$8*Input!$F$9+Sheet2!AN$13*Input!$F$7))-(AN$34)/(1-AN$28))), IF(AND(AN$16=1,AN$17=1),IF(AM35<0, AM35-AN$34,(AM35+AN18+AN21)*(1+(AN33*Input!$F$9+Sheet2!AN$13*AN32))-(AN$34)/(1-AN$28)), IF(AND(AN$16=1,AN$17=0),IF(AM35<0,AM35-AN$34, (AM35+AN18+AN21)*(1+(AN33*Input!$F$9+Sheet2!AN$13*AN32))-(AN$34)/(1-AN$28)))))) -> FALSE | AO35: =IF(AND(AN35<0,AO$9=2), AN35-AO34+AO21,IF(AO$9=1,IF(AND(AO$16=1,AO$17=1),(AN35+AO18+AO21)*(1+(Input!$F$8*Input!$F$9+Sheet2!AO$13*Input!$F$7))-(AO$34)/(1-AO$28), IF(AND(AO$16=1,AO$17=0),(AN35+AO18+AO21)*(1+(Input!$F$8*Input!$F$9+Sheet2!AO$13*Input!$F$7))-(AO$34)/(1-AO$28))), IF(AND(AO$16=1,AO$17=1),IF(AN35<0, AN35-AO$34,(AN35+AO18+AO21)*(1+(AO33*Input!$F$9+Sheet2!AO$13*AO32))-(AO$34)/(1-AO$28)), IF(AND(AO$16=1,AO$17=0),IF(AN35<0,AN35-AO$34, (AN35+AO18+AO21)*(1+(AO33*Input!$F$9+Sheet2!AO$13*AO32))-(AO$34)/(1-AO$28)))))) -> FALSE | AP35: =IF(AND(AO35<0,AP$9=2), AO35-AP34+AP21,IF(AP$9=1,IF(AND(AP$16=1,AP$17=1),(AO35+AP18+AP21)*(1+(Input!$F$8*Input!$F$9+Sheet2!AP$13*Input!$F$7))-(AP$34)/(1-AP$28), IF(AND(AP$16=1,AP$17=0),(AO35+AP18+AP21)*(1+(Input!$F$8*Input!$F$9+Sheet2!AP$13*Input!$F$7))-(AP$34)/(1-AP$28))), IF(AND(AP$16=1,AP$17=1),IF(AO35<0, AO35-AP$34,(AO35+AP18+AP21)*(1+(AP33*Input!$F$9+Sheet2!AP$13*AP32))-(AP$34)/(1-AP$28)), IF(AND(AP$16=1,AP$17=0),IF(AO35<0,AO35-AP$34, (AO35+AP18+AP21)*(1+(AP33*Input!$F$9+Sheet2!AP$13*AP32))-(AP$34)/(1-AP$28)))))) -> FALSE | AQ35: =IF(AND(AP35<0,AQ$9=2), AP35-AQ34+AQ21,IF(AQ$9=1,IF(AND(AQ$16=1,AQ$17=1),(AP35+AQ18+AQ21)*(1+(Input!$F$8*Input!$F$9+Sheet2!AQ$13*Input!$F$7))-(AQ$34)/(1-AQ$28), IF(AND(AQ$16=1,AQ$17=0),(AP35+AQ18+AQ21)*(1+(Input!$F$8*Input!$F$9+Sheet2!AQ$13*Input!$F$7))-(AQ$34)/(1-AQ$28))), IF(AND(AQ$16=1,AQ$17=1),IF(AP35<0, AP35-AQ$34,(AP35+AQ18+AQ21)*(1+(AQ33*Input!$F$9+Sheet2!AQ$13*AQ32))-(AQ$34)/(1-AQ$28)), IF(AND(AQ$16=1,AQ$17=0),IF(AP35<0,AP35-AQ$34, (AP35+AQ18+AQ21)*(1+(AQ33*Input!$F$9+Sheet2!AQ$13*AQ32))-(AQ$34)/(1-AQ$28)))))) -> FALSE | AR35: =IF(AND(AQ35<0,AR$9=2), AQ35-AR34+AR21,IF(AR$9=1,IF(AND(AR$16=1,AR$17=1),(AQ35+AR18+AR21)*(1+(Input!$F$8*Input!$F$9+Sheet2!AR$13*Input!$F$7))-(AR$34)/(1-AR$28), IF(AND(AR$16=1,AR$17=0),(AQ35+AR18+AR21)*(1+(Input!$F$8*Input!$F$9+Sheet2!AR$13*Input!$F$7))-(AR$34)/(1-AR$28))), IF(AND(AR$16=1,AR$17=1),IF(AQ35<0, AQ35-AR$34,(AQ35+AR18+AR21)*(1+(AR33*Input!$F$9+Sheet2!AR$13*AR32))-(AR$34)/(1-AR$28)), IF(AND(AR$16=1,AR$17=0),IF(AQ35<0,AQ35-AR$34, (AQ35+AR18+AR21)*(1+(AR33*Input!$F$9+Sheet2!AR$13*AR32))-(AR$34)/(1-AR$28)))))) -> FALSE | AS35: =IF(AND(AR35<0,AS$9=2), AR35-AS34+AS21,IF(AS$9=1,IF(AND(AS$16=1,AS$17=1),(AR35+AS18+AS21)*(1+(Input!$F$8*Input!$F$9+Sheet2!AS$13*Input!$F$7))-(AS$34)/(1-AS$28), IF(AND(AS$16=1,AS$17=0),(AR35+AS18+AS21)*(1+(Input!$F$8*Input!$F$9+Sheet2!AS$13*Input!$F$7))-(AS$34)/(1-AS$28))), IF(AND(AS$16=1,AS$17=1),IF(AR35<0, AR35-AS$34,(AR35+AS18+AS21)*(1+(AS33*Input!$F$9+Sheet2!AS$13*AS32))-(AS$34)/(1-AS$28)), IF(AND(AS$16=1,AS$17=0),IF(AR35<0,AR35-AS$34, (AR35+AS18+AS21)*(1+(AS33*Input!$F$9+Sheet2!AS$13*AS32))-(AS$34)/(1-AS$28)))))) -> FALSE | AT35: =IF(AND(AS35<0,AT$9=2), AS35-AT34+AT21,IF(AT$9=1,IF(AND(AT$16=1,AT$17=1),(AS35+AT18+AT21)*(1+(Input!$F$8*Input!$F$9+Sheet2!AT$13*Input!$F$7))-(AT$34)/(1-AT$28), IF(AND(AT$16=1,AT$17=0),(AS35+AT18+AT21)*(1+(Input!$F$8*Input!$F$9+Sheet2!AT$13*Input!$F$7))-(AT$34)/(1-AT$28))), IF(AND(AT$16=1,AT$17=1),IF(AS35<0, AS35-AT$34,(AS35+AT18+AT21)*(1+(AT33*Input!$F$9+Sheet2!AT$13*AT32))-(AT$34)/(1-AT$28)), IF(AND(AT$16=1,AT$17=0),IF(AS35<0,AS35-AT$34, (AS35+AT18+AT21)*(1+(AT33*Input!$F$9+Sheet2!AT$13*AT32))-(AT$34)/(1-AT$28)))))) -> FALSE | AU35: =IF(AND(AT35<0,AU$9=2), AT35-AU34+AU21,IF(AU$9=1,IF(AND(AU$16=1,AU$17=1),(AT35+AU18+AU21)*(1+(Input!$F$8*Input!$F$9+Sheet2!AU$13*Input!$F$7))-(AU$34)/(1-AU$28), IF(AND(AU$16=1,AU$17=0),(AT35+AU18+AU21)*(1+(Input!$F$8*Input!$F$9+Sheet2!AU$13*Input!$F$7))-(AU$34)/(1-AU$28))), IF(AND(AU$16=1,AU$17=1),IF(AT35<0, AT35-AU$34,(AT35+AU18+AU21)*(1+(AU33*Input!$F$9+Sheet2!AU$13*AU32))-(AU$34)/(1-AU$28)), IF(AND(AU$16=1,AU$17=0),IF(AT35<0,AT35-AU$34, (AT35+AU18+AU21)*(1+(AU33*Input!$F$9+Sheet2!AU$13*AU32))-(AU$34)/(1-AU$28)))))) -> FALSE | AV35: =IF(AND(AU35<0,AV$9=2), AU35-AV34+AV21,IF(AV$9=1,IF(AND(AV$16=1,AV$17=1),(AU35+AV18+AV21)*(1+(Input!$F$8*Input!$F$9+Sheet2!AV$13*Input!$F$7))-(AV$34)/(1-AV$28), IF(AND(AV$16=1,AV$17=0),(AU35+AV18+AV21)*(1+(Input!$F$8*Input!$F$9+Sheet2!AV$13*Input!$F$7))-(AV$34)/(1-AV$28))), IF(AND(AV$16=1,AV$17=1),IF(AU35<0, AU35-AV$34,(AU35+AV18+AV21)*(1+(AV33*Input!$F$9+Sheet2!AV$13*AV32))-(AV$34)/(1-AV$28)), IF(AND(AV$16=1,AV$17=0),IF(AU35<0,AU35-AV$34, (AU35+AV18+AV21)*(1+(AV33*Input!$F$9+Sheet2!AV$13*AV32))-(AV$34)/(1-AV$28)))))) -> FALSE | AW35: =IF(AND(AV35<0,AW$9=2), AV35-AW34+AW21,IF(AW$9=1,IF(AND(AW$16=1,AW$17=1),(AV35+AW18+AW21)*(1+(Input!$F$8*Input!$F$9+Sheet2!AW$13*Input!$F$7))-(AW$34)/(1-AW$28), IF(AND(AW$16=1,AW$17=0),(AV35+AW18+AW21)*(1+(Input!$F$8*Input!$F$9+Sheet2!AW$13*Input!$F$7))-(AW$34)/(1-AW$28))), IF(AND(AW$16=1,AW$17=1),IF(AV35<0, AV35-AW$34,(AV35+AW18+AW21)*(1+(AW33*Input!$F$9+Sheet2!AW$13*AW32))-(AW$34)/(1-AW$28)), IF(AND(AW$16=1,AW$17=0),IF(AV35<0,AV35-AW$34, (AV35+AW18+AW21)*(1+(AW33*Input!$F$9+Sheet2!AW$13*AW32))-(AW$34)/(1-AW$28)))))) -> FALSE | AX35: =IF(AND(AW35<0,AX$9=2), AW35-AX34+AX21,IF(AX$9=1,IF(AND(AX$16=1,AX$17=1),(AW35+AX18+AX21)*(1+(Input!$F$8*Input!$F$9+Sheet2!AX$13*Input!$F$7))-(AX$34)/(1-AX$28), IF(AND(AX$16=1,AX$17=0),(AW35+AX18+AX21)*(1+(Input!$F$8*Input!$F$9+Sheet2!AX$13*Input!$F$7))-(AX$34)/(1-AX$28))), IF(AND(AX$16=1,AX$17=1),IF(AW35<0, AW35-AX$34,(AW35+AX18+AX21)*(1+(AX33*Input!$F$9+Sheet2!AX$13*AX32))-(AX$34)/(1-AX$28)), IF(AND(AX$16=1,AX$17=0),IF(AW35<0,AW35-AX$34, (AW35+AX18+AX21)*(1+(AX33*Input!$F$9+Sheet2!AX$13*AX32))-(AX$34)/(1-AX$28)))))) -> FALSE | AY35: =IF(AND(AX35<0,AY$9=2), AX35-AY34+AY21,IF(AY$9=1,IF(AND(AY$16=1,AY$17=1),(AX35+AY18+AY21)*(1+(Input!$F$8*Input!$F$9+Sheet2!AY$13*Input!$F$7))-(AY$34)/(1-AY$28), IF(AND(AY$16=1,AY$17=0),(AX35+AY18+AY21)*(1+(Input!$F$8*Input!$F$9+Sheet2!AY$13*Input!$F$7))-(AY$34)/(1-AY$28))), IF(AND(AY$16=1,AY$17=1),IF(AX35<0, AX35-AY$34,(AX35+AY18+AY21)*(1+(AY33*Input!$F$9+Sheet2!AY$13*AY32))-(AY$34)/(1-AY$28)), IF(AND(AY$16=1,AY$17=0),IF(AX35<0,AX35-AY$34, (AX35+AY18+AY21)*(1+(AY33*Input!$F$9+Sheet2!AY$13*AY32))-(AY$34)/(1-AY$28)))))) -> FALSE | AZ35: =IF(AND(AY35<0,AZ$9=2), AY35-AZ34+AZ21,IF(AZ$9=1,IF(AND(AZ$16=1,AZ$17=1),(AY35+AZ18+AZ21)*(1+(Input!$F$8*Input!$F$9+Sheet2!AZ$13*Input!$F$7))-(AZ$34)/(1-AZ$28), IF(AND(AZ$16=1,AZ$17=0),(AY35+AZ18+AZ21)*(1+(Input!$F$8*Input!$F$9+Sheet2!AZ$13*Input!$F$7))-(AZ$34)/(1-AZ$28))), IF(AND(AZ$16=1,AZ$17=1),IF(AY35<0, AY35-AZ$34,(AY35+AZ18+AZ21)*(1+(AZ33*Input!$F$9+Sheet2!AZ$13*AZ32))-(AZ$34)/(1-AZ$28)), IF(AND(AZ$16=1,AZ$17=0),IF(AY35<0,AY35-AZ$34, (AY35+AZ18+AZ21)*(1+(AZ33*Input!$F$9+Sheet2!AZ$13*AZ32))-(AZ$34)/(1-AZ$28)))))) -> FALSE | BA35: =IF(AND(AZ35<0,BA$9=2), AZ35-BA34+BA21,IF(BA$9=1,IF(AND(BA$16=1,BA$17=1),(AZ35+BA18+BA21)*(1+(Input!$F$8*Input!$F$9+Sheet2!BA$13*Input!$F$7))-(BA$34)/(1-BA$28), IF(AND(BA$16=1,BA$17=0),(AZ35+BA18+BA21)*(1+(Input!$F$8*Input!$F$9+Sheet2!BA$13*Input!$F$7))-(BA$34)/(1-BA$28))), IF(AND(BA$16=1,BA$17=1),IF(AZ35<0, AZ35-BA$34,(AZ35+BA18+BA21)*(1+(BA33*Input!$F$9+Sheet2!BA$13*BA32))-(BA$34)/(1-BA$28)), IF(AND(BA$16=1,BA$17=0),IF(AZ35<0,AZ35-BA$34, (AZ35+BA18+BA21)*(1+(BA33*Input!$F$9+Sheet2!BA$13*BA32))-(BA$34)/(1-BA$28)))))) -> FALSE | BB35: =IF(AND(BA35<0,BB$9=2), BA35-BB34+BB21,IF(BB$9=1,IF(AND(BB$16=1,BB$17=1),(BA35+BB18+BB21)*(1+(Input!$F$8*Input!$F$9+Sheet2!BB$13*Input!$F$7))-(BB$34)/(1-BB$28), IF(AND(BB$16=1,BB$17=0),(BA35+BB18+BB21)*(1+(Input!$F$8*Input!$F$9+Sheet2!BB$13*Input!$F$7))-(BB$34)/(1-BB$28))), IF(AND(BB$16=1,BB$17=1),IF(BA35<0, BA35-BB$34,(BA35+BB18+BB21)*(1+(BB33*Input!$F$9+Sheet2!BB$13*BB32))-(BB$34)/(1-BB$28)), IF(AND(BB$16=1,BB$17=0),IF(BA35<0,BA35-BB$34, (BA35+BB18+BB21)*(1+(BB33*Input!$F$9+Sheet2!BB$13*BB32))-(BB$34)/(1-BB$28)))))) -> FALSE | BC35: =IF(AND(BB35<0,BC$9=2), BB35-BC34+BC21,IF(BC$9=1,IF(AND(BC$16=1,BC$17=1),(BB35+BC18+BC21)*(1+(Input!$F$8*Input!$F$9+Sheet2!BC$13*Input!$F$7))-(BC$34)/(1-BC$28), IF(AND(BC$16=1,BC$17=0),(BB35+BC18+BC21)*(1+(Input!$F$8*Input!$F$9+Sheet2!BC$13*Input!$F$7))-(BC$34)/(1-BC$28))), IF(AND(BC$16=1,BC$17=1),IF(BB35<0, BB35-BC$34,(BB35+BC18+BC21)*(1+(BC33*Input!$F$9+Sheet2!BC$13*BC32))-(BC$34)/(1-BC$28)), IF(AND(BC$16=1,BC$17=0),IF(BB35<0,BB35-BC$34, (BB35+BC18+BC21)*(1+(BC33*Input!$F$9+Sheet2!BC$13*BC32))-(BC$34)/(1-BC$28)))))) -> FALSE | BD35: =IF(AND(BC35<0,BD$9=2), BC35-BD34+BD21,IF(BD$9=1,IF(AND(BD$16=1,BD$17=1),(BC35+BD18+BD21)*(1+(Input!$F$8*Input!$F$9+Sheet2!BD$13*Input!$F$7))-(BD$34)/(1-BD$28), IF(AND(BD$16=1,BD$17=0),(BC35+BD18+BD21)*(1+(Input!$F$8*Input!$F$9+Sheet2!BD$13*Input!$F$7))-(BD$34)/(1-BD$28))), IF(AND(BD$16=1,BD$17=1),IF(BC35<0, BC35-BD$34,(BC35+BD18+BD21)*(1+(BD33*Input!$F$9+Sheet2!BD$13*BD32))-(BD$34)/(1-BD$28)), IF(AND(BD$16=1,BD$17=0),IF(BC35<0,BC35-BD$34, (BC35+BD18+BD21)*(1+(BD33*Input!$F$9+Sheet2!BD$13*BD32))-(BD$34)/(1-BD$28)))))) -> FALSE | BE35: =IF(AND(BD35<0,BE$9=2), BD35-BE34+BE21,IF(BE$9=1,IF(AND(BE$16=1,BE$17=1),(BD35+BE18+BE21)*(1+(Input!$F$8*Input!$F$9+Sheet2!BE$13*Input!$F$7))-(BE$34)/(1-BE$28), IF(AND(BE$16=1,BE$17=0),(BD35+BE18+BE21)*(1+(Input!$F$8*Input!$F$9+Sheet2!BE$13*Input!$F$7))-(BE$34)/(1-BE$28))), IF(AND(BE$16=1,BE$17=1),IF(BD35<0, BD35-BE$34,(BD35+BE18+BE21)*(1+(BE33*Input!$F$9+Sheet2!BE$13*BE32))-(BE$34)/(1-BE$28)), IF(AND(BE$16=1,BE$17=0),IF(BD35<0,BD35-BE$34, (BD35+BE18+BE21)*(1+(BE33*Input!$F$9+Sheet2!BE$13*BE32))-(BE$34)/(1-BE$28)))))) -> FALSE | BF35: =IF(AND(BE35<0,BF$9=2), BE35-BF34+BF21,IF(BF$9=1,IF(AND(BF$16=1,BF$17=1),(BE35+BF18+BF21)*(1+(Input!$F$8*Input!$F$9+Sheet2!BF$13*Input!$F$7))-(BF$34)/(1-BF$28), IF(AND(BF$16=1,BF$17=0),(BE35+BF18+BF21)*(1+(Input!$F$8*Input!$F$9+Sheet2!BF$13*Input!$F$7))-(BF$34)/(1-BF$28))), IF(AND(BF$16=1,BF$17=1),IF(BE35<0, BE35-BF$34,(BE35+BF18+BF21)*(1+(BF33*Input!$F$9+Sheet2!BF$13*BF32))-(BF$34)/(1-BF$28)), IF(AND(BF$16=1,BF$17=0),IF(BE35<0,BE35-BF$34, (BE35+BF18+BF21)*(1+(BF33*Input!$F$9+Sheet2!BF$13*BF32))-(BF$34)/(1-BF$28)))))) -> FALSE | BG35: =IF(AND(BF35<0,BG$9=2), BF35-BG34+BG21,IF(BG$9=1,IF(AND(BG$16=1,BG$17=1),(BF35+BG18+BG21)*(1+(Input!$F$8*Input!$F$9+Sheet2!BG$13*Input!$F$7))-(BG$34)/(1-BG$28), IF(AND(BG$16=1,BG$17=0),(BF35+BG18+BG21)*(1+(Input!$F$8*Input!$F$9+Sheet2!BG$13*Input!$F$7))-(BG$34)/(1-BG$28))), IF(AND(BG$16=1,BG$17=1),IF(BF35<0, BF35-BG$34,(BF35+BG18+BG21)*(1+(BG33*Input!$F$9+Sheet2!BG$13*BG32))-(BG$34)/(1-BG$28)), IF(AND(BG$16=1,BG$17=0),IF(BF35<0,BF35-BG$34, (BF35+BG18+BG21)*(1+(BG33*Input!$F$9+Sheet2!BG$13*BG32))-(BG$34)/(1-BG$28)))))) -> FALSE | BH35: =IF(AND(BG35<0,BH$9=2), BG35-BH34+BH21,IF(BH$9=1,IF(AND(BH$16=1,BH$17=1),(BG35+BH18+BH21)*(1+(Input!$F$8*Input!$F$9+Sheet2!BH$13*Input!$F$7))-(BH$34)/(1-BH$28), IF(AND(BH$16=1,BH$17=0),(BG35+BH18+BH21)*(1+(Input!$F$8*Input!$F$9+Sheet2!BH$13*Input!$F$7))-(BH$34)/(1-BH$28))), IF(AND(BH$16=1,BH$17=1),IF(BG35<0, BG35-BH$34,(BG35+BH18+BH21)*(1+(BH33*Input!$F$9+Sheet2!BH$13*BH32))-(BH$34)/(1-BH$28)), IF(AND(BH$16=1,BH$17=0),IF(BG35<0,BG35-BH$34, (BG35+BH18+BH21)*(1+(BH33*Input!$F$9+Sheet2!BH$13*BH32))-(BH$34)/(1-BH$28)))))) -> FALSE | BI35: =IF(AND(BH35<0,BI$9=2), BH35-BI34+BI21,IF(BI$9=1,IF(AND(BI$16=1,BI$17=1),(BH35+BI18+BI21)*(1+(Input!$F$8*Input!$F$9+Sheet2!BI$13*Input!$F$7))-(BI$34)/(1-BI$28), IF(AND(BI$16=1,BI$17=0),(BH35+BI18+BI21)*(1+(Input!$F$8*Input!$F$9+Sheet2!BI$13*Input!$F$7))-(BI$34)/(1-BI$28))), IF(AND(BI$16=1,BI$17=1),IF(BH35<0, BH35-BI$34,(BH35+BI18+BI21)*(1+(BI33*Input!$F$9+Sheet2!BI$13*BI32))-(BI$34)/(1-BI$28)), IF(AND(BI$16=1,BI$17=0),IF(BH35<0,BH35-BI$34, (BH35+BI18+BI21)*(1+(BI33*Input!$F$9+Sheet2!BI$13*BI32))-(BI$34)/(1-BI$28)))))) -> FALSE | BJ35: =IF(AND(BI35<0,BJ$9=2), BI35-BJ34+BJ21,IF(BJ$9=1,IF(AND(BJ$16=1,BJ$17=1),(BI35+BJ18+BJ21)*(1+(Input!$F$8*Input!$F$9+Sheet2!BJ$13*Input!$F$7))-(BJ$34)/(1-BJ$28), IF(AND(BJ$16=1,BJ$17=0),(BI35+BJ18+BJ21)*(1+(Input!$F$8*Input!$F$9+Sheet2!BJ$13*Input!$F$7))-(BJ$34)/(1-BJ$28))), IF(AND(BJ$16=1,BJ$17=1),IF(BI35<0, BI35-BJ$34,(BI35+BJ18+BJ21)*(1+(BJ33*Input!$F$9+Sheet2!BJ$13*BJ32))-(BJ$34)/(1-BJ$28)), IF(AND(BJ$16=1,BJ$17=0),IF(BI35<0,BI35-BJ$34, (BI35+BJ18+BJ21)*(1+(BJ33*Input!$F$9+Sheet2!BJ$13*BJ32))-(BJ$34)/(1-BJ$28)))))) -> FALSE | BK35: =IF(AND(BJ35<0,BK$9=2), BJ35-BK34+BK21,IF(BK$9=1,IF(AND(BK$16=1,BK$17=1),(BJ35+BK18+BK21)*(1+(Input!$F$8*Input!$F$9+Sheet2!BK$13*Input!$F$7))-(BK$34)/(1-BK$28), IF(AND(BK$16=1,BK$17=0),(BJ35+BK18+BK21)*(1+(Input!$F$8*Input!$F$9+Sheet2!BK$13*Input!$F$7))-(BK$34)/(1-BK$28))), IF(AND(BK$16=1,BK$17=1),IF(BJ35<0, BJ35-BK$34,(BJ35+BK18+BK21)*(1+(BK33*Input!$F$9+Sheet2!BK$13*BK32))-(BK$34)/(1-BK$28)), IF(AND(BK$16=1,BK$17=0),IF(BJ35<0,BJ35-BK$34, (BJ35+BK18+BK21)*(1+(BK33*Input!$F$9+Sheet2!BK$13*BK32))-(BK$34)/(1-BK$28)))))) -> FALSE | BL35: =IF(AND(BK35<0,BL$9=2), BK35-BL34+BL21,IF(BL$9=1,IF(AND(BL$16=1,BL$17=1),(BK35+BL18+BL21)*(1+(Input!$F$8*Input!$F$9+Sheet2!BL$13*Input!$F$7))-(BL$34)/(1-BL$28), IF(AND(BL$16=1,BL$17=0),(BK35+BL18+BL21)*(1+(Input!$F$8*Input!$F$9+Sheet2!BL$13*Input!$F$7))-(BL$34)/(1-BL$28))), IF(AND(BL$16=1,BL$17=1),IF(BK35<0, BK35-BL$34,(BK35+BL18+BL21)*(1+(BL33*Input!$F$9+Sheet2!BL$13*BL32))-(BL$34)/(1-BL$28)), IF(AND(BL$16=1,BL$17=0),IF(BK35<0,BK35-BL$34, (BK35+BL18+BL21)*(1+(BL33*Input!$F$9+Sheet2!BL$13*BL32))-(BL$34)/(1-BL$28)))))) -> FALSE | BM35: =IF(AND(BL35<0,BM$9=2), BL35-BM34+BM21,IF(BM$9=1,IF(AND(BM$16=1,BM$17=1),(BL35+BM18+BM21)*(1+(Input!$F$8*Input!$F$9+Sheet2!BM$13*Input!$F$7))-(BM$34)/(1-BM$28), IF(AND(BM$16=1,BM$17=0),(BL35+BM18+BM21)*(1+(Input!$F$8*Input!$F$9+Sheet2!BM$13*Input!$F$7))-(BM$34)/(1-BM$28))), IF(AND(BM$16=1,BM$17=1),IF(BL35<0, BL35-BM$34,(BL35+BM18+BM21)*(1+(BM33*Input!$F$9+Sheet2!BM$13*BM32))-(BM$34)/(1-BM$28)), IF(AND(BM$16=1,BM$17=0),IF(BL35<0,BL35-BM$34, (BL35+BM18+BM21)*(1+(BM33*Input!$F$9+Sheet2!BM$13*BM32))-(BM$34)/(1-BM$28)))))) -> FALSE | BN35: =IF(AND(BM35<0,BN$9=2), BM35-BN34+BN21,IF(BN$9=1,IF(AND(BN$16=1,BN$17=1),(BM35+BN18+BN21)*(1+(Input!$F$8*Input!$F$9+Sheet2!BN$13*Input!$F$7))-(BN$34)/(1-BN$28), IF(AND(BN$16=1,BN$17=0),(BM35+BN18+BN21)*(1+(Input!$F$8*Input!$F$9+Sheet2!BN$13*Input!$F$7))-(BN$34)/(1-BN$28))), IF(AND(BN$16=1,BN$17=1),IF(BM35<0, BM35-BN$34,(BM35+BN18+BN21)*(1+(BN33*Input!$F$9+Sheet2!BN$13*BN32))-(BN$34)/(1-BN$28)), IF(AND(BN$16=1,BN$17=0),IF(BM35<0,BM35-BN$34, (BM35+BN18+BN21)*(1+(BN33*Input!$F$9+Sheet2!BN$13*BN32))-(BN$34)/(1-BN$28)))))) -> FALSE | BO35: =IF(AND(BN35<0,BO$9=2), BN35-BO34+BO21,IF(BO$9=1,IF(AND(BO$16=1,BO$17=1),(BN35+BO18+BO21)*(1+(Input!$F$8*Input!$F$9+Sheet2!BO$13*Input!$F$7))-(BO$34)/(1-BO$28), IF(AND(BO$16=1,BO$17=0),(BN35+BO18+BO21)*(1+(Input!$F$8*Input!$F$9+Sheet2!BO$13*Input!$F$7))-(BO$34)/(1-BO$28))), IF(AND(BO$16=1,BO$17=1),IF(BN35<0, BN35-BO$34,(BN35+BO18+BO21)*(1+(BO33*Input!$F$9+Sheet2!BO$13*BO32))-(BO$34)/(1-BO$28)), IF(AND(BO$16=1,BO$17=0),IF(BN35<0,BN35-BO$34, (BN35+BO18+BO21)*(1+(BO33*Input!$F$9+Sheet2!BO$13*BO32))-(BO$34)/(1-BO$28)))))) -> FALSE | BP35: =IF(AND(BO35<0,BP$9=2), BO35-BP34+BP21,IF(BP$9=1,IF(AND(BP$16=1,BP$17=1),(BO35+BP18+BP21)*(1+(Input!$F$8*Input!$F$9+Sheet2!BP$13*Input!$F$7))-(BP$34)/(1-BP$28), IF(AND(BP$16=1,BP$17=0),(BO35+BP18+BP21)*(1+(Input!$F$8*Input!$F$9+Sheet2!BP$13*Input!$F$7))-(BP$34)/(1-BP$28))), IF(AND(BP$16=1,BP$17=1),IF(BO35<0, BO35-BP$34,(BO35+BP18+BP21)*(1+(BP33*Input!$F$9+Sheet2!BP$13*BP32))-(BP$34)/(1-BP$28)), IF(AND(BP$16=1,BP$17=0),IF(BO35<0,BO35-BP$34, (BO35+BP18+BP21)*(1+(BP33*Input!$F$9+Sheet2!BP$13*BP32))-(BP$34)/(1-BP$28)))))) -> FALSE | BQ35: =IF(AND(BP35<0,BQ$9=2), BP35-BQ34+BQ21,IF(BQ$9=1,IF(AND(BQ$16=1,BQ$17=1),(BP35+BQ18+BQ21)*(1+(Input!$F$8*Input!$F$9+Sheet2!BQ$13*Input!$F$7))-(BQ$34)/(1-BQ$28), IF(AND(BQ$16=1,BQ$17=0),(BP35+BQ18+BQ21)*(1+(Input!$F$8*Input!$F$9+Sheet2!BQ$13*Input!$F$7))-(BQ$34)/(1-BQ$28))), IF(AND(BQ$16=1,BQ$17=1),IF(BP35<0, BP35-BQ$34,(BP35+BQ18+BQ21)*(1+(BQ33*Input!$F$9+Sheet2!BQ$13*BQ32))-(BQ$34)/(1-BQ$28)), IF(AND(BQ$16=1,BQ$17=0),IF(BP35<0,BP35-BQ$34, (BP35+BQ18+BQ21)*(1+(BQ33*Input!$F$9+Sheet2!BQ$13*BQ32))-(BQ$34)/(1-BQ$28)))))) -> FALSE | BR35: =IF(AND(BQ35<0,BR$9=2), BQ35-BR34+BR21,IF(BR$9=1,IF(AND(BR$16=1,BR$17=1),(BQ35+BR18+BR21)*(1+(Input!$F$8*Input!$F$9+Sheet2!BR$13*Input!$F$7))-(BR$34)/(1-BR$28), IF(AND(BR$16=1,BR$17=0),(BQ35+BR18+BR21)*(1+(Input!$F$8*Input!$F$9+Sheet2!BR$13*Input!$F$7))-(BR$34)/(1-BR$28))), IF(AND(BR$16=1,BR$17=1),IF(BQ35<0, BQ35-BR$34,(BQ35+BR18+BR21)*(1+(BR33*Input!$F$9+Sheet2!BR$13*BR32))-(BR$34)/(1-BR$28)), IF(AND(BR$16=1,BR$17=0),IF(BQ35<0,BQ35-BR$34, (BQ35+BR18+BR21)*(1+(BR33*Input!$F$9+Sheet2!BR$13*BR32))-(BR$34)/(1-BR$28)))))) -> FALSE | BS35: =IF(AND(BR35<0,BS$9=2), BR35-BS34+BS21,IF(BS$9=1,IF(AND(BS$16=1,BS$17=1),(BR35+BS18+BS21)*(1+(Input!$F$8*Input!$F$9+Sheet2!BS$13*Input!$F$7))-(BS$34)/(1-BS$28), IF(AND(BS$16=1,BS$17=0),(BR35+BS18+BS21)*(1+(Input!$F$8*Input!$F$9+Sheet2!BS$13*Input!$F$7))-(BS$34)/(1-BS$28))), IF(AND(BS$16=1,BS$17=1),IF(BR35<0, BR35-BS$34,(BR35+BS18+BS21)*(1+(BS33*Input!$F$9+Sheet2!BS$13*BS32))-(BS$34)/(1-BS$28)), IF(AND(BS$16=1,BS$17=0),IF(BR35<0,BR35-BS$34, (BR35+BS18+BS21)*(1+(BS33*Input!$F$9+Sheet2!BS$13*BS32))-(BS$34)/(1-BS$28)))))) -> FALSE | BT35: =IF(AND(BS35<0,BT$9=2), BS35-BT34+BT21,IF(BT$9=1,IF(AND(BT$16=1,BT$17=1),(BS35+BT18+BT21)*(1+(Input!$F$8*Input!$F$9+Sheet2!BT$13*Input!$F$7))-(BT$34)/(1-BT$28), IF(AND(BT$16=1,BT$17=0),(BS35+BT18+BT21)*(1+(Input!$F$8*Input!$F$9+Sheet2!BT$13*Input!$F$7))-(BT$34)/(1-BT$28))), IF(AND(BT$16=1,BT$17=1),IF(BS35<0, BS35-BT$34,(BS35+BT18+BT21)*(1+(BT33*Input!$F$9+Sheet2!BT$13*BT32))-(BT$34)/(1-BT$28)), IF(AND(BT$16=1,BT$17=0),IF(BS35<0,BS35-BT$34, (BS35+BT18+BT21)*(1+(BT33*Input!$F$9+Sheet2!BT$13*BT32))-(BT$34)/(1-BT$28)))))) -> FALSE | BU35: =IF(AND(BT35<0,BU$9=2), BT35-BU34+BU21,IF(BU$9=1,IF(AND(BU$16=1,BU$17=1),(BT35+BU18+BU21)*(1+(Input!$F$8*Input!$F$9+Sheet2!BU$13*Input!$F$7))-(BU$34)/(1-BU$28), IF(AND(BU$16=1,BU$17=0),(BT35+BU18+BU21)*(1+(Input!$F$8*Input!$F$9+Sheet2!BU$13*Input!$F$7))-(BU$34)/(1-BU$28))), IF(AND(BU$16=1,BU$17=1),IF(BT35<0, BT35-BU$34,(BT35+BU18+BU21)*(1+(BU33*Input!$F$9+Sheet2!BU$13*BU32))-(BU$34)/(1-BU$28)), IF(AND(BU$16=1,BU$17=0),IF(BT35<0,BT35-BU$34, (BT35+BU18+BU21)*(1+(BU33*Input!$F$9+Sheet2!BU$13*BU32))-(BU$34)/(1-BU$28)))))) -> FALSE | BV35: =IF(AND(BU35<0,BV$9=2), BU35-BV34+BV21,IF(BV$9=1,IF(AND(BV$16=1,BV$17=1),(BU35+BV18+BV21)*(1+(Input!$F$8*Input!$F$9+Sheet2!BV$13*Input!$F$7))-(BV$34)/(1-BV$28), IF(AND(BV$16=1,BV$17=0),(BU35+BV18+BV21)*(1+(Input!$F$8*Input!$F$9+Sheet2!BV$13*Input!$F$7))-(BV$34)/(1-BV$28))), IF(AND(BV$16=1,BV$17=1),IF(BU35<0, BU35-BV$34,(BU35+BV18+BV21)*(1+(BV33*Input!$F$9+Sheet2!BV$13*BV32))-(BV$34)/(1-BV$28)), IF(AND(BV$16=1,BV$17=0),IF(BU35<0,BU35-BV$34, (BU35+BV18+BV21)*(1+(BV33*Input!$F$9+Sheet2!BV$13*BV32))-(BV$34)/(1-BV$28)))))) -> FALSE | BW35: =IF(AND(BV35<0,BW$9=2), BV35-BW34+BW21,IF(BW$9=1,IF(AND(BW$16=1,BW$17=1),(BV35+BW18+BW21)*(1+(Input!$F$8*Input!$F$9+Sheet2!BW$13*Input!$F$7))-(BW$34)/(1-BW$28), IF(AND(BW$16=1,BW$17=0),(BV35+BW18+BW21)*(1+(Input!$F$8*Input!$F$9+Sheet2!BW$13*Input!$F$7))-(BW$34)/(1-BW$28))), IF(AND(BW$16=1,BW$17=1),IF(BV35<0, BV35-BW$34,(BV35+BW18+BW21)*(1+(BW33*Input!$F$9+Sheet2!BW$13*BW32))-(BW$34)/(1-BW$28)), IF(AND(BW$16=1,BW$17=0),IF(BV35<0,BV35-BW$34, (BV35+BW18+BW21)*(1+(BW33*Input!$F$9+Sheet2!BW$13*BW32))-(BW$34)/(1-BW$28)))))) -> FALSE | BX35: =IF(AND(BW35<0,BX$9=2), BW35-BX34+BX21,IF(BX$9=1,IF(AND(BX$16=1,BX$17=1),(BW35+BX18+BX21)*(1+(Input!$F$8*Input!$F$9+Sheet2!BX$13*Input!$F$7))-(BX$34)/(1-BX$28), IF(AND(BX$16=1,BX$17=0),(BW35+BX18+BX21)*(1+(Input!$F$8*Input!$F$9+Sheet2!BX$13*Input!$F$7))-(BX$34)/(1-BX$28))), IF(AND(BX$16=1,BX$17=1),IF(BW35<0, BW35-BX$34,(BW35+BX18+BX21)*(1+(BX33*Input!$F$9+Sheet2!BX$13*BX32))-(BX$34)/(1-BX$28)), IF(AND(BX$16=1,BX$17=0),IF(BW35<0,BW35-BX$34, (BW35+BX18+BX21)*(1+(BX33*Input!$F$9+Sheet2!BX$13*BX32))-(BX$34)/(1-BX$28)))))) -> FALSE | BY35: =IF(AND(BX35<0,BY$9=2), BX35-BY34+BY21,IF(BY$9=1,IF(AND(BY$16=1,BY$17=1),(BX35+BY18+BY21)*(1+(Input!$F$8*Input!$F$9+Sheet2!BY$13*Input!$F$7))-(BY$34)/(1-BY$28), IF(AND(BY$16=1,BY$17=0),(BX35+BY18+BY21)*(1+(Input!$F$8*Input!$F$9+Sheet2!BY$13*Input!$F$7))-(BY$34)/(1-BY$28))), IF(AND(BY$16=1,BY$17=1),IF(BX35<0, BX35-BY$34,(BX35+BY18+BY21)*(1+(BY33*Input!$F$9+Sheet2!BY$13*BY32))-(BY$34)/(1-BY$28)), IF(AND(BY$16=1,BY$17=0),IF(BX35<0,BX35-BY$34, (BX35+BY18+BY21)*(1+(BY33*Input!$F$9+Sheet2!BY$13*BY32))-(BY$34)/(1-BY$28)))))) -> FALSE | BZ35: =IF(AND(BY35<0,BZ$9=2), BY35-BZ34+BZ21,IF(BZ$9=1,IF(AND(BZ$16=1,BZ$17=1),(BY35+BZ18+BZ21)*(1+(Input!$F$8*Input!$F$9+Sheet2!BZ$13*Input!$F$7))-(BZ$34)/(1-BZ$28), IF(AND(BZ$16=1,BZ$17=0),(BY35+BZ18+BZ21)*(1+(Input!$F$8*Input!$F$9+Sheet2!BZ$13*Input!$F$7))-(BZ$34)/(1-BZ$28))), IF(AND(BZ$16=1,BZ$17=1),IF(BY35<0, BY35-BZ$34,(BY35+BZ18+BZ21)*(1+(BZ33*Input!$F$9+Sheet2!BZ$13*BZ32))-(BZ$34)/(1-BZ$28)), IF(AND(BZ$16=1,BZ$17=0),IF(BY35<0,BY35-BZ$34, (BY35+BZ18+BZ21)*(1+(BZ33*Input!$F$9+Sheet2!BZ$13*BZ32))-(BZ$34)/(1-BZ$28)))))) -> FALSE | CA35: =IF(AND(BZ35<0,CA$9=2), BZ35-CA34+CA21,IF(CA$9=1,IF(AND(CA$16=1,CA$17=1),(BZ35+CA18+CA21)*(1+(Input!$F$8*Input!$F$9+Sheet2!CA$13*Input!$F$7))-(CA$34)/(1-CA$28), IF(AND(CA$16=1,CA$17=0),(BZ35+CA18+CA21)*(1+(Input!$F$8*Input!$F$9+Sheet2!CA$13*Input!$F$7))-(CA$34)/(1-CA$28))), IF(AND(CA$16=1,CA$17=1),IF(BZ35<0, BZ35-CA$34,(BZ35+CA18+CA21)*(1+(CA33*Input!$F$9+Sheet2!CA$13*CA32))-(CA$34)/(1-CA$28)), IF(AND(CA$16=1,CA$17=0),IF(BZ35<0,BZ35-CA$34, (BZ35+CA18+CA21)*(1+(CA33*Input!$F$9+Sheet2!CA$13*CA32))-(CA$34)/(1-CA$28)))))) -> FALSE | CB35: =IF(AND(CA35<0,CB$9=2), CA35-CB34+CB21,IF(CB$9=1,IF(AND(CB$16=1,CB$17=1),(CA35+CB18+CB21)*(1+(Input!$F$8*Input!$F$9+Sheet2!CB$13*Input!$F$7))-(CB$34)/(1-CB$28), IF(AND(CB$16=1,CB$17=0),(CA35+CB18+CB21)*(1+(Input!$F$8*Input!$F$9+Sheet2!CB$13*Input!$F$7))-(CB$34)/(1-CB$28))), IF(AND(CB$16=1,CB$17=1),IF(CA35<0, CA35-CB$34,(CA35+CB18+CB21)*(1+(CB33*Input!$F$9+Sheet2!CB$13*CB32))-(CB$34)/(1-CB$28)), IF(AND(CB$16=1,CB$17=0),IF(CA35<0,CA35-CB$34, (CA35+CB18+CB21)*(1+(CB33*Input!$F$9+Sheet2!CB$13*CB32))-(CB$34)/(1-CB$28)))))) -> FALSE | CC35: =IF(AND(CB35<0,CC$9=2), CB35-CC34+CC21,IF(CC$9=1,IF(AND(CC$16=1,CC$17=1),(CB35+CC18+CC21)*(1+(Input!$F$8*Input!$F$9+Sheet2!CC$13*Input!$F$7))-(CC$34)/(1-CC$28), IF(AND(CC$16=1,CC$17=0),(CB35+CC18+CC21)*(1+(Input!$F$8*Input!$F$9+Sheet2!CC$13*Input!$F$7))-(CC$34)/(1-CC$28))), IF(AND(CC$16=1,CC$17=1),IF(CB35<0, CB35-CC$34,(CB35+CC18+CC21)*(1+(CC33*Input!$F$9+Sheet2!CC$13*CC32))-(CC$34)/(1-CC$28)), IF(AND(CC$16=1,CC$17=0),IF(CB35<0,CB35-CC$34, (CB35+CC18+CC21)*(1+(CC33*Input!$F$9+Sheet2!CC$13*CC32))-(CC$34)/(1-CC$28)))))) -> FALSE | CD35: =IF(AND(CC35<0,CD$9=2), CC35-CD34+CD21,IF(CD$9=1,IF(AND(CD$16=1,CD$17=1),(CC35+CD18+CD21)*(1+(Input!$F$8*Input!$F$9+Sheet2!CD$13*Input!$F$7))-(CD$34)/(1-CD$28), IF(AND(CD$16=1,CD$17=0),(CC35+CD18+CD21)*(1+(Input!$F$8*Input!$F$9+Sheet2!CD$13*Input!$F$7))-(CD$34)/(1-CD$28))), IF(AND(CD$16=1,CD$17=1),IF(CC35<0, CC35-CD$34,(CC35+CD18+CD21)*(1+(CD33*Input!$F$9+Sheet2!CD$13*CD32))-(CD$34)/(1-CD$28)), IF(AND(CD$16=1,CD$17=0),IF(CC35<0,CC35-CD$34, (CC35+CD18+CD21)*(1+(CD33*Input!$F$9+Sheet2!CD$13*CD32))-(CD$34)/(1-CD$28)))))) -> FALSE | CE35: =IF(AND(CD35<0,CE$9=2), CD35-CE34+CE21,IF(CE$9=1,IF(AND(CE$16=1,CE$17=1),(CD35+CE18+CE21)*(1+(Input!$F$8*Input!$F$9+Sheet2!CE$13*Input!$F$7))-(CE$34)/(1-CE$28), IF(AND(CE$16=1,CE$17=0),(CD35+CE18+CE21)*(1+(Input!$F$8*Input!$F$9+Sheet2!CE$13*Input!$F$7))-(CE$34)/(1-CE$28))), IF(AND(CE$16=1,CE$17=1),IF(CD35<0, CD35-CE$34,(CD35+CE18+CE21)*(1+(CE33*Input!$F$9+Sheet2!CE$13*CE32))-(CE$34)/(1-CE$28)), IF(AND(CE$16=1,CE$17=0),IF(CD35<0,CD35-CE$34, (CD35+CE18+CE21)*(1+(CE33*Input!$F$9+Sheet2!CE$13*CE32))-(CE$34)/(1-CE$28)))))) -> FALSE | CF35: =IF(AND(CE35<0,CF$9=2), CE35-CF34+CF21,IF(CF$9=1,IF(AND(CF$16=1,CF$17=1),(CE35+CF18+CF21)*(1+(Input!$F$8*Input!$F$9+Sheet2!CF$13*Input!$F$7))-(CF$34)/(1-CF$28), IF(AND(CF$16=1,CF$17=0),(CE35+CF18+CF21)*(1+(Input!$F$8*Input!$F$9+Sheet2!CF$13*Input!$F$7))-(CF$34)/(1-CF$28))), IF(AND(CF$16=1,CF$17=1),IF(CE35<0, CE35-CF$34,(CE35+CF18+CF21)*(1+(CF33*Input!$F$9+Sheet2!CF$13*CF32))-(CF$34)/(1-CF$28)), IF(AND(CF$16=1,CF$17=0),IF(CE35<0,CE35-CF$34, (CE35+CF18+CF21)*(1+(CF33*Input!$F$9+Sheet2!CF$13*CF32))-(CF$34)/(1-CF$28)))))) -> FALSE | CG35: =IF(AND(CF35<0,CG$9=2), CF35-CG34+CG21,IF(CG$9=1,IF(AND(CG$16=1,CG$17=1),(CF35+CG18+CG21)*(1+(Input!$F$8*Input!$F$9+Sheet2!CG$13*Input!$F$7))-(CG$34)/(1-CG$28), IF(AND(CG$16=1,CG$17=0),(CF35+CG18+CG21)*(1+(Input!$F$8*Input!$F$9+Sheet2!CG$13*Input!$F$7))-(CG$34)/(1-CG$28))), IF(AND(CG$16=1,CG$17=1),IF(CF35<0, CF35-CG$34,(CF35+CG18+CG21)*(1+(CG33*Input!$F$9+Sheet2!CG$13*CG32))-(CG$34)/(1-CG$28)), IF(AND(CG$16=1,CG$17=0),IF(CF35<0,CF35-CG$34, (CF35+CG18+CG21)*(1+(CG33*Input!$F$9+Sheet2!CG$13*CG32))-(CG$34)/(1-CG$28)))))) -> FALSE | CH35: =IF(AND(CG35<0,CH$9=2), CG35-CH34+CH21,IF(CH$9=1,IF(AND(CH$16=1,CH$17=1),(CG35+CH18+CH21)*(1+(Input!$F$8*Input!$F$9+Sheet2!CH$13*Input!$F$7))-(CH$34)/(1-CH$28), IF(AND(CH$16=1,CH$17=0),(CG35+CH18+CH21)*(1+(Input!$F$8*Input!$F$9+Sheet2!CH$13*Input!$F$7))-(CH$34)/(1-CH$28))), IF(AND(CH$16=1,CH$17=1),IF(CG35<0, CG35-CH$34,(CG35+CH18+CH21)*(1+(CH33*Input!$F$9+Sheet2!CH$13*CH32))-(CH$34)/(1-CH$28)), IF(AND(CH$16=1,CH$17=0),IF(CG35<0,CG35-CH$34, (CG35+CH18+CH21)*(1+(CH33*Input!$F$9+Sheet2!CH$13*CH32))-(CH$34)/(1-CH$28)))))) -> FALSE | CI35: =IF(AND(CH35<0,CI$9=2), CH35-CI34+CI21,IF(CI$9=1,IF(AND(CI$16=1,CI$17=1),(CH35+CI18+CI21)*(1+(Input!$F$8*Input!$F$9+Sheet2!CI$13*Input!$F$7))-(CI$34)/(1-CI$28), IF(AND(CI$16=1,CI$17=0),(CH35+CI18+CI21)*(1+(Input!$F$8*Input!$F$9+Sheet2!CI$13*Input!$F$7))-(CI$34)/(1-CI$28))), IF(AND(CI$16=1,CI$17=1),IF(CH35<0, CH35-CI$34,(CH35+CI18+CI21)*(1+(CI33*Input!$F$9+Sheet2!CI$13*CI32))-(CI$34)/(1-CI$28)), IF(AND(CI$16=1,CI$17=0),IF(CH35<0,CH35-CI$34, (CH35+CI18+CI21)*(1+(CI33*Input!$F$9+Sheet2!CI$13*CI32))-(CI$34)/(1-CI$28)))))) -> FALSE | CJ35: =IF(AND(CI35<0,CJ$9=2), CI35-CJ34+CJ21,IF(CJ$9=1,IF(AND(CJ$16=1,CJ$17=1),(CI35+CJ18+CJ21)*(1+(Input!$F$8*Input!$F$9+Sheet2!CJ$13*Input!$F$7))-(CJ$34)/(1-CJ$28), IF(AND(CJ$16=1,CJ$17=0),(CI35+CJ18+CJ21)*(1+(Input!$F$8*Input!$F$9+Sheet2!CJ$13*Input!$F$7))-(CJ$34)/(1-CJ$28))), IF(AND(CJ$16=1,CJ$17=1),IF(CI35<0, CI35-CJ$34,(CI35+CJ18+CJ21)*(1+(CJ33*Input!$F$9+Sheet2!CJ$13*CJ32))-(CJ$34)/(1-CJ$28)), IF(AND(CJ$16=1,CJ$17=0),IF(CI35<0,CI35-CJ$34, (CI35+CJ18+CJ21)*(1+(CJ33*Input!$F$9+Sheet2!CJ$13*CJ32))-(CJ$34)/(1-CJ$28)))))) -> FALSE | CK35: =IF(AND(CJ35<0,CK$9=2), CJ35-CK34+CK21,IF(CK$9=1,IF(AND(CK$16=1,CK$17=1),(CJ35+CK18+CK21)*(1+(Input!$F$8*Input!$F$9+Sheet2!CK$13*Input!$F$7))-(CK$34)/(1-CK$28), IF(AND(CK$16=1,CK$17=0),(CJ35+CK18+CK21)*(1+(Input!$F$8*Input!$F$9+Sheet2!CK$13*Input!$F$7))-(CK$34)/(1-CK$28))), IF(AND(CK$16=1,CK$17=1),IF(CJ35<0, CJ35-CK$34,(CJ35+CK18+CK21)*(1+(CK33*Input!$F$9+Sheet2!CK$13*CK32))-(CK$34)/(1-CK$28)), IF(AND(CK$16=1,CK$17=0),IF(CJ35<0,CJ35-CK$34, (CJ35+CK18+CK21)*(1+(CK33*Input!$F$9+Sheet2!CK$13*CK32))-(CK$34)/(1-CK$28)))))) -> FALSE | CL35: =IF(AND(CK35<0,CL$9=2), CK35-CL34+CL21,IF(CL$9=1,IF(AND(CL$16=1,CL$17=1),(CK35+CL18+CL21)*(1+(Input!$F$8*Input!$F$9+Sheet2!CL$13*Input!$F$7))-(CL$34)/(1-CL$28), IF(AND(CL$16=1,CL$17=0),(CK35+CL18+CL21)*(1+(Input!$F$8*Input!$F$9+Sheet2!CL$13*Input!$F$7))-(CL$34)/(1-CL$28))), IF(AND(CL$16=1,CL$17=1),IF(CK35<0, CK35-CL$34,(CK35+CL18+CL21)*(1+(CL33*Input!$F$9+Sheet2!CL$13*CL32))-(CL$34)/(1-CL$28)), IF(AND(CL$16=1,CL$17=0),IF(CK35<0,CK35-CL$34, (CK35+CL18+CL21)*(1+(CL33*Input!$F$9+Sheet2!CL$13*CL32))-(CL$34)/(1-CL$28)))))) -> FALSE | CM35: =IF(AND(CL35<0,CM$9=2), CL35-CM34+CM21,IF(CM$9=1,IF(AND(CM$16=1,CM$17=1),(CL35+CM18+CM21)*(1+(Input!$F$8*Input!$F$9+Sheet2!CM$13*Input!$F$7))-(CM$34)/(1-CM$28), IF(AND(CM$16=1,CM$17=0),(CL35+CM18+CM21)*(1+(Input!$F$8*Input!$F$9+Sheet2!CM$13*Input!$F$7))-(CM$34)/(1-CM$28))), IF(AND(CM$16=1,CM$17=1),IF(CL35<0, CL35-CM$34,(CL35+CM18+CM21)*(1+(CM33*Input!$F$9+Sheet2!CM$13*CM32))-(CM$34)/(1-CM$28)), IF(AND(CM$16=1,CM$17=0),IF(CL35<0,CL35-CM$34, (CL35+CM18+CM21)*(1+(CM33*Input!$F$9+Sheet2!CM$13*CM32))-(CM$34)/(1-CM$28)))))) -> FALSE | CN35: =IF(AND(CM35<0,CN$9=2), CM35-CN34+CN21,IF(CN$9=1,IF(AND(CN$16=1,CN$17=1),(CM35+CN18+CN21)*(1+(Input!$F$8*Input!$F$9+Sheet2!CN$13*Input!$F$7))-(CN$34)/(1-CN$28), IF(AND(CN$16=1,CN$17=0),(CM35+CN18+CN21)*(1+(Input!$F$8*Input!$F$9+Sheet2!CN$13*Input!$F$7))-(CN$34)/(1-CN$28))), IF(AND(CN$16=1,CN$17=1),IF(CM35<0, CM35-CN$34,(CM35+CN18+CN21)*(1+(CN33*Input!$F$9+Sheet2!CN$13*CN32))-(CN$34)/(1-CN$28)), IF(AND(CN$16=1,CN$17=0),IF(CM35<0,CM35-CN$34, (CM35+CN18+CN21)*(1+(CN33*Input!$F$9+Sheet2!CN$13*CN32))-(CN$34)/(1-CN$28)))))) -> FALSE | CP35: =INDEX($A:$CN, ROW(), $D$3+$C$3+2) -> -2157067.157
A36: taxable savings | B36: =Input!$C$9 -> 30000 | C36: =IF(AND(C37=0,C$9=2), B36+C20,IF(C$9=1, IF(AND(C$16=1,C$17=1),(B36+C20)*(1+(1-C$29)*(Input!$F$8*Input!$F$9+Sheet2!C$13*Input!$F$7))-(C$37), IF(AND(C$16=0,C$17=1),(B36+C20)*(1+(1-C$29)*(Input!$F$8*Input!$F$9+Sheet2!C$13*Input!$F$7))-(C$37))), IF(AND(C$16=1,C$17=1),IF(B36<0, B36-C$37,(B36+C20)*(1+(1-C$29)*(C33*Input!$F$9+Sheet2!C$13*C32))-(C$37)), IF(AND(C$16=0,C$17=1),IF(B36<0, B36-C$37, (B36+C20)*(1+(1-C$29)*(C33*Input!$F$9+Sheet2!C$13*C32))-(C$37)))))) -> 51203.72236 | D36: =IF(AND(D37=0,D$9=2), C36+D20,IF(D$9=1, IF(AND(D$16=1,D$17=1),(C36+D20)*(1+(1-D$29)*(Input!$F$8*Input!$F$9+Sheet2!D$13*Input!$F$7))-(D$37), IF(AND(D$16=0,D$17=1),(C36+D20)*(1+(1-D$29)*(Input!$F$8*Input!$F$9+Sheet2!D$13*Input!$F$7))-(D$37))), IF(AND(D$16=1,D$17=1),IF(C36<0, C36-D$37,(C36+D20)*(1+(1-D$29)*(D33*Input!$F$9+Sheet2!D$13*D32))-(D$37)), IF(AND(D$16=0,D$17=1),IF(C36<0, C36-D$37, (C36+D20)*(1+(1-D$29)*(D33*Input!$F$9+Sheet2!D$13*D32))-(D$37)))))) -> 51203.72236 | E36: =IF(AND(E37=0,E$9=2), D36+E20,IF(E$9=1, IF(AND(E$16=1,E$17=1),(D36+E20)*(1+(1-E$29)*(Input!$F$8*Input!$F$9+Sheet2!E$13*Input!$F$7))-(E$37), IF(AND(E$16=0,E$17=1),(D36+E20)*(1+(1-E$29)*(Input!$F$8*Input!$F$9+Sheet2!E$13*Input!$F$7))-(E$37))), IF(AND(E$16=1,E$17=1),IF(D36<0, D36-E$37,(D36+E20)*(1+(1-E$29)*(E33*Input!$F$9+Sheet2!E$13*E32))-(E$37)), IF(AND(E$16=0,E$17=1),IF(D36<0, D36-E$37, (D36+E20)*(1+(1-E$29)*(E33*Input!$F$9+Sheet2!E$13*E32))-(E$37)))))) -> 51203.72236 | F36: =IF(AND(F37=0,F$9=2), E36+F20,IF(F$9=1, IF(AND(F$16=1,F$17=1),(E36+F20)*(1+(1-F$29)*(Input!$F$8*Input!$F$9+Sheet2!F$13*Input!$F$7))-(F$37), IF(AND(F$16=0,F$17=1),(E36+F20)*(1+(1-F$29)*(Input!$F$8*Input!$F$9+Sheet2!F$13*Input!$F$7))-(F$37))), IF(AND(F$16=1,F$17=1),IF(E36<0, E36-F$37,(E36+F20)*(1+(1-F$29)*(F33*Input!$F$9+Sheet2!F$13*F32))-(F$37)), IF(AND(F$16=0,F$17=1),IF(E36<0, E36-F$37, (E36+F20)*(1+(1-F$29)*(F33*Input!$F$9+Sheet2!F$13*F32))-(F$37)))))) -> 51203.72236 | G36: =IF(AND(G37=0,G$9=2), F36+G20,IF(G$9=1, IF(AND(G$16=1,G$17=1),(F36+G20)*(1+(1-G$29)*(Input!$F$8*Input!$F$9+Sheet2!G$13*Input!$F$7))-(G$37), IF(AND(G$16=0,G$17=1),(F36+G20)*(1+(1-G$29)*(Input!$F$8*Input!$F$9+Sheet2!G$13*Input!$F$7))-(G$37))), IF(AND(G$16=1,G$17=1),IF(F36<0, F36-G$37,(F36+G20)*(1+(1-G$29)*(G33*Input!$F$9+Sheet2!G$13*G32))-(G$37)), IF(AND(G$16=0,G$17=1),IF(F36<0, F36-G$37, (F36+G20)*(1+(1-G$29)*(G33*Input!$F$9+Sheet2!G$13*G32))-(G$37)))))) -> 51203.72236 | H36: =IF(AND(H37=0,H$9=2), G36+H20,IF(H$9=1, IF(AND(H$16=1,H$17=1),(G36+H20)*(1+(1-H$29)*(Input!$F$8*Input!$F$9+Sheet2!H$13*Input!$F$7))-(H$37), IF(AND(H$16=0,H$17=1),(G36+H20)*(1+(1-H$29)*(Input!$F$8*Input!$F$9+Sheet2!H$13*Input!$F$7))-(H$37))), IF(AND(H$16=1,H$17=1),IF(G36<0, G36-H$37,(G36+H20)*(1+(1-H$29)*(H33*Input!$F$9+Sheet2!H$13*H32))-(H$37)), IF(AND(H$16=0,H$17=1),IF(G36<0, G36-H$37, (G36+H20)*(1+(1-H$29)*(H33*Input!$F$9+Sheet2!H$13*H32))-(H$37)))))) -> 51203.72236 | I36: =IF(AND(I37=0,I$9=2), H36+I20,IF(I$9=1, IF(AND(I$16=1,I$17=1),(H36+I20)*(1+(1-I$29)*(Input!$F$8*Input!$F$9+Sheet2!I$13*Input!$F$7))-(I$37), IF(AND(I$16=0,I$17=1),(H36+I20)*(1+(1-I$29)*(Input!$F$8*Input!$F$9+Sheet2!I$13*Input!$F$7))-(I$37))), IF(AND(I$16=1,I$17=1),IF(H36<0, H36-I$37,(H36+I20)*(1+(1-I$29)*(I33*Input!$F$9+Sheet2!I$13*I32))-(I$37)), IF(AND(I$16=0,I$17=1),IF(H36<0, H36-I$37, (H36+I20)*(1+(1-I$29)*(I33*Input!$F$9+Sheet2!I$13*I32))-(I$37)))))) -> 52054.89789 | J36: =IF(AND(J37=0,J$9=2), I36+J20,IF(J$9=1, IF(AND(J$16=1,J$17=1),(I36+J20)*(1+(1-J$29)*(Input!$F$8*Input!$F$9+Sheet2!J$13*Input!$F$7))-(J$37), IF(AND(J$16=0,J$17=1),(I36+J20)*(1+(1-J$29)*(Input!$F$8*Input!$F$9+Sheet2!J$13*Input!$F$7))-(J$37))), IF(AND(J$16=1,J$17=1),IF(I36<0, I36-J$37,(I36+J20)*(1+(1-J$29)*(J33*Input!$F$9+Sheet2!J$13*J32))-(J$37)), IF(AND(J$16=0,J$17=1),IF(I36<0, I36-J$37, (I36+J20)*(1+(1-J$29)*(J33*Input!$F$9+Sheet2!J$13*J32))-(J$37)))))) -> 41547.30835 | K36: =IF(AND(K37=0,K$9=2), J36+K20,IF(K$9=1, IF(AND(K$16=1,K$17=1),(J36+K20)*(1+(1-K$29)*(Input!$F$8*Input!$F$9+Sheet2!K$13*Input!$F$7))-(K$37), IF(AND(K$16=0,K$17=1),(J36+K20)*(1+(1-K$29)*(Input!$F$8*Input!$F$9+Sheet2!K$13*Input!$F$7))-(K$37))), IF(AND(K$16=1,K$17=1),IF(J36<0, J36-K$37,(J36+K20)*(1+(1-K$29)*(K33*Input!$F$9+Sheet2!K$13*K32))-(K$37)), IF(AND(K$16=0,K$17=1),IF(J36<0, J36-K$37, (J36+K20)*(1+(1-K$29)*(K33*Input!$F$9+Sheet2!K$13*K32))-(K$37)))))) -> 32941.48528 | L36: =IF(AND(L37=0,L$9=2), K36+L20,IF(L$9=1, IF(AND(L$16=1,L$17=1),(K36+L20)*(1+(1-L$29)*(Input!$F$8*Input!$F$9+Sheet2!L$13*Input!$F$7))-(L$37), IF(AND(L$16=0,L$17=1),(K36+L20)*(1+(1-L$29)*(Input!$F$8*Input!$F$9+Sheet2!L$13*Input!$F$7))-(L$37))), IF(AND(L$16=1,L$17=1),IF(K36<0, K36-L$37,(K36+L20)*(1+(1-L$29)*(L33*Input!$F$9+Sheet2!L$13*L32))-(L$37)), IF(AND(L$16=0,L$17=1),IF(K36<0, K36-L$37, (K36+L20)*(1+(1-L$29)*(L33*Input!$F$9+Sheet2!L$13*L32))-(L$37)))))) -> 22943.05252 | M36: =IF(AND(M37=0,M$9=2), L36+M20,IF(M$9=1, IF(AND(M$16=1,M$17=1),(L36+M20)*(1+(1-M$29)*(Input!$F$8*Input!$F$9+Sheet2!M$13*Input!$F$7))-(M$37), IF(AND(M$16=0,M$17=1),(L36+M20)*(1+(1-M$29)*(Input!$F$8*Input!$F$9+Sheet2!M$13*Input!$F$7))-(M$37))), IF(AND(M$16=1,M$17=1),IF(L36<0, L36-M$37,(L36+M20)*(1+(1-M$29)*(M33*Input!$F$9+Sheet2!M$13*M32))-(M$37)), IF(AND(M$16=0,M$17=1),IF(L36<0, L36-M$37, (L36+M20)*(1+(1-M$29)*(M33*Input!$F$9+Sheet2!M$13*M32))-(M$37)))))) -> 13229.38054 | N36: =IF(AND(N37=0,N$9=2), M36+N20,IF(N$9=1, IF(AND(N$16=1,N$17=1),(M36+N20)*(1+(1-N$29)*(Input!$F$8*Input!$F$9+Sheet2!N$13*Input!$F$7))-(N$37), IF(AND(N$16=0,N$17=1),(M36+N20)*(1+(1-N$29)*(Input!$F$8*Input!$F$9+Sheet2!N$13*Input!$F$7))-(N$37))), IF(AND(N$16=1,N$17=1),IF(M36<0, M36-N$37,(M36+N20)*(1+(1-N$29)*(N33*Input!$F$9+Sheet2!N$13*N32))-(N$37)), IF(AND(N$16=0,N$17=1),IF(M36<0, M36-N$37, (M36+N20)*(1+(1-N$29)*(N33*Input!$F$9+Sheet2!N$13*N32))-(N$37)))))) -> 2562.519215 | O36: =IF(AND(O37=0,O$9=2), N36+O20,IF(O$9=1, IF(AND(O$16=1,O$17=1),(N36+O20)*(1+(1-O$29)*(Input!$F$8*Input!$F$9+Sheet2!O$13*Input!$F$7))-(O$37), IF(AND(O$16=0,O$17=1),(N36+O20)*(1+(1-O$29)*(Input!$F$8*Input!$F$9+Sheet2!O$13*Input!$F$7))-(O$37))), IF(AND(O$16=1,O$17=1),IF(N36<0, N36-O$37,(N36+O20)*(1+(1-O$29)*(O33*Input!$F$9+Sheet2!O$13*O32))-(O$37)), IF(AND(O$16=0,O$17=1),IF(N36<0, N36-O$37, (N36+O20)*(1+(1-O$29)*(O33*Input!$F$9+Sheet2!O$13*O32))-(O$37)))))) -> -8283.862242 | P36: =IF(AND(P37=0,P$9=2), O36+P20,IF(P$9=1, IF(AND(P$16=1,P$17=1),(O36+P20)*(1+(1-P$29)*(Input!$F$8*Input!$F$9+Sheet2!P$13*Input!$F$7))-(P$37), IF(AND(P$16=0,P$17=1),(O36+P20)*(1+(1-P$29)*(Input!$F$8*Input!$F$9+Sheet2!P$13*Input!$F$7))-(P$37))), IF(AND(P$16=1,P$17=1),IF(O36<0, O36-P$37,(O36+P20)*(1+(1-P$29)*(P33*Input!$F$9+Sheet2!P$13*P32))-(P$37)), IF(AND(P$16=0,P$17=1),IF(O36<0, O36-P$37, (O36+P20)*(1+(1-P$29)*(P33*Input!$F$9+Sheet2!P$13*P32))-(P$37)))))) -> -8283.862242 | Q36: =IF(AND(Q37=0,Q$9=2), P36+Q20,IF(Q$9=1, IF(AND(Q$16=1,Q$17=1),(P36+Q20)*(1+(1-Q$29)*(Input!$F$8*Input!$F$9+Sheet2!Q$13*Input!$F$7))-(Q$37), IF(AND(Q$16=0,Q$17=1),(P36+Q20)*(1+(1-Q$29)*(Input!$F$8*Input!$F$9+Sheet2!Q$13*Input!$F$7))-(Q$37))), IF(AND(Q$16=1,Q$17=1),IF(P36<0, P36-Q$37,(P36+Q20)*(1+(1-Q$29)*(Q33*Input!$F$9+Sheet2!Q$13*Q32))-(Q$37)), IF(AND(Q$16=0,Q$17=1),IF(P36<0, P36-Q$37, (P36+Q20)*(1+(1-Q$29)*(Q33*Input!$F$9+Sheet2!Q$13*Q32))-(Q$37)))))) -> -8283.862242 | R36: =IF(AND(R37=0,R$9=2), Q36+R20,IF(R$9=1, IF(AND(R$16=1,R$17=1),(Q36+R20)*(1+(1-R$29)*(Input!$F$8*Input!$F$9+Sheet2!R$13*Input!$F$7))-(R$37), IF(AND(R$16=0,R$17=1),(Q36+R20)*(1+(1-R$29)*(Input!$F$8*Input!$F$9+Sheet2!R$13*Input!$F$7))-(R$37))), IF(AND(R$16=1,R$17=1),IF(Q36<0, Q36-R$37,(Q36+R20)*(1+(1-R$29)*(R33*Input!$F$9+Sheet2!R$13*R32))-(R$37)), IF(AND(R$16=0,R$17=1),IF(Q36<0, Q36-R$37, (Q36+R20)*(1+(1-R$29)*(R33*Input!$F$9+Sheet2!R$13*R32))-(R$37)))))) -> -8283.862242 | S36: =IF(AND(S37=0,S$9=2), R36+S20,IF(S$9=1, IF(AND(S$16=1,S$17=1),(R36+S20)*(1+(1-S$29)*(Input!$F$8*Input!$F$9+Sheet2!S$13*Input!$F$7))-(S$37), IF(AND(S$16=0,S$17=1),(R36+S20)*(1+(1-S$29)*(Input!$F$8*Input!$F$9+Sheet2!S$13*Input!$F$7))-(S$37))), IF(AND(S$16=1,S$17=1),IF(R36<0, R36-S$37,(R36+S20)*(1+(1-S$29)*(S33*Input!$F$9+Sheet2!S$13*S32))-(S$37)), IF(AND(S$16=0,S$17=1),IF(R36<0, R36-S$37, (R36+S20)*(1+(1-S$29)*(S33*Input!$F$9+Sheet2!S$13*S32))-(S$37)))))) -> -8283.862242 | T36: =IF(AND(T37=0,T$9=2), S36+T20,IF(T$9=1, IF(AND(T$16=1,T$17=1),(S36+T20)*(1+(1-T$29)*(Input!$F$8*Input!$F$9+Sheet2!T$13*Input!$F$7))-(T$37), IF(AND(T$16=0,T$17=1),(S36+T20)*(1+(1-T$29)*(Input!$F$8*Input!$F$9+Sheet2!T$13*Input!$F$7))-(T$37))), IF(AND(T$16=1,T$17=1),IF(S36<0, S36-T$37,(S36+T20)*(1+(1-T$29)*(T33*Input!$F$9+Sheet2!T$13*T32))-(T$37)), IF(AND(T$16=0,T$17=1),IF(S36<0, S36-T$37, (S36+T20)*(1+(1-T$29)*(T33*Input!$F$9+Sheet2!T$13*T32))-(T$37)))))) -> -8283.862242 | U36: =IF(AND(U37=0,U$9=2), T36+U20,IF(U$9=1, IF(AND(U$16=1,U$17=1),(T36+U20)*(1+(1-U$29)*(Input!$F$8*Input!$F$9+Sheet2!U$13*Input!$F$7))-(U$37), IF(AND(U$16=0,U$17=1),(T36+U20)*(1+(1-U$29)*(Input!$F$8*Input!$F$9+Sheet2!U$13*Input!$F$7))-(U$37))), IF(AND(U$16=1,U$17=1),IF(T36<0, T36-U$37,(T36+U20)*(1+(1-U$29)*(U33*Input!$F$9+Sheet2!U$13*U32))-(U$37)), IF(AND(U$16=0,U$17=1),IF(T36<0, T36-U$37, (T36+U20)*(1+(1-U$29)*(U33*Input!$F$9+Sheet2!U$13*U32))-(U$37)))))) -> -8283.862242 | V36: =IF(AND(V37=0,V$9=2), U36+V20,IF(V$9=1, IF(AND(V$16=1,V$17=1),(U36+V20)*(1+(1-V$29)*(Input!$F$8*Input!$F$9+Sheet2!V$13*Input!$F$7))-(V$37), IF(AND(V$16=0,V$17=1),(U36+V20)*(1+(1-V$29)*(Input!$F$8*Input!$F$9+Sheet2!V$13*Input!$F$7))-(V$37))), IF(AND(V$16=1,V$17=1),IF(U36<0, U36-V$37,(U36+V20)*(1+(1-V$29)*(V33*Input!$F$9+Sheet2!V$13*V32))-(V$37)), IF(AND(V$16=0,V$17=1),IF(U36<0, U36-V$37, (U36+V20)*(1+(1-V$29)*(V33*Input!$F$9+Sheet2!V$13*V32))-(V$37)))))) -> -8283.862242 | W36: =IF(AND(W37=0,W$9=2), V36+W20,IF(W$9=1, IF(AND(W$16=1,W$17=1),(V36+W20)*(1+(1-W$29)*(Input!$F$8*Input!$F$9+Sheet2!W$13*Input!$F$7))-(W$37), IF(AND(W$16=0,W$17=1),(V36+W20)*(1+(1-W$29)*(Input!$F$8*Input!$F$9+Sheet2!W$13*Input!$F$7))-(W$37))), IF(AND(W$16=1,W$17=1),IF(V36<0, V36-W$37,(V36+W20)*(1+(1-W$29)*(W33*Input!$F$9+Sheet2!W$13*W32))-(W$37)), IF(AND(W$16=0,W$17=1),IF(V36<0, V36-W$37, (V36+W20)*(1+(1-W$29)*(W33*Input!$F$9+Sheet2!W$13*W32))-(W$37)))))) -> -8283.862242 | X36: =IF(AND(X37=0,X$9=2), W36+X20,IF(X$9=1, IF(AND(X$16=1,X$17=1),(W36+X20)*(1+(1-X$29)*(Input!$F$8*Input!$F$9+Sheet2!X$13*Input!$F$7))-(X$37), IF(AND(X$16=0,X$17=1),(W36+X20)*(1+(1-X$29)*(Input!$F$8*Input!$F$9+Sheet2!X$13*Input!$F$7))-(X$37))), IF(AND(X$16=1,X$17=1),IF(W36<0, W36-X$37,(W36+X20)*(1+(1-X$29)*(X33*Input!$F$9+Sheet2!X$13*X32))-(X$37)), IF(AND(X$16=0,X$17=1),IF(W36<0, W36-X$37, (W36+X20)*(1+(1-X$29)*(X33*Input!$F$9+Sheet2!X$13*X32))-(X$37)))))) -> -8283.862242 | Y36: =IF(AND(Y37=0,Y$9=2), X36+Y20,IF(Y$9=1, IF(AND(Y$16=1,Y$17=1),(X36+Y20)*(1+(1-Y$29)*(Input!$F$8*Input!$F$9+Sheet2!Y$13*Input!$F$7))-(Y$37), IF(AND(Y$16=0,Y$17=1),(X36+Y20)*(1+(1-Y$29)*(Input!$F$8*Input!$F$9+Sheet2!Y$13*Input!$F$7))-(Y$37))), IF(AND(Y$16=1,Y$17=1),IF(X36<0, X36-Y$37,(X36+Y20)*(1+(1-Y$29)*(Y33*Input!$F$9+Sheet2!Y$13*Y32))-(Y$37)), IF(AND(Y$16=0,Y$17=1),IF(X36<0, X36-Y$37, (X36+Y20)*(1+(1-Y$29)*(Y33*Input!$F$9+Sheet2!Y$13*Y32))-(Y$37)))))) -> -8283.862242 | Z36: =IF(AND(Z37=0,Z$9=2), Y36+Z20,IF(Z$9=1, IF(AND(Z$16=1,Z$17=1),(Y36+Z20)*(1+(1-Z$29)*(Input!$F$8*Input!$F$9+Sheet2!Z$13*Input!$F$7))-(Z$37), IF(AND(Z$16=0,Z$17=1),(Y36+Z20)*(1+(1-Z$29)*(Input!$F$8*Input!$F$9+Sheet2!Z$13*Input!$F$7))-(Z$37))), IF(AND(Z$16=1,Z$17=1),IF(Y36<0, Y36-Z$37,(Y36+Z20)*(1+(1-Z$29)*(Z33*Input!$F$9+Sheet2!Z$13*Z32))-(Z$37)), IF(AND(Z$16=0,Z$17=1),IF(Y36<0, Y36-Z$37, (Y36+Z20)*(1+(1-Z$29)*(Z33*Input!$F$9+Sheet2!Z$13*Z32))-(Z$37)))))) -> -8283.862242 | AA36: =IF(AND(AA37=0,AA$9=2), Z36+AA20,IF(AA$9=1, IF(AND(AA$16=1,AA$17=1),(Z36+AA20)*(1+(1-AA$29)*(Input!$F$8*Input!$F$9+Sheet2!AA$13*Input!$F$7))-(AA$37), IF(AND(AA$16=0,AA$17=1),(Z36+AA20)*(1+(1-AA$29)*(Input!$F$8*Input!$F$9+Sheet2!AA$13*Input!$F$7))-(AA$37))), IF(AND(AA$16=1,AA$17=1),IF(Z36<0, Z36-AA$37,(Z36+AA20)*(1+(1-AA$29)*(AA33*Input!$F$9+Sheet2!AA$13*AA32))-(AA$37)), IF(AND(AA$16=0,AA$17=1),IF(Z36<0, Z36-AA$37, (Z36+AA20)*(1+(1-AA$29)*(AA33*Input!$F$9+Sheet2!AA$13*AA32))-(AA$37)))))) -> -8283.862242 | AB36: =IF(AND(AB37=0,AB$9=2), AA36+AB20,IF(AB$9=1, IF(AND(AB$16=1,AB$17=1),(AA36+AB20)*(1+(1-AB$29)*(Input!$F$8*Input!$F$9+Sheet2!AB$13*Input!$F$7))-(AB$37), IF(AND(AB$16=0,AB$17=1),(AA36+AB20)*(1+(1-AB$29)*(Input!$F$8*Input!$F$9+Sheet2!AB$13*Input!$F$7))-(AB$37))), IF(AND(AB$16=1,AB$17=1),IF(AA36<0, AA36-AB$37,(AA36+AB20)*(1+(1-AB$29)*(AB33*Input!$F$9+Sheet2!AB$13*AB32))-(AB$37)), IF(AND(AB$16=0,AB$17=1),IF(AA36<0, AA36-AB$37, (AA36+AB20)*(1+(1-AB$29)*(AB33*Input!$F$9+Sheet2!AB$13*AB32))-(AB$37)))))) -> -8283.862242 | AC36: =IF(AND(AC37=0,AC$9=2), AB36+AC20,IF(AC$9=1, IF(AND(AC$16=1,AC$17=1),(AB36+AC20)*(1+(1-AC$29)*(Input!$F$8*Input!$F$9+Sheet2!AC$13*Input!$F$7))-(AC$37), IF(AND(AC$16=0,AC$17=1),(AB36+AC20)*(1+(1-AC$29)*(Input!$F$8*Input!$F$9+Sheet2!AC$13*Input!$F$7))-(AC$37))), IF(AND(AC$16=1,AC$17=1),IF(AB36<0, AB36-AC$37,(AB36+AC20)*(1+(1-AC$29)*(AC33*Input!$F$9+Sheet2!AC$13*AC32))-(AC$37)), IF(AND(AC$16=0,AC$17=1),IF(AB36<0, AB36-AC$37, (AB36+AC20)*(1+(1-AC$29)*(AC33*Input!$F$9+Sheet2!AC$13*AC32))-(AC$37)))))) -> -8283.862242 | AD36: =IF(AND(AD37=0,AD$9=2), AC36+AD20,IF(AD$9=1, IF(AND(AD$16=1,AD$17=1),(AC36+AD20)*(1+(1-AD$29)*(Input!$F$8*Input!$F$9+Sheet2!AD$13*Input!$F$7))-(AD$37), IF(AND(AD$16=0,AD$17=1),(AC36+AD20)*(1+(1-AD$29)*(Input!$F$8*Input!$F$9+Sheet2!AD$13*Input!$F$7))-(AD$37))), IF(AND(AD$16=1,AD$17=1),IF(AC36<0, AC36-AD$37,(AC36+AD20)*(1+(1-AD$29)*(AD33*Input!$F$9+Sheet2!AD$13*AD32))-(AD$37)), IF(AND(AD$16=0,AD$17=1),IF(AC36<0, AC36-AD$37, (AC36+AD20)*(1+(1-AD$29)*(AD33*Input!$F$9+Sheet2!AD$13*AD32))-(AD$37)))))) -> -137137.057 | AE36: =IF(AND(AE37=0,AE$9=2), AD36+AE20,IF(AE$9=1, IF(AND(AE$16=1,AE$17=1),(AD36+AE20)*(1+(1-AE$29)*(Input!$F$8*Input!$F$9+Sheet2!AE$13*Input!$F$7))-(AE$37), IF(AND(AE$16=0,AE$17=1),(AD36+AE20)*(1+(1-AE$29)*(Input!$F$8*Input!$F$9+Sheet2!AE$13*Input!$F$7))-(AE$37))), IF(AND(AE$16=1,AE$17=1),IF(AD36<0, AD36-AE$37,(AD36+AE20)*(1+(1-AE$29)*(AE33*Input!$F$9+Sheet2!AE$13*AE32))-(AE$37)), IF(AND(AE$16=0,AE$17=1),IF(AD36<0, AD36-AE$37, (AD36+AE20)*(1+(1-AE$29)*(AE33*Input!$F$9+Sheet2!AE$13*AE32))-(AE$37)))))) -> -137137.057 | AF36: =IF(AND(AF37=0,AF$9=2), AE36+AF20,IF(AF$9=1, IF(AND(AF$16=1,AF$17=1),(AE36+AF20)*(1+(1-AF$29)*(Input!$F$8*Input!$F$9+Sheet2!AF$13*Input!$F$7))-(AF$37), IF(AND(AF$16=0,AF$17=1),(AE36+AF20)*(1+(1-AF$29)*(Input!$F$8*Input!$F$9+Sheet2!AF$13*Input!$F$7))-(AF$37))), IF(AND(AF$16=1,AF$17=1),IF(AE36<0, AE36-AF$37,(AE36+AF20)*(1+(1-AF$29)*(AF33*Input!$F$9+Sheet2!AF$13*AF32))-(AF$37)), IF(AND(AF$16=0,AF$17=1),IF(AE36<0, AE36-AF$37, (AE36+AF20)*(1+(1-AF$29)*(AF33*Input!$F$9+Sheet2!AF$13*AF32))-(AF$37)))))) -> FALSE | AG36: =IF(AND(AG37=0,AG$9=2), AF36+AG20,IF(AG$9=1, IF(AND(AG$16=1,AG$17=1),(AF36+AG20)*(1+(1-AG$29)*(Input!$F$8*Input!$F$9+Sheet2!AG$13*Input!$F$7))-(AG$37), IF(AND(AG$16=0,AG$17=1),(AF36+AG20)*(1+(1-AG$29)*(Input!$F$8*Input!$F$9+Sheet2!AG$13*Input!$F$7))-(AG$37))), IF(AND(AG$16=1,AG$17=1),IF(AF36<0, AF36-AG$37,(AF36+AG20)*(1+(1-AG$29)*(AG33*Input!$F$9+Sheet2!AG$13*AG32))-(AG$37)), IF(AND(AG$16=0,AG$17=1),IF(AF36<0, AF36-AG$37, (AF36+AG20)*(1+(1-AG$29)*(AG33*Input!$F$9+Sheet2!AG$13*AG32))-(AG$37)))))) -> FALSE | AH36: =IF(AND(AH37=0,AH$9=2), AG36+AH20,IF(AH$9=1, IF(AND(AH$16=1,AH$17=1),(AG36+AH20)*(1+(1-AH$29)*(Input!$F$8*Input!$F$9+Sheet2!AH$13*Input!$F$7))-(AH$37), IF(AND(AH$16=0,AH$17=1),(AG36+AH20)*(1+(1-AH$29)*(Input!$F$8*Input!$F$9+Sheet2!AH$13*Input!$F$7))-(AH$37))), IF(AND(AH$16=1,AH$17=1),IF(AG36<0, AG36-AH$37,(AG36+AH20)*(1+(1-AH$29)*(AH33*Input!$F$9+Sheet2!AH$13*AH32))-(AH$37)), IF(AND(AH$16=0,AH$17=1),IF(AG36<0, AG36-AH$37, (AG36+AH20)*(1+(1-AH$29)*(AH33*Input!$F$9+Sheet2!AH$13*AH32))-(AH$37)))))) -> FALSE | AI36: =IF(AND(AI37=0,AI$9=2), AH36+AI20,IF(AI$9=1, IF(AND(AI$16=1,AI$17=1),(AH36+AI20)*(1+(1-AI$29)*(Input!$F$8*Input!$F$9+Sheet2!AI$13*Input!$F$7))-(AI$37), IF(AND(AI$16=0,AI$17=1),(AH36+AI20)*(1+(1-AI$29)*(Input!$F$8*Input!$F$9+Sheet2!AI$13*Input!$F$7))-(AI$37))), IF(AND(AI$16=1,AI$17=1),IF(AH36<0, AH36-AI$37,(AH36+AI20)*(1+(1-AI$29)*(AI33*Input!$F$9+Sheet2!AI$13*AI32))-(AI$37)), IF(AND(AI$16=0,AI$17=1),IF(AH36<0, AH36-AI$37, (AH36+AI20)*(1+(1-AI$29)*(AI33*Input!$F$9+Sheet2!AI$13*AI32))-(AI$37)))))) -> FALSE | AJ36: =IF(AND(AJ37=0,AJ$9=2), AI36+AJ20,IF(AJ$9=1, IF(AND(AJ$16=1,AJ$17=1),(AI36+AJ20)*(1+(1-AJ$29)*(Input!$F$8*Input!$F$9+Sheet2!AJ$13*Input!$F$7))-(AJ$37), IF(AND(AJ$16=0,AJ$17=1),(AI36+AJ20)*(1+(1-AJ$29)*(Input!$F$8*Input!$F$9+Sheet2!AJ$13*Input!$F$7))-(AJ$37))), IF(AND(AJ$16=1,AJ$17=1),IF(AI36<0, AI36-AJ$37,(AI36+AJ20)*(1+(1-AJ$29)*(AJ33*Input!$F$9+Sheet2!AJ$13*AJ32))-(AJ$37)), IF(AND(AJ$16=0,AJ$17=1),IF(AI36<0, AI36-AJ$37, (AI36+AJ20)*(1+(1-AJ$29)*(AJ33*Input!$F$9+Sheet2!AJ$13*AJ32))-(AJ$37)))))) -> FALSE | AK36: =IF(AND(AK37=0,AK$9=2), AJ36+AK20,IF(AK$9=1, IF(AND(AK$16=1,AK$17=1),(AJ36+AK20)*(1+(1-AK$29)*(Input!$F$8*Input!$F$9+Sheet2!AK$13*Input!$F$7))-(AK$37), IF(AND(AK$16=0,AK$17=1),(AJ36+AK20)*(1+(1-AK$29)*(Input!$F$8*Input!$F$9+Sheet2!AK$13*Input!$F$7))-(AK$37))), IF(AND(AK$16=1,AK$17=1),IF(AJ36<0, AJ36-AK$37,(AJ36+AK20)*(1+(1-AK$29)*(AK33*Input!$F$9+Sheet2!AK$13*AK32))-(AK$37)), IF(AND(AK$16=0,AK$17=1),IF(AJ36<0, AJ36-AK$37, (AJ36+AK20)*(1+(1-AK$29)*(AK33*Input!$F$9+Sheet2!AK$13*AK32))-(AK$37)))))) -> FALSE | AL36: =IF(AND(AL37=0,AL$9=2), AK36+AL20,IF(AL$9=1, IF(AND(AL$16=1,AL$17=1),(AK36+AL20)*(1+(1-AL$29)*(Input!$F$8*Input!$F$9+Sheet2!AL$13*Input!$F$7))-(AL$37), IF(AND(AL$16=0,AL$17=1),(AK36+AL20)*(1+(1-AL$29)*(Input!$F$8*Input!$F$9+Sheet2!AL$13*Input!$F$7))-(AL$37))), IF(AND(AL$16=1,AL$17=1),IF(AK36<0, AK36-AL$37,(AK36+AL20)*(1+(1-AL$29)*(AL33*Input!$F$9+Sheet2!AL$13*AL32))-(AL$37)), IF(AND(AL$16=0,AL$17=1),IF(AK36<0, AK36-AL$37, (AK36+AL20)*(1+(1-AL$29)*(AL33*Input!$F$9+Sheet2!AL$13*AL32))-(AL$37)))))) -> FALSE | AM36: =IF(AND(AM37=0,AM$9=2), AL36+AM20,IF(AM$9=1, IF(AND(AM$16=1,AM$17=1),(AL36+AM20)*(1+(1-AM$29)*(Input!$F$8*Input!$F$9+Sheet2!AM$13*Input!$F$7))-(AM$37), IF(AND(AM$16=0,AM$17=1),(AL36+AM20)*(1+(1-AM$29)*(Input!$F$8*Input!$F$9+Sheet2!AM$13*Input!$F$7))-(AM$37))), IF(AND(AM$16=1,AM$17=1),IF(AL36<0, AL36-AM$37,(AL36+AM20)*(1+(1-AM$29)*(AM33*Input!$F$9+Sheet2!AM$13*AM32))-(AM$37)), IF(AND(AM$16=0,AM$17=1),IF(AL36<0, AL36-AM$37, (AL36+AM20)*(1+(1-AM$29)*(AM33*Input!$F$9+Sheet2!AM$13*AM32))-(AM$37)))))) -> FALSE | AN36: =IF(AND(AN37=0,AN$9=2), AM36+AN20,IF(AN$9=1, IF(AND(AN$16=1,AN$17=1),(AM36+AN20)*(1+(1-AN$29)*(Input!$F$8*Input!$F$9+Sheet2!AN$13*Input!$F$7))-(AN$37), IF(AND(AN$16=0,AN$17=1),(AM36+AN20)*(1+(1-AN$29)*(Input!$F$8*Input!$F$9+Sheet2!AN$13*Input!$F$7))-(AN$37))), IF(AND(AN$16=1,AN$17=1),IF(AM36<0, AM36-AN$37,(AM36+AN20)*(1+(1-AN$29)*(AN33*Input!$F$9+Sheet2!AN$13*AN32))-(AN$37)), IF(AND(AN$16=0,AN$17=1),IF(AM36<0, AM36-AN$37, (AM36+AN20)*(1+(1-AN$29)*(AN33*Input!$F$9+Sheet2!AN$13*AN32))-(AN$37)))))) -> FALSE | AO36: =IF(AND(AO37=0,AO$9=2), AN36+AO20,IF(AO$9=1, IF(AND(AO$16=1,AO$17=1),(AN36+AO20)*(1+(1-AO$29)*(Input!$F$8*Input!$F$9+Sheet2!AO$13*Input!$F$7))-(AO$37), IF(AND(AO$16=0,AO$17=1),(AN36+AO20)*(1+(1-AO$29)*(Input!$F$8*Input!$F$9+Sheet2!AO$13*Input!$F$7))-(AO$37))), IF(AND(AO$16=1,AO$17=1),IF(AN36<0, AN36-AO$37,(AN36+AO20)*(1+(1-AO$29)*(AO33*Input!$F$9+Sheet2!AO$13*AO32))-(AO$37)), IF(AND(AO$16=0,AO$17=1),IF(AN36<0, AN36-AO$37, (AN36+AO20)*(1+(1-AO$29)*(AO33*Input!$F$9+Sheet2!AO$13*AO32))-(AO$37)))))) -> FALSE | AP36: =IF(AND(AP37=0,AP$9=2), AO36+AP20,IF(AP$9=1, IF(AND(AP$16=1,AP$17=1),(AO36+AP20)*(1+(1-AP$29)*(Input!$F$8*Input!$F$9+Sheet2!AP$13*Input!$F$7))-(AP$37), IF(AND(AP$16=0,AP$17=1),(AO36+AP20)*(1+(1-AP$29)*(Input!$F$8*Input!$F$9+Sheet2!AP$13*Input!$F$7))-(AP$37))), IF(AND(AP$16=1,AP$17=1),IF(AO36<0, AO36-AP$37,(AO36+AP20)*(1+(1-AP$29)*(AP33*Input!$F$9+Sheet2!AP$13*AP32))-(AP$37)), IF(AND(AP$16=0,AP$17=1),IF(AO36<0, AO36-AP$37, (AO36+AP20)*(1+(1-AP$29)*(AP33*Input!$F$9+Sheet2!AP$13*AP32))-(AP$37)))))) -> FALSE | AQ36: =IF(AND(AQ37=0,AQ$9=2), AP36+AQ20,IF(AQ$9=1, IF(AND(AQ$16=1,AQ$17=1),(AP36+AQ20)*(1+(1-AQ$29)*(Input!$F$8*Input!$F$9+Sheet2!AQ$13*Input!$F$7))-(AQ$37), IF(AND(AQ$16=0,AQ$17=1),(AP36+AQ20)*(1+(1-AQ$29)*(Input!$F$8*Input!$F$9+Sheet2!AQ$13*Input!$F$7))-(AQ$37))), IF(AND(AQ$16=1,AQ$17=1),IF(AP36<0, AP36-AQ$37,(AP36+AQ20)*(1+(1-AQ$29)*(AQ33*Input!$F$9+Sheet2!AQ$13*AQ32))-(AQ$37)), IF(AND(AQ$16=0,AQ$17=1),IF(AP36<0, AP36-AQ$37, (AP36+AQ20)*(1+(1-AQ$29)*(AQ33*Input!$F$9+Sheet2!AQ$13*AQ32))-(AQ$37)))))) -> FALSE | AR36: =IF(AND(AR37=0,AR$9=2), AQ36+AR20,IF(AR$9=1, IF(AND(AR$16=1,AR$17=1),(AQ36+AR20)*(1+(1-AR$29)*(Input!$F$8*Input!$F$9+Sheet2!AR$13*Input!$F$7))-(AR$37), IF(AND(AR$16=0,AR$17=1),(AQ36+AR20)*(1+(1-AR$29)*(Input!$F$8*Input!$F$9+Sheet2!AR$13*Input!$F$7))-(AR$37))), IF(AND(AR$16=1,AR$17=1),IF(AQ36<0, AQ36-AR$37,(AQ36+AR20)*(1+(1-AR$29)*(AR33*Input!$F$9+Sheet2!AR$13*AR32))-(AR$37)), IF(AND(AR$16=0,AR$17=1),IF(AQ36<0, AQ36-AR$37, (AQ36+AR20)*(1+(1-AR$29)*(AR33*Input!$F$9+Sheet2!AR$13*AR32))-(AR$37)))))) -> FALSE | AS36: =IF(AND(AS37=0,AS$9=2), AR36+AS20,IF(AS$9=1, IF(AND(AS$16=1,AS$17=1),(AR36+AS20)*(1+(1-AS$29)*(Input!$F$8*Input!$F$9+Sheet2!AS$13*Input!$F$7))-(AS$37), IF(AND(AS$16=0,AS$17=1),(AR36+AS20)*(1+(1-AS$29)*(Input!$F$8*Input!$F$9+Sheet2!AS$13*Input!$F$7))-(AS$37))), IF(AND(AS$16=1,AS$17=1),IF(AR36<0, AR36-AS$37,(AR36+AS20)*(1+(1-AS$29)*(AS33*Input!$F$9+Sheet2!AS$13*AS32))-(AS$37)), IF(AND(AS$16=0,AS$17=1),IF(AR36<0, AR36-AS$37, (AR36+AS20)*(1+(1-AS$29)*(AS33*Input!$F$9+Sheet2!AS$13*AS32))-(AS$37)))))) -> FALSE | AT36: =IF(AND(AT37=0,AT$9=2), AS36+AT20,IF(AT$9=1, IF(AND(AT$16=1,AT$17=1),(AS36+AT20)*(1+(1-AT$29)*(Input!$F$8*Input!$F$9+Sheet2!AT$13*Input!$F$7))-(AT$37), IF(AND(AT$16=0,AT$17=1),(AS36+AT20)*(1+(1-AT$29)*(Input!$F$8*Input!$F$9+Sheet2!AT$13*Input!$F$7))-(AT$37))), IF(AND(AT$16=1,AT$17=1),IF(AS36<0, AS36-AT$37,(AS36+AT20)*(1+(1-AT$29)*(AT33*Input!$F$9+Sheet2!AT$13*AT32))-(AT$37)), IF(AND(AT$16=0,AT$17=1),IF(AS36<0, AS36-AT$37, (AS36+AT20)*(1+(1-AT$29)*(AT33*Input!$F$9+Sheet2!AT$13*AT32))-(AT$37)))))) -> FALSE | AU36: =IF(AND(AU37=0,AU$9=2), AT36+AU20,IF(AU$9=1, IF(AND(AU$16=1,AU$17=1),(AT36+AU20)*(1+(1-AU$29)*(Input!$F$8*Input!$F$9+Sheet2!AU$13*Input!$F$7))-(AU$37), IF(AND(AU$16=0,AU$17=1),(AT36+AU20)*(1+(1-AU$29)*(Input!$F$8*Input!$F$9+Sheet2!AU$13*Input!$F$7))-(AU$37))), IF(AND(AU$16=1,AU$17=1),IF(AT36<0, AT36-AU$37,(AT36+AU20)*(1+(1-AU$29)*(AU33*Input!$F$9+Sheet2!AU$13*AU32))-(AU$37)), IF(AND(AU$16=0,AU$17=1),IF(AT36<0, AT36-AU$37, (AT36+AU20)*(1+(1-AU$29)*(AU33*Input!$F$9+Sheet2!AU$13*AU32))-(AU$37)))))) -> FALSE | AV36: =IF(AND(AV37=0,AV$9=2), AU36+AV20,IF(AV$9=1, IF(AND(AV$16=1,AV$17=1),(AU36+AV20)*(1+(1-AV$29)*(Input!$F$8*Input!$F$9+Sheet2!AV$13*Input!$F$7))-(AV$37), IF(AND(AV$16=0,AV$17=1),(AU36+AV20)*(1+(1-AV$29)*(Input!$F$8*Input!$F$9+Sheet2!AV$13*Input!$F$7))-(AV$37))), IF(AND(AV$16=1,AV$17=1),IF(AU36<0, AU36-AV$37,(AU36+AV20)*(1+(1-AV$29)*(AV33*Input!$F$9+Sheet2!AV$13*AV32))-(AV$37)), IF(AND(AV$16=0,AV$17=1),IF(AU36<0, AU36-AV$37, (AU36+AV20)*(1+(1-AV$29)*(AV33*Input!$F$9+Sheet2!AV$13*AV32))-(AV$37)))))) -> FALSE | AW36: =IF(AND(AW37=0,AW$9=2), AV36+AW20,IF(AW$9=1, IF(AND(AW$16=1,AW$17=1),(AV36+AW20)*(1+(1-AW$29)*(Input!$F$8*Input!$F$9+Sheet2!AW$13*Input!$F$7))-(AW$37), IF(AND(AW$16=0,AW$17=1),(AV36+AW20)*(1+(1-AW$29)*(Input!$F$8*Input!$F$9+Sheet2!AW$13*Input!$F$7))-(AW$37))), IF(AND(AW$16=1,AW$17=1),IF(AV36<0, AV36-AW$37,(AV36+AW20)*(1+(1-AW$29)*(AW33*Input!$F$9+Sheet2!AW$13*AW32))-(AW$37)), IF(AND(AW$16=0,AW$17=1),IF(AV36<0, AV36-AW$37, (AV36+AW20)*(1+(1-AW$29)*(AW33*Input!$F$9+Sheet2!AW$13*AW32))-(AW$37)))))) -> FALSE | AX36: =IF(AND(AX37=0,AX$9=2), AW36+AX20,IF(AX$9=1, IF(AND(AX$16=1,AX$17=1),(AW36+AX20)*(1+(1-AX$29)*(Input!$F$8*Input!$F$9+Sheet2!AX$13*Input!$F$7))-(AX$37), IF(AND(AX$16=0,AX$17=1),(AW36+AX20)*(1+(1-AX$29)*(Input!$F$8*Input!$F$9+Sheet2!AX$13*Input!$F$7))-(AX$37))), IF(AND(AX$16=1,AX$17=1),IF(AW36<0, AW36-AX$37,(AW36+AX20)*(1+(1-AX$29)*(AX33*Input!$F$9+Sheet2!AX$13*AX32))-(AX$37)), IF(AND(AX$16=0,AX$17=1),IF(AW36<0, AW36-AX$37, (AW36+AX20)*(1+(1-AX$29)*(AX33*Input!$F$9+Sheet2!AX$13*AX32))-(AX$37)))))) -> FALSE | AY36: =IF(AND(AY37=0,AY$9=2), AX36+AY20,IF(AY$9=1, IF(AND(AY$16=1,AY$17=1),(AX36+AY20)*(1+(1-AY$29)*(Input!$F$8*Input!$F$9+Sheet2!AY$13*Input!$F$7))-(AY$37), IF(AND(AY$16=0,AY$17=1),(AX36+AY20)*(1+(1-AY$29)*(Input!$F$8*Input!$F$9+Sheet2!AY$13*Input!$F$7))-(AY$37))), IF(AND(AY$16=1,AY$17=1),IF(AX36<0, AX36-AY$37,(AX36+AY20)*(1+(1-AY$29)*(AY33*Input!$F$9+Sheet2!AY$13*AY32))-(AY$37)), IF(AND(AY$16=0,AY$17=1),IF(AX36<0, AX36-AY$37, (AX36+AY20)*(1+(1-AY$29)*(AY33*Input!$F$9+Sheet2!AY$13*AY32))-(AY$37)))))) -> FALSE | AZ36: =IF(AND(AZ37=0,AZ$9=2), AY36+AZ20,IF(AZ$9=1, IF(AND(AZ$16=1,AZ$17=1),(AY36+AZ20)*(1+(1-AZ$29)*(Input!$F$8*Input!$F$9+Sheet2!AZ$13*Input!$F$7))-(AZ$37), IF(AND(AZ$16=0,AZ$17=1),(AY36+AZ20)*(1+(1-AZ$29)*(Input!$F$8*Input!$F$9+Sheet2!AZ$13*Input!$F$7))-(AZ$37))), IF(AND(AZ$16=1,AZ$17=1),IF(AY36<0, AY36-AZ$37,(AY36+AZ20)*(1+(1-AZ$29)*(AZ33*Input!$F$9+Sheet2!AZ$13*AZ32))-(AZ$37)), IF(AND(AZ$16=0,AZ$17=1),IF(AY36<0, AY36-AZ$37, (AY36+AZ20)*(1+(1-AZ$29)*(AZ33*Input!$F$9+Sheet2!AZ$13*AZ32))-(AZ$37)))))) -> FALSE | BA36: =IF(AND(BA37=0,BA$9=2), AZ36+BA20,IF(BA$9=1, IF(AND(BA$16=1,BA$17=1),(AZ36+BA20)*(1+(1-BA$29)*(Input!$F$8*Input!$F$9+Sheet2!BA$13*Input!$F$7))-(BA$37), IF(AND(BA$16=0,BA$17=1),(AZ36+BA20)*(1+(1-BA$29)*(Input!$F$8*Input!$F$9+Sheet2!BA$13*Input!$F$7))-(BA$37))), IF(AND(BA$16=1,BA$17=1),IF(AZ36<0, AZ36-BA$37,(AZ36+BA20)*(1+(1-BA$29)*(BA33*Input!$F$9+Sheet2!BA$13*BA32))-(BA$37)), IF(AND(BA$16=0,BA$17=1),IF(AZ36<0, AZ36-BA$37, (AZ36+BA20)*(1+(1-BA$29)*(BA33*Input!$F$9+Sheet2!BA$13*BA32))-(BA$37)))))) -> FALSE | BB36: =IF(AND(BB37=0,BB$9=2), BA36+BB20,IF(BB$9=1, IF(AND(BB$16=1,BB$17=1),(BA36+BB20)*(1+(1-BB$29)*(Input!$F$8*Input!$F$9+Sheet2!BB$13*Input!$F$7))-(BB$37), IF(AND(BB$16=0,BB$17=1),(BA36+BB20)*(1+(1-BB$29)*(Input!$F$8*Input!$F$9+Sheet2!BB$13*Input!$F$7))-(BB$37))), IF(AND(BB$16=1,BB$17=1),IF(BA36<0, BA36-BB$37,(BA36+BB20)*(1+(1-BB$29)*(BB33*Input!$F$9+Sheet2!BB$13*BB32))-(BB$37)), IF(AND(BB$16=0,BB$17=1),IF(BA36<0, BA36-BB$37, (BA36+BB20)*(1+(1-BB$29)*(BB33*Input!$F$9+Sheet2!BB$13*BB32))-(BB$37)))))) -> FALSE | BC36: =IF(AND(BC37=0,BC$9=2), BB36+BC20,IF(BC$9=1, IF(AND(BC$16=1,BC$17=1),(BB36+BC20)*(1+(1-BC$29)*(Input!$F$8*Input!$F$9+Sheet2!BC$13*Input!$F$7))-(BC$37), IF(AND(BC$16=0,BC$17=1),(BB36+BC20)*(1+(1-BC$29)*(Input!$F$8*Input!$F$9+Sheet2!BC$13*Input!$F$7))-(BC$37))), IF(AND(BC$16=1,BC$17=1),IF(BB36<0, BB36-BC$37,(BB36+BC20)*(1+(1-BC$29)*(BC33*Input!$F$9+Sheet2!BC$13*BC32))-(BC$37)), IF(AND(BC$16=0,BC$17=1),IF(BB36<0, BB36-BC$37, (BB36+BC20)*(1+(1-BC$29)*(BC33*Input!$F$9+Sheet2!BC$13*BC32))-(BC$37)))))) -> FALSE | BD36: =IF(AND(BD37=0,BD$9=2), BC36+BD20,IF(BD$9=1, IF(AND(BD$16=1,BD$17=1),(BC36+BD20)*(1+(1-BD$29)*(Input!$F$8*Input!$F$9+Sheet2!BD$13*Input!$F$7))-(BD$37), IF(AND(BD$16=0,BD$17=1),(BC36+BD20)*(1+(1-BD$29)*(Input!$F$8*Input!$F$9+Sheet2!BD$13*Input!$F$7))-(BD$37))), IF(AND(BD$16=1,BD$17=1),IF(BC36<0, BC36-BD$37,(BC36+BD20)*(1+(1-BD$29)*(BD33*Input!$F$9+Sheet2!BD$13*BD32))-(BD$37)), IF(AND(BD$16=0,BD$17=1),IF(BC36<0, BC36-BD$37, (BC36+BD20)*(1+(1-BD$29)*(BD33*Input!$F$9+Sheet2!BD$13*BD32))-(BD$37)))))) -> FALSE | BE36: =IF(AND(BE37=0,BE$9=2), BD36+BE20,IF(BE$9=1, IF(AND(BE$16=1,BE$17=1),(BD36+BE20)*(1+(1-BE$29)*(Input!$F$8*Input!$F$9+Sheet2!BE$13*Input!$F$7))-(BE$37), IF(AND(BE$16=0,BE$17=1),(BD36+BE20)*(1+(1-BE$29)*(Input!$F$8*Input!$F$9+Sheet2!BE$13*Input!$F$7))-(BE$37))), IF(AND(BE$16=1,BE$17=1),IF(BD36<0, BD36-BE$37,(BD36+BE20)*(1+(1-BE$29)*(BE33*Input!$F$9+Sheet2!BE$13*BE32))-(BE$37)), IF(AND(BE$16=0,BE$17=1),IF(BD36<0, BD36-BE$37, (BD36+BE20)*(1+(1-BE$29)*(BE33*Input!$F$9+Sheet2!BE$13*BE32))-(BE$37)))))) -> FALSE | BF36: =IF(AND(BF37=0,BF$9=2), BE36+BF20,IF(BF$9=1, IF(AND(BF$16=1,BF$17=1),(BE36+BF20)*(1+(1-BF$29)*(Input!$F$8*Input!$F$9+Sheet2!BF$13*Input!$F$7))-(BF$37), IF(AND(BF$16=0,BF$17=1),(BE36+BF20)*(1+(1-BF$29)*(Input!$F$8*Input!$F$9+Sheet2!BF$13*Input!$F$7))-(BF$37))), IF(AND(BF$16=1,BF$17=1),IF(BE36<0, BE36-BF$37,(BE36+BF20)*(1+(1-BF$29)*(BF33*Input!$F$9+Sheet2!BF$13*BF32))-(BF$37)), IF(AND(BF$16=0,BF$17=1),IF(BE36<0, BE36-BF$37, (BE36+BF20)*(1+(1-BF$29)*(BF33*Input!$F$9+Sheet2!BF$13*BF32))-(BF$37)))))) -> FALSE | BG36: =IF(AND(BG37=0,BG$9=2), BF36+BG20,IF(BG$9=1, IF(AND(BG$16=1,BG$17=1),(BF36+BG20)*(1+(1-BG$29)*(Input!$F$8*Input!$F$9+Sheet2!BG$13*Input!$F$7))-(BG$37), IF(AND(BG$16=0,BG$17=1),(BF36+BG20)*(1+(1-BG$29)*(Input!$F$8*Input!$F$9+Sheet2!BG$13*Input!$F$7))-(BG$37))), IF(AND(BG$16=1,BG$17=1),IF(BF36<0, BF36-BG$37,(BF36+BG20)*(1+(1-BG$29)*(BG33*Input!$F$9+Sheet2!BG$13*BG32))-(BG$37)), IF(AND(BG$16=0,BG$17=1),IF(BF36<0, BF36-BG$37, (BF36+BG20)*(1+(1-BG$29)*(BG33*Input!$F$9+Sheet2!BG$13*BG32))-(BG$37)))))) -> FALSE | BH36: =IF(AND(BH37=0,BH$9=2), BG36+BH20,IF(BH$9=1, IF(AND(BH$16=1,BH$17=1),(BG36+BH20)*(1+(1-BH$29)*(Input!$F$8*Input!$F$9+Sheet2!BH$13*Input!$F$7))-(BH$37), IF(AND(BH$16=0,BH$17=1),(BG36+BH20)*(1+(1-BH$29)*(Input!$F$8*Input!$F$9+Sheet2!BH$13*Input!$F$7))-(BH$37))), IF(AND(BH$16=1,BH$17=1),IF(BG36<0, BG36-BH$37,(BG36+BH20)*(1+(1-BH$29)*(BH33*Input!$F$9+Sheet2!BH$13*BH32))-(BH$37)), IF(AND(BH$16=0,BH$17=1),IF(BG36<0, BG36-BH$37, (BG36+BH20)*(1+(1-BH$29)*(BH33*Input!$F$9+Sheet2!BH$13*BH32))-(BH$37)))))) -> FALSE | BI36: =IF(AND(BI37=0,BI$9=2), BH36+BI20,IF(BI$9=1, IF(AND(BI$16=1,BI$17=1),(BH36+BI20)*(1+(1-BI$29)*(Input!$F$8*Input!$F$9+Sheet2!BI$13*Input!$F$7))-(BI$37), IF(AND(BI$16=0,BI$17=1),(BH36+BI20)*(1+(1-BI$29)*(Input!$F$8*Input!$F$9+Sheet2!BI$13*Input!$F$7))-(BI$37))), IF(AND(BI$16=1,BI$17=1),IF(BH36<0, BH36-BI$37,(BH36+BI20)*(1+(1-BI$29)*(BI33*Input!$F$9+Sheet2!BI$13*BI32))-(BI$37)), IF(AND(BI$16=0,BI$17=1),IF(BH36<0, BH36-BI$37, (BH36+BI20)*(1+(1-BI$29)*(BI33*Input!$F$9+Sheet2!BI$13*BI32))-(BI$37)))))) -> FALSE | BJ36: =IF(AND(BJ37=0,BJ$9=2), BI36+BJ20,IF(BJ$9=1, IF(AND(BJ$16=1,BJ$17=1),(BI36+BJ20)*(1+(1-BJ$29)*(Input!$F$8*Input!$F$9+Sheet2!BJ$13*Input!$F$7))-(BJ$37), IF(AND(BJ$16=0,BJ$17=1),(BI36+BJ20)*(1+(1-BJ$29)*(Input!$F$8*Input!$F$9+Sheet2!BJ$13*Input!$F$7))-(BJ$37))), IF(AND(BJ$16=1,BJ$17=1),IF(BI36<0, BI36-BJ$37,(BI36+BJ20)*(1+(1-BJ$29)*(BJ33*Input!$F$9+Sheet2!BJ$13*BJ32))-(BJ$37)), IF(AND(BJ$16=0,BJ$17=1),IF(BI36<0, BI36-BJ$37, (BI36+BJ20)*(1+(1-BJ$29)*(BJ33*Input!$F$9+Sheet2!BJ$13*BJ32))-(BJ$37)))))) -> FALSE | BK36: =IF(AND(BK37=0,BK$9=2), BJ36+BK20,IF(BK$9=1, IF(AND(BK$16=1,BK$17=1),(BJ36+BK20)*(1+(1-BK$29)*(Input!$F$8*Input!$F$9+Sheet2!BK$13*Input!$F$7))-(BK$37), IF(AND(BK$16=0,BK$17=1),(BJ36+BK20)*(1+(1-BK$29)*(Input!$F$8*Input!$F$9+Sheet2!BK$13*Input!$F$7))-(BK$37))), IF(AND(BK$16=1,BK$17=1),IF(BJ36<0, BJ36-BK$37,(BJ36+BK20)*(1+(1-BK$29)*(BK33*Input!$F$9+Sheet2!BK$13*BK32))-(BK$37)), IF(AND(BK$16=0,BK$17=1),IF(BJ36<0, BJ36-BK$37, (BJ36+BK20)*(1+(1-BK$29)*(BK33*Input!$F$9+Sheet2!BK$13*BK32))-(BK$37)))))) -> FALSE | BL36: =IF(AND(BL37=0,BL$9=2), BK36+BL20,IF(BL$9=1, IF(AND(BL$16=1,BL$17=1),(BK36+BL20)*(1+(1-BL$29)*(Input!$F$8*Input!$F$9+Sheet2!BL$13*Input!$F$7))-(BL$37), IF(AND(BL$16=0,BL$17=1),(BK36+BL20)*(1+(1-BL$29)*(Input!$F$8*Input!$F$9+Sheet2!BL$13*Input!$F$7))-(BL$37))), IF(AND(BL$16=1,BL$17=1),IF(BK36<0, BK36-BL$37,(BK36+BL20)*(1+(1-BL$29)*(BL33*Input!$F$9+Sheet2!BL$13*BL32))-(BL$37)), IF(AND(BL$16=0,BL$17=1),IF(BK36<0, BK36-BL$37, (BK36+BL20)*(1+(1-BL$29)*(BL33*Input!$F$9+Sheet2!BL$13*BL32))-(BL$37)))))) -> FALSE | BM36: =IF(AND(BM37=0,BM$9=2), BL36+BM20,IF(BM$9=1, IF(AND(BM$16=1,BM$17=1),(BL36+BM20)*(1+(1-BM$29)*(Input!$F$8*Input!$F$9+Sheet2!BM$13*Input!$F$7))-(BM$37), IF(AND(BM$16=0,BM$17=1),(BL36+BM20)*(1+(1-BM$29)*(Input!$F$8*Input!$F$9+Sheet2!BM$13*Input!$F$7))-(BM$37))), IF(AND(BM$16=1,BM$17=1),IF(BL36<0, BL36-BM$37,(BL36+BM20)*(1+(1-BM$29)*(BM33*Input!$F$9+Sheet2!BM$13*BM32))-(BM$37)), IF(AND(BM$16=0,BM$17=1),IF(BL36<0, BL36-BM$37, (BL36+BM20)*(1+(1-BM$29)*(BM33*Input!$F$9+Sheet2!BM$13*BM32))-(BM$37)))))) -> FALSE | BN36: =IF(AND(BN37=0,BN$9=2), BM36+BN20,IF(BN$9=1, IF(AND(BN$16=1,BN$17=1),(BM36+BN20)*(1+(1-BN$29)*(Input!$F$8*Input!$F$9+Sheet2!BN$13*Input!$F$7))-(BN$37), IF(AND(BN$16=0,BN$17=1),(BM36+BN20)*(1+(1-BN$29)*(Input!$F$8*Input!$F$9+Sheet2!BN$13*Input!$F$7))-(BN$37))), IF(AND(BN$16=1,BN$17=1),IF(BM36<0, BM36-BN$37,(BM36+BN20)*(1+(1-BN$29)*(BN33*Input!$F$9+Sheet2!BN$13*BN32))-(BN$37)), IF(AND(BN$16=0,BN$17=1),IF(BM36<0, BM36-BN$37, (BM36+BN20)*(1+(1-BN$29)*(BN33*Input!$F$9+Sheet2!BN$13*BN32))-(BN$37)))))) -> FALSE | BO36: =IF(AND(BO37=0,BO$9=2), BN36+BO20,IF(BO$9=1, IF(AND(BO$16=1,BO$17=1),(BN36+BO20)*(1+(1-BO$29)*(Input!$F$8*Input!$F$9+Sheet2!BO$13*Input!$F$7))-(BO$37), IF(AND(BO$16=0,BO$17=1),(BN36+BO20)*(1+(1-BO$29)*(Input!$F$8*Input!$F$9+Sheet2!BO$13*Input!$F$7))-(BO$37))), IF(AND(BO$16=1,BO$17=1),IF(BN36<0, BN36-BO$37,(BN36+BO20)*(1+(1-BO$29)*(BO33*Input!$F$9+Sheet2!BO$13*BO32))-(BO$37)), IF(AND(BO$16=0,BO$17=1),IF(BN36<0, BN36-BO$37, (BN36+BO20)*(1+(1-BO$29)*(BO33*Input!$F$9+Sheet2!BO$13*BO32))-(BO$37)))))) -> FALSE | BP36: =IF(AND(BP37=0,BP$9=2), BO36+BP20,IF(BP$9=1, IF(AND(BP$16=1,BP$17=1),(BO36+BP20)*(1+(1-BP$29)*(Input!$F$8*Input!$F$9+Sheet2!BP$13*Input!$F$7))-(BP$37), IF(AND(BP$16=0,BP$17=1),(BO36+BP20)*(1+(1-BP$29)*(Input!$F$8*Input!$F$9+Sheet2!BP$13*Input!$F$7))-(BP$37))), IF(AND(BP$16=1,BP$17=1),IF(BO36<0, BO36-BP$37,(BO36+BP20)*(1+(1-BP$29)*(BP33*Input!$F$9+Sheet2!BP$13*BP32))-(BP$37)), IF(AND(BP$16=0,BP$17=1),IF(BO36<0, BO36-BP$37, (BO36+BP20)*(1+(1-BP$29)*(BP33*Input!$F$9+Sheet2!BP$13*BP32))-(BP$37)))))) -> FALSE | BQ36: =IF(AND(BQ37=0,BQ$9=2), BP36+BQ20,IF(BQ$9=1, IF(AND(BQ$16=1,BQ$17=1),(BP36+BQ20)*(1+(1-BQ$29)*(Input!$F$8*Input!$F$9+Sheet2!BQ$13*Input!$F$7))-(BQ$37), IF(AND(BQ$16=0,BQ$17=1),(BP36+BQ20)*(1+(1-BQ$29)*(Input!$F$8*Input!$F$9+Sheet2!BQ$13*Input!$F$7))-(BQ$37))), IF(AND(BQ$16=1,BQ$17=1),IF(BP36<0, BP36-BQ$37,(BP36+BQ20)*(1+(1-BQ$29)*(BQ33*Input!$F$9+Sheet2!BQ$13*BQ32))-(BQ$37)), IF(AND(BQ$16=0,BQ$17=1),IF(BP36<0, BP36-BQ$37, (BP36+BQ20)*(1+(1-BQ$29)*(BQ33*Input!$F$9+Sheet2!BQ$13*BQ32))-(BQ$37)))))) -> FALSE | BR36: =IF(AND(BR37=0,BR$9=2), BQ36+BR20,IF(BR$9=1, IF(AND(BR$16=1,BR$17=1),(BQ36+BR20)*(1+(1-BR$29)*(Input!$F$8*Input!$F$9+Sheet2!BR$13*Input!$F$7))-(BR$37), IF(AND(BR$16=0,BR$17=1),(BQ36+BR20)*(1+(1-BR$29)*(Input!$F$8*Input!$F$9+Sheet2!BR$13*Input!$F$7))-(BR$37))), IF(AND(BR$16=1,BR$17=1),IF(BQ36<0, BQ36-BR$37,(BQ36+BR20)*(1+(1-BR$29)*(BR33*Input!$F$9+Sheet2!BR$13*BR32))-(BR$37)), IF(AND(BR$16=0,BR$17=1),IF(BQ36<0, BQ36-BR$37, (BQ36+BR20)*(1+(1-BR$29)*(BR33*Input!$F$9+Sheet2!BR$13*BR32))-(BR$37)))))) -> FALSE | BS36: =IF(AND(BS37=0,BS$9=2), BR36+BS20,IF(BS$9=1, IF(AND(BS$16=1,BS$17=1),(BR36+BS20)*(1+(1-BS$29)*(Input!$F$8*Input!$F$9+Sheet2!BS$13*Input!$F$7))-(BS$37), IF(AND(BS$16=0,BS$17=1),(BR36+BS20)*(1+(1-BS$29)*(Input!$F$8*Input!$F$9+Sheet2!BS$13*Input!$F$7))-(BS$37))), IF(AND(BS$16=1,BS$17=1),IF(BR36<0, BR36-BS$37,(BR36+BS20)*(1+(1-BS$29)*(BS33*Input!$F$9+Sheet2!BS$13*BS32))-(BS$37)), IF(AND(BS$16=0,BS$17=1),IF(BR36<0, BR36-BS$37, (BR36+BS20)*(1+(1-BS$29)*(BS33*Input!$F$9+Sheet2!BS$13*BS32))-(BS$37)))))) -> FALSE | BT36: =IF(AND(BT37=0,BT$9=2), BS36+BT20,IF(BT$9=1, IF(AND(BT$16=1,BT$17=1),(BS36+BT20)*(1+(1-BT$29)*(Input!$F$8*Input!$F$9+Sheet2!BT$13*Input!$F$7))-(BT$37), IF(AND(BT$16=0,BT$17=1),(BS36+BT20)*(1+(1-BT$29)*(Input!$F$8*Input!$F$9+Sheet2!BT$13*Input!$F$7))-(BT$37))), IF(AND(BT$16=1,BT$17=1),IF(BS36<0, BS36-BT$37,(BS36+BT20)*(1+(1-BT$29)*(BT33*Input!$F$9+Sheet2!BT$13*BT32))-(BT$37)), IF(AND(BT$16=0,BT$17=1),IF(BS36<0, BS36-BT$37, (BS36+BT20)*(1+(1-BT$29)*(BT33*Input!$F$9+Sheet2!BT$13*BT32))-(BT$37)))))) -> FALSE | BU36: =IF(AND(BU37=0,BU$9=2), BT36+BU20,IF(BU$9=1, IF(AND(BU$16=1,BU$17=1),(BT36+BU20)*(1+(1-BU$29)*(Input!$F$8*Input!$F$9+Sheet2!BU$13*Input!$F$7))-(BU$37), IF(AND(BU$16=0,BU$17=1),(BT36+BU20)*(1+(1-BU$29)*(Input!$F$8*Input!$F$9+Sheet2!BU$13*Input!$F$7))-(BU$37))), IF(AND(BU$16=1,BU$17=1),IF(BT36<0, BT36-BU$37,(BT36+BU20)*(1+(1-BU$29)*(BU33*Input!$F$9+Sheet2!BU$13*BU32))-(BU$37)), IF(AND(BU$16=0,BU$17=1),IF(BT36<0, BT36-BU$37, (BT36+BU20)*(1+(1-BU$29)*(BU33*Input!$F$9+Sheet2!BU$13*BU32))-(BU$37)))))) -> FALSE | BV36: =IF(AND(BV37=0,BV$9=2), BU36+BV20,IF(BV$9=1, IF(AND(BV$16=1,BV$17=1),(BU36+BV20)*(1+(1-BV$29)*(Input!$F$8*Input!$F$9+Sheet2!BV$13*Input!$F$7))-(BV$37), IF(AND(BV$16=0,BV$17=1),(BU36+BV20)*(1+(1-BV$29)*(Input!$F$8*Input!$F$9+Sheet2!BV$13*Input!$F$7))-(BV$37))), IF(AND(BV$16=1,BV$17=1),IF(BU36<0, BU36-BV$37,(BU36+BV20)*(1+(1-BV$29)*(BV33*Input!$F$9+Sheet2!BV$13*BV32))-(BV$37)), IF(AND(BV$16=0,BV$17=1),IF(BU36<0, BU36-BV$37, (BU36+BV20)*(1+(1-BV$29)*(BV33*Input!$F$9+Sheet2!BV$13*BV32))-(BV$37)))))) -> FALSE | BW36: =IF(AND(BW37=0,BW$9=2), BV36+BW20,IF(BW$9=1, IF(AND(BW$16=1,BW$17=1),(BV36+BW20)*(1+(1-BW$29)*(Input!$F$8*Input!$F$9+Sheet2!BW$13*Input!$F$7))-(BW$37), IF(AND(BW$16=0,BW$17=1),(BV36+BW20)*(1+(1-BW$29)*(Input!$F$8*Input!$F$9+Sheet2!BW$13*Input!$F$7))-(BW$37))), IF(AND(BW$16=1,BW$17=1),IF(BV36<0, BV36-BW$37,(BV36+BW20)*(1+(1-BW$29)*(BW33*Input!$F$9+Sheet2!BW$13*BW32))-(BW$37)), IF(AND(BW$16=0,BW$17=1),IF(BV36<0, BV36-BW$37, (BV36+BW20)*(1+(1-BW$29)*(BW33*Input!$F$9+Sheet2!BW$13*BW32))-(BW$37)))))) -> FALSE | BX36: =IF(AND(BX37=0,BX$9=2), BW36+BX20,IF(BX$9=1, IF(AND(BX$16=1,BX$17=1),(BW36+BX20)*(1+(1-BX$29)*(Input!$F$8*Input!$F$9+Sheet2!BX$13*Input!$F$7))-(BX$37), IF(AND(BX$16=0,BX$17=1),(BW36+BX20)*(1+(1-BX$29)*(Input!$F$8*Input!$F$9+Sheet2!BX$13*Input!$F$7))-(BX$37))), IF(AND(BX$16=1,BX$17=1),IF(BW36<0, BW36-BX$37,(BW36+BX20)*(1+(1-BX$29)*(BX33*Input!$F$9+Sheet2!BX$13*BX32))-(BX$37)), IF(AND(BX$16=0,BX$17=1),IF(BW36<0, BW36-BX$37, (BW36+BX20)*(1+(1-BX$29)*(BX33*Input!$F$9+Sheet2!BX$13*BX32))-(BX$37)))))) -> FALSE | BY36: =IF(AND(BY37=0,BY$9=2), BX36+BY20,IF(BY$9=1, IF(AND(BY$16=1,BY$17=1),(BX36+BY20)*(1+(1-BY$29)*(Input!$F$8*Input!$F$9+Sheet2!BY$13*Input!$F$7))-(BY$37), IF(AND(BY$16=0,BY$17=1),(BX36+BY20)*(1+(1-BY$29)*(Input!$F$8*Input!$F$9+Sheet2!BY$13*Input!$F$7))-(BY$37))), IF(AND(BY$16=1,BY$17=1),IF(BX36<0, BX36-BY$37,(BX36+BY20)*(1+(1-BY$29)*(BY33*Input!$F$9+Sheet2!BY$13*BY32))-(BY$37)), IF(AND(BY$16=0,BY$17=1),IF(BX36<0, BX36-BY$37, (BX36+BY20)*(1+(1-BY$29)*(BY33*Input!$F$9+Sheet2!BY$13*BY32))-(BY$37)))))) -> FALSE | BZ36: =IF(AND(BZ37=0,BZ$9=2), BY36+BZ20,IF(BZ$9=1, IF(AND(BZ$16=1,BZ$17=1),(BY36+BZ20)*(1+(1-BZ$29)*(Input!$F$8*Input!$F$9+Sheet2!BZ$13*Input!$F$7))-(BZ$37), IF(AND(BZ$16=0,BZ$17=1),(BY36+BZ20)*(1+(1-BZ$29)*(Input!$F$8*Input!$F$9+Sheet2!BZ$13*Input!$F$7))-(BZ$37))), IF(AND(BZ$16=1,BZ$17=1),IF(BY36<0, BY36-BZ$37,(BY36+BZ20)*(1+(1-BZ$29)*(BZ33*Input!$F$9+Sheet2!BZ$13*BZ32))-(BZ$37)), IF(AND(BZ$16=0,BZ$17=1),IF(BY36<0, BY36-BZ$37, (BY36+BZ20)*(1+(1-BZ$29)*(BZ33*Input!$F$9+Sheet2!BZ$13*BZ32))-(BZ$37)))))) -> FALSE | CA36: =IF(AND(CA37=0,CA$9=2), BZ36+CA20,IF(CA$9=1, IF(AND(CA$16=1,CA$17=1),(BZ36+CA20)*(1+(1-CA$29)*(Input!$F$8*Input!$F$9+Sheet2!CA$13*Input!$F$7))-(CA$37), IF(AND(CA$16=0,CA$17=1),(BZ36+CA20)*(1+(1-CA$29)*(Input!$F$8*Input!$F$9+Sheet2!CA$13*Input!$F$7))-(CA$37))), IF(AND(CA$16=1,CA$17=1),IF(BZ36<0, BZ36-CA$37,(BZ36+CA20)*(1+(1-CA$29)*(CA33*Input!$F$9+Sheet2!CA$13*CA32))-(CA$37)), IF(AND(CA$16=0,CA$17=1),IF(BZ36<0, BZ36-CA$37, (BZ36+CA20)*(1+(1-CA$29)*(CA33*Input!$F$9+Sheet2!CA$13*CA32))-(CA$37)))))) -> FALSE | CB36: =IF(AND(CB37=0,CB$9=2), CA36+CB20,IF(CB$9=1, IF(AND(CB$16=1,CB$17=1),(CA36+CB20)*(1+(1-CB$29)*(Input!$F$8*Input!$F$9+Sheet2!CB$13*Input!$F$7))-(CB$37), IF(AND(CB$16=0,CB$17=1),(CA36+CB20)*(1+(1-CB$29)*(Input!$F$8*Input!$F$9+Sheet2!CB$13*Input!$F$7))-(CB$37))), IF(AND(CB$16=1,CB$17=1),IF(CA36<0, CA36-CB$37,(CA36+CB20)*(1+(1-CB$29)*(CB33*Input!$F$9+Sheet2!CB$13*CB32))-(CB$37)), IF(AND(CB$16=0,CB$17=1),IF(CA36<0, CA36-CB$37, (CA36+CB20)*(1+(1-CB$29)*(CB33*Input!$F$9+Sheet2!CB$13*CB32))-(CB$37)))))) -> FALSE | CC36: =IF(AND(CC37=0,CC$9=2), CB36+CC20,IF(CC$9=1, IF(AND(CC$16=1,CC$17=1),(CB36+CC20)*(1+(1-CC$29)*(Input!$F$8*Input!$F$9+Sheet2!CC$13*Input!$F$7))-(CC$37), IF(AND(CC$16=0,CC$17=1),(CB36+CC20)*(1+(1-CC$29)*(Input!$F$8*Input!$F$9+Sheet2!CC$13*Input!$F$7))-(CC$37))), IF(AND(CC$16=1,CC$17=1),IF(CB36<0, CB36-CC$37,(CB36+CC20)*(1+(1-CC$29)*(CC33*Input!$F$9+Sheet2!CC$13*CC32))-(CC$37)), IF(AND(CC$16=0,CC$17=1),IF(CB36<0, CB36-CC$37, (CB36+CC20)*(1+(1-CC$29)*(CC33*Input!$F$9+Sheet2!CC$13*CC32))-(CC$37)))))) -> FALSE | CD36: =IF(AND(CD37=0,CD$9=2), CC36+CD20,IF(CD$9=1, IF(AND(CD$16=1,CD$17=1),(CC36+CD20)*(1+(1-CD$29)*(Input!$F$8*Input!$F$9+Sheet2!CD$13*Input!$F$7))-(CD$37), IF(AND(CD$16=0,CD$17=1),(CC36+CD20)*(1+(1-CD$29)*(Input!$F$8*Input!$F$9+Sheet2!CD$13*Input!$F$7))-(CD$37))), IF(AND(CD$16=1,CD$17=1),IF(CC36<0, CC36-CD$37,(CC36+CD20)*(1+(1-CD$29)*(CD33*Input!$F$9+Sheet2!CD$13*CD32))-(CD$37)), IF(AND(CD$16=0,CD$17=1),IF(CC36<0, CC36-CD$37, (CC36+CD20)*(1+(1-CD$29)*(CD33*Input!$F$9+Sheet2!CD$13*CD32))-(CD$37)))))) -> FALSE | CE36: =IF(AND(CE37=0,CE$9=2), CD36+CE20,IF(CE$9=1, IF(AND(CE$16=1,CE$17=1),(CD36+CE20)*(1+(1-CE$29)*(Input!$F$8*Input!$F$9+Sheet2!CE$13*Input!$F$7))-(CE$37), IF(AND(CE$16=0,CE$17=1),(CD36+CE20)*(1+(1-CE$29)*(Input!$F$8*Input!$F$9+Sheet2!CE$13*Input!$F$7))-(CE$37))), IF(AND(CE$16=1,CE$17=1),IF(CD36<0, CD36-CE$37,(CD36+CE20)*(1+(1-CE$29)*(CE33*Input!$F$9+Sheet2!CE$13*CE32))-(CE$37)), IF(AND(CE$16=0,CE$17=1),IF(CD36<0, CD36-CE$37, (CD36+CE20)*(1+(1-CE$29)*(CE33*Input!$F$9+Sheet2!CE$13*CE32))-(CE$37)))))) -> FALSE | CF36: =IF(AND(CF37=0,CF$9=2), CE36+CF20,IF(CF$9=1, IF(AND(CF$16=1,CF$17=1),(CE36+CF20)*(1+(1-CF$29)*(Input!$F$8*Input!$F$9+Sheet2!CF$13*Input!$F$7))-(CF$37), IF(AND(CF$16=0,CF$17=1),(CE36+CF20)*(1+(1-CF$29)*(Input!$F$8*Input!$F$9+Sheet2!CF$13*Input!$F$7))-(CF$37))), IF(AND(CF$16=1,CF$17=1),IF(CE36<0, CE36-CF$37,(CE36+CF20)*(1+(1-CF$29)*(CF33*Input!$F$9+Sheet2!CF$13*CF32))-(CF$37)), IF(AND(CF$16=0,CF$17=1),IF(CE36<0, CE36-CF$37, (CE36+CF20)*(1+(1-CF$29)*(CF33*Input!$F$9+Sheet2!CF$13*CF32))-(CF$37)))))) -> FALSE | CG36: =IF(AND(CG37=0,CG$9=2), CF36+CG20,IF(CG$9=1, IF(AND(CG$16=1,CG$17=1),(CF36+CG20)*(1+(1-CG$29)*(Input!$F$8*Input!$F$9+Sheet2!CG$13*Input!$F$7))-(CG$37), IF(AND(CG$16=0,CG$17=1),(CF36+CG20)*(1+(1-CG$29)*(Input!$F$8*Input!$F$9+Sheet2!CG$13*Input!$F$7))-(CG$37))), IF(AND(CG$16=1,CG$17=1),IF(CF36<0, CF36-CG$37,(CF36+CG20)*(1+(1-CG$29)*(CG33*Input!$F$9+Sheet2!CG$13*CG32))-(CG$37)), IF(AND(CG$16=0,CG$17=1),IF(CF36<0, CF36-CG$37, (CF36+CG20)*(1+(1-CG$29)*(CG33*Input!$F$9+Sheet2!CG$13*CG32))-(CG$37)))))) -> FALSE | CH36: =IF(AND(CH37=0,CH$9=2), CG36+CH20,IF(CH$9=1, IF(AND(CH$16=1,CH$17=1),(CG36+CH20)*(1+(1-CH$29)*(Input!$F$8*Input!$F$9+Sheet2!CH$13*Input!$F$7))-(CH$37), IF(AND(CH$16=0,CH$17=1),(CG36+CH20)*(1+(1-CH$29)*(Input!$F$8*Input!$F$9+Sheet2!CH$13*Input!$F$7))-(CH$37))), IF(AND(CH$16=1,CH$17=1),IF(CG36<0, CG36-CH$37,(CG36+CH20)*(1+(1-CH$29)*(CH33*Input!$F$9+Sheet2!CH$13*CH32))-(CH$37)), IF(AND(CH$16=0,CH$17=1),IF(CG36<0, CG36-CH$37, (CG36+CH20)*(1+(1-CH$29)*(CH33*Input!$F$9+Sheet2!CH$13*CH32))-(CH$37)))))) -> FALSE | CI36: =IF(AND(CI37=0,CI$9=2), CH36+CI20,IF(CI$9=1, IF(AND(CI$16=1,CI$17=1),(CH36+CI20)*(1+(1-CI$29)*(Input!$F$8*Input!$F$9+Sheet2!CI$13*Input!$F$7))-(CI$37), IF(AND(CI$16=0,CI$17=1),(CH36+CI20)*(1+(1-CI$29)*(Input!$F$8*Input!$F$9+Sheet2!CI$13*Input!$F$7))-(CI$37))), IF(AND(CI$16=1,CI$17=1),IF(CH36<0, CH36-CI$37,(CH36+CI20)*(1+(1-CI$29)*(CI33*Input!$F$9+Sheet2!CI$13*CI32))-(CI$37)), IF(AND(CI$16=0,CI$17=1),IF(CH36<0, CH36-CI$37, (CH36+CI20)*(1+(1-CI$29)*(CI33*Input!$F$9+Sheet2!CI$13*CI32))-(CI$37)))))) -> FALSE | CJ36: =IF(AND(CJ37=0,CJ$9=2), CI36+CJ20,IF(CJ$9=1, IF(AND(CJ$16=1,CJ$17=1),(CI36+CJ20)*(1+(1-CJ$29)*(Input!$F$8*Input!$F$9+Sheet2!CJ$13*Input!$F$7))-(CJ$37), IF(AND(CJ$16=0,CJ$17=1),(CI36+CJ20)*(1+(1-CJ$29)*(Input!$F$8*Input!$F$9+Sheet2!CJ$13*Input!$F$7))-(CJ$37))), IF(AND(CJ$16=1,CJ$17=1),IF(CI36<0, CI36-CJ$37,(CI36+CJ20)*(1+(1-CJ$29)*(CJ33*Input!$F$9+Sheet2!CJ$13*CJ32))-(CJ$37)), IF(AND(CJ$16=0,CJ$17=1),IF(CI36<0, CI36-CJ$37, (CI36+CJ20)*(1+(1-CJ$29)*(CJ33*Input!$F$9+Sheet2!CJ$13*CJ32))-(CJ$37)))))) -> FALSE | CK36: =IF(AND(CK37=0,CK$9=2), CJ36+CK20,IF(CK$9=1, IF(AND(CK$16=1,CK$17=1),(CJ36+CK20)*(1+(1-CK$29)*(Input!$F$8*Input!$F$9+Sheet2!CK$13*Input!$F$7))-(CK$37), IF(AND(CK$16=0,CK$17=1),(CJ36+CK20)*(1+(1-CK$29)*(Input!$F$8*Input!$F$9+Sheet2!CK$13*Input!$F$7))-(CK$37))), IF(AND(CK$16=1,CK$17=1),IF(CJ36<0, CJ36-CK$37,(CJ36+CK20)*(1+(1-CK$29)*(CK33*Input!$F$9+Sheet2!CK$13*CK32))-(CK$37)), IF(AND(CK$16=0,CK$17=1),IF(CJ36<0, CJ36-CK$37, (CJ36+CK20)*(1+(1-CK$29)*(CK33*Input!$F$9+Sheet2!CK$13*CK32))-(CK$37)))))) -> FALSE | CL36: =IF(AND(CL37=0,CL$9=2), CK36+CL20,IF(CL$9=1, IF(AND(CL$16=1,CL$17=1),(CK36+CL20)*(1+(1-CL$29)*(Input!$F$8*Input!$F$9+Sheet2!CL$13*Input!$F$7))-(CL$37), IF(AND(CL$16=0,CL$17=1),(CK36+CL20)*(1+(1-CL$29)*(Input!$F$8*Input!$F$9+Sheet2!CL$13*Input!$F$7))-(CL$37))), IF(AND(CL$16=1,CL$17=1),IF(CK36<0, CK36-CL$37,(CK36+CL20)*(1+(1-CL$29)*(CL33*Input!$F$9+Sheet2!CL$13*CL32))-(CL$37)), IF(AND(CL$16=0,CL$17=1),IF(CK36<0, CK36-CL$37, (CK36+CL20)*(1+(1-CL$29)*(CL33*Input!$F$9+Sheet2!CL$13*CL32))-(CL$37)))))) -> FALSE | CM36: =IF(AND(CM37=0,CM$9=2), CL36+CM20,IF(CM$9=1, IF(AND(CM$16=1,CM$17=1),(CL36+CM20)*(1+(1-CM$29)*(Input!$F$8*Input!$F$9+Sheet2!CM$13*Input!$F$7))-(CM$37), IF(AND(CM$16=0,CM$17=1),(CL36+CM20)*(1+(1-CM$29)*(Input!$F$8*Input!$F$9+Sheet2!CM$13*Input!$F$7))-(CM$37))), IF(AND(CM$16=1,CM$17=1),IF(CL36<0, CL36-CM$37,(CL36+CM20)*(1+(1-CM$29)*(CM33*Input!$F$9+Sheet2!CM$13*CM32))-(CM$37)), IF(AND(CM$16=0,CM$17=1),IF(CL36<0, CL36-CM$37, (CL36+CM20)*(1+(1-CM$29)*(CM33*Input!$F$9+Sheet2!CM$13*CM32))-(CM$37)))))) -> FALSE | CN36: =IF(AND(CN37=0,CN$9=2), CM36+CN20,IF(CN$9=1, IF(AND(CN$16=1,CN$17=1),(CM36+CN20)*(1+(1-CN$29)*(Input!$F$8*Input!$F$9+Sheet2!CN$13*Input!$F$7))-(CN$37), IF(AND(CN$16=0,CN$17=1),(CM36+CN20)*(1+(1-CN$29)*(Input!$F$8*Input!$F$9+Sheet2!CN$13*Input!$F$7))-(CN$37))), IF(AND(CN$16=1,CN$17=1),IF(CM36<0, CM36-CN$37,(CM36+CN20)*(1+(1-CN$29)*(CN33*Input!$F$9+Sheet2!CN$13*CN32))-(CN$37)), IF(AND(CN$16=0,CN$17=1),IF(CM36<0, CM36-CN$37, (CM36+CN20)*(1+(1-CN$29)*(CN33*Input!$F$9+Sheet2!CN$13*CN32))-(CN$37)))))) -> FALSE | CP36: =INDEX($A:$CN, ROW(), $D$3+$C$3+2) -> -137137.057
C37: =IF(C$26<(B36-(0.08*(B35+B36))),C$26,IF(AND(AND(C$26>(B36-(0.08*(B35+B36))),0<(B36-(0.08*(B35+B36)))),B36>1),(B36-(0.08*(B35+B36))),0)) -> 0 | D37: =IF(D$26<(C36-(0.08*(C35+C36))),D$26,IF(AND(AND(D$26>(C36-(0.08*(C35+C36))),0<(C36-(0.08*(C35+C36)))),C36>1),(C36-(0.08*(C35+C36))),0)) -> 0 | E37: 0 | F37: 0 | G37: 0 | H37: 0 | I37: 1216.918381 | J37: 9606.252239 | K37: 9807.787436 | L37: 10310.66341 | M37: 10415.50635 | N37: 10848.33187 | O37: 10944.95063 | P37: 0 | Q37: 0 | R37: 0 | S37: 0 | T37: 0 | U37: 0 | V37: 0 | W37: 0 | X37: 0 | Y37: 0 | Z37: 0 | AA37: 0 | AB37: 0 | AC37: 0 | AD37: 128853.1948 | AE37: 0 | AF37: 0 | AG37: 0 | AH37: 0 | AI37: 0 | AJ37: 0 | AK37: 0 | AL37: 0 | AM37: 0 | AN37: 0 | AO37: 0 | AP37: 0 | AQ37: 0 | AR37: 0 | AS37: 0 | AT37: 0 | AU37: 0 | AV37: 0 | AW37: 0 | AX37: 0 | AY37: 0 | AZ37: 0 | BA37: 0 | BB37: 0 | BC37: 0 | BD37: 0 | BE37: 0 | BF37: 0 | BG37: 0 | BH37: 0 | BI37: 0 | BJ37: 0 | BK37: 0 | BL37: 0 | BM37: 0 | BN37: 0 | BO37: 0 | BP37: =IF(BP$26<(BO36-(0.08*(BO35+BO36))),BP$26,IF(AND(AND(BP$26>(BO36-(0.08*(BO35+BO36))),0<(BO36-(0.08*(BO35+BO36)))),BO36>1),(BO36-(0.08*(BO35+BO36))),0)) -> 0 | BQ37: 0 | BR37: 0 | BS37: 0 | BT37: 0 | BU37: 0 | BV37: 0 | BW37: 0 | BX37: 0 | BY37: 0 | BZ37: 0 | CA37: 0 | CB37: 0 | CC37: 0 | CD37: 0 | CE37: 0 | CF37: 0 | CG37: 0 | CH37: 0 | CI37: 0 | CJ37: 0 | CK37: 0 | CL37: 0 | CM37: 0 | CN37: 0 | CP37: =SUM(CP35:CP36) -> -2294204.214
A38: Standard model (with SS support)
C39: =C42-C45 -> 0 | D39: =D42-D45 -> 100000 | E39: 65413.18031 | F39: 29737.50345 | G39: 31938.49864 | H39: 34201.36056 | I39: 36505.6085 | J39: 38851.69985 | K39: 41240.47317 | L39: 43672.79294 | M39: 46149.54362 | N39: 48671.62984 | O39: 51239.9766 | P39: 52237.76664 | Q39: 55308.84999 | R39: 53521.93769 | S39: 55601.78106 | T39: 58066.74006 | U39: 60614.341 | V39: 63150.4821 | W39: 101023.7444 | X39: 102100.213 | Y39: 67520.31362 | Z39: 73738.91945 | AA39: 77527.09909 | AB39: 130932.4001 | AC39: 135870.8014 | AD39: 93724.90569 | AE39: 149321.1502 | AF39: 0 | AG39: 0 | AH39: 0 | AI39: 0 | AJ39: 0 | AK39: 0 | AL39: 0 | AM39: 0 | AN39: 0 | AO39: 0 | AP39: 0 | AQ39: 0 | AR39: 0 | AS39: 0 | AT39: 0 | AU39: 0 | AV39: 0 | AW39: 0 | AX39: 0 | AY39: 0 | AZ39: 0 | BA39: 0 | BB39: 0 | BC39: 0 | BD39: 0 | BE39: 0 | BF39: 0 | BG39: 0 | BH39: 0 | BI39: 0 | BJ39: 0 | BK39: 0 | BL39: 0 | BM39: 0 | BN39: 0 | BO39: 0 | BP39: =BP42-BP45 -> 0 | BQ39: 0 | BR39: 0 | BS39: 0 | BT39: 0 | BU39: 0 | BV39: 0 | BW39: 0 | BX39: 0 | BY39: 0 | BZ39: 0 | CA39: 0 | CB39: 0 | CC39: 0 | CD39: 0 | CE39: 0 | CF39: 0 | CG39: 0 | CH39: 0 | CI39: 0 | CJ39: 0 | CK39: 0 | CL39: 0 | CM39: 0 | CN39: 0
A40: additional SS income | P40: =O41*-0.39*(1+ O66) -> -31565.26431 | Q40: =P40*(1+Input!$F$21*0.75) -> -32157.11302 | R40: =Q40*(1+Input!$F$21*0.75) -> -32760.05888 | S40: =R40*(1+Input!$F$21*0.75) -> -33374.30999 | T40: =S40*(1+Input!$F$21*0.75) -> -34000.0783 | U40: =T40*(1+Input!$F$21*0.75) -> -34637.57977 | V40: =U40*(1+Input!$F$21*0.75) -> -35287.03439 | W40: =V40*(1+Input!$F$21*0.75) -> -35948.66628 | X40: =W40*(1+Input!$F$21*0.75) -> -36622.70378 | Y40: =X40*(1+Input!$F$21*0.75) -> -37309.37947 | Z40: =Y40*(1+Input!$F$21*0.75) -> -38008.93034 | AA40: =Z40*(1+Input!$F$21*0.75) -> -38721.59778 | AB40: =AA40*(1+Input!$F$21*0.75) -> -39447.62774 | AC40: =AB40*(1+Input!$F$21*0.75) -> -40187.27076 | AD40: =AC40*(1+Input!$F$21*0.75) -> -40940.78209
